Workbook

Sheet DATOS_BASICOS (hidden)
A1: NOMBRE_DEPARTAMENTO | B1: NOMBRE_MUNICIPIO | C1: CODIGO_HABILITACION | D1: EMPRESA_SOCIAL_ESTADO | E1: TRIMESTRE_REPORTE | F1: ANIO_REPORTE
A2: DEPARTAMENTO DE SANTANDER | B2: FLORIDABLANCA | C2: 6827600717 | D2: E.S.E. HOSPITAL SAN JUAN DE DIOS DE FLORIDABLANCA | E2: 3 | F2: 2023

Sheet MEDIDAS (hidden)
A1: CONCEPTO | B1: CATEGORIA_MEDIDA | C1: ASPECTO_SER_INTERVENIDO | D1: PROBLEMA_IDENTIFICADO_CAUSA | E1: DESCRIPCION_MEDIDA_COMPROMISO | F1: DESCRIPCION_META | G1: PRODUCTO_CUMPLIMIENTO | H1: FECHA_INICIAL | I1: FECHA_FINAL | J1: LINEA_BASE_INDICADOR | K1: EJECUCION_ACUMULADA_INICIO | L1: EJECUCION_MEDIDA_TRIMESTRE_1 | M1: EJECUCION_MEDIDA_TRIMESTRE_2 | N1: EJECUCION_MEDIDA_TRIMESTRE_3 | O1: EJECUCION_MEDIDA_TRIMESTRE_4 | P1: EJECUCION_ACUMULADA_ESPERADA | Q1: OBSERVACIONES_COMENTARIOS
A2: 1 | B2: Fortalecimiento de los ingresos de las ESE | C2: Entorno | D2: Problema: El % de participación en realización de cirugía es bajo. frente a los hospitales públicos de mediana complejidad - Causa: Ingreso al mercado de nuevas EPS con red propia de prestadores de servicios electivos | E2: DA: Presentar y ofertar gerencialmente el portafolio de servicios explícito que presente su programa de estancia hospitalaria adulto mayor. cirugía electiva conapoyo tecnológico en el área laparoscópica y endoscópica y consulta especializada electiva | F2: Cubrimiento de la presentación del portafolio a la totalidad de los directivos de las Entidades Responsables del Pago del Área de Influencia | G2: Acta de Visita | H2: 1/08/2021 | I2: 1/02/2022 | J2: ,000 | K2: ,880 | L2: ,880 | M2: ,880 | N2: ,880 | O2: ,000 | P2: ,900 | Q2: No se ha presentado grandes cambios en la distribución de los afiliados-continúan en el mercado de nuestra área de influencia las EPS con las cuales se ha adelantado gestión para legalizar la contratación
A3: 2 | B3: Fortalecimiento de los ingresos de las ESE | C3: Entorno | D3: Problema: No se puede establecer la competitividad de las tarfias de la Entidad en el mercado - Causa: La entidad no cuenta con un programa de costos que le permita determinar rentabilidad de los servicios | E3: FA: Determinar los costos de producción y mejorar los márgenes de negociación en el proceso de conratación interinstitucional | F3: Identificaión de costos de producción por actividad asistencial | G3: Informe Trimestral de costos que detalla el valor promedio unitario por actividad | H3: 1/10/2021 | I3: 1/12/2026 | J3: 1,000 | K3: 1,000 | L3: ,250 | M3: ,500 | N3: ,750 | O3: ,000 | P3: 1,000 | Q3: El informe comprende la definición de los tres componentes del costo- y que de acuerdo a los resultados promedio se encuentra: 66% del costo de la operación: Mano de obra. el 17% del costo: Materiales y suministros y 17% del costo Gastos generales.
A4: 3 | B4: Fortalecimiento de los ingresos de las ESE | C4: Institucional | D4: Problema: No se cumple con el estándar de infraestructura de la Resolución 3100 de 2019 habilitación de servicios - Causa: Infraestructura deficiente en las áreas de hospitalización. central de esterilización. urgencias y farmacia | E4: FO: Ofertar a corto plazo la nueva infraestructura sede materno infantil y redistribución de áreas ajustadas a criterios de habilitación en la sede central | F4: Habilitación de la Sede Materno Infantil de la ESE Hospital San Juan de Dios de Floridablanca | G4: Certificado de Habilitación sede Materno Infantil de la ESE Hospital San Juan de Dios de Floridablanca | H4: 1/11/2021 | I4: 1/02/2022 | J4: ,000 | K4: ,000 | L4: ,100 | M4: ,350 | N4: ,550 | O4: ,000 | P4: 1,000 | Q4: Se logra realizar convenio interadministrativo para la ejecución de la obra de infraestructura para la puesta en marcha de la SEDE UMI. se espera que a 31 de diciembre se logre la habilitación de la sede
A5: 4 | B5: Fortalecimiento de los ingresos de las ESE | C5: Institucional | D5: Problema: Las limitantes de infraestructura. impide desarrollar adecuadamente el programa de Humanización en la Entidad - Causa: Infraestructura de la sede central con áreas insuficientes que generan altas concentraciones de usuarios | E5: DA: Optimizar condiciones de competitividad a través del mejoramiento de calidad en la atención. implementando el programa de Humanización en todos los servicios de la ESE | F5: Diseño e implementación del Programa de Humanización | G5: Documento elaborado y formatos de registro de asistencia de evaluación | H5: 1/06/2021 | I5: 21/12/2026 | J5: ,500 | K5: ,900 | L5: ,250 | M5: ,500 | N5: ,750 | O5: ,000 | P5: ,900 | Q5: Existe ruta de intervención integral. que incluye al personal asistencial con intervenciones directas y educativas. proceso de humanización aplicado a las diferentes áreas asistenciales. con marco teórico definido y ejes específicos
A6: 5 | B6: Fortalecimiento de los ingresos de las ESE | C6: Institucional | D6: Problema: Necesidad de renovación tecnológica en la central de esterilización y lamparas cielíticas para la sede materno infantil - Causa: Equipos no son suficientes para la entrada de operación de la UMI en área de esterilización y cirugia | E6: FO: Elaborar y presentar el proyecto a la Gobernación de Santander. para la adquisición de los faltantes tecnológicos para la puesta ne marcha de la sede materno infantil | F6: Proyecto elaborado para la prestentación de la solicitud al ente Territorial | G6: Proyecto elaborado y presentado a la Secretaria de Salud Departamental | H6: 1/11/2021 | I6: 1/02/2022 | J6: ,350 | K6: ,350 | L6: 1,000 | M6: 1,000 | N6: 1,000 | O6: ,000 | P6: 1,000 | Q6: A través de convenio interadministrativo se logra la adquisición de dos lámparas cielíticas y dotación para la central de esterilización para la sede UMI
A7: 6 | B7: Reorganización administrativa | C7: Institucional | D7: Problema: No se cuenta con un programa de formación continuada para el talento humano en salud - Causa: No actualización de los contenidos temáticos del plan de formación que obedezca a las necesidades de aprendizaje | E7: FO: Elaboración de los contenidos temáticos con el personal calificado en el área asistencial y administrativo con el apoyo de los convenios docencia servicio | F7: Plan de formación continua del talento humano anualizado en convenio con instituciones universitarias en práctica actual docente servicio que cubra un porcentaje superior al 90% de los empleados de planta y de contrato de la institución | G7: Documento plan de formaión continua documentado Certificación individualizadas del cumplimiento de formación. oficializada por el jefe de talento humano de la ESE | H7: 1/09/2021 | I7: 31/12/2026 | J7: ,250 | K7: 1,000 | L7: ,250 | M7: ,500 | N7: ,750 | O7: ,000 | P7: ,900 | Q7: Se logra la ejecucicón de las actividades programadas para capacitación y formación del personal. logrando una ejecución conforme al cronograma establecido del 75%
A8: 7 | B8: Fortalecimiento de los ingresos de las ESE | C8: Institucional | D8: Problema: El programa de farmaco y tecnovigilancia no se encuentra implementado en todas las unidades funcionales de la ESE - Causa: falta de monitorización y retroalimentación al personal en los programas de farmaco y tecnovigilancia | E8: DO: Mejoramiento de la calidad de la prestación de servicios con la implementación del programa de farmacovigilancia y tecnovigilancia en todas las áreas funcionales de la ESE | F8: Socializar el Programa de Tecnovigilancia y Farmacovigilancia como mínimo al 95% del personal de salud de la ESE | G8: Listados de asistencia a las Socializaciones | H8: 1/09/2021 | I8: 31/12/2026 | J8: ,000 | K8: ,860 | L8: ,250 | M8: ,450 | N8: ,900 | O8: ,000 | P8: ,900 | Q8: Se logra la capacitacion continua al personal en los programs de farmacovigilancia y tecnovigilancia. uso adecuado de los equpos biomédicos. reporte al INVIMA
A9: 8 | B9: Racionalización del gasto | C9: Institucional | D9: Problema: No cumplimiento de horarios. generando concentración de pacientes y esperas prolongadas - Causa: Incumplimiento de agendas de trabajo y programación | E9: DO: Definición de agendas de trabajo para el personal asistencial. con el fin de dar cumplimiento estricto a los horarios de atención. | F9: Lograr evaluar el rendimiento del personal asistencial con el objetivo de monitorizar en forma permanente el cumplimiento de las agendas contractuales establecidas | G9: Certificaión de los supervisores oficial asistenciales | H9: 1/09/2021 | I9: 31/12/2026 | J9: ,000 | K9: 1,000 | L9: ,250 | M9: ,500 | N9: ,750 | O9: ,000 | P9: 1,000 | Q9: Se logra realizar analisis trimestrales del rendimiento por hora contratada de los profesionales asistencia. así como de los tiempos de oportunidad de triage. y valoraciones inrahospitalaria.
A10: 9 | B10: Reorganización administrativa | C10: Administrativo | D10: roblema: Procesos y procedimientos no ajustados al modelo de operación por procesos definido por la E.S.E. - Causa: No se encuentran actualizadas el total de caracterizaciones y procesos de la ESE | E10: FO: Aplicación de la metodología de gestión por procesos. por parte de la directiva y líderes de área. con el fin de actualizarlas conforme al modelo de operación asistencial y administrativo de la ESE | F10: Lograr la actualización. caracterización y estandarización del 100% de los procesos de la ESE | G10: Informe de Avance del niel de estanarización y listado Maestro de documentos | H10: 1/09/2021 | I10: 30/09/2022 | J10: ,360 | K10: ,700 | L10: ,700 | M10: ,750 | N10: ,820 | O10: ,000 | P10: 1,000 | Q10: Se logra la actualizacion de varios procedimientos de las áras asistenciales y de apoyo tanto administrativas como asistenciales
A11: 10 | B11: Reorganización administrativa | C11: Administrativo | D11: Problema: índice de desempeño institucional menor al promedio del grupo par. con resultado del 57.4% - Causa: No se ha operativizado todas las políticas de Gestión y Desempeño que hacen parte del MIPG en la Entidad | E11: DO: Moderniazar y mejorar los procesos utilizando el MIPG desplegando las 16 politicas ya estructuradas. estableciendo oportunidades de crecimiento. promoviendo la condición interinsticuional para mejorar la gestión y desempeño de la entidad | F11: La medición del Desempeño institucional es una operación estadística que mide anualmente la gestión y desempeño de las entidades públicas. proporcionando información para la toma de decisiones en materia de gestión. | G11: Resultado de la autoevaluación plataforma FURAG Medición Institucional | H11: 1/07/2022 | I11: 31/12/2026 | J11: ,610 | K11: ,638 | L11: ,640 | M11: ,640 | N11: ,640 | O11: ,000 | P11: ,690 | Q11: Conforme lo establecido por la funcion pública los resultados de la vigencia 2022. no son comparables con los resultados de las mediciones de vigencias anteriores. ya que se realizaron cambios significativos en la herramienta de autoevaluación
A12: 11 | B12: Fortalecimiento de los ingresos de las ESE | C12: Financiero | D12: Problema: Disminución de la venta de servicios 2019 Vs 2020 en un 26% - Causa: Decrecimiento en la demanda de servicios asistenciales por Pandemia y por salida en el mercado de la EPS Medimás | E12: FO: Garantizar una venta de servicios en correspondencia a su capacidad instalada. con crecimientos dependientes de la dinámica población y transferencias de planes de aseguramiento | F12: Cumplimiento en la venta de servicios conforme a lo proyectado en el escenario financiero del PSFF. periodo 2021-2026 | G12: Ejecución Presupuestal de Ingresos | H12: 1/01/2021 | I12: 31/12/2026 | J12: ,000 | K12: ,880 | L12: ,250 | M12: ,500 | N12: ,810 | O12: ,000 | P12: 1,000 | Q12: Se logra una venta de servicios de $18203 millones. a 30 de septiembre con un 81% de ejecución frente al valor proyectado de venta de servicios para el 2023 por valor de $22.494 millones
A13: 12 | B13: Racionalización del gasto | C13: Financiero | D13: Problema: Incremento del gasto no programado entre los años 2019 y 2020 por contingencia Pandemia - Causa: Falta de montitorización monitorización periódica del gasto de la Entidad | E13: DA: Mantener la ejecución del gasto conforme a las proyecciones presentadas en el Escenario Financiero que hace parte del PSFF | F13: Mantener el nivel de gasto planteado en el escenario financiero del PSFF | G13: Ejecución Presupuestal de Gastos | H13: 1/01/2021 | I13: 31/12/2026 | J13: ,000 | K13: 1,000 | L13: ,340 | M13: ,400 | N13: ,650 | O13: ,000 | P13: 1,000 | Q13: La E.S.E. proyectó unos gastos de $23.536 millones en 2023 y ha ejecutado a 30 de septiembre de 2023. la suma de $15.376 millones. lo cual indica que ha racionalizado el gasto en $2.276 millones. que equivalen al 13% menos
A14: 13 | B14: Fortalecimiento de los ingresos de las ESE | C14: Financiero | D14: Problema: Bajo nivel de recuperación de cartera por venta de servicios de salud - Causa: Deficientes acciones persuasivas. y jurídicas que tengan como fin la intervención frente a incumplimientos de pago | E14: DO: Garantizar un nivel de recuperacion de cartera. dependiente de procesos básicos y apoyo de orden territorial en el flujo de recursos | F14: Lograr la recuperación del 53% de las cuentas por cobrar de la vigencia actual y el 100% del rezago de la vigencia anterior | G14: Ejecución Prespuestal donde conste el valor de recaudo de la vigencia actual y recaudo de Vigencia Anterior | H14: 1/01/2021 | I14: 31/12/2026 | J14: ,330 | K14: ,940 | L14: ,200 | M14: ,550 | N14: ,750 | O14: ,000 | P14: 1,000 | Q14: El recaudo de cartera de la Vigencia actual. ha aumentado en comparación con el año anterior. teniendo un resultado de 40% del valor facturado a corte de Septiembre 2023. en vigencia anterior se logra un 90% de recaudo del valor proyectado en PSFF
A15: 14 | B15: Saneamiento de pasivos | C15: Financiero | D15: Problema: No generación de excedentes que garanticen el pago de pasivos de la ESE - Causa: Incumplimiento de pago por venta de servicios por par | E15: DO: Lograr la asignación de recursos externos para el pago exclusivo de obligaciones o cuentas por pagar reconocidas por la ESE | F15: Lograr el pago del total de pasivos a corte de 31 de diciembre de 2020 y evitar la generación de más pasivo | G15: Ejecución Presupuestal de Gastos | H15: 1/09/2021 | I15: 31/12/2027 | J15: ,000 | K15: ,330 | L15: ,340 | M15: ,340 | N15: ,340 | O15: ,000 | P15: ,613 | Q15: Durante el 3ER trimestre del 2023 NO se realizaron pagos dentro del PSFF. sin embargo. en septiembre de 2023 se recibieron recursos por parte del Departamento de Santander por valor de $75.692.080 los cuales se cancelaran en el mes de octubre de 2023.
A16: 15 | B16: Reorganización administrativa | C16: Jurídico | D16: Problema: Cargue incompleto de información en el SIHO de los procesos judiciales que conforman el inventario de la Entidad - Causa: No se realiza entrega de información entre apoderados y no se ha definido personal encargado de cargar esta información | E16: DA: Estandarización del proceso de entrega de cambio de apoderado judicial institucional en su contenido particular del inventario de los procesos judiciales de la ESE | F16: Proceso estandarizado de entrega de inventario de proesos judiciales por cambio de apoderado judicial | G16: Proceso documentado y Estandarizado | H16: 1/10/2021 | I16: 31/12/2021 | J16: ,000 | K16: 1,000 | L16: 1,000 | M16: 1,000 | N16: 1,000 | O16: ,000 | P16: 1,000 | Q16: se elaboró con esta área procedimiento de entrega de procesos por cambio de apoderado judicial. el cual se encuentra debidamente socializado y codificado en el sistema de Gestión Documental
A17: 16 | B17: Reorganización administrativa | C17: Financiero | D17: roblema: Inconsistencias en información reportada en el SIHO con lo reportado en el CHIP. en clasificación de las CxP y las CxC - Causa: La clasificación de lo corriente y lo no corriente solo se realiza en el SIHO y no en el CHIP | E17: DO: Realizar el registro y clasificación en los informes reportados en el CHIP por edades de las cuentas por pagar y cuentas por cobrar | F17: Clasificación adecuada de lo corriente y no corriente en el informe CHIP. presentado en forma trimestral | G17: Estaos Financieros TrImestrales de la ESE | H17: 30/09/2021 | I17: 31/12/2027 | J17: ,000 | K17: 1,000 | L17: 1,000 | M17: 1,000 | N17: 1,000 | O17: ,000 | P17: 1,000 | Q17: La información reportada en el chip y 2193 son coincidentes

Sheet MEDIDAS_RESUMEN (hidden)
A1: CODIGO_CONCEPTO | B1: NOMBRE_CONCEPTO | C1: EJECUCION_ACUMULADA_INICIO_VIGENCIA | D1: EJECUCION_ACUMULADA_TRIMESTRE | E1: EJECUCION_ESPERADA_FINAL_VIGENCIA | F1: EXPLICACION_ANALISIS
A2: M.1 | B2: FORTALECIMIENTO DE LOS INGRESOS DE LAS ESE | C2: ,730 | D2: ,800 | E2: ,960 | F2: Se logra un cumplimiento del 80% por encima de lo esperado. medidas que ha permitido el cumplimiento del escenario financiero programado para la vigencia 2023
A3: M.2 | B3: RACIONALIZACIÓN DEL GASTO | C3: 1,000 | D3: ,700 | E3: 1,000 | F3: Se observa un nivel de ejecución por debajo de lo esperado. lo que permite concluir que las medidas implementasdas han permitido la racionalización del gasto- con un cumplimiento del 70% frente a lo proyectado
A4: M.4 | B4: REORGANIZACIÓN ADMINISTRATIVA | C4: ,870 | D4: ,840 | E4: ,920 | F4: Cumplimiento de lo esperado a tercer trimestre de 2023- esfuerzo centralizado en la estandarizacion de procesos- socializacion de los mismos y ejecucion del plan de formacion y capacitacion del personal de la ESE
A5: M.5 | B5: SANEAMIENTO DE PASIVOS | C5: ,330 | D5: ,340 | E5: ,610 | F5: La ESE no ha cerrado la vigencia 2023 por lo tanto no tiene la proyección de los excedentes a generar para apalancar el pago de pasivos del programa

Sheet FLUJO_FINANCIERO (hidden)
A1: CODIGO_CONCEPTO | B1: NOMBRE_CONCEPTO | C1: PRESUPUESTO_VIGENCIA_PSFF | D1: TOTAL_ACUMULADO_FLUJO_FINANCIERO | E1: PESO | F1: PORCENTAJE_CUMPLIMIENTO | G1: EXPLICACION_ANALISIS
A2: F.G2 | B2: GASTOS | C2: 28786470866,000 | D2: 18068630087,000 | E2: 1,000 | F2: ,630 | G2: NA
A3: F.G21 | B3: FUNCIONAMIENTO | C3: 11833020145,000 | D3: 4978699795,000 | E3: ,280 | F3: ,420 | G3: NA
A4: F.G24 | B4: GASTOS DE OPERACION COMERCIAL | C4: 16953450721,000 | D4: 12929739156,000 | E4: ,720 | F4: ,760 | G4: NA
A5: F.I1 | B5: INGRESOS | C5: 31266897973,000 | D5: 23577576923,000 | E5: 1,000 | F5: ,750 | G5: NA
A6: F.I10 | B6: DISPONIBILIDAD INICIAL | C6: 3669240276,000 | D6: 2123776826,000 | E6: ,090 | F6: ,580 | G6: NA
A7: F.I11 | B7: INGRESOS CORRIENTES | C7: 26017157697,000 | D7: 20828450223,000 | E7: ,880 | F7: ,800 | G7: NA
A8: F.I12 | B8: RECURSOS DE CAPITAL | C8: 1580500000,000 | D8: 625349874,000 | E8: ,030 | F8: ,400 | G8: NA
A9: F.P | B9: EQUILIBRIO PRESUPUESTAL | C9: 2480427107,000 | D9: 5508946836,000 | E9: ,000 | F9: ,000 | G9: NA

Sheet FUENTES_FINANCIACION (hidden)
A1: CODIGO_CONCEPTO | B1: NOMBRE_CONCEPTO | C1: FUENTES_PROGRAMADAS_FECHA_INICIO | D1: RECAUDO_ACUMULADO_CIERRE_TRIMESTRE | E1: PORCENTAJE_CUMPLIMIENTO_FUENTES | F1: SALDO_PENDIENTE_RECAUDAR_CIERRE | G1: EXPLICACION_ANALISIS
A2: R.1 | B2: RECURSOS DE LA ESE | C2: 3669240276,000 | D2: ,000 | E2: ,000 | F2: 3669240276,000 | G2: NA
A3: R.4 | B3: RECURSOS FONSAET (ART. 7 LEY 1608/13) | C3: 2423720000,000 | D3: 2423720000,000 | E3: 1,000 | F3: ,000 | G3: NA
A4: R.5 | B4: RECURSOS DESTINADOS POR EL DEPARTAMENTO PARA PSFF | C4: 3905125000,000 | D4: 3905125000,000 | E4: 1,000 | F4: ,000 | G4: NA
A5: R.9 | B5: TOTAL FUENTES | C5: 9998085276,000 | D5: 6328845000,000 | E5: ,630 | F5: 3669240276,000 | G5: NA

Sheet PAGO_PASIVOS (hidden)
A1: CODIGO_CONCEPTO | B1: NOMBRE_CONCEPTO | C1: PAGO_PROGRAMADO_PASIVO_FECHA_INICIO | D1: ACUMULADO_PASIVO_TRIMESTRE | E1: CUMPLIMIENTO_PAGOS_PASIVOS | F1: SALDO_PASIVO_FINAL_TRIMESTRE | G1: EXPLICACION_ANALISIS
A2: PP.2 | B2: PAGO DE PASIVOS PSFF | C2: 19177189653,000 | D2: 6464721034,000 | E2: ,340 | F2: 12712468619,000 | G2: NA
A3: PP.3 | B3: ACREENCIAS LABORALES + SERVICIOS PERSONALES INDIRECTOS | C3: 12744718698,000 | D3: 5413077525,000 | E3: ,420 | F3: 7331641173,000 | G3: NA
A4: PP.4 | B4: ENTIDADES PÚBLICAS Y DE SEGURIDAD SOCIAL | C4: 2435985677,000 | D4: 262931938,000 | E4: ,110 | F4: 2173053739,000 | G4: NA
A5: PP.5 | B5: PROVEEDORES BIENES Y SERVICIOS (NO INCLUYE SERVICIOS PERSONALES INDIRECTOS) | C5: 1299860195,000 | D5: 512022507,000 | E5: ,390 | F5: 787837688,000 | G5: NA
A6: PP.8 | B6: OTROS PASIVOS | C6: 2696625083,000 | D6: 276689064,000 | E6: ,100 | F6: 2419936019,000 | G6: NA
A7: PP.9 | B7: PROVISIONES PARA CONTINGENCIAS | C7: 2487828461,000 | D7: 72662901,000 | E7: ,030 | F7: 2415165560,000 | G7: NA
A8: PP.91 | B8: OTROS | C8: 208796622,000 | D8: 204026163,000 | E8: ,980 | F8: 4770459,000 | G8: NA

Sheet PRODUCCION (hidden)
A1: CODIGO_CONCEPTO | B1: NOMBRE_CONCEPTO | C1: META_ANUAL_UVR | D1: AVANCE_UVR | E1: PORCENTAJE_CUMPLIMIENTO_PRODUCCION | F1: EXPLICACION_ANALISIS
A2: P.1 | B2: TOTAL URGENCIAS | C2: 216527,970 | D2: 218856,140 | E2: 1,000 | F2: Se observa un cumplimiento superior al 100% en Urgencias- secundario a demanda por parte de usuarios de regimen subsidiado y contributivo por reconocimiento de oportunidad en la atención de la ESE
A3: P.2 | B3: TOTAL SERVICIOS AMBULATORIOS | C3: 38172,590 | D3: 34503,380 | E3: ,900 | F3: En Servicios ambulatorios se observa un cumplimiento superior al proyectado- dado al mejoramiento de la oferta en horas especializadas para la atención a la demanda de la población del área de influencia
A4: P.3 | B4: TOTAL HOSPITALIZACIÓN | C4: 263029,080 | D4: 241950,800 | E4: ,920 | F4: La UVR generada en la Herramienta del PSFF no corresponde - debido a que el ponderado de la estancia para determinar la producción de UVR es de IPS de alta complejidad- La producción generada con el ajuste es 180071 - con una ejecución del 68%
A5: P.4 | B5: TOTAL QUIRÓFANOS Y SALAS DE PARTO | C5: 448113,640 | D5: 405628,300 | E5: ,910 | F5: Como en la anterior unidad funcional el ponderado no corresponde a la mediana complejidad- ejecucion a septiembre es del 51%-Impacto por la reducción de cesáreas diferidas a red privada
A6: P.5 | B6: TOTAL APOYO DIAGNÓSTICO | C6: 464264,390 | D6: 1251455,740 | E6: 1,000 | F6: Situación similar a las de las dos unidades funcionales anteriores. ponderado no corresponde a la mediana complejidad- ejecución 3er trimestre es de 97% (452597)- superior a lo esperado
A7: P.6 | B7: TOTAL APOYO TERAPÉUTICO | C7: 324907,600 | D7: 179629,880 | E7: ,550 | F7: Como se explico en parrafos anteriores- ponderado de UVR no corresponde a mediana complejidad- ejecución a septiembre es de 53% (170919)- impactado principalmente por la reducción de cirugía y cesáreas diferidas a red privada de Bucaramanga
A8: P.7 | B8: TOTAL SERVICIOS CONEXOS A LA SALUD | C8: 14671,620 | D8: 16155,480 | E8: 1,000 | F8: Cumplimiento superior al 100% a tercer trimestre de 2023.
A9: P.8 | B9: TOTAL PRODUCCIÓN | C9: 1769686,890 | D9: 2348179,720 | E9: 1,000 | F9: A pesar de la reducción de producción en cesáreas y procedimientos quirúrgicos y el no cumplimiento de la estancia se logra un 74% (1302264)de ejecución frente a la proyeccion para la vigencia 2023

Sheet ENCARGO_FIDUCIARIO (hidden)
A1: CODIGO_CONCEPTO | B1: NOMBRE_CONCEPTO | C1: TOTAL_ACUMULADO_FLUJO_FINANCIERO | D1: TOTAL_RECAUDO_ACUMULADO_ENCARGO_FIDUCIARIO | E1: CUMPLIMIENTO_ENCARGO | F1: EXPLICACION_ANALISIS

Sheet Seguimiento
B2: Reporte de Información para el Seguimiento de los Programas de Saneamiento Fiscal y Financiero
B3: Nombre del Departamento | C3: =DATOS_BASICOS!A2 -> DEPARTAMENTO DE SANTANDER
B4: Nombre del Municipio | C4: =DATOS_BASICOS!B2 -> FLORIDABLANCA
B5: Código de Habilitación | C5: =DATOS_BASICOS!C2 -> 6827600717
B6: Empresa Social del Estado | C6: =DATOS_BASICOS!D2 -> E.S.E. HOSPITAL SAN JUAN DE DIOS DE FLORIDABLANCA
B7: Trimestre del Reporte | C7: =DATOS_BASICOS!E2 -> 3
B8: Año del Reporte | C8: =DATOS_BASICOS!F2 -> 2023
B9: Formatos de Análisis para la Información del Seguimiento
B10: Avance Medidas | C10: Los avances en la implementación y ejecución de las medidas, reportados en la respectiva Matriz de Medidas – Cuadro 1 del Seguimiento, y en la existencia de los soportes que evidencian tales avances.
B11: Resumen Avance por categoría de las Medidas | C11: El consolidado de la implementación y ejecución de las medidas por categoría, reportados en el Cuadro 1A del Seguimiento y que provienen del resumen del monitoreo de la ESE.
B12: Flujo de Caja | C12: Cuadro 2 del Seguimiento, analizando la sostenibilidad financiera de la ESE según los resultados alcanzados frente al escenario financiero propuesto en el PSFF.
B13: Fuentes de Financiación PSFF | C13: Cuadro 3 del Seguimiento, evalúa el cumplimiento del recaudo de las diferentes fuentes destinadas al financiamiento dele PSFF.
B14: Pago Pasivo PSFF | C14: Cuadro 4 del Seguimiento, evalúa el cumplimiento del pago del pasivo programado al inicio del PSFF.
B15: Comportamiento del Pasivo | C15: Cuadro 5 del Seguimiento, analiza el comportamiento del pasivo.
B16: Producción en UVR | C16: Cuadro 6 del Seguimiento, establece el cumplimiento de las metas de producción planteadas en el PSFF.
B17: Ejecución del Encargo Fiduciario | C17: Cuadro 7 del Seguimiento, resumen y análisis de información de la ejecución del encargo fiduciario.

Sheet Cuadro1
B4: =HYPERLINK(Seguimiento!$A$1,"Menú Principal") -> Menú Principal | N4: Versión 2023-3-1.0
A5: CUADRO No. 1 - INFORME EJECUCIÓN TRIMESTRAL DE MEDIDAS PROGRAMA DE SANEAMIENTO FISCAL Y FINANCIERO ESE
A6: PERIODO DE CORTE | C6: =Seguimiento!$C$7 & " - " & Seguimiento!$C$8 -> 3 - 2023 | D6: ESE | E6: =Seguimiento!$C$6 -> E.S.E. HOSPITAL SAN JUAN DE DIOS DE FLORIDABLANCA | L6: EJECUCIÓN ACUMULADA DE LA MEDIDA DURANTE LA VIGENCIA (%)
L7: TRIMESTRE 1 (Debe registrar el porcentaje acumulado que obtuvo al finalizar el trimestre reportado) | M7: TRIMESTRE 2 (Debe registrar el porcentaje de avance del trimestre anterior más la ejecución del trimestre a reportar) | N7: TRIMESTRE 3 (Debe registrar el porcentaje de avance del trimestre anterior más la ejecución del trimestre a reportar) | O7: TRIMESTRE 4 (Debe registrar el porcentaje de avance del trimestre anterior más la ejecución del trimestre a reportar) | P7: CONCLUSIONES DEL MONITOREO | R7: CONCLUSIONES DEL SEGUIMIENTO
A8: MEDIDA | B8: CATEGORÍA DE LA MEDIDA (seleccione la categoría de la lista) | C8: ASPECTO SER INTERVENIDO (seleccione el aspecto relacionado con la medida) | D8: PROBLEMA IDENTIFICADO Y CAUSA QUE LO GENERA | E8: DESCRIPCIÓN DE LA MEDIDA | F8: DESCRIPCIÓN DE LA META | G8: PRODUCTO O SOPORTE DEL CUMPLIMIENTO DE LA MEDIDA O COMPROMISO | H8: FECHA INICIAL (DD/MM/AAAA) | I8: FECHA FINAL (DD/MM/AAA) | J8: LÍNEA DE BASE | K8: EJECUCIÓN ACUMULADA AL CIERRE DEL AÑO ANTERIOR (%) (debe registrar el porcentaje acumulado con el que finalizó el año anterior, teniendo en cuenta el porcentaje de ejecución para la medida en cada año (si la medida fue establecida para ejecutar en varias vigencias)) | L8: Registre el avance en la ejecución de la medida propuesta en el PSFF. Según el indicador o meta determinada, registre aquí el valor de avance en cada trimestre frente al cumplimiento de la medida. Recuerde es el valor acumulado al final de cada trimestre. | P8: EJECUCIÓN ACUMULADA ESPERADA AL FINAL DE LA VIGENCIA(%) (Debe registrar el porcentaje acumulado que esperaba tener al finalizar la vigencia. (Tener en cuenta el cuadro 31 de medidas del PSFF) | Q8: OBSERVACIONES O COMENTARIOS | R8: EJECUCIÓN ACUMULADA AL CIERRE DEL TRIMESTRE DE CORTE % (Debe registrar el porcentaje acumulado que obtuvo al finalizar el trimestre reportado) | S8: SOPORTE DOCUMENTAL PRESENTADOS POR LA ESE | T8: CONCLUSIONES SEGUIMIENTO (Analice los resultados obtenidos frente a los programados en el PSFF)
A9: 1 | B9: =IFERROR(VLOOKUP(TEXT($A9,0),MEDIDAS!$A$2:$Q$50,2,FALSE),"") -> Fortalecimiento de los ingresos de las ESE | C9: =IFERROR(VLOOKUP(TEXT($A9,0),MEDIDAS!$A$2:$Q$50,3,FALSE),"") -> Entorno | D9: =IFERROR(VLOOKUP(TEXT($A9,0),MEDIDAS!$A$2:$Q$50,4,FALSE),"") -> Problema: El % de participación en realización de cirugía es bajo. frente a los hospitales públicos de mediana complejidad - Causa: Ingreso al mercado de nuevas EPS con red propia de prestadores de servicios electivos | E9: =IFERROR(VLOOKUP(TEXT($A9,0),MEDIDAS!$A$2:$Q$50,5,FALSE),"") -> DA: Presentar y ofertar gerencialmente el portafolio de servicios explícito que presente su programa de estancia hospitalaria adulto mayor. cirugía electiva conapoyo tecnológico en el área laparoscópica y endoscópica y consulta especializada electiva | F9: =IFERROR(VLOOKUP(TEXT($A9,0),MEDIDAS!$A$2:$Q$50,6,FALSE),"") -> Cubrimiento de la presentación del portafolio a la totalidad de los directivos de las Entidades Responsables del Pago del Área de Influencia | G9: =IFERROR(VLOOKUP(TEXT($A9,0),MEDIDAS!$A$2:$Q$50,7,FALSE),"") -> Acta de Visita | H9: =IFERROR(VLOOKUP(TEXT($A9,0),MEDIDAS!$A$2:$Q$50,8,FALSE),"") -> 1/08/2021 | I9: =IFERROR(VLOOKUP(TEXT($A9,0),MEDIDAS!$A$2:$Q$50,9,FALSE),"") -> 1/02/2022 | J9: =IFERROR(VALUE(VLOOKUP(TEXT($A9,0),MEDIDAS!$A$2:$Q$50,10,FALSE)),"") -> 0 | K9: =IFERROR(VALUE(VLOOKUP(TEXT($A9,0),MEDIDAS!$A$2:$Q$50,11,FALSE)),"") -> 0.88 | L9: =IFERROR(VALUE(VLOOKUP(TEXT($A9,0),MEDIDAS!$A$2:$Q$50,12,FALSE)),"") -> 0.88 | M9: =IFERROR(VALUE(VLOOKUP(TEXT($A9,0),MEDIDAS!$A$2:$Q$50,13,FALSE)),"") -> 0.88 | N9: =IFERROR(VALUE(VLOOKUP(TEXT($A9,0),MEDIDAS!$A$2:$Q$50,14,FALSE)),"") -> 0.88 | O9: =IFERROR(VALUE(VLOOKUP(TEXT($A9,0),MEDIDAS!$A$2:$Q$50,15,FALSE)),"") -> 0 | P9: =IFERROR(VALUE(VLOOKUP(TEXT($A9,0),MEDIDAS!$A$2:$Q$50,16,FALSE)),"") -> 0.9 | Q9: =IFERROR(VLOOKUP(TEXT($A9,0),MEDIDAS!$A$2:$Q$50,17,FALSE),"") -> No se ha presentado grandes cambios en la distribución de los afiliados-continúan en el mercado de nuestra área de influencia las EPS con las cuales se ha adelantado gestión para legalizar la contratación
A10: 2 | B10: =IFERROR(VLOOKUP(TEXT($A10,0),MEDIDAS!$A$2:$Q$50,2,FALSE),"") -> Fortalecimiento de los ingresos de las ESE | C10: =IFERROR(VLOOKUP(TEXT($A10,0),MEDIDAS!$A$2:$Q$50,3,FALSE),"") -> Entorno | D10: =IFERROR(VLOOKUP(TEXT($A10,0),MEDIDAS!$A$2:$Q$50,4,FALSE),"") -> Problema: No se puede establecer la competitividad de las tarfias de la Entidad en el mercado - Causa: La entidad no cuenta con un programa de costos que le permita determinar rentabilidad de los servicios | E10: =IFERROR(VLOOKUP(TEXT($A10,0),MEDIDAS!$A$2:$Q$50,5,FALSE),"") -> FA: Determinar los costos de producción y mejorar los márgenes de negociación en el proceso de conratación interinstitucional | F10: =IFERROR(VLOOKUP(TEXT($A10,0),MEDIDAS!$A$2:$Q$50,6,FALSE),"") -> Identificaión de costos de producción por actividad asistencial | G10: =IFERROR(VLOOKUP(TEXT($A10,0),MEDIDAS!$A$2:$Q$50,7,FALSE),"") -> Informe Trimestral de costos que detalla el valor promedio unitario por actividad | H10: =IFERROR(VLOOKUP(TEXT($A10,0),MEDIDAS!$A$2:$Q$50,8,FALSE),"") -> 1/10/2021 | I10: =IFERROR(VLOOKUP(TEXT($A10,0),MEDIDAS!$A$2:$Q$50,9,FALSE),"") -> 1/12/2026 | J10: =IFERROR(VALUE(VLOOKUP(TEXT($A10,0),MEDIDAS!$A$2:$Q$50,10,FALSE)),"") -> 1 | K10: =IFERROR(VALUE(VLOOKUP(TEXT($A10,0),MEDIDAS!$A$2:$Q$50,11,FALSE)),"") -> 1 | L10: =IFERROR(VALUE(VLOOKUP(TEXT($A10,0),MEDIDAS!$A$2:$Q$50,12,FALSE)),"") -> 0.25 | M10: =IFERROR(VALUE(VLOOKUP(TEXT($A10,0),MEDIDAS!$A$2:$Q$50,13,FALSE)),"") -> 0.5 | N10: =IFERROR(VALUE(VLOOKUP(TEXT($A10,0),MEDIDAS!$A$2:$Q$50,14,FALSE)),"") -> 0.75 | O10: =IFERROR(VALUE(VLOOKUP(TEXT($A10,0),MEDIDAS!$A$2:$Q$50,15,FALSE)),"") -> 0 | P10: =IFERROR(VALUE(VLOOKUP(TEXT($A10,0),MEDIDAS!$A$2:$Q$50,16,FALSE)),"") -> 1 | Q10: =IFERROR(VLOOKUP(TEXT($A10,0),MEDIDAS!$A$2:$Q$50,17,FALSE),"") -> El informe comprende la definición de los tres componentes del costo- y que de acuerdo a los resultados promedio se encuentra: 66% del costo de la operación: Mano de obra. el 17% del costo: Materiales y suministros y 17% del costo Gastos generales.
A11: 3 | B11: =IFERROR(VLOOKUP(TEXT($A11,0),MEDIDAS!$A$2:$Q$50,2,FALSE),"") -> Fortalecimiento de los ingresos de las ESE | C11: =IFERROR(VLOOKUP(TEXT($A11,0),MEDIDAS!$A$2:$Q$50,3,FALSE),"") -> Institucional | D11: =IFERROR(VLOOKUP(TEXT($A11,0),MEDIDAS!$A$2:$Q$50,4,FALSE),"") -> Problema: No se cumple con el estándar de infraestructura de la Resolución 3100 de 2019 habilitación de servicios - Causa: Infraestructura deficiente en las áreas de hospitalización. central de esterilización. urgencias y farmacia | E11: =IFERROR(VLOOKUP(TEXT($A11,0),MEDIDAS!$A$2:$Q$50,5,FALSE),"") -> FO: Ofertar a corto plazo la nueva infraestructura sede materno infantil y redistribución de áreas ajustadas a criterios de habilitación en la sede central | F11: =IFERROR(VLOOKUP(TEXT($A11,0),MEDIDAS!$A$2:$Q$50,6,FALSE),"") -> Habilitación de la Sede Materno Infantil de la ESE Hospital San Juan de Dios de Floridablanca | G11: =IFERROR(VLOOKUP(TEXT($A11,0),MEDIDAS!$A$2:$Q$50,7,FALSE),"") -> Certificado de Habilitación sede Materno Infantil de la ESE Hospital San Juan de Dios de Floridablanca | H11: =IFERROR(VLOOKUP(TEXT($A11,0),MEDIDAS!$A$2:$Q$50,8,FALSE),"") -> 1/11/2021 | I11: =IFERROR(VLOOKUP(TEXT($A11,0),MEDIDAS!$A$2:$Q$50,9,FALSE),"") -> 1/02/2022 | J11: =IFERROR(VALUE(VLOOKUP(TEXT($A11,0),MEDIDAS!$A$2:$Q$50,10,FALSE)),"") -> 0 | K11: =IFERROR(VALUE(VLOOKUP(TEXT($A11,0),MEDIDAS!$A$2:$Q$50,11,FALSE)),"") -> 0 | L11: =IFERROR(VALUE(VLOOKUP(TEXT($A11,0),MEDIDAS!$A$2:$Q$50,12,FALSE)),"") -> 0.1 | M11: =IFERROR(VALUE(VLOOKUP(TEXT($A11,0),MEDIDAS!$A$2:$Q$50,13,FALSE)),"") -> 0.35 | N11: =IFERROR(VALUE(VLOOKUP(TEXT($A11,0),MEDIDAS!$A$2:$Q$50,14,FALSE)),"") -> 0.55 | O11: =IFERROR(VALUE(VLOOKUP(TEXT($A11,0),MEDIDAS!$A$2:$Q$50,15,FALSE)),"") -> 0 | P11: =IFERROR(VALUE(VLOOKUP(TEXT($A11,0),MEDIDAS!$A$2:$Q$50,16,FALSE)),"") -> 1 | Q11: =IFERROR(VLOOKUP(TEXT($A11,0),MEDIDAS!$A$2:$Q$50,17,FALSE),"") -> Se logra realizar convenio interadministrativo para la ejecución de la obra de infraestructura para la puesta en marcha de la SEDE UMI. se espera que a 31 de diciembre se logre la habilitación de la sede
A12: 4 | B12: =IFERROR(VLOOKUP(TEXT($A12,0),MEDIDAS!$A$2:$Q$50,2,FALSE),"") -> Fortalecimiento de los ingresos de las ESE | C12: =IFERROR(VLOOKUP(TEXT($A12,0),MEDIDAS!$A$2:$Q$50,3,FALSE),"") -> Institucional | D12: =IFERROR(VLOOKUP(TEXT($A12,0),MEDIDAS!$A$2:$Q$50,4,FALSE),"") -> Problema: Las limitantes de infraestructura. impide desarrollar adecuadamente el programa de Humanización en la Entidad - Causa: Infraestructura de la sede central con áreas insuficientes que generan altas concentraciones de usuarios | E12: =IFERROR(VLOOKUP(TEXT($A12,0),MEDIDAS!$A$2:$Q$50,5,FALSE),"") -> DA: Optimizar condiciones de competitividad a través del mejoramiento de calidad en la atención. implementando el programa de Humanización en todos los servicios de la ESE | F12: =IFERROR(VLOOKUP(TEXT($A12,0),MEDIDAS!$A$2:$Q$50,6,FALSE),"") -> Diseño e implementación del Programa de Humanización | G12: =IFERROR(VLOOKUP(TEXT($A12,0),MEDIDAS!$A$2:$Q$50,7,FALSE),"") -> Documento elaborado y formatos de registro de asistencia de evaluación | H12: =IFERROR(VLOOKUP(TEXT($A12,0),MEDIDAS!$A$2:$Q$50,8,FALSE),"") -> 1/06/2021 | I12: =IFERROR(VLOOKUP(TEXT($A12,0),MEDIDAS!$A$2:$Q$50,9,FALSE),"") -> 21/12/2026 | J12: =IFERROR(VALUE(VLOOKUP(TEXT($A12,0),MEDIDAS!$A$2:$Q$50,10,FALSE)),"") -> 0.5 | K12: =IFERROR(VALUE(VLOOKUP(TEXT($A12,0),MEDIDAS!$A$2:$Q$50,11,FALSE)),"") -> 0.9 | L12: =IFERROR(VALUE(VLOOKUP(TEXT($A12,0),MEDIDAS!$A$2:$Q$50,12,FALSE)),"") -> 0.25 | M12: =IFERROR(VALUE(VLOOKUP(TEXT($A12,0),MEDIDAS!$A$2:$Q$50,13,FALSE)),"") -> 0.5 | N12: =IFERROR(VALUE(VLOOKUP(TEXT($A12,0),MEDIDAS!$A$2:$Q$50,14,FALSE)),"") -> 0.75 | O12: =IFERROR(VALUE(VLOOKUP(TEXT($A12,0),MEDIDAS!$A$2:$Q$50,15,FALSE)),"") -> 0 | P12: =IFERROR(VALUE(VLOOKUP(TEXT($A12,0),MEDIDAS!$A$2:$Q$50,16,FALSE)),"") -> 0.9 | Q12: =IFERROR(VLOOKUP(TEXT($A12,0),MEDIDAS!$A$2:$Q$50,17,FALSE),"") -> Existe ruta de intervención integral. que incluye al personal asistencial con intervenciones directas y educativas. proceso de humanización aplicado a las diferentes áreas asistenciales. con marco teórico definido y ejes específicos
A13: 5 | B13: =IFERROR(VLOOKUP(TEXT($A13,0),MEDIDAS!$A$2:$Q$50,2,FALSE),"") -> Fortalecimiento de los ingresos de las ESE | C13: =IFERROR(VLOOKUP(TEXT($A13,0),MEDIDAS!$A$2:$Q$50,3,FALSE),"") -> Institucional | D13: =IFERROR(VLOOKUP(TEXT($A13,0),MEDIDAS!$A$2:$Q$50,4,FALSE),"") -> Problema: Necesidad de renovación tecnológica en la central de esterilización y lamparas cielíticas para la sede materno infantil - Causa: Equipos no son suficientes para la entrada de operación de la UMI en área de esterilización y cirugia | E13: =IFERROR(VLOOKUP(TEXT($A13,0),MEDIDAS!$A$2:$Q$50,5,FALSE),"") -> FO: Elaborar y presentar el proyecto a la Gobernación de Santander. para la adquisición de los faltantes tecnológicos para la puesta ne marcha de la sede materno infantil | F13: =IFERROR(VLOOKUP(TEXT($A13,0),MEDIDAS!$A$2:$Q$50,6,FALSE),"") -> Proyecto elaborado para la prestentación de la solicitud al ente Territorial | G13: =IFERROR(VLOOKUP(TEXT($A13,0),MEDIDAS!$A$2:$Q$50,7,FALSE),"") -> Proyecto elaborado y presentado a la Secretaria de Salud Departamental | H13: =IFERROR(VLOOKUP(TEXT($A13,0),MEDIDAS!$A$2:$Q$50,8,FALSE),"") -> 1/11/2021 | I13: =IFERROR(VLOOKUP(TEXT($A13,0),MEDIDAS!$A$2:$Q$50,9,FALSE),"") -> 1/02/2022 | J13: =IFERROR(VALUE(VLOOKUP(TEXT($A13,0),MEDIDAS!$A$2:$Q$50,10,FALSE)),"") -> 0.35 | K13: =IFERROR(VALUE(VLOOKUP(TEXT($A13,0),MEDIDAS!$A$2:$Q$50,11,FALSE)),"") -> 0.35 | L13: =IFERROR(VALUE(VLOOKUP(TEXT($A13,0),MEDIDAS!$A$2:$Q$50,12,FALSE)),"") -> 1 | M13: =IFERROR(VALUE(VLOOKUP(TEXT($A13,0),MEDIDAS!$A$2:$Q$50,13,FALSE)),"") -> 1 | N13: =IFERROR(VALUE(VLOOKUP(TEXT($A13,0),MEDIDAS!$A$2:$Q$50,14,FALSE)),"") -> 1 | O13: =IFERROR(VALUE(VLOOKUP(TEXT($A13,0),MEDIDAS!$A$2:$Q$50,15,FALSE)),"") -> 0 | P13: =IFERROR(VALUE(VLOOKUP(TEXT($A13,0),MEDIDAS!$A$2:$Q$50,16,FALSE)),"") -> 1 | Q13: =IFERROR(VLOOKUP(TEXT($A13,0),MEDIDAS!$A$2:$Q$50,17,FALSE),"") -> A través de convenio interadministrativo se logra la adquisición de dos lámparas cielíticas y dotación para la central de esterilización para la sede UMI
A14: 6 | B14: =IFERROR(VLOOKUP(TEXT($A14,0),MEDIDAS!$A$2:$Q$50,2,FALSE),"") -> Reorganización administrativa | C14: =IFERROR(VLOOKUP(TEXT($A14,0),MEDIDAS!$A$2:$Q$50,3,FALSE),"") -> Institucional | D14: =IFERROR(VLOOKUP(TEXT($A14,0),MEDIDAS!$A$2:$Q$50,4,FALSE),"") -> Problema: No se cuenta con un programa de formación continuada para el talento humano en salud - Causa: No actualización de los contenidos temáticos del plan de formación que obedezca a las necesidades de aprendizaje | E14: =IFERROR(VLOOKUP(TEXT($A14,0),MEDIDAS!$A$2:$Q$50,5,FALSE),"") -> FO: Elaboración de los contenidos temáticos con el personal calificado en el área asistencial y administrativo con el apoyo de los convenios docencia servicio | F14: =IFERROR(VLOOKUP(TEXT($A14,0),MEDIDAS!$A$2:$Q$50,6,FALSE),"") -> Plan de formación continua del talento humano anualizado en convenio con instituciones universitarias en práctica actual docente servicio que cubra un porcentaje superior al 90% de los empleados de planta y de contrato de la institución | G14: =IFERROR(VLOOKUP(TEXT($A14,0),MEDIDAS!$A$2:$Q$50,7,FALSE),"") -> Documento plan de formaión continua documentado Certificación individualizadas del cumplimiento de formación. oficializada por el jefe de talento humano de la ESE | H14: =IFERROR(VLOOKUP(TEXT($A14,0),MEDIDAS!$A$2:$Q$50,8,FALSE),"") -> 1/09/2021 | I14: =IFERROR(VLOOKUP(TEXT($A14,0),MEDIDAS!$A$2:$Q$50,9,FALSE),"") -> 31/12/2026 | J14: =IFERROR(VALUE(VLOOKUP(TEXT($A14,0),MEDIDAS!$A$2:$Q$50,10,FALSE)),"") -> 0.25 | K14: =IFERROR(VALUE(VLOOKUP(TEXT($A14,0),MEDIDAS!$A$2:$Q$50,11,FALSE)),"") -> 1 | L14: =IFERROR(VALUE(VLOOKUP(TEXT($A14,0),MEDIDAS!$A$2:$Q$50,12,FALSE)),"") -> 0.25 | M14: =IFERROR(VALUE(VLOOKUP(TEXT($A14,0),MEDIDAS!$A$2:$Q$50,13,FALSE)),"") -> 0.5 | N14: =IFERROR(VALUE(VLOOKUP(TEXT($A14,0),MEDIDAS!$A$2:$Q$50,14,FALSE)),"") -> 0.75 | O14: =IFERROR(VALUE(VLOOKUP(TEXT($A14,0),MEDIDAS!$A$2:$Q$50,15,FALSE)),"") -> 0 | P14: =IFERROR(VALUE(VLOOKUP(TEXT($A14,0),MEDIDAS!$A$2:$Q$50,16,FALSE)),"") -> 0.9 | Q14: =IFERROR(VLOOKUP(TEXT($A14,0),MEDIDAS!$A$2:$Q$50,17,FALSE),"") -> Se logra la ejecucicón de las actividades programadas para capacitación y formación del personal. logrando una ejecución conforme al cronograma establecido del 75%
A15: 7 | B15: =IFERROR(VLOOKUP(TEXT($A15,0),MEDIDAS!$A$2:$Q$50,2,FALSE),"") -> Fortalecimiento de los ingresos de las ESE | C15: =IFERROR(VLOOKUP(TEXT($A15,0),MEDIDAS!$A$2:$Q$50,3,FALSE),"") -> Institucional | D15: =IFERROR(VLOOKUP(TEXT($A15,0),MEDIDAS!$A$2:$Q$50,4,FALSE),"") -> Problema: El programa de farmaco y tecnovigilancia no se encuentra implementado en todas las unidades funcionales de la ESE - Causa: falta de monitorización y retroalimentación al personal en los programas de farmaco y tecnovigilancia | E15: =IFERROR(VLOOKUP(TEXT($A15,0),MEDIDAS!$A$2:$Q$50,5,FALSE),"") -> DO: Mejoramiento de la calidad de la prestación de servicios con la implementación del programa de farmacovigilancia y tecnovigilancia en todas las áreas funcionales de la ESE | F15: =IFERROR(VLOOKUP(TEXT($A15,0),MEDIDAS!$A$2:$Q$50,6,FALSE),"") -> Socializar el Programa de Tecnovigilancia y Farmacovigilancia como mínimo al 95% del personal de salud de la ESE | G15: =IFERROR(VLOOKUP(TEXT($A15,0),MEDIDAS!$A$2:$Q$50,7,FALSE),"") -> Listados de asistencia a las Socializaciones | H15: =IFERROR(VLOOKUP(TEXT($A15,0),MEDIDAS!$A$2:$Q$50,8,FALSE),"") -> 1/09/2021 | I15: =IFERROR(VLOOKUP(TEXT($A15,0),MEDIDAS!$A$2:$Q$50,9,FALSE),"") -> 31/12/2026 | J15: =IFERROR(VALUE(VLOOKUP(TEXT($A15,0),MEDIDAS!$A$2:$Q$50,10,FALSE)),"") -> 0 | K15: =IFERROR(VALUE(VLOOKUP(TEXT($A15,0),MEDIDAS!$A$2:$Q$50,11,FALSE)),"") -> 0.86 | L15: =IFERROR(VALUE(VLOOKUP(TEXT($A15,0),MEDIDAS!$A$2:$Q$50,12,FALSE)),"") -> 0.25 | M15: =IFERROR(VALUE(VLOOKUP(TEXT($A15,0),MEDIDAS!$A$2:$Q$50,13,FALSE)),"") -> 0.45 | N15: =IFERROR(VALUE(VLOOKUP(TEXT($A15,0),MEDIDAS!$A$2:$Q$50,14,FALSE)),"") -> 0.9 | O15: =IFERROR(VALUE(VLOOKUP(TEXT($A15,0),MEDIDAS!$A$2:$Q$50,15,FALSE)),"") -> 0 | P15: =IFERROR(VALUE(VLOOKUP(TEXT($A15,0),MEDIDAS!$A$2:$Q$50,16,FALSE)),"") -> 0.9 | Q15: =IFERROR(VLOOKUP(TEXT($A15,0),MEDIDAS!$A$2:$Q$50,17,FALSE),"") -> Se logra la capacitacion continua al personal en los programs de farmacovigilancia y tecnovigilancia. uso adecuado de los equpos biomédicos. reporte al INVIMA
A16: 8 | B16: =IFERROR(VLOOKUP(TEXT($A16,0),MEDIDAS!$A$2:$Q$50,2,FALSE),"") -> Racionalización del gasto | C16: =IFERROR(VLOOKUP(TEXT($A16,0),MEDIDAS!$A$2:$Q$50,3,FALSE),"") -> Institucional | D16: =IFERROR(VLOOKUP(TEXT($A16,0),MEDIDAS!$A$2:$Q$50,4,FALSE),"") -> Problema: No cumplimiento de horarios. generando concentración de pacientes y esperas prolongadas - Causa: Incumplimiento de agendas de trabajo y programación | E16: =IFERROR(VLOOKUP(TEXT($A16,0),MEDIDAS!$A$2:$Q$50,5,FALSE),"") -> DO: Definición de agendas de trabajo para el personal asistencial. con el fin de dar cumplimiento estricto a los horarios de atención. | F16: =IFERROR(VLOOKUP(TEXT($A16,0),MEDIDAS!$A$2:$Q$50,6,FALSE),"") -> Lograr evaluar el rendimiento del personal asistencial con el objetivo de monitorizar en forma permanente el cumplimiento de las agendas contractuales establecidas | G16: =IFERROR(VLOOKUP(TEXT($A16,0),MEDIDAS!$A$2:$Q$50,7,FALSE),"") -> Certificaión de los supervisores oficial asistenciales | H16: =IFERROR(VLOOKUP(TEXT($A16,0),MEDIDAS!$A$2:$Q$50,8,FALSE),"") -> 1/09/2021 | I16: =IFERROR(VLOOKUP(TEXT($A16,0),MEDIDAS!$A$2:$Q$50,9,FALSE),"") -> 31/12/2026 | J16: =IFERROR(VALUE(VLOOKUP(TEXT($A16,0),MEDIDAS!$A$2:$Q$50,10,FALSE)),"") -> 0 | K16: =IFERROR(VALUE(VLOOKUP(TEXT($A16,0),MEDIDAS!$A$2:$Q$50,11,FALSE)),"") -> 1 | L16: =IFERROR(VALUE(VLOOKUP(TEXT($A16,0),MEDIDAS!$A$2:$Q$50,12,FALSE)),"") -> 0.25 | M16: =IFERROR(VALUE(VLOOKUP(TEXT($A16,0),MEDIDAS!$A$2:$Q$50,13,FALSE)),"") -> 0.5 | N16: =IFERROR(VALUE(VLOOKUP(TEXT($A16,0),MEDIDAS!$A$2:$Q$50,14,FALSE)),"") -> 0.75 | O16: =IFERROR(VALUE(VLOOKUP(TEXT($A16,0),MEDIDAS!$A$2:$Q$50,15,FALSE)),"") -> 0 | P16: =IFERROR(VALUE(VLOOKUP(TEXT($A16,0),MEDIDAS!$A$2:$Q$50,16,FALSE)),"") -> 1 | Q16: =IFERROR(VLOOKUP(TEXT($A16,0),MEDIDAS!$A$2:$Q$50,17,FALSE),"") -> Se logra realizar analisis trimestrales del rendimiento por hora contratada de los profesionales asistencia. así como de los tiempos de oportunidad de triage. y valoraciones inrahospitalaria.
A17: 9 | B17: =IFERROR(VLOOKUP(TEXT($A17,0),MEDIDAS!$A$2:$Q$50,2,FALSE),"") -> Reorganización administrativa | C17: =IFERROR(VLOOKUP(TEXT($A17,0),MEDIDAS!$A$2:$Q$50,3,FALSE),"") -> Administrativo | D17: =IFERROR(VLOOKUP(TEXT($A17,0),MEDIDAS!$A$2:$Q$50,4,FALSE),"") -> roblema: Procesos y procedimientos no ajustados al modelo de operación por procesos definido por la E.S.E. - Causa: No se encuentran actualizadas el total de caracterizaciones y procesos de la ESE | E17: =IFERROR(VLOOKUP(TEXT($A17,0),MEDIDAS!$A$2:$Q$50,5,FALSE),"") -> FO: Aplicación de la metodología de gestión por procesos. por parte de la directiva y líderes de área. con el fin de actualizarlas conforme al modelo de operación asistencial y administrativo de la ESE | F17: =IFERROR(VLOOKUP(TEXT($A17,0),MEDIDAS!$A$2:$Q$50,6,FALSE),"") -> Lograr la actualización. caracterización y estandarización del 100% de los procesos de la ESE | G17: =IFERROR(VLOOKUP(TEXT($A17,0),MEDIDAS!$A$2:$Q$50,7,FALSE),"") -> Informe de Avance del niel de estanarización y listado Maestro de documentos | H17: =IFERROR(VLOOKUP(TEXT($A17,0),MEDIDAS!$A$2:$Q$50,8,FALSE),"") -> 1/09/2021 | I17: =IFERROR(VLOOKUP(TEXT($A17,0),MEDIDAS!$A$2:$Q$50,9,FALSE),"") -> 30/09/2022 | J17: =IFERROR(VALUE(VLOOKUP(TEXT($A17,0),MEDIDAS!$A$2:$Q$50,10,FALSE)),"") -> 0.36 | K17: =IFERROR(VALUE(VLOOKUP(TEXT($A17,0),MEDIDAS!$A$2:$Q$50,11,FALSE)),"") -> 0.7 | L17: =IFERROR(VALUE(VLOOKUP(TEXT($A17,0),MEDIDAS!$A$2:$Q$50,12,FALSE)),"") -> 0.7 | M17: =IFERROR(VALUE(VLOOKUP(TEXT($A17,0),MEDIDAS!$A$2:$Q$50,13,FALSE)),"") -> 0.75 | N17: =IFERROR(VALUE(VLOOKUP(TEXT($A17,0),MEDIDAS!$A$2:$Q$50,14,FALSE)),"") -> 0.82 | O17: =IFERROR(VALUE(VLOOKUP(TEXT($A17,0),MEDIDAS!$A$2:$Q$50,15,FALSE)),"") -> 0 | P17: =IFERROR(VALUE(VLOOKUP(TEXT($A17,0),MEDIDAS!$A$2:$Q$50,16,FALSE)),"") -> 1 | Q17: =IFERROR(VLOOKUP(TEXT($A17,0),MEDIDAS!$A$2:$Q$50,17,FALSE),"") -> Se logra la actualizacion de varios procedimientos de las áras asistenciales y de apoyo tanto administrativas como asistenciales
A18: 10 | B18: =IFERROR(VLOOKUP(TEXT($A18,0),MEDIDAS!$A$2:$Q$50,2,FALSE),"") -> Reorganización administrativa | C18: =IFERROR(VLOOKUP(TEXT($A18,0),MEDIDAS!$A$2:$Q$50,3,FALSE),"") -> Administrativo | D18: =IFERROR(VLOOKUP(TEXT($A18,0),MEDIDAS!$A$2:$Q$50,4,FALSE),"") -> Problema: índice de desempeño institucional menor al promedio del grupo par. con resultado del 57.4% - Causa: No se ha operativizado todas las políticas de Gestión y Desempeño que hacen parte del MIPG en la Entidad | E18: =IFERROR(VLOOKUP(TEXT($A18,0),MEDIDAS!$A$2:$Q$50,5,FALSE),"") -> DO: Moderniazar y mejorar los procesos utilizando el MIPG desplegando las 16 politicas ya estructuradas. estableciendo oportunidades de crecimiento. promoviendo la condición interinsticuional para mejorar la gestión y desempeño de la entidad | F18: =IFERROR(VLOOKUP(TEXT($A18,0),MEDIDAS!$A$2:$Q$50,6,FALSE),"") -> La medición del Desempeño institucional es una operación estadística que mide anualmente la gestión y desempeño de las entidades públicas. proporcionando información para la toma de decisiones en materia de gestión. | G18: =IFERROR(VLOOKUP(TEXT($A18,0),MEDIDAS!$A$2:$Q$50,7,FALSE),"") -> Resultado de la autoevaluación plataforma FURAG Medición Institucional | H18: =IFERROR(VLOOKUP(TEXT($A18,0),MEDIDAS!$A$2:$Q$50,8,FALSE),"") -> 1/07/2022 | I18: =IFERROR(VLOOKUP(TEXT($A18,0),MEDIDAS!$A$2:$Q$50,9,FALSE),"") -> 31/12/2026 | J18: =IFERROR(VALUE(VLOOKUP(TEXT($A18,0),MEDIDAS!$A$2:$Q$50,10,FALSE)),"") -> 0.61 | K18: =IFERROR(VALUE(VLOOKUP(TEXT($A18,0),MEDIDAS!$A$2:$Q$50,11,FALSE)),"") -> 0.638 | L18: =IFERROR(VALUE(VLOOKUP(TEXT($A18,0),MEDIDAS!$A$2:$Q$50,12,FALSE)),"") -> 0.64 | M18: =IFERROR(VALUE(VLOOKUP(TEXT($A18,0),MEDIDAS!$A$2:$Q$50,13,FALSE)),"") -> 0.64 | N18: =IFERROR(VALUE(VLOOKUP(TEXT($A18,0),MEDIDAS!$A$2:$Q$50,14,FALSE)),"") -> 0.64 | O18: =IFERROR(VALUE(VLOOKUP(TEXT($A18,0),MEDIDAS!$A$2:$Q$50,15,FALSE)),"") -> 0 | P18: =IFERROR(VALUE(VLOOKUP(TEXT($A18,0),MEDIDAS!$A$2:$Q$50,16,FALSE)),"") -> 0.69 | Q18: =IFERROR(VLOOKUP(TEXT($A18,0),MEDIDAS!$A$2:$Q$50,17,FALSE),"") -> Conforme lo establecido por la funcion pública los resultados de la vigencia 2022. no son comparables con los resultados de las mediciones de vigencias anteriores. ya que se realizaron cambios significativos en la herramienta de autoevaluación
A19: 11 | B19: =IFERROR(VLOOKUP(TEXT($A19,0),MEDIDAS!$A$2:$Q$50,2,FALSE),"") -> Fortalecimiento de los ingresos de las ESE | C19: =IFERROR(VLOOKUP(TEXT($A19,0),MEDIDAS!$A$2:$Q$50,3,FALSE),"") -> Financiero | D19: =IFERROR(VLOOKUP(TEXT($A19,0),MEDIDAS!$A$2:$Q$50,4,FALSE),"") -> Problema: Disminución de la venta de servicios 2019 Vs 2020 en un 26% - Causa: Decrecimiento en la demanda de servicios asistenciales por Pandemia y por salida en el mercado de la EPS Medimás | E19: =IFERROR(VLOOKUP(TEXT($A19,0),MEDIDAS!$A$2:$Q$50,5,FALSE),"") -> FO: Garantizar una venta de servicios en correspondencia a su capacidad instalada. con crecimientos dependientes de la dinámica población y transferencias de planes de aseguramiento | F19: =IFERROR(VLOOKUP(TEXT($A19,0),MEDIDAS!$A$2:$Q$50,6,FALSE),"") -> Cumplimiento en la venta de servicios conforme a lo proyectado en el escenario financiero del PSFF. periodo 2021-2026 | G19: =IFERROR(VLOOKUP(TEXT($A19,0),MEDIDAS!$A$2:$Q$50,7,FALSE),"") -> Ejecución Presupuestal de Ingresos | H19: =IFERROR(VLOOKUP(TEXT($A19,0),MEDIDAS!$A$2:$Q$50,8,FALSE),"") -> 1/01/2021 | I19: =IFERROR(VLOOKUP(TEXT($A19,0),MEDIDAS!$A$2:$Q$50,9,FALSE),"") -> 31/12/2026 | J19: =IFERROR(VALUE(VLOOKUP(TEXT($A19,0),MEDIDAS!$A$2:$Q$50,10,FALSE)),"") -> 0 | K19: =IFERROR(VALUE(VLOOKUP(TEXT($A19,0),MEDIDAS!$A$2:$Q$50,11,FALSE)),"") -> 0.88 | L19: =IFERROR(VALUE(VLOOKUP(TEXT($A19,0),MEDIDAS!$A$2:$Q$50,12,FALSE)),"") -> 0.25 | M19: =IFERROR(VALUE(VLOOKUP(TEXT($A19,0),MEDIDAS!$A$2:$Q$50,13,FALSE)),"") -> 0.5 | N19: =IFERROR(VALUE(VLOOKUP(TEXT($A19,0),MEDIDAS!$A$2:$Q$50,14,FALSE)),"") -> 0.81 | O19: =IFERROR(VALUE(VLOOKUP(TEXT($A19,0),MEDIDAS!$A$2:$Q$50,15,FALSE)),"") -> 0 | P19: =IFERROR(VALUE(VLOOKUP(TEXT($A19,0),MEDIDAS!$A$2:$Q$50,16,FALSE)),"") -> 1 | Q19: =IFERROR(VLOOKUP(TEXT($A19,0),MEDIDAS!$A$2:$Q$50,17,FALSE),"") -> Se logra una venta de servicios de $18203 millones. a 30 de septiembre con un 81% de ejecución frente al valor proyectado de venta de servicios para el 2023 por valor de $22.494 millones
A20: 12 | B20: =IFERROR(VLOOKUP(TEXT($A20,0),MEDIDAS!$A$2:$Q$50,2,FALSE),"") -> Racionalización del gasto | C20: =IFERROR(VLOOKUP(TEXT($A20,0),MEDIDAS!$A$2:$Q$50,3,FALSE),"") -> Financiero | D20: =IFERROR(VLOOKUP(TEXT($A20,0),MEDIDAS!$A$2:$Q$50,4,FALSE),"") -> Problema: Incremento del gasto no programado entre los años 2019 y 2020 por contingencia Pandemia - Causa: Falta de montitorización monitorización periódica del gasto de la Entidad | E20: =IFERROR(VLOOKUP(TEXT($A20,0),MEDIDAS!$A$2:$Q$50,5,FALSE),"") -> DA: Mantener la ejecución del gasto conforme a las proyecciones presentadas en el Escenario Financiero que hace parte del PSFF | F20: =IFERROR(VLOOKUP(TEXT($A20,0),MEDIDAS!$A$2:$Q$50,6,FALSE),"") -> Mantener el nivel de gasto planteado en el escenario financiero del PSFF | G20: =IFERROR(VLOOKUP(TEXT($A20,0),MEDIDAS!$A$2:$Q$50,7,FALSE),"") -> Ejecución Presupuestal de Gastos | H20: =IFERROR(VLOOKUP(TEXT($A20,0),MEDIDAS!$A$2:$Q$50,8,FALSE),"") -> 1/01/2021 | I20: =IFERROR(VLOOKUP(TEXT($A20,0),MEDIDAS!$A$2:$Q$50,9,FALSE),"") -> 31/12/2026 | J20: =IFERROR(VALUE(VLOOKUP(TEXT($A20,0),MEDIDAS!$A$2:$Q$50,10,FALSE)),"") -> 0 | K20: =IFERROR(VALUE(VLOOKUP(TEXT($A20,0),MEDIDAS!$A$2:$Q$50,11,FALSE)),"") -> 1 | L20: =IFERROR(VALUE(VLOOKUP(TEXT($A20,0),MEDIDAS!$A$2:$Q$50,12,FALSE)),"") -> 0.34 | M20: =IFERROR(VALUE(VLOOKUP(TEXT($A20,0),MEDIDAS!$A$2:$Q$50,13,FALSE)),"") -> 0.4 | N20: =IFERROR(VALUE(VLOOKUP(TEXT($A20,0),MEDIDAS!$A$2:$Q$50,14,FALSE)),"") -> 0.65 | O20: =IFERROR(VALUE(VLOOKUP(TEXT($A20,0),MEDIDAS!$A$2:$Q$50,15,FALSE)),"") -> 0 | P20: =IFERROR(VALUE(VLOOKUP(TEXT($A20,0),MEDIDAS!$A$2:$Q$50,16,FALSE)),"") -> 1 | Q20: =IFERROR(VLOOKUP(TEXT($A20,0),MEDIDAS!$A$2:$Q$50,17,FALSE),"") -> La E.S.E. proyectó unos gastos de $23.536 millones en 2023 y ha ejecutado a 30 de septiembre de 2023. la suma de $15.376 millones. lo cual indica que ha racionalizado el gasto en $2.276 millones. que equivalen al 13% menos
A21: 13 | B21: =IFERROR(VLOOKUP(TEXT($A21,0),MEDIDAS!$A$2:$Q$50,2,FALSE),"") -> Fortalecimiento de los ingresos de las ESE | C21: =IFERROR(VLOOKUP(TEXT($A21,0),MEDIDAS!$A$2:$Q$50,3,FALSE),"") -> Financiero | D21: =IFERROR(VLOOKUP(TEXT($A21,0),MEDIDAS!$A$2:$Q$50,4,FALSE),"") -> Problema: Bajo nivel de recuperación de cartera por venta de servicios de salud - Causa: Deficientes acciones persuasivas. y jurídicas que tengan como fin la intervención frente a incumplimientos de pago | E21: =IFERROR(VLOOKUP(TEXT($A21,0),MEDIDAS!$A$2:$Q$50,5,FALSE),"") -> DO: Garantizar un nivel de recuperacion de cartera. dependiente de procesos básicos y apoyo de orden territorial en el flujo de recursos | F21: =IFERROR(VLOOKUP(TEXT($A21,0),MEDIDAS!$A$2:$Q$50,6,FALSE),"") -> Lograr la recuperación del 53% de las cuentas por cobrar de la vigencia actual y el 100% del rezago de la vigencia anterior | G21: =IFERROR(VLOOKUP(TEXT($A21,0),MEDIDAS!$A$2:$Q$50,7,FALSE),"") -> Ejecución Prespuestal donde conste el valor de recaudo de la vigencia actual y recaudo de Vigencia Anterior | H21: =IFERROR(VLOOKUP(TEXT($A21,0),MEDIDAS!$A$2:$Q$50,8,FALSE),"") -> 1/01/2021 | I21: =IFERROR(VLOOKUP(TEXT($A21,0),MEDIDAS!$A$2:$Q$50,9,FALSE),"") -> 31/12/2026 | J21: =IFERROR(VALUE(VLOOKUP(TEXT($A21,0),MEDIDAS!$A$2:$Q$50,10,FALSE)),"") -> 0.33 | K21: =IFERROR(VALUE(VLOOKUP(TEXT($A21,0),MEDIDAS!$A$2:$Q$50,11,FALSE)),"") -> 0.94 | L21: =IFERROR(VALUE(VLOOKUP(TEXT($A21,0),MEDIDAS!$A$2:$Q$50,12,FALSE)),"") -> 0.2 | M21: =IFERROR(VALUE(VLOOKUP(TEXT($A21,0),MEDIDAS!$A$2:$Q$50,13,FALSE)),"") -> 0.55 | N21: =IFERROR(VALUE(VLOOKUP(TEXT($A21,0),MEDIDAS!$A$2:$Q$50,14,FALSE)),"") -> 0.75 | O21: =IFERROR(VALUE(VLOOKUP(TEXT($A21,0),MEDIDAS!$A$2:$Q$50,15,FALSE)),"") -> 0 | P21: =IFERROR(VALUE(VLOOKUP(TEXT($A21,0),MEDIDAS!$A$2:$Q$50,16,FALSE)),"") -> 1 | Q21: =IFERROR(VLOOKUP(TEXT($A21,0),MEDIDAS!$A$2:$Q$50,17,FALSE),"") -> El recaudo de cartera de la Vigencia actual. ha aumentado en comparación con el año anterior. teniendo un resultado de 40% del valor facturado a corte de Septiembre 2023. en vigencia anterior se logra un 90% de recaudo del valor proyectado en PSFF
A22: 14 | B22: =IFERROR(VLOOKUP(TEXT($A22,0),MEDIDAS!$A$2:$Q$50,2,FALSE),"") -> Saneamiento de pasivos | C22: =IFERROR(VLOOKUP(TEXT($A22,0),MEDIDAS!$A$2:$Q$50,3,FALSE),"") -> Financiero | D22: =IFERROR(VLOOKUP(TEXT($A22,0),MEDIDAS!$A$2:$Q$50,4,FALSE),"") -> Problema: No generación de excedentes que garanticen el pago de pasivos de la ESE - Causa: Incumplimiento de pago por venta de servicios por par | E22: =IFERROR(VLOOKUP(TEXT($A22,0),MEDIDAS!$A$2:$Q$50,5,FALSE),"") -> DO: Lograr la asignación de recursos externos para el pago exclusivo de obligaciones o cuentas por pagar reconocidas por la ESE | F22: =IFERROR(VLOOKUP(TEXT($A22,0),MEDIDAS!$A$2:$Q$50,6,FALSE),"") -> Lograr el pago del total de pasivos a corte de 31 de diciembre de 2020 y evitar la generación de más pasivo | G22: =IFERROR(VLOOKUP(TEXT($A22,0),MEDIDAS!$A$2:$Q$50,7,FALSE),"") -> Ejecución Presupuestal de Gastos | H22: =IFERROR(VLOOKUP(TEXT($A22,0),MEDIDAS!$A$2:$Q$50,8,FALSE),"") -> 1/09/2021 | I22: =IFERROR(VLOOKUP(TEXT($A22,0),MEDIDAS!$A$2:$Q$50,9,FALSE),"") -> 31/12/2027 | J22: =IFERROR(VALUE(VLOOKUP(TEXT($A22,0),MEDIDAS!$A$2:$Q$50,10,FALSE)),"") -> 0 | K22: =IFERROR(VALUE(VLOOKUP(TEXT($A22,0),MEDIDAS!$A$2:$Q$50,11,FALSE)),"") -> 0.33 | L22: =IFERROR(VALUE(VLOOKUP(TEXT($A22,0),MEDIDAS!$A$2:$Q$50,12,FALSE)),"") -> 0.34 | M22: =IFERROR(VALUE(VLOOKUP(TEXT($A22,0),MEDIDAS!$A$2:$Q$50,13,FALSE)),"") -> 0.34 | N22: =IFERROR(VALUE(VLOOKUP(TEXT($A22,0),MEDIDAS!$A$2:$Q$50,14,FALSE)),"") -> 0.34 | O22: =IFERROR(VALUE(VLOOKUP(TEXT($A22,0),MEDIDAS!$A$2:$Q$50,15,FALSE)),"") -> 0 | P22: =IFERROR(VALUE(VLOOKUP(TEXT($A22,0),MEDIDAS!$A$2:$Q$50,16,FALSE)),"") -> 0.613 | Q22: =IFERROR(VLOOKUP(TEXT($A22,0),MEDIDAS!$A$2:$Q$50,17,FALSE),"") -> Durante el 3ER trimestre del 2023 NO se realizaron pagos dentro del PSFF. sin embargo. en septiembre de 2023 se recibieron recursos por parte del Departamento de Santander por valor de $75.692.080 los cuales se cancelaran en el mes de octubre de 2023.
A23: 15 | B23: =IFERROR(VLOOKUP(TEXT($A23,0),MEDIDAS!$A$2:$Q$50,2,FALSE),"") -> Reorganización administrativa | C23: =IFERROR(VLOOKUP(TEXT($A23,0),MEDIDAS!$A$2:$Q$50,3,FALSE),"") -> Jurídico | D23: =IFERROR(VLOOKUP(TEXT($A23,0),MEDIDAS!$A$2:$Q$50,4,FALSE),"") -> Problema: Cargue incompleto de información en el SIHO de los procesos judiciales que conforman el inventario de la Entidad - Causa: No se realiza entrega de información entre apoderados y no se ha definido personal encargado de cargar esta información | E23: =IFERROR(VLOOKUP(TEXT($A23,0),MEDIDAS!$A$2:$Q$50,5,FALSE),"") -> DA: Estandarización del proceso de entrega de cambio de apoderado judicial institucional en su contenido particular del inventario de los procesos judiciales de la ESE | F23: =IFERROR(VLOOKUP(TEXT($A23,0),MEDIDAS!$A$2:$Q$50,6,FALSE),"") -> Proceso estandarizado de entrega de inventario de proesos judiciales por cambio de apoderado judicial | G23: =IFERROR(VLOOKUP(TEXT($A23,0),MEDIDAS!$A$2:$Q$50,7,FALSE),"") -> Proceso documentado y Estandarizado | H23: =IFERROR(VLOOKUP(TEXT($A23,0),MEDIDAS!$A$2:$Q$50,8,FALSE),"") -> 1/10/2021 | I23: =IFERROR(VLOOKUP(TEXT($A23,0),MEDIDAS!$A$2:$Q$50,9,FALSE),"") -> 31/12/2021 | J23: =IFERROR(VALUE(VLOOKUP(TEXT($A23,0),MEDIDAS!$A$2:$Q$50,10,FALSE)),"") -> 0 | K23: =IFERROR(VALUE(VLOOKUP(TEXT($A23,0),MEDIDAS!$A$2:$Q$50,11,FALSE)),"") -> 1 | L23: =IFERROR(VALUE(VLOOKUP(TEXT($A23,0),MEDIDAS!$A$2:$Q$50,12,FALSE)),"") -> 1 | M23: =IFERROR(VALUE(VLOOKUP(TEXT($A23,0),MEDIDAS!$A$2:$Q$50,13,FALSE)),"") -> 1 | N23: =IFERROR(VALUE(VLOOKUP(TEXT($A23,0),MEDIDAS!$A$2:$Q$50,14,FALSE)),"") -> 1 | O23: =IFERROR(VALUE(VLOOKUP(TEXT($A23,0),MEDIDAS!$A$2:$Q$50,15,FALSE)),"") -> 0 | P23: =IFERROR(VALUE(VLOOKUP(TEXT($A23,0),MEDIDAS!$A$2:$Q$50,16,FALSE)),"") -> 1 | Q23: =IFERROR(VLOOKUP(TEXT($A23,0),MEDIDAS!$A$2:$Q$50,17,FALSE),"") -> se elaboró con esta área procedimiento de entrega de procesos por cambio de apoderado judicial. el cual se encuentra debidamente socializado y codificado en el sistema de Gestión Documental
A24: 16 | B24: =IFERROR(VLOOKUP(TEXT($A24,0),MEDIDAS!$A$2:$Q$50,2,FALSE),"") -> Reorganización administrativa | C24: =IFERROR(VLOOKUP(TEXT($A24,0),MEDIDAS!$A$2:$Q$50,3,FALSE),"") -> Financiero | D24: =IFERROR(VLOOKUP(TEXT($A24,0),MEDIDAS!$A$2:$Q$50,4,FALSE),"") -> roblema: Inconsistencias en información reportada en el SIHO con lo reportado en el CHIP. en clasificación de las CxP y las CxC - Causa: La clasificación de lo corriente y lo no corriente solo se realiza en el SIHO y no en el CHIP | E24: =IFERROR(VLOOKUP(TEXT($A24,0),MEDIDAS!$A$2:$Q$50,5,FALSE),"") -> DO: Realizar el registro y clasificación en los informes reportados en el CHIP por edades de las cuentas por pagar y cuentas por cobrar | F24: =IFERROR(VLOOKUP(TEXT($A24,0),MEDIDAS!$A$2:$Q$50,6,FALSE),"") -> Clasificación adecuada de lo corriente y no corriente en el informe CHIP. presentado en forma trimestral | G24: =IFERROR(VLOOKUP(TEXT($A24,0),MEDIDAS!$A$2:$Q$50,7,FALSE),"") -> Estaos Financieros TrImestrales de la ESE | H24: =IFERROR(VLOOKUP(TEXT($A24,0),MEDIDAS!$A$2:$Q$50,8,FALSE),"") -> 30/09/2021 | I24: =IFERROR(VLOOKUP(TEXT($A24,0),MEDIDAS!$A$2:$Q$50,9,FALSE),"") -> 31/12/2027 | J24: =IFERROR(VALUE(VLOOKUP(TEXT($A24,0),MEDIDAS!$A$2:$Q$50,10,FALSE)),"") -> 0 | K24: =IFERROR(VALUE(VLOOKUP(TEXT($A24,0),MEDIDAS!$A$2:$Q$50,11,FALSE)),"") -> 1 | L24: =IFERROR(VALUE(VLOOKUP(TEXT($A24,0),MEDIDAS!$A$2:$Q$50,12,FALSE)),"") -> 1 | M24: =IFERROR(VALUE(VLOOKUP(TEXT($A24,0),MEDIDAS!$A$2:$Q$50,13,FALSE)),"") -> 1 | N24: =IFERROR(VALUE(VLOOKUP(TEXT($A24,0),MEDIDAS!$A$2:$Q$50,14,FALSE)),"") -> 1 | O24: =IFERROR(VALUE(VLOOKUP(TEXT($A24,0),MEDIDAS!$A$2:$Q$50,15,FALSE)),"") -> 0 | P24: =IFERROR(VALUE(VLOOKUP(TEXT($A24,0),MEDIDAS!$A$2:$Q$50,16,FALSE)),"") -> 1 | Q24: =IFERROR(VLOOKUP(TEXT($A24,0),MEDIDAS!$A$2:$Q$50,17,FALSE),"") -> La información reportada en el chip y 2193 son coincidentes
A25: 17 | B25: =IFERROR(VLOOKUP(TEXT($A25,0),MEDIDAS!$A$2:$Q$50,2,FALSE),"") ->  | C25: =IFERROR(VLOOKUP(TEXT($A25,0),MEDIDAS!$A$2:$Q$50,3,FALSE),"") ->  | D25: =IFERROR(VLOOKUP(TEXT($A25,0),MEDIDAS!$A$2:$Q$50,4,FALSE),"") ->  | E25: =IFERROR(VLOOKUP(TEXT($A25,0),MEDIDAS!$A$2:$Q$50,5,FALSE),"") ->  | F25: =IFERROR(VLOOKUP(TEXT($A25,0),MEDIDAS!$A$2:$Q$50,6,FALSE),"") ->  | G25: =IFERROR(VLOOKUP(TEXT($A25,0),MEDIDAS!$A$2:$Q$50,7,FALSE),"") ->  | H25: =IFERROR(VLOOKUP(TEXT($A25,0),MEDIDAS!$A$2:$Q$50,8,FALSE),"") ->  | I25: =IFERROR(VLOOKUP(TEXT($A25,0),MEDIDAS!$A$2:$Q$50,9,FALSE),"") ->  | J25: =IFERROR(VALUE(VLOOKUP(TEXT($A25,0),MEDIDAS!$A$2:$Q$50,10,FALSE)),"") ->  | K25: =IFERROR(VALUE(VLOOKUP(TEXT($A25,0),MEDIDAS!$A$2:$Q$50,11,FALSE)),"") ->  | L25: =IFERROR(VALUE(VLOOKUP(TEXT($A25,0),MEDIDAS!$A$2:$Q$50,12,FALSE)),"") ->  | M25: =IFERROR(VALUE(VLOOKUP(TEXT($A25,0),MEDIDAS!$A$2:$Q$50,13,FALSE)),"") ->  | N25: =IFERROR(VALUE(VLOOKUP(TEXT($A25,0),MEDIDAS!$A$2:$Q$50,14,FALSE)),"") ->  | O25: =IFERROR(VALUE(VLOOKUP(TEXT($A25,0),MEDIDAS!$A$2:$Q$50,15,FALSE)),"") ->  | P25: =IFERROR(VALUE(VLOOKUP(TEXT($A25,0),MEDIDAS!$A$2:$Q$50,16,FALSE)),"") ->  | Q25: =IFERROR(VLOOKUP(TEXT($A25,0),MEDIDAS!$A$2:$Q$50,17,FALSE),"") -> 
A26: 18 | B26: =IFERROR(VLOOKUP(TEXT($A26,0),MEDIDAS!$A$2:$Q$50,2,FALSE),"") ->  | C26: =IFERROR(VLOOKUP(TEXT($A26,0),MEDIDAS!$A$2:$Q$50,3,FALSE),"") ->  | D26: =IFERROR(VLOOKUP(TEXT($A26,0),MEDIDAS!$A$2:$Q$50,4,FALSE),"") ->  | E26: =IFERROR(VLOOKUP(TEXT($A26,0),MEDIDAS!$A$2:$Q$50,5,FALSE),"") ->  | F26: =IFERROR(VLOOKUP(TEXT($A26,0),MEDIDAS!$A$2:$Q$50,6,FALSE),"") ->  | G26: =IFERROR(VLOOKUP(TEXT($A26,0),MEDIDAS!$A$2:$Q$50,7,FALSE),"") ->  | H26: =IFERROR(VLOOKUP(TEXT($A26,0),MEDIDAS!$A$2:$Q$50,8,FALSE),"") ->  | I26: =IFERROR(VLOOKUP(TEXT($A26,0),MEDIDAS!$A$2:$Q$50,9,FALSE),"") ->  | J26: =IFERROR(VALUE(VLOOKUP(TEXT($A26,0),MEDIDAS!$A$2:$Q$50,10,FALSE)),"") ->  | K26: =IFERROR(VALUE(VLOOKUP(TEXT($A26,0),MEDIDAS!$A$2:$Q$50,11,FALSE)),"") ->  | L26: =IFERROR(VALUE(VLOOKUP(TEXT($A26,0),MEDIDAS!$A$2:$Q$50,12,FALSE)),"") ->  | M26: =IFERROR(VALUE(VLOOKUP(TEXT($A26,0),MEDIDAS!$A$2:$Q$50,13,FALSE)),"") ->  | N26: =IFERROR(VALUE(VLOOKUP(TEXT($A26,0),MEDIDAS!$A$2:$Q$50,14,FALSE)),"") ->  | O26: =IFERROR(VALUE(VLOOKUP(TEXT($A26,0),MEDIDAS!$A$2:$Q$50,15,FALSE)),"") ->  | P26: =IFERROR(VALUE(VLOOKUP(TEXT($A26,0),MEDIDAS!$A$2:$Q$50,16,FALSE)),"") ->  | Q26: =IFERROR(VLOOKUP(TEXT($A26,0),MEDIDAS!$A$2:$Q$50,17,FALSE),"") -> 
A27: 19 | B27: =IFERROR(VLOOKUP(TEXT($A27,0),MEDIDAS!$A$2:$Q$50,2,FALSE),"") ->  | C27: =IFERROR(VLOOKUP(TEXT($A27,0),MEDIDAS!$A$2:$Q$50,3,FALSE),"") ->  | D27: =IFERROR(VLOOKUP(TEXT($A27,0),MEDIDAS!$A$2:$Q$50,4,FALSE),"") ->  | E27: =IFERROR(VLOOKUP(TEXT($A27,0),MEDIDAS!$A$2:$Q$50,5,FALSE),"") ->  | F27: =IFERROR(VLOOKUP(TEXT($A27,0),MEDIDAS!$A$2:$Q$50,6,FALSE),"") ->  | G27: =IFERROR(VLOOKUP(TEXT($A27,0),MEDIDAS!$A$2:$Q$50,7,FALSE),"") ->  | H27: =IFERROR(VLOOKUP(TEXT($A27,0),MEDIDAS!$A$2:$Q$50,8,FALSE),"") ->  | I27: =IFERROR(VLOOKUP(TEXT($A27,0),MEDIDAS!$A$2:$Q$50,9,FALSE),"") ->  | J27: =IFERROR(VALUE(VLOOKUP(TEXT($A27,0),MEDIDAS!$A$2:$Q$50,10,FALSE)),"") ->  | K27: =IFERROR(VALUE(VLOOKUP(TEXT($A27,0),MEDIDAS!$A$2:$Q$50,11,FALSE)),"") ->  | L27: =IFERROR(VALUE(VLOOKUP(TEXT($A27,0),MEDIDAS!$A$2:$Q$50,12,FALSE)),"") ->  | M27: =IFERROR(VALUE(VLOOKUP(TEXT($A27,0),MEDIDAS!$A$2:$Q$50,13,FALSE)),"") ->  | N27: =IFERROR(VALUE(VLOOKUP(TEXT($A27,0),MEDIDAS!$A$2:$Q$50,14,FALSE)),"") ->  | O27: =IFERROR(VALUE(VLOOKUP(TEXT($A27,0),MEDIDAS!$A$2:$Q$50,15,FALSE)),"") ->  | P27: =IFERROR(VALUE(VLOOKUP(TEXT($A27,0),MEDIDAS!$A$2:$Q$50,16,FALSE)),"") ->  | Q27: =IFERROR(VLOOKUP(TEXT($A27,0),MEDIDAS!$A$2:$Q$50,17,FALSE),"") -> 
A28: 20 | B28: =IFERROR(VLOOKUP(TEXT($A28,0),MEDIDAS!$A$2:$Q$50,2,FALSE),"") ->  | C28: =IFERROR(VLOOKUP(TEXT($A28,0),MEDIDAS!$A$2:$Q$50,3,FALSE),"") ->  | D28: =IFERROR(VLOOKUP(TEXT($A28,0),MEDIDAS!$A$2:$Q$50,4,FALSE),"") ->  | E28: =IFERROR(VLOOKUP(TEXT($A28,0),MEDIDAS!$A$2:$Q$50,5,FALSE),"") ->  | F28: =IFERROR(VLOOKUP(TEXT($A28,0),MEDIDAS!$A$2:$Q$50,6,FALSE),"") ->  | G28: =IFERROR(VLOOKUP(TEXT($A28,0),MEDIDAS!$A$2:$Q$50,7,FALSE),"") ->  | H28: =IFERROR(VLOOKUP(TEXT($A28,0),MEDIDAS!$A$2:$Q$50,8,FALSE),"") ->  | I28: =IFERROR(VLOOKUP(TEXT($A28,0),MEDIDAS!$A$2:$Q$50,9,FALSE),"") ->  | J28: =IFERROR(VALUE(VLOOKUP(TEXT($A28,0),MEDIDAS!$A$2:$Q$50,10,FALSE)),"") ->  | K28: =IFERROR(VALUE(VLOOKUP(TEXT($A28,0),MEDIDAS!$A$2:$Q$50,11,FALSE)),"") ->  | L28: =IFERROR(VALUE(VLOOKUP(TEXT($A28,0),MEDIDAS!$A$2:$Q$50,12,FALSE)),"") ->  | M28: =IFERROR(VALUE(VLOOKUP(TEXT($A28,0),MEDIDAS!$A$2:$Q$50,13,FALSE)),"") ->  | N28: =IFERROR(VALUE(VLOOKUP(TEXT($A28,0),MEDIDAS!$A$2:$Q$50,14,FALSE)),"") ->  | O28: =IFERROR(VALUE(VLOOKUP(TEXT($A28,0),MEDIDAS!$A$2:$Q$50,15,FALSE)),"") ->  | P28: =IFERROR(VALUE(VLOOKUP(TEXT($A28,0),MEDIDAS!$A$2:$Q$50,16,FALSE)),"") ->  | Q28: =IFERROR(VLOOKUP(TEXT($A28,0),MEDIDAS!$A$2:$Q$50,17,FALSE),"") -> 
A29: 21 | B29: =IFERROR(VLOOKUP(TEXT($A29,0),MEDIDAS!$A$2:$Q$50,2,FALSE),"") ->  | C29: =IFERROR(VLOOKUP(TEXT($A29,0),MEDIDAS!$A$2:$Q$50,3,FALSE),"") ->  | D29: =IFERROR(VLOOKUP(TEXT($A29,0),MEDIDAS!$A$2:$Q$50,4,FALSE),"") ->  | E29: =IFERROR(VLOOKUP(TEXT($A29,0),MEDIDAS!$A$2:$Q$50,5,FALSE),"") ->  | F29: =IFERROR(VLOOKUP(TEXT($A29,0),MEDIDAS!$A$2:$Q$50,6,FALSE),"") ->  | G29: =IFERROR(VLOOKUP(TEXT($A29,0),MEDIDAS!$A$2:$Q$50,7,FALSE),"") ->  | H29: =IFERROR(VLOOKUP(TEXT($A29,0),MEDIDAS!$A$2:$Q$50,8,FALSE),"") ->  | I29: =IFERROR(VLOOKUP(TEXT($A29,0),MEDIDAS!$A$2:$Q$50,9,FALSE),"") ->  | J29: =IFERROR(VALUE(VLOOKUP(TEXT($A29,0),MEDIDAS!$A$2:$Q$50,10,FALSE)),"") ->  | K29: =IFERROR(VALUE(VLOOKUP(TEXT($A29,0),MEDIDAS!$A$2:$Q$50,11,FALSE)),"") ->  | L29: =IFERROR(VALUE(VLOOKUP(TEXT($A29,0),MEDIDAS!$A$2:$Q$50,12,FALSE)),"") ->  | M29: =IFERROR(VALUE(VLOOKUP(TEXT($A29,0),MEDIDAS!$A$2:$Q$50,13,FALSE)),"") ->  | N29: =IFERROR(VALUE(VLOOKUP(TEXT($A29,0),MEDIDAS!$A$2:$Q$50,14,FALSE)),"") ->  | O29: =IFERROR(VALUE(VLOOKUP(TEXT($A29,0),MEDIDAS!$A$2:$Q$50,15,FALSE)),"") ->  | P29: =IFERROR(VALUE(VLOOKUP(TEXT($A29,0),MEDIDAS!$A$2:$Q$50,16,FALSE)),"") ->  | Q29: =IFERROR(VLOOKUP(TEXT($A29,0),MEDIDAS!$A$2:$Q$50,17,FALSE),"") -> 
A30: 22 | B30: =IFERROR(VLOOKUP(TEXT($A30,0),MEDIDAS!$A$2:$Q$50,2,FALSE),"") ->  | C30: =IFERROR(VLOOKUP(TEXT($A30,0),MEDIDAS!$A$2:$Q$50,3,FALSE),"") ->  | D30: =IFERROR(VLOOKUP(TEXT($A30,0),MEDIDAS!$A$2:$Q$50,4,FALSE),"") ->  | E30: =IFERROR(VLOOKUP(TEXT($A30,0),MEDIDAS!$A$2:$Q$50,5,FALSE),"") ->  | F30: =IFERROR(VLOOKUP(TEXT($A30,0),MEDIDAS!$A$2:$Q$50,6,FALSE),"") ->  | G30: =IFERROR(VLOOKUP(TEXT($A30,0),MEDIDAS!$A$2:$Q$50,7,FALSE),"") ->  | H30: =IFERROR(VLOOKUP(TEXT($A30,0),MEDIDAS!$A$2:$Q$50,8,FALSE),"") ->  | I30: =IFERROR(VLOOKUP(TEXT($A30,0),MEDIDAS!$A$2:$Q$50,9,FALSE),"") ->  | J30: =IFERROR(VALUE(VLOOKUP(TEXT($A30,0),MEDIDAS!$A$2:$Q$50,10,FALSE)),"") ->  | K30: =IFERROR(VALUE(VLOOKUP(TEXT($A30,0),MEDIDAS!$A$2:$Q$50,11,FALSE)),"") ->  | L30: =IFERROR(VALUE(VLOOKUP(TEXT($A30,0),MEDIDAS!$A$2:$Q$50,12,FALSE)),"") ->  | M30: =IFERROR(VALUE(VLOOKUP(TEXT($A30,0),MEDIDAS!$A$2:$Q$50,13,FALSE)),"") ->  | N30: =IFERROR(VALUE(VLOOKUP(TEXT($A30,0),MEDIDAS!$A$2:$Q$50,14,FALSE)),"") ->  | O30: =IFERROR(VALUE(VLOOKUP(TEXT($A30,0),MEDIDAS!$A$2:$Q$50,15,FALSE)),"") ->  | P30: =IFERROR(VALUE(VLOOKUP(TEXT($A30,0),MEDIDAS!$A$2:$Q$50,16,FALSE)),"") ->  | Q30: =IFERROR(VLOOKUP(TEXT($A30,0),MEDIDAS!$A$2:$Q$50,17,FALSE),"") -> 
A31: 23 | B31: =IFERROR(VLOOKUP(TEXT($A31,0),MEDIDAS!$A$2:$Q$50,2,FALSE),"") ->  | C31: =IFERROR(VLOOKUP(TEXT($A31,0),MEDIDAS!$A$2:$Q$50,3,FALSE),"") ->  | D31: =IFERROR(VLOOKUP(TEXT($A31,0),MEDIDAS!$A$2:$Q$50,4,FALSE),"") ->  | E31: =IFERROR(VLOOKUP(TEXT($A31,0),MEDIDAS!$A$2:$Q$50,5,FALSE),"") ->  | F31: =IFERROR(VLOOKUP(TEXT($A31,0),MEDIDAS!$A$2:$Q$50,6,FALSE),"") ->  | G31: =IFERROR(VLOOKUP(TEXT($A31,0),MEDIDAS!$A$2:$Q$50,7,FALSE),"") ->  | H31: =IFERROR(VLOOKUP(TEXT($A31,0),MEDIDAS!$A$2:$Q$50,8,FALSE),"") ->  | I31: =IFERROR(VLOOKUP(TEXT($A31,0),MEDIDAS!$A$2:$Q$50,9,FALSE),"") ->  | J31: =IFERROR(VALUE(VLOOKUP(TEXT($A31,0),MEDIDAS!$A$2:$Q$50,10,FALSE)),"") ->  | K31: =IFERROR(VALUE(VLOOKUP(TEXT($A31,0),MEDIDAS!$A$2:$Q$50,11,FALSE)),"") ->  | L31: =IFERROR(VALUE(VLOOKUP(TEXT($A31,0),MEDIDAS!$A$2:$Q$50,12,FALSE)),"") ->  | M31: =IFERROR(VALUE(VLOOKUP(TEXT($A31,0),MEDIDAS!$A$2:$Q$50,13,FALSE)),"") ->  | N31: =IFERROR(VALUE(VLOOKUP(TEXT($A31,0),MEDIDAS!$A$2:$Q$50,14,FALSE)),"") ->  | O31: =IFERROR(VALUE(VLOOKUP(TEXT($A31,0),MEDIDAS!$A$2:$Q$50,15,FALSE)),"") ->  | P31: =IFERROR(VALUE(VLOOKUP(TEXT($A31,0),MEDIDAS!$A$2:$Q$50,16,FALSE)),"") ->  | Q31: =IFERROR(VLOOKUP(TEXT($A31,0),MEDIDAS!$A$2:$Q$50,17,FALSE),"") -> 
A32: 24 | B32: =IFERROR(VLOOKUP(TEXT($A32,0),MEDIDAS!$A$2:$Q$50,2,FALSE),"") ->  | C32: =IFERROR(VLOOKUP(TEXT($A32,0),MEDIDAS!$A$2:$Q$50,3,FALSE),"") ->  | D32: =IFERROR(VLOOKUP(TEXT($A32,0),MEDIDAS!$A$2:$Q$50,4,FALSE),"") ->  | E32: =IFERROR(VLOOKUP(TEXT($A32,0),MEDIDAS!$A$2:$Q$50,5,FALSE),"") ->  | F32: =IFERROR(VLOOKUP(TEXT($A32,0),MEDIDAS!$A$2:$Q$50,6,FALSE),"") ->  | G32: =IFERROR(VLOOKUP(TEXT($A32,0),MEDIDAS!$A$2:$Q$50,7,FALSE),"") ->  | H32: =IFERROR(VLOOKUP(TEXT($A32,0),MEDIDAS!$A$2:$Q$50,8,FALSE),"") ->  | I32: =IFERROR(VLOOKUP(TEXT($A32,0),MEDIDAS!$A$2:$Q$50,9,FALSE),"") ->  | J32: =IFERROR(VALUE(VLOOKUP(TEXT($A32,0),MEDIDAS!$A$2:$Q$50,10,FALSE)),"") ->  | K32: =IFERROR(VALUE(VLOOKUP(TEXT($A32,0),MEDIDAS!$A$2:$Q$50,11,FALSE)),"") ->  | L32: =IFERROR(VALUE(VLOOKUP(TEXT($A32,0),MEDIDAS!$A$2:$Q$50,12,FALSE)),"") ->  | M32: =IFERROR(VALUE(VLOOKUP(TEXT($A32,0),MEDIDAS!$A$2:$Q$50,13,FALSE)),"") ->  | N32: =IFERROR(VALUE(VLOOKUP(TEXT($A32,0),MEDIDAS!$A$2:$Q$50,14,FALSE)),"") ->  | O32: =IFERROR(VALUE(VLOOKUP(TEXT($A32,0),MEDIDAS!$A$2:$Q$50,15,FALSE)),"") ->  | P32: =IFERROR(VALUE(VLOOKUP(TEXT($A32,0),MEDIDAS!$A$2:$Q$50,16,FALSE)),"") ->  | Q32: =IFERROR(VLOOKUP(TEXT($A32,0),MEDIDAS!$A$2:$Q$50,17,FALSE),"") -> 
A33: 25 | B33: =IFERROR(VLOOKUP(TEXT($A33,0),MEDIDAS!$A$2:$Q$50,2,FALSE),"") ->  | C33: =IFERROR(VLOOKUP(TEXT($A33,0),MEDIDAS!$A$2:$Q$50,3,FALSE),"") ->  | D33: =IFERROR(VLOOKUP(TEXT($A33,0),MEDIDAS!$A$2:$Q$50,4,FALSE),"") ->  | E33: =IFERROR(VLOOKUP(TEXT($A33,0),MEDIDAS!$A$2:$Q$50,5,FALSE),"") ->  | F33: =IFERROR(VLOOKUP(TEXT($A33,0),MEDIDAS!$A$2:$Q$50,6,FALSE),"") ->  | G33: =IFERROR(VLOOKUP(TEXT($A33,0),MEDIDAS!$A$2:$Q$50,7,FALSE),"") ->  | H33: =IFERROR(VLOOKUP(TEXT($A33,0),MEDIDAS!$A$2:$Q$50,8,FALSE),"") ->  | I33: =IFERROR(VLOOKUP(TEXT($A33,0),MEDIDAS!$A$2:$Q$50,9,FALSE),"") ->  | J33: =IFERROR(VALUE(VLOOKUP(TEXT($A33,0),MEDIDAS!$A$2:$Q$50,10,FALSE)),"") ->  | K33: =IFERROR(VALUE(VLOOKUP(TEXT($A33,0),MEDIDAS!$A$2:$Q$50,11,FALSE)),"") ->  | L33: =IFERROR(VALUE(VLOOKUP(TEXT($A33,0),MEDIDAS!$A$2:$Q$50,12,FALSE)),"") ->  | M33: =IFERROR(VALUE(VLOOKUP(TEXT($A33,0),MEDIDAS!$A$2:$Q$50,13,FALSE)),"") ->  | N33: =IFERROR(VALUE(VLOOKUP(TEXT($A33,0),MEDIDAS!$A$2:$Q$50,14,FALSE)),"") ->  | O33: =IFERROR(VALUE(VLOOKUP(TEXT($A33,0),MEDIDAS!$A$2:$Q$50,15,FALSE)),"") ->  | P33: =IFERROR(VALUE(VLOOKUP(TEXT($A33,0),MEDIDAS!$A$2:$Q$50,16,FALSE)),"") ->  | Q33: =IFERROR(VLOOKUP(TEXT($A33,0),MEDIDAS!$A$2:$Q$50,17,FALSE),"") -> 
A34: 26 | B34: =IFERROR(VLOOKUP(TEXT($A34,0),MEDIDAS!$A$2:$Q$50,2,FALSE),"") ->  | C34: =IFERROR(VLOOKUP(TEXT($A34,0),MEDIDAS!$A$2:$Q$50,3,FALSE),"") ->  | D34: =IFERROR(VLOOKUP(TEXT($A34,0),MEDIDAS!$A$2:$Q$50,4,FALSE),"") ->  | E34: =IFERROR(VLOOKUP(TEXT($A34,0),MEDIDAS!$A$2:$Q$50,5,FALSE),"") ->  | F34: =IFERROR(VLOOKUP(TEXT($A34,0),MEDIDAS!$A$2:$Q$50,6,FALSE),"") ->  | G34: =IFERROR(VLOOKUP(TEXT($A34,0),MEDIDAS!$A$2:$Q$50,7,FALSE),"") ->  | H34: =IFERROR(VLOOKUP(TEXT($A34,0),MEDIDAS!$A$2:$Q$50,8,FALSE),"") ->  | I34: =IFERROR(VLOOKUP(TEXT($A34,0),MEDIDAS!$A$2:$Q$50,9,FALSE),"") ->  | J34: =IFERROR(VALUE(VLOOKUP(TEXT($A34,0),MEDIDAS!$A$2:$Q$50,10,FALSE)),"") ->  | K34: =IFERROR(VALUE(VLOOKUP(TEXT($A34,0),MEDIDAS!$A$2:$Q$50,11,FALSE)),"") ->  | L34: =IFERROR(VALUE(VLOOKUP(TEXT($A34,0),MEDIDAS!$A$2:$Q$50,12,FALSE)),"") ->  | M34: =IFERROR(VALUE(VLOOKUP(TEXT($A34,0),MEDIDAS!$A$2:$Q$50,13,FALSE)),"") ->  | N34: =IFERROR(VALUE(VLOOKUP(TEXT($A34,0),MEDIDAS!$A$2:$Q$50,14,FALSE)),"") ->  | O34: =IFERROR(VALUE(VLOOKUP(TEXT($A34,0),MEDIDAS!$A$2:$Q$50,15,FALSE)),"") ->  | P34: =IFERROR(VALUE(VLOOKUP(TEXT($A34,0),MEDIDAS!$A$2:$Q$50,16,FALSE)),"") ->  | Q34: =IFERROR(VLOOKUP(TEXT($A34,0),MEDIDAS!$A$2:$Q$50,17,FALSE),"") -> 
A35: 27 | B35: =IFERROR(VLOOKUP(TEXT($A35,0),MEDIDAS!$A$2:$Q$50,2,FALSE),"") ->  | C35: =IFERROR(VLOOKUP(TEXT($A35,0),MEDIDAS!$A$2:$Q$50,3,FALSE),"") ->  | D35: =IFERROR(VLOOKUP(TEXT($A35,0),MEDIDAS!$A$2:$Q$50,4,FALSE),"") ->  | E35: =IFERROR(VLOOKUP(TEXT($A35,0),MEDIDAS!$A$2:$Q$50,5,FALSE),"") ->  | F35: =IFERROR(VLOOKUP(TEXT($A35,0),MEDIDAS!$A$2:$Q$50,6,FALSE),"") ->  | G35: =IFERROR(VLOOKUP(TEXT($A35,0),MEDIDAS!$A$2:$Q$50,7,FALSE),"") ->  | H35: =IFERROR(VLOOKUP(TEXT($A35,0),MEDIDAS!$A$2:$Q$50,8,FALSE),"") ->  | I35: =IFERROR(VLOOKUP(TEXT($A35,0),MEDIDAS!$A$2:$Q$50,9,FALSE),"") ->  | J35: =IFERROR(VALUE(VLOOKUP(TEXT($A35,0),MEDIDAS!$A$2:$Q$50,10,FALSE)),"") ->  | K35: =IFERROR(VALUE(VLOOKUP(TEXT($A35,0),MEDIDAS!$A$2:$Q$50,11,FALSE)),"") ->  | L35: =IFERROR(VALUE(VLOOKUP(TEXT($A35,0),MEDIDAS!$A$2:$Q$50,12,FALSE)),"") ->  | M35: =IFERROR(VALUE(VLOOKUP(TEXT($A35,0),MEDIDAS!$A$2:$Q$50,13,FALSE)),"") ->  | N35: =IFERROR(VALUE(VLOOKUP(TEXT($A35,0),MEDIDAS!$A$2:$Q$50,14,FALSE)),"") ->  | O35: =IFERROR(VALUE(VLOOKUP(TEXT($A35,0),MEDIDAS!$A$2:$Q$50,15,FALSE)),"") ->  | P35: =IFERROR(VALUE(VLOOKUP(TEXT($A35,0),MEDIDAS!$A$2:$Q$50,16,FALSE)),"") ->  | Q35: =IFERROR(VLOOKUP(TEXT($A35,0),MEDIDAS!$A$2:$Q$50,17,FALSE),"") -> 
A36: 28 | B36: =IFERROR(VLOOKUP(TEXT($A36,0),MEDIDAS!$A$2:$Q$50,2,FALSE),"") ->  | C36: =IFERROR(VLOOKUP(TEXT($A36,0),MEDIDAS!$A$2:$Q$50,3,FALSE),"") ->  | D36: =IFERROR(VLOOKUP(TEXT($A36,0),MEDIDAS!$A$2:$Q$50,4,FALSE),"") ->  | E36: =IFERROR(VLOOKUP(TEXT($A36,0),MEDIDAS!$A$2:$Q$50,5,FALSE),"") ->  | F36: =IFERROR(VLOOKUP(TEXT($A36,0),MEDIDAS!$A$2:$Q$50,6,FALSE),"") ->  | G36: =IFERROR(VLOOKUP(TEXT($A36,0),MEDIDAS!$A$2:$Q$50,7,FALSE),"") ->  | H36: =IFERROR(VLOOKUP(TEXT($A36,0),MEDIDAS!$A$2:$Q$50,8,FALSE),"") ->  | I36: =IFERROR(VLOOKUP(TEXT($A36,0),MEDIDAS!$A$2:$Q$50,9,FALSE),"") ->  | J36: =IFERROR(VALUE(VLOOKUP(TEXT($A36,0),MEDIDAS!$A$2:$Q$50,10,FALSE)),"") ->  | K36: =IFERROR(VALUE(VLOOKUP(TEXT($A36,0),MEDIDAS!$A$2:$Q$50,11,FALSE)),"") ->  | L36: =IFERROR(VALUE(VLOOKUP(TEXT($A36,0),MEDIDAS!$A$2:$Q$50,12,FALSE)),"") ->  | M36: =IFERROR(VALUE(VLOOKUP(TEXT($A36,0),MEDIDAS!$A$2:$Q$50,13,FALSE)),"") ->  | N36: =IFERROR(VALUE(VLOOKUP(TEXT($A36,0),MEDIDAS!$A$2:$Q$50,14,FALSE)),"") ->  | O36: =IFERROR(VALUE(VLOOKUP(TEXT($A36,0),MEDIDAS!$A$2:$Q$50,15,FALSE)),"") ->  | P36: =IFERROR(VALUE(VLOOKUP(TEXT($A36,0),MEDIDAS!$A$2:$Q$50,16,FALSE)),"") ->  | Q36: =IFERROR(VLOOKUP(TEXT($A36,0),MEDIDAS!$A$2:$Q$50,17,FALSE),"") -> 
A37: 29 | B37: =IFERROR(VLOOKUP(TEXT($A37,0),MEDIDAS!$A$2:$Q$50,2,FALSE),"") ->  | C37: =IFERROR(VLOOKUP(TEXT($A37,0),MEDIDAS!$A$2:$Q$50,3,FALSE),"") ->  | D37: =IFERROR(VLOOKUP(TEXT($A37,0),MEDIDAS!$A$2:$Q$50,4,FALSE),"") ->  | E37: =IFERROR(VLOOKUP(TEXT($A37,0),MEDIDAS!$A$2:$Q$50,5,FALSE),"") ->  | F37: =IFERROR(VLOOKUP(TEXT($A37,0),MEDIDAS!$A$2:$Q$50,6,FALSE),"") ->  | G37: =IFERROR(VLOOKUP(TEXT($A37,0),MEDIDAS!$A$2:$Q$50,7,FALSE),"") ->  | H37: =IFERROR(VLOOKUP(TEXT($A37,0),MEDIDAS!$A$2:$Q$50,8,FALSE),"") ->  | I37: =IFERROR(VLOOKUP(TEXT($A37,0),MEDIDAS!$A$2:$Q$50,9,FALSE),"") ->  | J37: =IFERROR(VALUE(VLOOKUP(TEXT($A37,0),MEDIDAS!$A$2:$Q$50,10,FALSE)),"") ->  | K37: =IFERROR(VALUE(VLOOKUP(TEXT($A37,0),MEDIDAS!$A$2:$Q$50,11,FALSE)),"") ->  | L37: =IFERROR(VALUE(VLOOKUP(TEXT($A37,0),MEDIDAS!$A$2:$Q$50,12,FALSE)),"") ->  | M37: =IFERROR(VALUE(VLOOKUP(TEXT($A37,0),MEDIDAS!$A$2:$Q$50,13,FALSE)),"") ->  | N37: =IFERROR(VALUE(VLOOKUP(TEXT($A37,0),MEDIDAS!$A$2:$Q$50,14,FALSE)),"") ->  | O37: =IFERROR(VALUE(VLOOKUP(TEXT($A37,0),MEDIDAS!$A$2:$Q$50,15,FALSE)),"") ->  | P37: =IFERROR(VALUE(VLOOKUP(TEXT($A37,0),MEDIDAS!$A$2:$Q$50,16,FALSE)),"") ->  | Q37: =IFERROR(VLOOKUP(TEXT($A37,0),MEDIDAS!$A$2:$Q$50,17,FALSE),"") -> 
A38: 30 | B38: =IFERROR(VLOOKUP(TEXT($A38,0),MEDIDAS!$A$2:$Q$50,2,FALSE),"") ->  | C38: =IFERROR(VLOOKUP(TEXT($A38,0),MEDIDAS!$A$2:$Q$50,3,FALSE),"") ->  | D38: =IFERROR(VLOOKUP(TEXT($A38,0),MEDIDAS!$A$2:$Q$50,4,FALSE),"") ->  | E38: =IFERROR(VLOOKUP(TEXT($A38,0),MEDIDAS!$A$2:$Q$50,5,FALSE),"") ->  | F38: =IFERROR(VLOOKUP(TEXT($A38,0),MEDIDAS!$A$2:$Q$50,6,FALSE),"") ->  | G38: =IFERROR(VLOOKUP(TEXT($A38,0),MEDIDAS!$A$2:$Q$50,7,FALSE),"") ->  | H38: =IFERROR(VLOOKUP(TEXT($A38,0),MEDIDAS!$A$2:$Q$50,8,FALSE),"") ->  | I38: =IFERROR(VLOOKUP(TEXT($A38,0),MEDIDAS!$A$2:$Q$50,9,FALSE),"") ->  | J38: =IFERROR(VALUE(VLOOKUP(TEXT($A38,0),MEDIDAS!$A$2:$Q$50,10,FALSE)),"") ->  | K38: =IFERROR(VALUE(VLOOKUP(TEXT($A38,0),MEDIDAS!$A$2:$Q$50,11,FALSE)),"") ->  | L38: =IFERROR(VALUE(VLOOKUP(TEXT($A38,0),MEDIDAS!$A$2:$Q$50,12,FALSE)),"") ->  | M38: =IFERROR(VALUE(VLOOKUP(TEXT($A38,0),MEDIDAS!$A$2:$Q$50,13,FALSE)),"") ->  | N38: =IFERROR(VALUE(VLOOKUP(TEXT($A38,0),MEDIDAS!$A$2:$Q$50,14,FALSE)),"") ->  | O38: =IFERROR(VALUE(VLOOKUP(TEXT($A38,0),MEDIDAS!$A$2:$Q$50,15,FALSE)),"") ->  | P38: =IFERROR(VALUE(VLOOKUP(TEXT($A38,0),MEDIDAS!$A$2:$Q$50,16,FALSE)),"") ->  | Q38: =IFERROR(VLOOKUP(TEXT($A38,0),MEDIDAS!$A$2:$Q$50,17,FALSE),"") -> 
A39: 31 | B39: =IFERROR(VLOOKUP(TEXT($A39,0),MEDIDAS!$A$2:$Q$50,2,FALSE),"") ->  | C39: =IFERROR(VLOOKUP(TEXT($A39,0),MEDIDAS!$A$2:$Q$50,3,FALSE),"") ->  | D39: =IFERROR(VLOOKUP(TEXT($A39,0),MEDIDAS!$A$2:$Q$50,4,FALSE),"") ->  | E39: =IFERROR(VLOOKUP(TEXT($A39,0),MEDIDAS!$A$2:$Q$50,5,FALSE),"") ->  | F39: =IFERROR(VLOOKUP(TEXT($A39,0),MEDIDAS!$A$2:$Q$50,6,FALSE),"") ->  | G39: =IFERROR(VLOOKUP(TEXT($A39,0),MEDIDAS!$A$2:$Q$50,7,FALSE),"") ->  | H39: =IFERROR(VLOOKUP(TEXT($A39,0),MEDIDAS!$A$2:$Q$50,8,FALSE),"") ->  | I39: =IFERROR(VLOOKUP(TEXT($A39,0),MEDIDAS!$A$2:$Q$50,9,FALSE),"") ->  | J39: =IFERROR(VALUE(VLOOKUP(TEXT($A39,0),MEDIDAS!$A$2:$Q$50,10,FALSE)),"") ->  | K39: =IFERROR(VALUE(VLOOKUP(TEXT($A39,0),MEDIDAS!$A$2:$Q$50,11,FALSE)),"") ->  | L39: =IFERROR(VALUE(VLOOKUP(TEXT($A39,0),MEDIDAS!$A$2:$Q$50,12,FALSE)),"") ->  | M39: =IFERROR(VALUE(VLOOKUP(TEXT($A39,0),MEDIDAS!$A$2:$Q$50,13,FALSE)),"") ->  | N39: =IFERROR(VALUE(VLOOKUP(TEXT($A39,0),MEDIDAS!$A$2:$Q$50,14,FALSE)),"") ->  | O39: =IFERROR(VALUE(VLOOKUP(TEXT($A39,0),MEDIDAS!$A$2:$Q$50,15,FALSE)),"") ->  | P39: =IFERROR(VALUE(VLOOKUP(TEXT($A39,0),MEDIDAS!$A$2:$Q$50,16,FALSE)),"") ->  | Q39: =IFERROR(VLOOKUP(TEXT($A39,0),MEDIDAS!$A$2:$Q$50,17,FALSE),"") -> 
A40: 32 | B40: =IFERROR(VLOOKUP(TEXT($A40,0),MEDIDAS!$A$2:$Q$50,2,FALSE),"") ->  | C40: =IFERROR(VLOOKUP(TEXT($A40,0),MEDIDAS!$A$2:$Q$50,3,FALSE),"") ->  | D40: =IFERROR(VLOOKUP(TEXT($A40,0),MEDIDAS!$A$2:$Q$50,4,FALSE),"") ->  | E40: =IFERROR(VLOOKUP(TEXT($A40,0),MEDIDAS!$A$2:$Q$50,5,FALSE),"") ->  | F40: =IFERROR(VLOOKUP(TEXT($A40,0),MEDIDAS!$A$2:$Q$50,6,FALSE),"") ->  | G40: =IFERROR(VLOOKUP(TEXT($A40,0),MEDIDAS!$A$2:$Q$50,7,FALSE),"") ->  | H40: =IFERROR(VLOOKUP(TEXT($A40,0),MEDIDAS!$A$2:$Q$50,8,FALSE),"") ->  | I40: =IFERROR(VLOOKUP(TEXT($A40,0),MEDIDAS!$A$2:$Q$50,9,FALSE),"") ->  | J40: =IFERROR(VALUE(VLOOKUP(TEXT($A40,0),MEDIDAS!$A$2:$Q$50,10,FALSE)),"") ->  | K40: =IFERROR(VALUE(VLOOKUP(TEXT($A40,0),MEDIDAS!$A$2:$Q$50,11,FALSE)),"") ->  | L40: =IFERROR(VALUE(VLOOKUP(TEXT($A40,0),MEDIDAS!$A$2:$Q$50,12,FALSE)),"") ->  | M40: =IFERROR(VALUE(VLOOKUP(TEXT($A40,0),MEDIDAS!$A$2:$Q$50,13,FALSE)),"") ->  | N40: =IFERROR(VALUE(VLOOKUP(TEXT($A40,0),MEDIDAS!$A$2:$Q$50,14,FALSE)),"") ->  | O40: =IFERROR(VALUE(VLOOKUP(TEXT($A40,0),MEDIDAS!$A$2:$Q$50,15,FALSE)),"") ->  | P40: =IFERROR(VALUE(VLOOKUP(TEXT($A40,0),MEDIDAS!$A$2:$Q$50,16,FALSE)),"") ->  | Q40: =IFERROR(VLOOKUP(TEXT($A40,0),MEDIDAS!$A$2:$Q$50,17,FALSE),"") -> 
A41: 33 | B41: =IFERROR(VLOOKUP(TEXT($A41,0),MEDIDAS!$A$2:$Q$50,2,FALSE),"") ->  | C41: =IFERROR(VLOOKUP(TEXT($A41,0),MEDIDAS!$A$2:$Q$50,3,FALSE),"") ->  | D41: =IFERROR(VLOOKUP(TEXT($A41,0),MEDIDAS!$A$2:$Q$50,4,FALSE),"") ->  | E41: =IFERROR(VLOOKUP(TEXT($A41,0),MEDIDAS!$A$2:$Q$50,5,FALSE),"") ->  | F41: =IFERROR(VLOOKUP(TEXT($A41,0),MEDIDAS!$A$2:$Q$50,6,FALSE),"") ->  | G41: =IFERROR(VLOOKUP(TEXT($A41,0),MEDIDAS!$A$2:$Q$50,7,FALSE),"") ->  | H41: =IFERROR(VLOOKUP(TEXT($A41,0),MEDIDAS!$A$2:$Q$50,8,FALSE),"") ->  | I41: =IFERROR(VLOOKUP(TEXT($A41,0),MEDIDAS!$A$2:$Q$50,9,FALSE),"") ->  | J41: =IFERROR(VALUE(VLOOKUP(TEXT($A41,0),MEDIDAS!$A$2:$Q$50,10,FALSE)),"") ->  | K41: =IFERROR(VALUE(VLOOKUP(TEXT($A41,0),MEDIDAS!$A$2:$Q$50,11,FALSE)),"") ->  | L41: =IFERROR(VALUE(VLOOKUP(TEXT($A41,0),MEDIDAS!$A$2:$Q$50,12,FALSE)),"") ->  | M41: =IFERROR(VALUE(VLOOKUP(TEXT($A41,0),MEDIDAS!$A$2:$Q$50,13,FALSE)),"") ->  | N41: =IFERROR(VALUE(VLOOKUP(TEXT($A41,0),MEDIDAS!$A$2:$Q$50,14,FALSE)),"") ->  | O41: =IFERROR(VALUE(VLOOKUP(TEXT($A41,0),MEDIDAS!$A$2:$Q$50,15,FALSE)),"") ->  | P41: =IFERROR(VALUE(VLOOKUP(TEXT($A41,0),MEDIDAS!$A$2:$Q$50,16,FALSE)),"") ->  | Q41: =IFERROR(VLOOKUP(TEXT($A41,0),MEDIDAS!$A$2:$Q$50,17,FALSE),"") -> 
A42: 34 | B42: =IFERROR(VLOOKUP(TEXT($A42,0),MEDIDAS!$A$2:$Q$50,2,FALSE),"") ->  | C42: =IFERROR(VLOOKUP(TEXT($A42,0),MEDIDAS!$A$2:$Q$50,3,FALSE),"") ->  | D42: =IFERROR(VLOOKUP(TEXT($A42,0),MEDIDAS!$A$2:$Q$50,4,FALSE),"") ->  | E42: =IFERROR(VLOOKUP(TEXT($A42,0),MEDIDAS!$A$2:$Q$50,5,FALSE),"") ->  | F42: =IFERROR(VLOOKUP(TEXT($A42,0),MEDIDAS!$A$2:$Q$50,6,FALSE),"") ->  | G42: =IFERROR(VLOOKUP(TEXT($A42,0),MEDIDAS!$A$2:$Q$50,7,FALSE),"") ->  | H42: =IFERROR(VLOOKUP(TEXT($A42,0),MEDIDAS!$A$2:$Q$50,8,FALSE),"") ->  | I42: =IFERROR(VLOOKUP(TEXT($A42,0),MEDIDAS!$A$2:$Q$50,9,FALSE),"") ->  | J42: =IFERROR(VALUE(VLOOKUP(TEXT($A42,0),MEDIDAS!$A$2:$Q$50,10,FALSE)),"") ->  | K42: =IFERROR(VALUE(VLOOKUP(TEXT($A42,0),MEDIDAS!$A$2:$Q$50,11,FALSE)),"") ->  | L42: =IFERROR(VALUE(VLOOKUP(TEXT($A42,0),MEDIDAS!$A$2:$Q$50,12,FALSE)),"") ->  | M42: =IFERROR(VALUE(VLOOKUP(TEXT($A42,0),MEDIDAS!$A$2:$Q$50,13,FALSE)),"") ->  | N42: =IFERROR(VALUE(VLOOKUP(TEXT($A42,0),MEDIDAS!$A$2:$Q$50,14,FALSE)),"") ->  | O42: =IFERROR(VALUE(VLOOKUP(TEXT($A42,0),MEDIDAS!$A$2:$Q$50,15,FALSE)),"") ->  | P42: =IFERROR(VALUE(VLOOKUP(TEXT($A42,0),MEDIDAS!$A$2:$Q$50,16,FALSE)),"") ->  | Q42: =IFERROR(VLOOKUP(TEXT($A42,0),MEDIDAS!$A$2:$Q$50,17,FALSE),"") -> 
A43: 35 | B43: =IFERROR(VLOOKUP(TEXT($A43,0),MEDIDAS!$A$2:$Q$50,2,FALSE),"") ->  | C43: =IFERROR(VLOOKUP(TEXT($A43,0),MEDIDAS!$A$2:$Q$50,3,FALSE),"") ->  | D43: =IFERROR(VLOOKUP(TEXT($A43,0),MEDIDAS!$A$2:$Q$50,4,FALSE),"") ->  | E43: =IFERROR(VLOOKUP(TEXT($A43,0),MEDIDAS!$A$2:$Q$50,5,FALSE),"") ->  | F43: =IFERROR(VLOOKUP(TEXT($A43,0),MEDIDAS!$A$2:$Q$50,6,FALSE),"") ->  | G43: =IFERROR(VLOOKUP(TEXT($A43,0),MEDIDAS!$A$2:$Q$50,7,FALSE),"") ->  | H43: =IFERROR(VLOOKUP(TEXT($A43,0),MEDIDAS!$A$2:$Q$50,8,FALSE),"") ->  | I43: =IFERROR(VLOOKUP(TEXT($A43,0),MEDIDAS!$A$2:$Q$50,9,FALSE),"") ->  | J43: =IFERROR(VALUE(VLOOKUP(TEXT($A43,0),MEDIDAS!$A$2:$Q$50,10,FALSE)),"") ->  | K43: =IFERROR(VALUE(VLOOKUP(TEXT($A43,0),MEDIDAS!$A$2:$Q$50,11,FALSE)),"") ->  | L43: =IFERROR(VALUE(VLOOKUP(TEXT($A43,0),MEDIDAS!$A$2:$Q$50,12,FALSE)),"") ->  | M43: =IFERROR(VALUE(VLOOKUP(TEXT($A43,0),MEDIDAS!$A$2:$Q$50,13,FALSE)),"") ->  | N43: =IFERROR(VALUE(VLOOKUP(TEXT($A43,0),MEDIDAS!$A$2:$Q$50,14,FALSE)),"") ->  | O43: =IFERROR(VALUE(VLOOKUP(TEXT($A43,0),MEDIDAS!$A$2:$Q$50,15,FALSE)),"") ->  | P43: =IFERROR(VALUE(VLOOKUP(TEXT($A43,0),MEDIDAS!$A$2:$Q$50,16,FALSE)),"") ->  | Q43: =IFERROR(VLOOKUP(TEXT($A43,0),MEDIDAS!$A$2:$Q$50,17,FALSE),"") -> 
A44: 36 | B44: =IFERROR(VLOOKUP(TEXT($A44,0),MEDIDAS!$A$2:$Q$50,2,FALSE),"") ->  | C44: =IFERROR(VLOOKUP(TEXT($A44,0),MEDIDAS!$A$2:$Q$50,3,FALSE),"") ->  | D44: =IFERROR(VLOOKUP(TEXT($A44,0),MEDIDAS!$A$2:$Q$50,4,FALSE),"") ->  | E44: =IFERROR(VLOOKUP(TEXT($A44,0),MEDIDAS!$A$2:$Q$50,5,FALSE),"") ->  | F44: =IFERROR(VLOOKUP(TEXT($A44,0),MEDIDAS!$A$2:$Q$50,6,FALSE),"") ->  | G44: =IFERROR(VLOOKUP(TEXT($A44,0),MEDIDAS!$A$2:$Q$50,7,FALSE),"") ->  | H44: =IFERROR(VLOOKUP(TEXT($A44,0),MEDIDAS!$A$2:$Q$50,8,FALSE),"") ->  | I44: =IFERROR(VLOOKUP(TEXT($A44,0),MEDIDAS!$A$2:$Q$50,9,FALSE),"") ->  | J44: =IFERROR(VALUE(VLOOKUP(TEXT($A44,0),MEDIDAS!$A$2:$Q$50,10,FALSE)),"") ->  | K44: =IFERROR(VALUE(VLOOKUP(TEXT($A44,0),MEDIDAS!$A$2:$Q$50,11,FALSE)),"") ->  | L44: =IFERROR(VALUE(VLOOKUP(TEXT($A44,0),MEDIDAS!$A$2:$Q$50,12,FALSE)),"") ->  | M44: =IFERROR(VALUE(VLOOKUP(TEXT($A44,0),MEDIDAS!$A$2:$Q$50,13,FALSE)),"") ->  | N44: =IFERROR(VALUE(VLOOKUP(TEXT($A44,0),MEDIDAS!$A$2:$Q$50,14,FALSE)),"") ->  | O44: =IFERROR(VALUE(VLOOKUP(TEXT($A44,0),MEDIDAS!$A$2:$Q$50,15,FALSE)),"") ->  | P44: =IFERROR(VALUE(VLOOKUP(TEXT($A44,0),MEDIDAS!$A$2:$Q$50,16,FALSE)),"") ->  | Q44: =IFERROR(VLOOKUP(TEXT($A44,0),MEDIDAS!$A$2:$Q$50,17,FALSE),"") -> 
A45: 37 | B45: =IFERROR(VLOOKUP(TEXT($A45,0),MEDIDAS!$A$2:$Q$50,2,FALSE),"") ->  | C45: =IFERROR(VLOOKUP(TEXT($A45,0),MEDIDAS!$A$2:$Q$50,3,FALSE),"") ->  | D45: =IFERROR(VLOOKUP(TEXT($A45,0),MEDIDAS!$A$2:$Q$50,4,FALSE),"") ->  | E45: =IFERROR(VLOOKUP(TEXT($A45,0),MEDIDAS!$A$2:$Q$50,5,FALSE),"") ->  | F45: =IFERROR(VLOOKUP(TEXT($A45,0),MEDIDAS!$A$2:$Q$50,6,FALSE),"") ->  | G45: =IFERROR(VLOOKUP(TEXT($A45,0),MEDIDAS!$A$2:$Q$50,7,FALSE),"") ->  | H45: =IFERROR(VLOOKUP(TEXT($A45,0),MEDIDAS!$A$2:$Q$50,8,FALSE),"") ->  | I45: =IFERROR(VLOOKUP(TEXT($A45,0),MEDIDAS!$A$2:$Q$50,9,FALSE),"") ->  | J45: =IFERROR(VALUE(VLOOKUP(TEXT($A45,0),MEDIDAS!$A$2:$Q$50,10,FALSE)),"") ->  | K45: =IFERROR(VALUE(VLOOKUP(TEXT($A45,0),MEDIDAS!$A$2:$Q$50,11,FALSE)),"") ->  | L45: =IFERROR(VALUE(VLOOKUP(TEXT($A45,0),MEDIDAS!$A$2:$Q$50,12,FALSE)),"") ->  | M45: =IFERROR(VALUE(VLOOKUP(TEXT($A45,0),MEDIDAS!$A$2:$Q$50,13,FALSE)),"") ->  | N45: =IFERROR(VALUE(VLOOKUP(TEXT($A45,0),MEDIDAS!$A$2:$Q$50,14,FALSE)),"") ->  | O45: =IFERROR(VALUE(VLOOKUP(TEXT($A45,0),MEDIDAS!$A$2:$Q$50,15,FALSE)),"") ->  | P45: =IFERROR(VALUE(VLOOKUP(TEXT($A45,0),MEDIDAS!$A$2:$Q$50,16,FALSE)),"") ->  | Q45: =IFERROR(VLOOKUP(TEXT($A45,0),MEDIDAS!$A$2:$Q$50,17,FALSE),"") -> 
A46: 38 | B46: =IFERROR(VLOOKUP(TEXT($A46,0),MEDIDAS!$A$2:$Q$50,2,FALSE),"") ->  | C46: =IFERROR(VLOOKUP(TEXT($A46,0),MEDIDAS!$A$2:$Q$50,3,FALSE),"") ->  | D46: =IFERROR(VLOOKUP(TEXT($A46,0),MEDIDAS!$A$2:$Q$50,4,FALSE),"") ->  | E46: =IFERROR(VLOOKUP(TEXT($A46,0),MEDIDAS!$A$2:$Q$50,5,FALSE),"") ->  | F46: =IFERROR(VLOOKUP(TEXT($A46,0),MEDIDAS!$A$2:$Q$50,6,FALSE),"") ->  | G46: =IFERROR(VLOOKUP(TEXT($A46,0),MEDIDAS!$A$2:$Q$50,7,FALSE),"") ->  | H46: =IFERROR(VLOOKUP(TEXT($A46,0),MEDIDAS!$A$2:$Q$50,8,FALSE),"") ->  | I46: =IFERROR(VLOOKUP(TEXT($A46,0),MEDIDAS!$A$2:$Q$50,9,FALSE),"") ->  | J46: =IFERROR(VALUE(VLOOKUP(TEXT($A46,0),MEDIDAS!$A$2:$Q$50,10,FALSE)),"") ->  | K46: =IFERROR(VALUE(VLOOKUP(TEXT($A46,0),MEDIDAS!$A$2:$Q$50,11,FALSE)),"") ->  | L46: =IFERROR(VALUE(VLOOKUP(TEXT($A46,0),MEDIDAS!$A$2:$Q$50,12,FALSE)),"") ->  | M46: =IFERROR(VALUE(VLOOKUP(TEXT($A46,0),MEDIDAS!$A$2:$Q$50,13,FALSE)),"") ->  | N46: =IFERROR(VALUE(VLOOKUP(TEXT($A46,0),MEDIDAS!$A$2:$Q$50,14,FALSE)),"") ->  | O46: =IFERROR(VALUE(VLOOKUP(TEXT($A46,0),MEDIDAS!$A$2:$Q$50,15,FALSE)),"") ->  | P46: =IFERROR(VALUE(VLOOKUP(TEXT($A46,0),MEDIDAS!$A$2:$Q$50,16,FALSE)),"") ->  | Q46: =IFERROR(VLOOKUP(TEXT($A46,0),MEDIDAS!$A$2:$Q$50,17,FALSE),"") -> 
A47: 39 | B47: =IFERROR(VLOOKUP(TEXT($A47,0),MEDIDAS!$A$2:$Q$50,2,FALSE),"") ->  | C47: =IFERROR(VLOOKUP(TEXT($A47,0),MEDIDAS!$A$2:$Q$50,3,FALSE),"") ->  | D47: =IFERROR(VLOOKUP(TEXT($A47,0),MEDIDAS!$A$2:$Q$50,4,FALSE),"") ->  | E47: =IFERROR(VLOOKUP(TEXT($A47,0),MEDIDAS!$A$2:$Q$50,5,FALSE),"") ->  | F47: =IFERROR(VLOOKUP(TEXT($A47,0),MEDIDAS!$A$2:$Q$50,6,FALSE),"") ->  | G47: =IFERROR(VLOOKUP(TEXT($A47,0),MEDIDAS!$A$2:$Q$50,7,FALSE),"") ->  | H47: =IFERROR(VLOOKUP(TEXT($A47,0),MEDIDAS!$A$2:$Q$50,8,FALSE),"") ->  | I47: =IFERROR(VLOOKUP(TEXT($A47,0),MEDIDAS!$A$2:$Q$50,9,FALSE),"") ->  | J47: =IFERROR(VALUE(VLOOKUP(TEXT($A47,0),MEDIDAS!$A$2:$Q$50,10,FALSE)),"") ->  | K47: =IFERROR(VALUE(VLOOKUP(TEXT($A47,0),MEDIDAS!$A$2:$Q$50,11,FALSE)),"") ->  | L47: =IFERROR(VALUE(VLOOKUP(TEXT($A47,0),MEDIDAS!$A$2:$Q$50,12,FALSE)),"") ->  | M47: =IFERROR(VALUE(VLOOKUP(TEXT($A47,0),MEDIDAS!$A$2:$Q$50,13,FALSE)),"") ->  | N47: =IFERROR(VALUE(VLOOKUP(TEXT($A47,0),MEDIDAS!$A$2:$Q$50,14,FALSE)),"") ->  | O47: =IFERROR(VALUE(VLOOKUP(TEXT($A47,0),MEDIDAS!$A$2:$Q$50,15,FALSE)),"") ->  | P47: =IFERROR(VALUE(VLOOKUP(TEXT($A47,0),MEDIDAS!$A$2:$Q$50,16,FALSE)),"") ->  | Q47: =IFERROR(VLOOKUP(TEXT($A47,0),MEDIDAS!$A$2:$Q$50,17,FALSE),"") -> 
A48: 40 | B48: =IFERROR(VLOOKUP(TEXT($A48,0),MEDIDAS!$A$2:$Q$50,2,FALSE),"") ->  | C48: =IFERROR(VLOOKUP(TEXT($A48,0),MEDIDAS!$A$2:$Q$50,3,FALSE),"") ->  | D48: =IFERROR(VLOOKUP(TEXT($A48,0),MEDIDAS!$A$2:$Q$50,4,FALSE),"") ->  | E48: =IFERROR(VLOOKUP(TEXT($A48,0),MEDIDAS!$A$2:$Q$50,5,FALSE),"") ->  | F48: =IFERROR(VLOOKUP(TEXT($A48,0),MEDIDAS!$A$2:$Q$50,6,FALSE),"") ->  | G48: =IFERROR(VLOOKUP(TEXT($A48,0),MEDIDAS!$A$2:$Q$50,7,FALSE),"") ->  | H48: =IFERROR(VLOOKUP(TEXT($A48,0),MEDIDAS!$A$2:$Q$50,8,FALSE),"") ->  | I48: =IFERROR(VLOOKUP(TEXT($A48,0),MEDIDAS!$A$2:$Q$50,9,FALSE),"") ->  | J48: =IFERROR(VALUE(VLOOKUP(TEXT($A48,0),MEDIDAS!$A$2:$Q$50,10,FALSE)),"") ->  | K48: =IFERROR(VALUE(VLOOKUP(TEXT($A48,0),MEDIDAS!$A$2:$Q$50,11,FALSE)),"") ->  | L48: =IFERROR(VALUE(VLOOKUP(TEXT($A48,0),MEDIDAS!$A$2:$Q$50,12,FALSE)),"") ->  | M48: =IFERROR(VALUE(VLOOKUP(TEXT($A48,0),MEDIDAS!$A$2:$Q$50,13,FALSE)),"") ->  | N48: =IFERROR(VALUE(VLOOKUP(TEXT($A48,0),MEDIDAS!$A$2:$Q$50,14,FALSE)),"") ->  | O48: =IFERROR(VALUE(VLOOKUP(TEXT($A48,0),MEDIDAS!$A$2:$Q$50,15,FALSE)),"") ->  | P48: =IFERROR(VALUE(VLOOKUP(TEXT($A48,0),MEDIDAS!$A$2:$Q$50,16,FALSE)),"") ->  | Q48: =IFERROR(VLOOKUP(TEXT($A48,0),MEDIDAS!$A$2:$Q$50,17,FALSE),"") -> 
A49: 41 | B49: =IFERROR(VLOOKUP(TEXT($A49,0),MEDIDAS!$A$2:$Q$50,2,FALSE),"") ->  | C49: =IFERROR(VLOOKUP(TEXT($A49,0),MEDIDAS!$A$2:$Q$50,3,FALSE),"") ->  | D49: =IFERROR(VLOOKUP(TEXT($A49,0),MEDIDAS!$A$2:$Q$50,4,FALSE),"") ->  | E49: =IFERROR(VLOOKUP(TEXT($A49,0),MEDIDAS!$A$2:$Q$50,5,FALSE),"") ->  | F49: =IFERROR(VLOOKUP(TEXT($A49,0),MEDIDAS!$A$2:$Q$50,6,FALSE),"") ->  | G49: =IFERROR(VLOOKUP(TEXT($A49,0),MEDIDAS!$A$2:$Q$50,7,FALSE),"") ->  | H49: =IFERROR(VLOOKUP(TEXT($A49,0),MEDIDAS!$A$2:$Q$50,8,FALSE),"") ->  | I49: =IFERROR(VLOOKUP(TEXT($A49,0),MEDIDAS!$A$2:$Q$50,9,FALSE),"") ->  | J49: =IFERROR(VALUE(VLOOKUP(TEXT($A49,0),MEDIDAS!$A$2:$Q$50,10,FALSE)),"") ->  | K49: =IFERROR(VALUE(VLOOKUP(TEXT($A49,0),MEDIDAS!$A$2:$Q$50,11,FALSE)),"") ->  | L49: =IFERROR(VALUE(VLOOKUP(TEXT($A49,0),MEDIDAS!$A$2:$Q$50,12,FALSE)),"") ->  | M49: =IFERROR(VALUE(VLOOKUP(TEXT($A49,0),MEDIDAS!$A$2:$Q$50,13,FALSE)),"") ->  | N49: =IFERROR(VALUE(VLOOKUP(TEXT($A49,0),MEDIDAS!$A$2:$Q$50,14,FALSE)),"") ->  | O49: =IFERROR(VALUE(VLOOKUP(TEXT($A49,0),MEDIDAS!$A$2:$Q$50,15,FALSE)),"") ->  | P49: =IFERROR(VALUE(VLOOKUP(TEXT($A49,0),MEDIDAS!$A$2:$Q$50,16,FALSE)),"") ->  | Q49: =IFERROR(VLOOKUP(TEXT($A49,0),MEDIDAS!$A$2:$Q$50,17,FALSE),"") -> 
A50: 42 | B50: =IFERROR(VLOOKUP(TEXT($A50,0),MEDIDAS!$A$2:$Q$50,2,FALSE),"") ->  | C50: =IFERROR(VLOOKUP(TEXT($A50,0),MEDIDAS!$A$2:$Q$50,3,FALSE),"") ->  | D50: =IFERROR(VLOOKUP(TEXT($A50,0),MEDIDAS!$A$2:$Q$50,4,FALSE),"") ->  | E50: =IFERROR(VLOOKUP(TEXT($A50,0),MEDIDAS!$A$2:$Q$50,5,FALSE),"") ->  | F50: =IFERROR(VLOOKUP(TEXT($A50,0),MEDIDAS!$A$2:$Q$50,6,FALSE),"") ->  | G50: =IFERROR(VLOOKUP(TEXT($A50,0),MEDIDAS!$A$2:$Q$50,7,FALSE),"") ->  | H50: =IFERROR(VLOOKUP(TEXT($A50,0),MEDIDAS!$A$2:$Q$50,8,FALSE),"") ->  | I50: =IFERROR(VLOOKUP(TEXT($A50,0),MEDIDAS!$A$2:$Q$50,9,FALSE),"") ->  | J50: =IFERROR(VALUE(VLOOKUP(TEXT($A50,0),MEDIDAS!$A$2:$Q$50,10,FALSE)),"") ->  | K50: =IFERROR(VALUE(VLOOKUP(TEXT($A50,0),MEDIDAS!$A$2:$Q$50,11,FALSE)),"") ->  | L50: =IFERROR(VALUE(VLOOKUP(TEXT($A50,0),MEDIDAS!$A$2:$Q$50,12,FALSE)),"") ->  | M50: =IFERROR(VALUE(VLOOKUP(TEXT($A50,0),MEDIDAS!$A$2:$Q$50,13,FALSE)),"") ->  | N50: =IFERROR(VALUE(VLOOKUP(TEXT($A50,0),MEDIDAS!$A$2:$Q$50,14,FALSE)),"") ->  | O50: =IFERROR(VALUE(VLOOKUP(TEXT($A50,0),MEDIDAS!$A$2:$Q$50,15,FALSE)),"") ->  | P50: =IFERROR(VALUE(VLOOKUP(TEXT($A50,0),MEDIDAS!$A$2:$Q$50,16,FALSE)),"") ->  | Q50: =IFERROR(VLOOKUP(TEXT($A50,0),MEDIDAS!$A$2:$Q$50,17,FALSE),"") -> 
A51: 43 | B51: =IFERROR(VLOOKUP(TEXT($A51,0),MEDIDAS!$A$2:$Q$50,2,FALSE),"") ->  | C51: =IFERROR(VLOOKUP(TEXT($A51,0),MEDIDAS!$A$2:$Q$50,3,FALSE),"") ->  | D51: =IFERROR(VLOOKUP(TEXT($A51,0),MEDIDAS!$A$2:$Q$50,4,FALSE),"") ->  | E51: =IFERROR(VLOOKUP(TEXT($A51,0),MEDIDAS!$A$2:$Q$50,5,FALSE),"") ->  | F51: =IFERROR(VLOOKUP(TEXT($A51,0),MEDIDAS!$A$2:$Q$50,6,FALSE),"") ->  | G51: =IFERROR(VLOOKUP(TEXT($A51,0),MEDIDAS!$A$2:$Q$50,7,FALSE),"") ->  | H51: =IFERROR(VLOOKUP(TEXT($A51,0),MEDIDAS!$A$2:$Q$50,8,FALSE),"") ->  | I51: =IFERROR(VLOOKUP(TEXT($A51,0),MEDIDAS!$A$2:$Q$50,9,FALSE),"") ->  | J51: =IFERROR(VALUE(VLOOKUP(TEXT($A51,0),MEDIDAS!$A$2:$Q$50,10,FALSE)),"") ->  | K51: =IFERROR(VALUE(VLOOKUP(TEXT($A51,0),MEDIDAS!$A$2:$Q$50,11,FALSE)),"") ->  | L51: =IFERROR(VALUE(VLOOKUP(TEXT($A51,0),MEDIDAS!$A$2:$Q$50,12,FALSE)),"") ->  | M51: =IFERROR(VALUE(VLOOKUP(TEXT($A51,0),MEDIDAS!$A$2:$Q$50,13,FALSE)),"") ->  | N51: =IFERROR(VALUE(VLOOKUP(TEXT($A51,0),MEDIDAS!$A$2:$Q$50,14,FALSE)),"") ->  | O51: =IFERROR(VALUE(VLOOKUP(TEXT($A51,0),MEDIDAS!$A$2:$Q$50,15,FALSE)),"") ->  | P51: =IFERROR(VALUE(VLOOKUP(TEXT($A51,0),MEDIDAS!$A$2:$Q$50,16,FALSE)),"") ->  | Q51: =IFERROR(VLOOKUP(TEXT($A51,0),MEDIDAS!$A$2:$Q$50,17,FALSE),"") -> 
A52: 44 | B52: =IFERROR(VLOOKUP(TEXT($A52,0),MEDIDAS!$A$2:$Q$50,2,FALSE),"") ->  | C52: =IFERROR(VLOOKUP(TEXT($A52,0),MEDIDAS!$A$2:$Q$50,3,FALSE),"") ->  | D52: =IFERROR(VLOOKUP(TEXT($A52,0),MEDIDAS!$A$2:$Q$50,4,FALSE),"") ->  | E52: =IFERROR(VLOOKUP(TEXT($A52,0),MEDIDAS!$A$2:$Q$50,5,FALSE),"") ->  | F52: =IFERROR(VLOOKUP(TEXT($A52,0),MEDIDAS!$A$2:$Q$50,6,FALSE),"") ->  | G52: =IFERROR(VLOOKUP(TEXT($A52,0),MEDIDAS!$A$2:$Q$50,7,FALSE),"") ->  | H52: =IFERROR(VLOOKUP(TEXT($A52,0),MEDIDAS!$A$2:$Q$50,8,FALSE),"") ->  | I52: =IFERROR(VLOOKUP(TEXT($A52,0),MEDIDAS!$A$2:$Q$50,9,FALSE),"") ->  | J52: =IFERROR(VALUE(VLOOKUP(TEXT($A52,0),MEDIDAS!$A$2:$Q$50,10,FALSE)),"") ->  | K52: =IFERROR(VALUE(VLOOKUP(TEXT($A52,0),MEDIDAS!$A$2:$Q$50,11,FALSE)),"") ->  | L52: =IFERROR(VALUE(VLOOKUP(TEXT($A52,0),MEDIDAS!$A$2:$Q$50,12,FALSE)),"") ->  | M52: =IFERROR(VALUE(VLOOKUP(TEXT($A52,0),MEDIDAS!$A$2:$Q$50,13,FALSE)),"") ->  | N52: =IFERROR(VALUE(VLOOKUP(TEXT($A52,0),MEDIDAS!$A$2:$Q$50,14,FALSE)),"") ->  | O52: =IFERROR(VALUE(VLOOKUP(TEXT($A52,0),MEDIDAS!$A$2:$Q$50,15,FALSE)),"") ->  | P52: =IFERROR(VALUE(VLOOKUP(TEXT($A52,0),MEDIDAS!$A$2:$Q$50,16,FALSE)),"") ->  | Q52: =IFERROR(VLOOKUP(TEXT($A52,0),MEDIDAS!$A$2:$Q$50,17,FALSE),"") -> 
A53: 45 | B53: =IFERROR(VLOOKUP(TEXT($A53,0),MEDIDAS!$A$2:$Q$50,2,FALSE),"") ->  | C53: =IFERROR(VLOOKUP(TEXT($A53,0),MEDIDAS!$A$2:$Q$50,3,FALSE),"") ->  | D53: =IFERROR(VLOOKUP(TEXT($A53,0),MEDIDAS!$A$2:$Q$50,4,FALSE),"") ->  | E53: =IFERROR(VLOOKUP(TEXT($A53,0),MEDIDAS!$A$2:$Q$50,5,FALSE),"") ->  | F53: =IFERROR(VLOOKUP(TEXT($A53,0),MEDIDAS!$A$2:$Q$50,6,FALSE),"") ->  | G53: =IFERROR(VLOOKUP(TEXT($A53,0),MEDIDAS!$A$2:$Q$50,7,FALSE),"") ->  | H53: =IFERROR(VLOOKUP(TEXT($A53,0),MEDIDAS!$A$2:$Q$50,8,FALSE),"") ->  | I53: =IFERROR(VLOOKUP(TEXT($A53,0),MEDIDAS!$A$2:$Q$50,9,FALSE),"") ->  | J53: =IFERROR(VALUE(VLOOKUP(TEXT($A53,0),MEDIDAS!$A$2:$Q$50,10,FALSE)),"") ->  | K53: =IFERROR(VALUE(VLOOKUP(TEXT($A53,0),MEDIDAS!$A$2:$Q$50,11,FALSE)),"") ->  | L53: =IFERROR(VALUE(VLOOKUP(TEXT($A53,0),MEDIDAS!$A$2:$Q$50,12,FALSE)),"") ->  | M53: =IFERROR(VALUE(VLOOKUP(TEXT($A53,0),MEDIDAS!$A$2:$Q$50,13,FALSE)),"") ->  | N53: =IFERROR(VALUE(VLOOKUP(TEXT($A53,0),MEDIDAS!$A$2:$Q$50,14,FALSE)),"") ->  | O53: =IFERROR(VALUE(VLOOKUP(TEXT($A53,0),MEDIDAS!$A$2:$Q$50,15,FALSE)),"") ->  | P53: =IFERROR(VALUE(VLOOKUP(TEXT($A53,0),MEDIDAS!$A$2:$Q$50,16,FALSE)),"") ->  | Q53: =IFERROR(VLOOKUP(TEXT($A53,0),MEDIDAS!$A$2:$Q$50,17,FALSE),"") -> 
A54: 46 | B54: =IFERROR(VLOOKUP(TEXT($A54,0),MEDIDAS!$A$2:$Q$50,2,FALSE),"") ->  | C54: =IFERROR(VLOOKUP(TEXT($A54,0),MEDIDAS!$A$2:$Q$50,3,FALSE),"") ->  | D54: =IFERROR(VLOOKUP(TEXT($A54,0),MEDIDAS!$A$2:$Q$50,4,FALSE),"") ->  | E54: =IFERROR(VLOOKUP(TEXT($A54,0),MEDIDAS!$A$2:$Q$50,5,FALSE),"") ->  | F54: =IFERROR(VLOOKUP(TEXT($A54,0),MEDIDAS!$A$2:$Q$50,6,FALSE),"") ->  | G54: =IFERROR(VLOOKUP(TEXT($A54,0),MEDIDAS!$A$2:$Q$50,7,FALSE),"") ->  | H54: =IFERROR(VLOOKUP(TEXT($A54,0),MEDIDAS!$A$2:$Q$50,8,FALSE),"") ->  | I54: =IFERROR(VLOOKUP(TEXT($A54,0),MEDIDAS!$A$2:$Q$50,9,FALSE),"") ->  | J54: =IFERROR(VALUE(VLOOKUP(TEXT($A54,0),MEDIDAS!$A$2:$Q$50,10,FALSE)),"") ->  | K54: =IFERROR(VALUE(VLOOKUP(TEXT($A54,0),MEDIDAS!$A$2:$Q$50,11,FALSE)),"") ->  | L54: =IFERROR(VALUE(VLOOKUP(TEXT($A54,0),MEDIDAS!$A$2:$Q$50,12,FALSE)),"") ->  | M54: =IFERROR(VALUE(VLOOKUP(TEXT($A54,0),MEDIDAS!$A$2:$Q$50,13,FALSE)),"") ->  | N54: =IFERROR(VALUE(VLOOKUP(TEXT($A54,0),MEDIDAS!$A$2:$Q$50,14,FALSE)),"") ->  | O54: =IFERROR(VALUE(VLOOKUP(TEXT($A54,0),MEDIDAS!$A$2:$Q$50,15,FALSE)),"") ->  | P54: =IFERROR(VALUE(VLOOKUP(TEXT($A54,0),MEDIDAS!$A$2:$Q$50,16,FALSE)),"") ->  | Q54: =IFERROR(VLOOKUP(TEXT($A54,0),MEDIDAS!$A$2:$Q$50,17,FALSE),"") -> 
A55: 47 | B55: =IFERROR(VLOOKUP(TEXT($A55,0),MEDIDAS!$A$2:$Q$50,2,FALSE),"") ->  | C55: =IFERROR(VLOOKUP(TEXT($A55,0),MEDIDAS!$A$2:$Q$50,3,FALSE),"") ->  | D55: =IFERROR(VLOOKUP(TEXT($A55,0),MEDIDAS!$A$2:$Q$50,4,FALSE),"") ->  | E55: =IFERROR(VLOOKUP(TEXT($A55,0),MEDIDAS!$A$2:$Q$50,5,FALSE),"") ->  | F55: =IFERROR(VLOOKUP(TEXT($A55,0),MEDIDAS!$A$2:$Q$50,6,FALSE),"") ->  | G55: =IFERROR(VLOOKUP(TEXT($A55,0),MEDIDAS!$A$2:$Q$50,7,FALSE),"") ->  | H55: =IFERROR(VLOOKUP(TEXT($A55,0),MEDIDAS!$A$2:$Q$50,8,FALSE),"") ->  | I55: =IFERROR(VLOOKUP(TEXT($A55,0),MEDIDAS!$A$2:$Q$50,9,FALSE),"") ->  | J55: =IFERROR(VALUE(VLOOKUP(TEXT($A55,0),MEDIDAS!$A$2:$Q$50,10,FALSE)),"") ->  | K55: =IFERROR(VALUE(VLOOKUP(TEXT($A55,0),MEDIDAS!$A$2:$Q$50,11,FALSE)),"") ->  | L55: =IFERROR(VALUE(VLOOKUP(TEXT($A55,0),MEDIDAS!$A$2:$Q$50,12,FALSE)),"") ->  | M55: =IFERROR(VALUE(VLOOKUP(TEXT($A55,0),MEDIDAS!$A$2:$Q$50,13,FALSE)),"") ->  | N55: =IFERROR(VALUE(VLOOKUP(TEXT($A55,0),MEDIDAS!$A$2:$Q$50,14,FALSE)),"") ->  | O55: =IFERROR(VALUE(VLOOKUP(TEXT($A55,0),MEDIDAS!$A$2:$Q$50,15,FALSE)),"") ->  | P55: =IFERROR(VALUE(VLOOKUP(TEXT($A55,0),MEDIDAS!$A$2:$Q$50,16,FALSE)),"") ->  | Q55: =IFERROR(VLOOKUP(TEXT($A55,0),MEDIDAS!$A$2:$Q$50,17,FALSE),"") -> 
A56: 48 | B56: =IFERROR(VLOOKUP(TEXT($A56,0),MEDIDAS!$A$2:$Q$50,2,FALSE),"") ->  | C56: =IFERROR(VLOOKUP(TEXT($A56,0),MEDIDAS!$A$2:$Q$50,3,FALSE),"") ->  | D56: =IFERROR(VLOOKUP(TEXT($A56,0),MEDIDAS!$A$2:$Q$50,4,FALSE),"") ->  | E56: =IFERROR(VLOOKUP(TEXT($A56,0),MEDIDAS!$A$2:$Q$50,5,FALSE),"") ->  | F56: =IFERROR(VLOOKUP(TEXT($A56,0),MEDIDAS!$A$2:$Q$50,6,FALSE),"") ->  | G56: =IFERROR(VLOOKUP(TEXT($A56,0),MEDIDAS!$A$2:$Q$50,7,FALSE),"") ->  | H56: =IFERROR(VLOOKUP(TEXT($A56,0),MEDIDAS!$A$2:$Q$50,8,FALSE),"") ->  | I56: =IFERROR(VLOOKUP(TEXT($A56,0),MEDIDAS!$A$2:$Q$50,9,FALSE),"") ->  | J56: =IFERROR(VALUE(VLOOKUP(TEXT($A56,0),MEDIDAS!$A$2:$Q$50,10,FALSE)),"") ->  | K56: =IFERROR(VALUE(VLOOKUP(TEXT($A56,0),MEDIDAS!$A$2:$Q$50,11,FALSE)),"") ->  | L56: =IFERROR(VALUE(VLOOKUP(TEXT($A56,0),MEDIDAS!$A$2:$Q$50,12,FALSE)),"") ->  | M56: =IFERROR(VALUE(VLOOKUP(TEXT($A56,0),MEDIDAS!$A$2:$Q$50,13,FALSE)),"") ->  | N56: =IFERROR(VALUE(VLOOKUP(TEXT($A56,0),MEDIDAS!$A$2:$Q$50,14,FALSE)),"") ->  | O56: =IFERROR(VALUE(VLOOKUP(TEXT($A56,0),MEDIDAS!$A$2:$Q$50,15,FALSE)),"") ->  | P56: =IFERROR(VALUE(VLOOKUP(TEXT($A56,0),MEDIDAS!$A$2:$Q$50,16,FALSE)),"") ->  | Q56: =IFERROR(VLOOKUP(TEXT($A56,0),MEDIDAS!$A$2:$Q$50,17,FALSE),"") -> 
A57: 49 | B57: =IFERROR(VLOOKUP(TEXT($A57,0),MEDIDAS!$A$2:$Q$50,2,FALSE),"") ->  | C57: =IFERROR(VLOOKUP(TEXT($A57,0),MEDIDAS!$A$2:$Q$50,3,FALSE),"") ->  | D57: =IFERROR(VLOOKUP(TEXT($A57,0),MEDIDAS!$A$2:$Q$50,4,FALSE),"") ->  | E57: =IFERROR(VLOOKUP(TEXT($A57,0),MEDIDAS!$A$2:$Q$50,5,FALSE),"") ->  | F57: =IFERROR(VLOOKUP(TEXT($A57,0),MEDIDAS!$A$2:$Q$50,6,FALSE),"") ->  | G57: =IFERROR(VLOOKUP(TEXT($A57,0),MEDIDAS!$A$2:$Q$50,7,FALSE),"") ->  | H57: =IFERROR(VLOOKUP(TEXT($A57,0),MEDIDAS!$A$2:$Q$50,8,FALSE),"") ->  | I57: =IFERROR(VLOOKUP(TEXT($A57,0),MEDIDAS!$A$2:$Q$50,9,FALSE),"") ->  | J57: =IFERROR(VALUE(VLOOKUP(TEXT($A57,0),MEDIDAS!$A$2:$Q$50,10,FALSE)),"") ->  | K57: =IFERROR(VALUE(VLOOKUP(TEXT($A57,0),MEDIDAS!$A$2:$Q$50,11,FALSE)),"") ->  | L57: =IFERROR(VALUE(VLOOKUP(TEXT($A57,0),MEDIDAS!$A$2:$Q$50,12,FALSE)),"") ->  | M57: =IFERROR(VALUE(VLOOKUP(TEXT($A57,0),MEDIDAS!$A$2:$Q$50,13,FALSE)),"") ->  | N57: =IFERROR(VALUE(VLOOKUP(TEXT($A57,0),MEDIDAS!$A$2:$Q$50,14,FALSE)),"") ->  | O57: =IFERROR(VALUE(VLOOKUP(TEXT($A57,0),MEDIDAS!$A$2:$Q$50,15,FALSE)),"") ->  | P57: =IFERROR(VALUE(VLOOKUP(TEXT($A57,0),MEDIDAS!$A$2:$Q$50,16,FALSE)),"") ->  | Q57: =IFERROR(VLOOKUP(TEXT($A57,0),MEDIDAS!$A$2:$Q$50,17,FALSE),"") -> 
A58: 50 | B58: =IFERROR(VLOOKUP(TEXT($A58,0),MEDIDAS!$A$2:$Q$50,2,FALSE),"") ->  | C58: =IFERROR(VLOOKUP(TEXT($A58,0),MEDIDAS!$A$2:$Q$50,3,FALSE),"") ->  | D58: =IFERROR(VLOOKUP(TEXT($A58,0),MEDIDAS!$A$2:$Q$50,4,FALSE),"") ->  | E58: =IFERROR(VLOOKUP(TEXT($A58,0),MEDIDAS!$A$2:$Q$50,5,FALSE),"") ->  | F58: =IFERROR(VLOOKUP(TEXT($A58,0),MEDIDAS!$A$2:$Q$50,6,FALSE),"") ->  | G58: =IFERROR(VLOOKUP(TEXT($A58,0),MEDIDAS!$A$2:$Q$50,7,FALSE),"") ->  | H58: =IFERROR(VLOOKUP(TEXT($A58,0),MEDIDAS!$A$2:$Q$50,8,FALSE),"") ->  | I58: =IFERROR(VLOOKUP(TEXT($A58,0),MEDIDAS!$A$2:$Q$50,9,FALSE),"") ->  | J58: =IFERROR(VALUE(VLOOKUP(TEXT($A58,0),MEDIDAS!$A$2:$Q$50,10,FALSE)),"") ->  | K58: =IFERROR(VALUE(VLOOKUP(TEXT($A58,0),MEDIDAS!$A$2:$Q$50,11,FALSE)),"") ->  | L58: =IFERROR(VALUE(VLOOKUP(TEXT($A58,0),MEDIDAS!$A$2:$Q$50,12,FALSE)),"") ->  | M58: =IFERROR(VALUE(VLOOKUP(TEXT($A58,0),MEDIDAS!$A$2:$Q$50,13,FALSE)),"") ->  | N58: =IFERROR(VALUE(VLOOKUP(TEXT($A58,0),MEDIDAS!$A$2:$Q$50,14,FALSE)),"") ->  | O58: =IFERROR(VALUE(VLOOKUP(TEXT($A58,0),MEDIDAS!$A$2:$Q$50,15,FALSE)),"") ->  | P58: =IFERROR(VALUE(VLOOKUP(TEXT($A58,0),MEDIDAS!$A$2:$Q$50,16,FALSE)),"") ->  | Q58: =IFERROR(VLOOKUP(TEXT($A58,0),MEDIDAS!$A$2:$Q$50,17,FALSE),"") -> 
A59: 51 | B59: =IFERROR(VLOOKUP(TEXT($A59,0),MEDIDAS!$A$2:$Q$50,2,FALSE),"") ->  | C59: =IFERROR(VLOOKUP(TEXT($A59,0),MEDIDAS!$A$2:$Q$50,3,FALSE),"") ->  | D59: =IFERROR(VLOOKUP(TEXT($A59,0),MEDIDAS!$A$2:$Q$50,4,FALSE),"") ->  | E59: =IFERROR(VLOOKUP(TEXT($A59,0),MEDIDAS!$A$2:$Q$50,5,FALSE),"") ->  | F59: =IFERROR(VLOOKUP(TEXT($A59,0),MEDIDAS!$A$2:$Q$50,6,FALSE),"") ->  | G59: =IFERROR(VLOOKUP(TEXT($A59,0),MEDIDAS!$A$2:$Q$50,7,FALSE),"") ->  | H59: =IFERROR(VLOOKUP(TEXT($A59,0),MEDIDAS!$A$2:$Q$50,8,FALSE),"") ->  | I59: =IFERROR(VLOOKUP(TEXT($A59,0),MEDIDAS!$A$2:$Q$50,9,FALSE),"") ->  | J59: =IFERROR(VALUE(VLOOKUP(TEXT($A59,0),MEDIDAS!$A$2:$Q$50,10,FALSE)),"") ->  | K59: =IFERROR(VALUE(VLOOKUP(TEXT($A59,0),MEDIDAS!$A$2:$Q$50,11,FALSE)),"") ->  | L59: =IFERROR(VALUE(VLOOKUP(TEXT($A59,0),MEDIDAS!$A$2:$Q$50,12,FALSE)),"") ->  | M59: =IFERROR(VALUE(VLOOKUP(TEXT($A59,0),MEDIDAS!$A$2:$Q$50,13,FALSE)),"") ->  | N59: =IFERROR(VALUE(VLOOKUP(TEXT($A59,0),MEDIDAS!$A$2:$Q$50,14,FALSE)),"") ->  | O59: =IFERROR(VALUE(VLOOKUP(TEXT($A59,0),MEDIDAS!$A$2:$Q$50,15,FALSE)),"") ->  | P59: =IFERROR(VALUE(VLOOKUP(TEXT($A59,0),MEDIDAS!$A$2:$Q$50,16,FALSE)),"") ->  | Q59: =IFERROR(VLOOKUP(TEXT($A59,0),MEDIDAS!$A$2:$Q$50,17,FALSE),"") -> 
A60: 52 | B60: =IFERROR(VLOOKUP(TEXT($A60,0),MEDIDAS!$A$2:$Q$50,2,FALSE),"") ->  | C60: =IFERROR(VLOOKUP(TEXT($A60,0),MEDIDAS!$A$2:$Q$50,3,FALSE),"") ->  | D60: =IFERROR(VLOOKUP(TEXT($A60,0),MEDIDAS!$A$2:$Q$50,4,FALSE),"") ->  | E60: =IFERROR(VLOOKUP(TEXT($A60,0),MEDIDAS!$A$2:$Q$50,5,FALSE),"") ->  | F60: =IFERROR(VLOOKUP(TEXT($A60,0),MEDIDAS!$A$2:$Q$50,6,FALSE),"") ->  | G60: =IFERROR(VLOOKUP(TEXT($A60,0),MEDIDAS!$A$2:$Q$50,7,FALSE),"") ->  | H60: =IFERROR(VLOOKUP(TEXT($A60,0),MEDIDAS!$A$2:$Q$50,8,FALSE),"") ->  | I60: =IFERROR(VLOOKUP(TEXT($A60,0),MEDIDAS!$A$2:$Q$50,9,FALSE),"") ->  | J60: =IFERROR(VALUE(VLOOKUP(TEXT($A60,0),MEDIDAS!$A$2:$Q$50,10,FALSE)),"") ->  | K60: =IFERROR(VALUE(VLOOKUP(TEXT($A60,0),MEDIDAS!$A$2:$Q$50,11,FALSE)),"") ->  | L60: =IFERROR(VALUE(VLOOKUP(TEXT($A60,0),MEDIDAS!$A$2:$Q$50,12,FALSE)),"") ->  | M60: =IFERROR(VALUE(VLOOKUP(TEXT($A60,0),MEDIDAS!$A$2:$Q$50,13,FALSE)),"") ->  | N60: =IFERROR(VALUE(VLOOKUP(TEXT($A60,0),MEDIDAS!$A$2:$Q$50,14,FALSE)),"") ->  | O60: =IFERROR(VALUE(VLOOKUP(TEXT($A60,0),MEDIDAS!$A$2:$Q$50,15,FALSE)),"") ->  | P60: =IFERROR(VALUE(VLOOKUP(TEXT($A60,0),MEDIDAS!$A$2:$Q$50,16,FALSE)),"") ->  | Q60: =IFERROR(VLOOKUP(TEXT($A60,0),MEDIDAS!$A$2:$Q$50,17,FALSE),"") -> 
A61: 53 | B61: =IFERROR(VLOOKUP(TEXT($A61,0),MEDIDAS!$A$2:$Q$50,2,FALSE),"") ->  | C61: =IFERROR(VLOOKUP(TEXT($A61,0),MEDIDAS!$A$2:$Q$50,3,FALSE),"") ->  | D61: =IFERROR(VLOOKUP(TEXT($A61,0),MEDIDAS!$A$2:$Q$50,4,FALSE),"") ->  | E61: =IFERROR(VLOOKUP(TEXT($A61,0),MEDIDAS!$A$2:$Q$50,5,FALSE),"") ->  | F61: =IFERROR(VLOOKUP(TEXT($A61,0),MEDIDAS!$A$2:$Q$50,6,FALSE),"") ->  | G61: =IFERROR(VLOOKUP(TEXT($A61,0),MEDIDAS!$A$2:$Q$50,7,FALSE),"") ->  | H61: =IFERROR(VLOOKUP(TEXT($A61,0),MEDIDAS!$A$2:$Q$50,8,FALSE),"") ->  | I61: =IFERROR(VLOOKUP(TEXT($A61,0),MEDIDAS!$A$2:$Q$50,9,FALSE),"") ->  | J61: =IFERROR(VALUE(VLOOKUP(TEXT($A61,0),MEDIDAS!$A$2:$Q$50,10,FALSE)),"") ->  | K61: =IFERROR(VALUE(VLOOKUP(TEXT($A61,0),MEDIDAS!$A$2:$Q$50,11,FALSE)),"") ->  | L61: =IFERROR(VALUE(VLOOKUP(TEXT($A61,0),MEDIDAS!$A$2:$Q$50,12,FALSE)),"") ->  | M61: =IFERROR(VALUE(VLOOKUP(TEXT($A61,0),MEDIDAS!$A$2:$Q$50,13,FALSE)),"") ->  | N61: =IFERROR(VALUE(VLOOKUP(TEXT($A61,0),MEDIDAS!$A$2:$Q$50,14,FALSE)),"") ->  | O61: =IFERROR(VALUE(VLOOKUP(TEXT($A61,0),MEDIDAS!$A$2:$Q$50,15,FALSE)),"") ->  | P61: =IFERROR(VALUE(VLOOKUP(TEXT($A61,0),MEDIDAS!$A$2:$Q$50,16,FALSE)),"") ->  | Q61: =IFERROR(VLOOKUP(TEXT($A61,0),MEDIDAS!$A$2:$Q$50,17,FALSE),"") -> 
A62: 54 | B62: =IFERROR(VLOOKUP(TEXT($A62,0),MEDIDAS!$A$2:$Q$50,2,FALSE),"") ->  | C62: =IFERROR(VLOOKUP(TEXT($A62,0),MEDIDAS!$A$2:$Q$50,3,FALSE),"") ->  | D62: =IFERROR(VLOOKUP(TEXT($A62,0),MEDIDAS!$A$2:$Q$50,4,FALSE),"") ->  | E62: =IFERROR(VLOOKUP(TEXT($A62,0),MEDIDAS!$A$2:$Q$50,5,FALSE),"") ->  | F62: =IFERROR(VLOOKUP(TEXT($A62,0),MEDIDAS!$A$2:$Q$50,6,FALSE),"") ->  | G62: =IFERROR(VLOOKUP(TEXT($A62,0),MEDIDAS!$A$2:$Q$50,7,FALSE),"") ->  | H62: =IFERROR(VLOOKUP(TEXT($A62,0),MEDIDAS!$A$2:$Q$50,8,FALSE),"") ->  | I62: =IFERROR(VLOOKUP(TEXT($A62,0),MEDIDAS!$A$2:$Q$50,9,FALSE),"") ->  | J62: =IFERROR(VALUE(VLOOKUP(TEXT($A62,0),MEDIDAS!$A$2:$Q$50,10,FALSE)),"") ->  | K62: =IFERROR(VALUE(VLOOKUP(TEXT($A62,0),MEDIDAS!$A$2:$Q$50,11,FALSE)),"") ->  | L62: =IFERROR(VALUE(VLOOKUP(TEXT($A62,0),MEDIDAS!$A$2:$Q$50,12,FALSE)),"") ->  | M62: =IFERROR(VALUE(VLOOKUP(TEXT($A62,0),MEDIDAS!$A$2:$Q$50,13,FALSE)),"") ->  | N62: =IFERROR(VALUE(VLOOKUP(TEXT($A62,0),MEDIDAS!$A$2:$Q$50,14,FALSE)),"") ->  | O62: =IFERROR(VALUE(VLOOKUP(TEXT($A62,0),MEDIDAS!$A$2:$Q$50,15,FALSE)),"") ->  | P62: =IFERROR(VALUE(VLOOKUP(TEXT($A62,0),MEDIDAS!$A$2:$Q$50,16,FALSE)),"") ->  | Q62: =IFERROR(VLOOKUP(TEXT($A62,0),MEDIDAS!$A$2:$Q$50,17,FALSE),"") -> 
A63: 55 | B63: =IFERROR(VLOOKUP(TEXT($A63,0),MEDIDAS!$A$2:$Q$50,2,FALSE),"") ->  | C63: =IFERROR(VLOOKUP(TEXT($A63,0),MEDIDAS!$A$2:$Q$50,3,FALSE),"") ->  | D63: =IFERROR(VLOOKUP(TEXT($A63,0),MEDIDAS!$A$2:$Q$50,4,FALSE),"") ->  | E63: =IFERROR(VLOOKUP(TEXT($A63,0),MEDIDAS!$A$2:$Q$50,5,FALSE),"") ->  | F63: =IFERROR(VLOOKUP(TEXT($A63,0),MEDIDAS!$A$2:$Q$50,6,FALSE),"") ->  | G63: =IFERROR(VLOOKUP(TEXT($A63,0),MEDIDAS!$A$2:$Q$50,7,FALSE),"") ->  | H63: =IFERROR(VLOOKUP(TEXT($A63,0),MEDIDAS!$A$2:$Q$50,8,FALSE),"") ->  | I63: =IFERROR(VLOOKUP(TEXT($A63,0),MEDIDAS!$A$2:$Q$50,9,FALSE),"") ->  | J63: =IFERROR(VALUE(VLOOKUP(TEXT($A63,0),MEDIDAS!$A$2:$Q$50,10,FALSE)),"") ->  | K63: =IFERROR(VALUE(VLOOKUP(TEXT($A63,0),MEDIDAS!$A$2:$Q$50,11,FALSE)),"") ->  | L63: =IFERROR(VALUE(VLOOKUP(TEXT($A63,0),MEDIDAS!$A$2:$Q$50,12,FALSE)),"") ->  | M63: =IFERROR(VALUE(VLOOKUP(TEXT($A63,0),MEDIDAS!$A$2:$Q$50,13,FALSE)),"") ->  | N63: =IFERROR(VALUE(VLOOKUP(TEXT($A63,0),MEDIDAS!$A$2:$Q$50,14,FALSE)),"") ->  | O63: =IFERROR(VALUE(VLOOKUP(TEXT($A63,0),MEDIDAS!$A$2:$Q$50,15,FALSE)),"") ->  | P63: =IFERROR(VALUE(VLOOKUP(TEXT($A63,0),MEDIDAS!$A$2:$Q$50,16,FALSE)),"") ->  | Q63: =IFERROR(VLOOKUP(TEXT($A63,0),MEDIDAS!$A$2:$Q$50,17,FALSE),"") -> 
A64: 56 | B64: =IFERROR(VLOOKUP(TEXT($A64,0),MEDIDAS!$A$2:$Q$50,2,FALSE),"") ->  | C64: =IFERROR(VLOOKUP(TEXT($A64,0),MEDIDAS!$A$2:$Q$50,3,FALSE),"") ->  | D64: =IFERROR(VLOOKUP(TEXT($A64,0),MEDIDAS!$A$2:$Q$50,4,FALSE),"") ->  | E64: =IFERROR(VLOOKUP(TEXT($A64,0),MEDIDAS!$A$2:$Q$50,5,FALSE),"") ->  | F64: =IFERROR(VLOOKUP(TEXT($A64,0),MEDIDAS!$A$2:$Q$50,6,FALSE),"") ->  | G64: =IFERROR(VLOOKUP(TEXT($A64,0),MEDIDAS!$A$2:$Q$50,7,FALSE),"") ->  | H64: =IFERROR(VLOOKUP(TEXT($A64,0),MEDIDAS!$A$2:$Q$50,8,FALSE),"") ->  | I64: =IFERROR(VLOOKUP(TEXT($A64,0),MEDIDAS!$A$2:$Q$50,9,FALSE),"") ->  | J64: =IFERROR(VALUE(VLOOKUP(TEXT($A64,0),MEDIDAS!$A$2:$Q$50,10,FALSE)),"") ->  | K64: =IFERROR(VALUE(VLOOKUP(TEXT($A64,0),MEDIDAS!$A$2:$Q$50,11,FALSE)),"") ->  | L64: =IFERROR(VALUE(VLOOKUP(TEXT($A64,0),MEDIDAS!$A$2:$Q$50,12,FALSE)),"") ->  | M64: =IFERROR(VALUE(VLOOKUP(TEXT($A64,0),MEDIDAS!$A$2:$Q$50,13,FALSE)),"") ->  | N64: =IFERROR(VALUE(VLOOKUP(TEXT($A64,0),MEDIDAS!$A$2:$Q$50,14,FALSE)),"") ->  | O64: =IFERROR(VALUE(VLOOKUP(TEXT($A64,0),MEDIDAS!$A$2:$Q$50,15,FALSE)),"") ->  | P64: =IFERROR(VALUE(VLOOKUP(TEXT($A64,0),MEDIDAS!$A$2:$Q$50,16,FALSE)),"") ->  | Q64: =IFERROR(VLOOKUP(TEXT($A64,0),MEDIDAS!$A$2:$Q$50,17,FALSE),"") -> 
A65: 57 | B65: =IFERROR(VLOOKUP(TEXT($A65,0),MEDIDAS!$A$2:$Q$50,2,FALSE),"") ->  | C65: =IFERROR(VLOOKUP(TEXT($A65,0),MEDIDAS!$A$2:$Q$50,3,FALSE),"") ->  | D65: =IFERROR(VLOOKUP(TEXT($A65,0),MEDIDAS!$A$2:$Q$50,4,FALSE),"") ->  | E65: =IFERROR(VLOOKUP(TEXT($A65,0),MEDIDAS!$A$2:$Q$50,5,FALSE),"") ->  | F65: =IFERROR(VLOOKUP(TEXT($A65,0),MEDIDAS!$A$2:$Q$50,6,FALSE),"") ->  | G65: =IFERROR(VLOOKUP(TEXT($A65,0),MEDIDAS!$A$2:$Q$50,7,FALSE),"") ->  | H65: =IFERROR(VLOOKUP(TEXT($A65,0),MEDIDAS!$A$2:$Q$50,8,FALSE),"") ->  | I65: =IFERROR(VLOOKUP(TEXT($A65,0),MEDIDAS!$A$2:$Q$50,9,FALSE),"") ->  | J65: =IFERROR(VALUE(VLOOKUP(TEXT($A65,0),MEDIDAS!$A$2:$Q$50,10,FALSE)),"") ->  | K65: =IFERROR(VALUE(VLOOKUP(TEXT($A65,0),MEDIDAS!$A$2:$Q$50,11,FALSE)),"") ->  | L65: =IFERROR(VALUE(VLOOKUP(TEXT($A65,0),MEDIDAS!$A$2:$Q$50,12,FALSE)),"") ->  | M65: =IFERROR(VALUE(VLOOKUP(TEXT($A65,0),MEDIDAS!$A$2:$Q$50,13,FALSE)),"") ->  | N65: =IFERROR(VALUE(VLOOKUP(TEXT($A65,0),MEDIDAS!$A$2:$Q$50,14,FALSE)),"") ->  | O65: =IFERROR(VALUE(VLOOKUP(TEXT($A65,0),MEDIDAS!$A$2:$Q$50,15,FALSE)),"") ->  | P65: =IFERROR(VALUE(VLOOKUP(TEXT($A65,0),MEDIDAS!$A$2:$Q$50,16,FALSE)),"") ->  | Q65: =IFERROR(VLOOKUP(TEXT($A65,0),MEDIDAS!$A$2:$Q$50,17,FALSE),"") -> 
A66: 58 | B66: =IFERROR(VLOOKUP(TEXT($A66,0),MEDIDAS!$A$2:$Q$50,2,FALSE),"") ->  | C66: =IFERROR(VLOOKUP(TEXT($A66,0),MEDIDAS!$A$2:$Q$50,3,FALSE),"") ->  | D66: =IFERROR(VLOOKUP(TEXT($A66,0),MEDIDAS!$A$2:$Q$50,4,FALSE),"") ->  | E66: =IFERROR(VLOOKUP(TEXT($A66,0),MEDIDAS!$A$2:$Q$50,5,FALSE),"") ->  | F66: =IFERROR(VLOOKUP(TEXT($A66,0),MEDIDAS!$A$2:$Q$50,6,FALSE),"") ->  | G66: =IFERROR(VLOOKUP(TEXT($A66,0),MEDIDAS!$A$2:$Q$50,7,FALSE),"") ->  | H66: =IFERROR(VLOOKUP(TEXT($A66,0),MEDIDAS!$A$2:$Q$50,8,FALSE),"") ->  | I66: =IFERROR(VLOOKUP(TEXT($A66,0),MEDIDAS!$A$2:$Q$50,9,FALSE),"") ->  | J66: =IFERROR(VALUE(VLOOKUP(TEXT($A66,0),MEDIDAS!$A$2:$Q$50,10,FALSE)),"") ->  | K66: =IFERROR(VALUE(VLOOKUP(TEXT($A66,0),MEDIDAS!$A$2:$Q$50,11,FALSE)),"") ->  | L66: =IFERROR(VALUE(VLOOKUP(TEXT($A66,0),MEDIDAS!$A$2:$Q$50,12,FALSE)),"") ->  | M66: =IFERROR(VALUE(VLOOKUP(TEXT($A66,0),MEDIDAS!$A$2:$Q$50,13,FALSE)),"") ->  | N66: =IFERROR(VALUE(VLOOKUP(TEXT($A66,0),MEDIDAS!$A$2:$Q$50,14,FALSE)),"") ->  | O66: =IFERROR(VALUE(VLOOKUP(TEXT($A66,0),MEDIDAS!$A$2:$Q$50,15,FALSE)),"") ->  | P66: =IFERROR(VALUE(VLOOKUP(TEXT($A66,0),MEDIDAS!$A$2:$Q$50,16,FALSE)),"") ->  | Q66: =IFERROR(VLOOKUP(TEXT($A66,0),MEDIDAS!$A$2:$Q$50,17,FALSE),"") -> 
A67: 59 | B67: =IFERROR(VLOOKUP(TEXT($A67,0),MEDIDAS!$A$2:$Q$50,2,FALSE),"") ->  | C67: =IFERROR(VLOOKUP(TEXT($A67,0),MEDIDAS!$A$2:$Q$50,3,FALSE),"") ->  | D67: =IFERROR(VLOOKUP(TEXT($A67,0),MEDIDAS!$A$2:$Q$50,4,FALSE),"") ->  | E67: =IFERROR(VLOOKUP(TEXT($A67,0),MEDIDAS!$A$2:$Q$50,5,FALSE),"") ->  | F67: =IFERROR(VLOOKUP(TEXT($A67,0),MEDIDAS!$A$2:$Q$50,6,FALSE),"") ->  | G67: =IFERROR(VLOOKUP(TEXT($A67,0),MEDIDAS!$A$2:$Q$50,7,FALSE),"") ->  | H67: =IFERROR(VLOOKUP(TEXT($A67,0),MEDIDAS!$A$2:$Q$50,8,FALSE),"") ->  | I67: =IFERROR(VLOOKUP(TEXT($A67,0),MEDIDAS!$A$2:$Q$50,9,FALSE),"") ->  | J67: =IFERROR(VALUE(VLOOKUP(TEXT($A67,0),MEDIDAS!$A$2:$Q$50,10,FALSE)),"") ->  | K67: =IFERROR(VALUE(VLOOKUP(TEXT($A67,0),MEDIDAS!$A$2:$Q$50,11,FALSE)),"") ->  | L67: =IFERROR(VALUE(VLOOKUP(TEXT($A67,0),MEDIDAS!$A$2:$Q$50,12,FALSE)),"") ->  | M67: =IFERROR(VALUE(VLOOKUP(TEXT($A67,0),MEDIDAS!$A$2:$Q$50,13,FALSE)),"") ->  | N67: =IFERROR(VALUE(VLOOKUP(TEXT($A67,0),MEDIDAS!$A$2:$Q$50,14,FALSE)),"") ->  | O67: =IFERROR(VALUE(VLOOKUP(TEXT($A67,0),MEDIDAS!$A$2:$Q$50,15,FALSE)),"") ->  | P67: =IFERROR(VALUE(VLOOKUP(TEXT($A67,0),MEDIDAS!$A$2:$Q$50,16,FALSE)),"") ->  | Q67: =IFERROR(VLOOKUP(TEXT($A67,0),MEDIDAS!$A$2:$Q$50,17,FALSE),"") -> 
A68: 60 | B68: =IFERROR(VLOOKUP(TEXT($A68,0),MEDIDAS!$A$2:$Q$50,2,FALSE),"") ->  | C68: =IFERROR(VLOOKUP(TEXT($A68,0),MEDIDAS!$A$2:$Q$50,3,FALSE),"") ->  | D68: =IFERROR(VLOOKUP(TEXT($A68,0),MEDIDAS!$A$2:$Q$50,4,FALSE),"") ->  | E68: =IFERROR(VLOOKUP(TEXT($A68,0),MEDIDAS!$A$2:$Q$50,5,FALSE),"") ->  | F68: =IFERROR(VLOOKUP(TEXT($A68,0),MEDIDAS!$A$2:$Q$50,6,FALSE),"") ->  | G68: =IFERROR(VLOOKUP(TEXT($A68,0),MEDIDAS!$A$2:$Q$50,7,FALSE),"") ->  | H68: =IFERROR(VLOOKUP(TEXT($A68,0),MEDIDAS!$A$2:$Q$50,8,FALSE),"") ->  | I68: =IFERROR(VLOOKUP(TEXT($A68,0),MEDIDAS!$A$2:$Q$50,9,FALSE),"") ->  | J68: =IFERROR(VALUE(VLOOKUP(TEXT($A68,0),MEDIDAS!$A$2:$Q$50,10,FALSE)),"") ->  | K68: =IFERROR(VALUE(VLOOKUP(TEXT($A68,0),MEDIDAS!$A$2:$Q$50,11,FALSE)),"") ->  | L68: =IFERROR(VALUE(VLOOKUP(TEXT($A68,0),MEDIDAS!$A$2:$Q$50,12,FALSE)),"") ->  | M68: =IFERROR(VALUE(VLOOKUP(TEXT($A68,0),MEDIDAS!$A$2:$Q$50,13,FALSE)),"") ->  | N68: =IFERROR(VALUE(VLOOKUP(TEXT($A68,0),MEDIDAS!$A$2:$Q$50,14,FALSE)),"") ->  | O68: =IFERROR(VALUE(VLOOKUP(TEXT($A68,0),MEDIDAS!$A$2:$Q$50,15,FALSE)),"") ->  | P68: =IFERROR(VALUE(VLOOKUP(TEXT($A68,0),MEDIDAS!$A$2:$Q$50,16,FALSE)),"") ->  | Q68: =IFERROR(VLOOKUP(TEXT($A68,0),MEDIDAS!$A$2:$Q$50,17,FALSE),"") -> 
A69: 61 | B69: =IFERROR(VLOOKUP(TEXT($A69,0),MEDIDAS!$A$2:$Q$50,2,FALSE),"") ->  | C69: =IFERROR(VLOOKUP(TEXT($A69,0),MEDIDAS!$A$2:$Q$50,3,FALSE),"") ->  | D69: =IFERROR(VLOOKUP(TEXT($A69,0),MEDIDAS!$A$2:$Q$50,4,FALSE),"") ->  | E69: =IFERROR(VLOOKUP(TEXT($A69,0),MEDIDAS!$A$2:$Q$50,5,FALSE),"") ->  | F69: =IFERROR(VLOOKUP(TEXT($A69,0),MEDIDAS!$A$2:$Q$50,6,FALSE),"") ->  | G69: =IFERROR(VLOOKUP(TEXT($A69,0),MEDIDAS!$A$2:$Q$50,7,FALSE),"") ->  | H69: =IFERROR(VLOOKUP(TEXT($A69,0),MEDIDAS!$A$2:$Q$50,8,FALSE),"") ->  | I69: =IFERROR(VLOOKUP(TEXT($A69,0),MEDIDAS!$A$2:$Q$50,9,FALSE),"") ->  | J69: =IFERROR(VALUE(VLOOKUP(TEXT($A69,0),MEDIDAS!$A$2:$Q$50,10,FALSE)),"") ->  | K69: =IFERROR(VALUE(VLOOKUP(TEXT($A69,0),MEDIDAS!$A$2:$Q$50,11,FALSE)),"") ->  | L69: =IFERROR(VALUE(VLOOKUP(TEXT($A69,0),MEDIDAS!$A$2:$Q$50,12,FALSE)),"") ->  | M69: =IFERROR(VALUE(VLOOKUP(TEXT($A69,0),MEDIDAS!$A$2:$Q$50,13,FALSE)),"") ->  | N69: =IFERROR(VALUE(VLOOKUP(TEXT($A69,0),MEDIDAS!$A$2:$Q$50,14,FALSE)),"") ->  | O69: =IFERROR(VALUE(VLOOKUP(TEXT($A69,0),MEDIDAS!$A$2:$Q$50,15,FALSE)),"") ->  | P69: =IFERROR(VALUE(VLOOKUP(TEXT($A69,0),MEDIDAS!$A$2:$Q$50,16,FALSE)),"") ->  | Q69: =IFERROR(VLOOKUP(TEXT($A69,0),MEDIDAS!$A$2:$Q$50,17,FALSE),"") -> 
A70: 62 | B70: =IFERROR(VLOOKUP(TEXT($A70,0),MEDIDAS!$A$2:$Q$50,2,FALSE),"") ->  | C70: =IFERROR(VLOOKUP(TEXT($A70,0),MEDIDAS!$A$2:$Q$50,3,FALSE),"") ->  | D70: =IFERROR(VLOOKUP(TEXT($A70,0),MEDIDAS!$A$2:$Q$50,4,FALSE),"") ->  | E70: =IFERROR(VLOOKUP(TEXT($A70,0),MEDIDAS!$A$2:$Q$50,5,FALSE),"") ->  | F70: =IFERROR(VLOOKUP(TEXT($A70,0),MEDIDAS!$A$2:$Q$50,6,FALSE),"") ->  | G70: =IFERROR(VLOOKUP(TEXT($A70,0),MEDIDAS!$A$2:$Q$50,7,FALSE),"") ->  | H70: =IFERROR(VLOOKUP(TEXT($A70,0),MEDIDAS!$A$2:$Q$50,8,FALSE),"") ->  | I70: =IFERROR(VLOOKUP(TEXT($A70,0),MEDIDAS!$A$2:$Q$50,9,FALSE),"") ->  | J70: =IFERROR(VALUE(VLOOKUP(TEXT($A70,0),MEDIDAS!$A$2:$Q$50,10,FALSE)),"") ->  | K70: =IFERROR(VALUE(VLOOKUP(TEXT($A70,0),MEDIDAS!$A$2:$Q$50,11,FALSE)),"") ->  | L70: =IFERROR(VALUE(VLOOKUP(TEXT($A70,0),MEDIDAS!$A$2:$Q$50,12,FALSE)),"") ->  | M70: =IFERROR(VALUE(VLOOKUP(TEXT($A70,0),MEDIDAS!$A$2:$Q$50,13,FALSE)),"") ->  | N70: =IFERROR(VALUE(VLOOKUP(TEXT($A70,0),MEDIDAS!$A$2:$Q$50,14,FALSE)),"") ->  | O70: =IFERROR(VALUE(VLOOKUP(TEXT($A70,0),MEDIDAS!$A$2:$Q$50,15,FALSE)),"") ->  | P70: =IFERROR(VALUE(VLOOKUP(TEXT($A70,0),MEDIDAS!$A$2:$Q$50,16,FALSE)),"") ->  | Q70: =IFERROR(VLOOKUP(TEXT($A70,0),MEDIDAS!$A$2:$Q$50,17,FALSE),"") -> 
A71: 63 | B71: =IFERROR(VLOOKUP(TEXT($A71,0),MEDIDAS!$A$2:$Q$50,2,FALSE),"") ->  | C71: =IFERROR(VLOOKUP(TEXT($A71,0),MEDIDAS!$A$2:$Q$50,3,FALSE),"") ->  | D71: =IFERROR(VLOOKUP(TEXT($A71,0),MEDIDAS!$A$2:$Q$50,4,FALSE),"") ->  | E71: =IFERROR(VLOOKUP(TEXT($A71,0),MEDIDAS!$A$2:$Q$50,5,FALSE),"") ->  | F71: =IFERROR(VLOOKUP(TEXT($A71,0),MEDIDAS!$A$2:$Q$50,6,FALSE),"") ->  | G71: =IFERROR(VLOOKUP(TEXT($A71,0),MEDIDAS!$A$2:$Q$50,7,FALSE),"") ->  | H71: =IFERROR(VLOOKUP(TEXT($A71,0),MEDIDAS!$A$2:$Q$50,8,FALSE),"") ->  | I71: =IFERROR(VLOOKUP(TEXT($A71,0),MEDIDAS!$A$2:$Q$50,9,FALSE),"") ->  | J71: =IFERROR(VALUE(VLOOKUP(TEXT($A71,0),MEDIDAS!$A$2:$Q$50,10,FALSE)),"") ->  | K71: =IFERROR(VALUE(VLOOKUP(TEXT($A71,0),MEDIDAS!$A$2:$Q$50,11,FALSE)),"") ->  | L71: =IFERROR(VALUE(VLOOKUP(TEXT($A71,0),MEDIDAS!$A$2:$Q$50,12,FALSE)),"") ->  | M71: =IFERROR(VALUE(VLOOKUP(TEXT($A71,0),MEDIDAS!$A$2:$Q$50,13,FALSE)),"") ->  | N71: =IFERROR(VALUE(VLOOKUP(TEXT($A71,0),MEDIDAS!$A$2:$Q$50,14,FALSE)),"") ->  | O71: =IFERROR(VALUE(VLOOKUP(TEXT($A71,0),MEDIDAS!$A$2:$Q$50,15,FALSE)),"") ->  | P71: =IFERROR(VALUE(VLOOKUP(TEXT($A71,0),MEDIDAS!$A$2:$Q$50,16,FALSE)),"") ->  | Q71: =IFERROR(VLOOKUP(TEXT($A71,0),MEDIDAS!$A$2:$Q$50,17,FALSE),"") -> 
A72: 64 | B72: =IFERROR(VLOOKUP(TEXT($A72,0),MEDIDAS!$A$2:$Q$50,2,FALSE),"") ->  | C72: =IFERROR(VLOOKUP(TEXT($A72,0),MEDIDAS!$A$2:$Q$50,3,FALSE),"") ->  | D72: =IFERROR(VLOOKUP(TEXT($A72,0),MEDIDAS!$A$2:$Q$50,4,FALSE),"") ->  | E72: =IFERROR(VLOOKUP(TEXT($A72,0),MEDIDAS!$A$2:$Q$50,5,FALSE),"") ->  | F72: =IFERROR(VLOOKUP(TEXT($A72,0),MEDIDAS!$A$2:$Q$50,6,FALSE),"") ->  | G72: =IFERROR(VLOOKUP(TEXT($A72,0),MEDIDAS!$A$2:$Q$50,7,FALSE),"") ->  | H72: =IFERROR(VLOOKUP(TEXT($A72,0),MEDIDAS!$A$2:$Q$50,8,FALSE),"") ->  | I72: =IFERROR(VLOOKUP(TEXT($A72,0),MEDIDAS!$A$2:$Q$50,9,FALSE),"") ->  | J72: =IFERROR(VALUE(VLOOKUP(TEXT($A72,0),MEDIDAS!$A$2:$Q$50,10,FALSE)),"") ->  | K72: =IFERROR(VALUE(VLOOKUP(TEXT($A72,0),MEDIDAS!$A$2:$Q$50,11,FALSE)),"") ->  | L72: =IFERROR(VALUE(VLOOKUP(TEXT($A72,0),MEDIDAS!$A$2:$Q$50,12,FALSE)),"") ->  | M72: =IFERROR(VALUE(VLOOKUP(TEXT($A72,0),MEDIDAS!$A$2:$Q$50,13,FALSE)),"") ->  | N72: =IFERROR(VALUE(VLOOKUP(TEXT($A72,0),MEDIDAS!$A$2:$Q$50,14,FALSE)),"") ->  | O72: =IFERROR(VALUE(VLOOKUP(TEXT($A72,0),MEDIDAS!$A$2:$Q$50,15,FALSE)),"") ->  | P72: =IFERROR(VALUE(VLOOKUP(TEXT($A72,0),MEDIDAS!$A$2:$Q$50,16,FALSE)),"") ->  | Q72: =IFERROR(VLOOKUP(TEXT($A72,0),MEDIDAS!$A$2:$Q$50,17,FALSE),"") -> 
A73: 65 | B73: =IFERROR(VLOOKUP(TEXT($A73,0),MEDIDAS!$A$2:$Q$50,2,FALSE),"") ->  | C73: =IFERROR(VLOOKUP(TEXT($A73,0),MEDIDAS!$A$2:$Q$50,3,FALSE),"") ->  | D73: =IFERROR(VLOOKUP(TEXT($A73,0),MEDIDAS!$A$2:$Q$50,4,FALSE),"") ->  | E73: =IFERROR(VLOOKUP(TEXT($A73,0),MEDIDAS!$A$2:$Q$50,5,FALSE),"") ->  | F73: =IFERROR(VLOOKUP(TEXT($A73,0),MEDIDAS!$A$2:$Q$50,6,FALSE),"") ->  | G73: =IFERROR(VLOOKUP(TEXT($A73,0),MEDIDAS!$A$2:$Q$50,7,FALSE),"") ->  | H73: =IFERROR(VLOOKUP(TEXT($A73,0),MEDIDAS!$A$2:$Q$50,8,FALSE),"") ->  | I73: =IFERROR(VLOOKUP(TEXT($A73,0),MEDIDAS!$A$2:$Q$50,9,FALSE),"") ->  | J73: =IFERROR(VALUE(VLOOKUP(TEXT($A73,0),MEDIDAS!$A$2:$Q$50,10,FALSE)),"") ->  | K73: =IFERROR(VALUE(VLOOKUP(TEXT($A73,0),MEDIDAS!$A$2:$Q$50,11,FALSE)),"") ->  | L73: =IFERROR(VALUE(VLOOKUP(TEXT($A73,0),MEDIDAS!$A$2:$Q$50,12,FALSE)),"") ->  | M73: =IFERROR(VALUE(VLOOKUP(TEXT($A73,0),MEDIDAS!$A$2:$Q$50,13,FALSE)),"") ->  | N73: =IFERROR(VALUE(VLOOKUP(TEXT($A73,0),MEDIDAS!$A$2:$Q$50,14,FALSE)),"") ->  | O73: =IFERROR(VALUE(VLOOKUP(TEXT($A73,0),MEDIDAS!$A$2:$Q$50,15,FALSE)),"") ->  | P73: =IFERROR(VALUE(VLOOKUP(TEXT($A73,0),MEDIDAS!$A$2:$Q$50,16,FALSE)),"") ->  | Q73: =IFERROR(VLOOKUP(TEXT($A73,0),MEDIDAS!$A$2:$Q$50,17,FALSE),"") -> 
A74: 66 | B74: =IFERROR(VLOOKUP(TEXT($A74,0),MEDIDAS!$A$2:$Q$50,2,FALSE),"") ->  | C74: =IFERROR(VLOOKUP(TEXT($A74,0),MEDIDAS!$A$2:$Q$50,3,FALSE),"") ->  | D74: =IFERROR(VLOOKUP(TEXT($A74,0),MEDIDAS!$A$2:$Q$50,4,FALSE),"") ->  | E74: =IFERROR(VLOOKUP(TEXT($A74,0),MEDIDAS!$A$2:$Q$50,5,FALSE),"") ->  | F74: =IFERROR(VLOOKUP(TEXT($A74,0),MEDIDAS!$A$2:$Q$50,6,FALSE),"") ->  | G74: =IFERROR(VLOOKUP(TEXT($A74,0),MEDIDAS!$A$2:$Q$50,7,FALSE),"") ->  | H74: =IFERROR(VLOOKUP(TEXT($A74,0),MEDIDAS!$A$2:$Q$50,8,FALSE),"") ->  | I74: =IFERROR(VLOOKUP(TEXT($A74,0),MEDIDAS!$A$2:$Q$50,9,FALSE),"") ->  | J74: =IFERROR(VALUE(VLOOKUP(TEXT($A74,0),MEDIDAS!$A$2:$Q$50,10,FALSE)),"") ->  | K74: =IFERROR(VALUE(VLOOKUP(TEXT($A74,0),MEDIDAS!$A$2:$Q$50,11,FALSE)),"") ->  | L74: =IFERROR(VALUE(VLOOKUP(TEXT($A74,0),MEDIDAS!$A$2:$Q$50,12,FALSE)),"") ->  | M74: =IFERROR(VALUE(VLOOKUP(TEXT($A74,0),MEDIDAS!$A$2:$Q$50,13,FALSE)),"") ->  | N74: =IFERROR(VALUE(VLOOKUP(TEXT($A74,0),MEDIDAS!$A$2:$Q$50,14,FALSE)),"") ->  | O74: =IFERROR(VALUE(VLOOKUP(TEXT($A74,0),MEDIDAS!$A$2:$Q$50,15,FALSE)),"") ->  | P74: =IFERROR(VALUE(VLOOKUP(TEXT($A74,0),MEDIDAS!$A$2:$Q$50,16,FALSE)),"") ->  | Q74: =IFERROR(VLOOKUP(TEXT($A74,0),MEDIDAS!$A$2:$Q$50,17,FALSE),"") -> 
A75: 67 | B75: =IFERROR(VLOOKUP(TEXT($A75,0),MEDIDAS!$A$2:$Q$50,2,FALSE),"") ->  | C75: =IFERROR(VLOOKUP(TEXT($A75,0),MEDIDAS!$A$2:$Q$50,3,FALSE),"") ->  | D75: =IFERROR(VLOOKUP(TEXT($A75,0),MEDIDAS!$A$2:$Q$50,4,FALSE),"") ->  | E75: =IFERROR(VLOOKUP(TEXT($A75,0),MEDIDAS!$A$2:$Q$50,5,FALSE),"") ->  | F75: =IFERROR(VLOOKUP(TEXT($A75,0),MEDIDAS!$A$2:$Q$50,6,FALSE),"") ->  | G75: =IFERROR(VLOOKUP(TEXT($A75,0),MEDIDAS!$A$2:$Q$50,7,FALSE),"") ->  | H75: =IFERROR(VLOOKUP(TEXT($A75,0),MEDIDAS!$A$2:$Q$50,8,FALSE),"") ->  | I75: =IFERROR(VLOOKUP(TEXT($A75,0),MEDIDAS!$A$2:$Q$50,9,FALSE),"") ->  | J75: =IFERROR(VALUE(VLOOKUP(TEXT($A75,0),MEDIDAS!$A$2:$Q$50,10,FALSE)),"") ->  | K75: =IFERROR(VALUE(VLOOKUP(TEXT($A75,0),MEDIDAS!$A$2:$Q$50,11,FALSE)),"") ->  | L75: =IFERROR(VALUE(VLOOKUP(TEXT($A75,0),MEDIDAS!$A$2:$Q$50,12,FALSE)),"") ->  | M75: =IFERROR(VALUE(VLOOKUP(TEXT($A75,0),MEDIDAS!$A$2:$Q$50,13,FALSE)),"") ->  | N75: =IFERROR(VALUE(VLOOKUP(TEXT($A75,0),MEDIDAS!$A$2:$Q$50,14,FALSE)),"") ->  | O75: =IFERROR(VALUE(VLOOKUP(TEXT($A75,0),MEDIDAS!$A$2:$Q$50,15,FALSE)),"") ->  | P75: =IFERROR(VALUE(VLOOKUP(TEXT($A75,0),MEDIDAS!$A$2:$Q$50,16,FALSE)),"") ->  | Q75: =IFERROR(VLOOKUP(TEXT($A75,0),MEDIDAS!$A$2:$Q$50,17,FALSE),"") -> 
A76: 68 | B76: =IFERROR(VLOOKUP(TEXT($A76,0),MEDIDAS!$A$2:$Q$50,2,FALSE),"") ->  | C76: =IFERROR(VLOOKUP(TEXT($A76,0),MEDIDAS!$A$2:$Q$50,3,FALSE),"") ->  | D76: =IFERROR(VLOOKUP(TEXT($A76,0),MEDIDAS!$A$2:$Q$50,4,FALSE),"") ->  | E76: =IFERROR(VLOOKUP(TEXT($A76,0),MEDIDAS!$A$2:$Q$50,5,FALSE),"") ->  | F76: =IFERROR(VLOOKUP(TEXT($A76,0),MEDIDAS!$A$2:$Q$50,6,FALSE),"") ->  | G76: =IFERROR(VLOOKUP(TEXT($A76,0),MEDIDAS!$A$2:$Q$50,7,FALSE),"") ->  | H76: =IFERROR(VLOOKUP(TEXT($A76,0),MEDIDAS!$A$2:$Q$50,8,FALSE),"") ->  | I76: =IFERROR(VLOOKUP(TEXT($A76,0),MEDIDAS!$A$2:$Q$50,9,FALSE),"") ->  | J76: =IFERROR(VALUE(VLOOKUP(TEXT($A76,0),MEDIDAS!$A$2:$Q$50,10,FALSE)),"") ->  | K76: =IFERROR(VALUE(VLOOKUP(TEXT($A76,0),MEDIDAS!$A$2:$Q$50,11,FALSE)),"") ->  | L76: =IFERROR(VALUE(VLOOKUP(TEXT($A76,0),MEDIDAS!$A$2:$Q$50,12,FALSE)),"") ->  | M76: =IFERROR(VALUE(VLOOKUP(TEXT($A76,0),MEDIDAS!$A$2:$Q$50,13,FALSE)),"") ->  | N76: =IFERROR(VALUE(VLOOKUP(TEXT($A76,0),MEDIDAS!$A$2:$Q$50,14,FALSE)),"") ->  | O76: =IFERROR(VALUE(VLOOKUP(TEXT($A76,0),MEDIDAS!$A$2:$Q$50,15,FALSE)),"") ->  | P76: =IFERROR(VALUE(VLOOKUP(TEXT($A76,0),MEDIDAS!$A$2:$Q$50,16,FALSE)),"") ->  | Q76: =IFERROR(VLOOKUP(TEXT($A76,0),MEDIDAS!$A$2:$Q$50,17,FALSE),"") -> 
A77: 69 | B77: =IFERROR(VLOOKUP(TEXT($A77,0),MEDIDAS!$A$2:$Q$50,2,FALSE),"") ->  | C77: =IFERROR(VLOOKUP(TEXT($A77,0),MEDIDAS!$A$2:$Q$50,3,FALSE),"") ->  | D77: =IFERROR(VLOOKUP(TEXT($A77,0),MEDIDAS!$A$2:$Q$50,4,FALSE),"") ->  | E77: =IFERROR(VLOOKUP(TEXT($A77,0),MEDIDAS!$A$2:$Q$50,5,FALSE),"") ->  | F77: =IFERROR(VLOOKUP(TEXT($A77,0),MEDIDAS!$A$2:$Q$50,6,FALSE),"") ->  | G77: =IFERROR(VLOOKUP(TEXT($A77,0),MEDIDAS!$A$2:$Q$50,7,FALSE),"") ->  | H77: =IFERROR(VLOOKUP(TEXT($A77,0),MEDIDAS!$A$2:$Q$50,8,FALSE),"") ->  | I77: =IFERROR(VLOOKUP(TEXT($A77,0),MEDIDAS!$A$2:$Q$50,9,FALSE),"") ->  | J77: =IFERROR(VALUE(VLOOKUP(TEXT($A77,0),MEDIDAS!$A$2:$Q$50,10,FALSE)),"") ->  | K77: =IFERROR(VALUE(VLOOKUP(TEXT($A77,0),MEDIDAS!$A$2:$Q$50,11,FALSE)),"") ->  | L77: =IFERROR(VALUE(VLOOKUP(TEXT($A77,0),MEDIDAS!$A$2:$Q$50,12,FALSE)),"") ->  | M77: =IFERROR(VALUE(VLOOKUP(TEXT($A77,0),MEDIDAS!$A$2:$Q$50,13,FALSE)),"") ->  | N77: =IFERROR(VALUE(VLOOKUP(TEXT($A77,0),MEDIDAS!$A$2:$Q$50,14,FALSE)),"") ->  | O77: =IFERROR(VALUE(VLOOKUP(TEXT($A77,0),MEDIDAS!$A$2:$Q$50,15,FALSE)),"") ->  | P77: =IFERROR(VALUE(VLOOKUP(TEXT($A77,0),MEDIDAS!$A$2:$Q$50,16,FALSE)),"") ->  | Q77: =IFERROR(VLOOKUP(TEXT($A77,0),MEDIDAS!$A$2:$Q$50,17,FALSE),"") -> 
A78: 70 | B78: =IFERROR(VLOOKUP(TEXT($A78,0),MEDIDAS!$A$2:$Q$50,2,FALSE),"") ->  | C78: =IFERROR(VLOOKUP(TEXT($A78,0),MEDIDAS!$A$2:$Q$50,3,FALSE),"") ->  | D78: =IFERROR(VLOOKUP(TEXT($A78,0),MEDIDAS!$A$2:$Q$50,4,FALSE),"") ->  | E78: =IFERROR(VLOOKUP(TEXT($A78,0),MEDIDAS!$A$2:$Q$50,5,FALSE),"") ->  | F78: =IFERROR(VLOOKUP(TEXT($A78,0),MEDIDAS!$A$2:$Q$50,6,FALSE),"") ->  | G78: =IFERROR(VLOOKUP(TEXT($A78,0),MEDIDAS!$A$2:$Q$50,7,FALSE),"") ->  | H78: =IFERROR(VLOOKUP(TEXT($A78,0),MEDIDAS!$A$2:$Q$50,8,FALSE),"") ->  | I78: =IFERROR(VLOOKUP(TEXT($A78,0),MEDIDAS!$A$2:$Q$50,9,FALSE),"") ->  | J78: =IFERROR(VALUE(VLOOKUP(TEXT($A78,0),MEDIDAS!$A$2:$Q$50,10,FALSE)),"") ->  | K78: =IFERROR(VALUE(VLOOKUP(TEXT($A78,0),MEDIDAS!$A$2:$Q$50,11,FALSE)),"") ->  | L78: =IFERROR(VALUE(VLOOKUP(TEXT($A78,0),MEDIDAS!$A$2:$Q$50,12,FALSE)),"") ->  | M78: =IFERROR(VALUE(VLOOKUP(TEXT($A78,0),MEDIDAS!$A$2:$Q$50,13,FALSE)),"") ->  | N78: =IFERROR(VALUE(VLOOKUP(TEXT($A78,0),MEDIDAS!$A$2:$Q$50,14,FALSE)),"") ->  | O78: =IFERROR(VALUE(VLOOKUP(TEXT($A78,0),MEDIDAS!$A$2:$Q$50,15,FALSE)),"") ->  | P78: =IFERROR(VALUE(VLOOKUP(TEXT($A78,0),MEDIDAS!$A$2:$Q$50,16,FALSE)),"") ->  | Q78: =IFERROR(VLOOKUP(TEXT($A78,0),MEDIDAS!$A$2:$Q$50,17,FALSE),"") -> 
A79: 71 | B79: =IFERROR(VLOOKUP(TEXT($A79,0),MEDIDAS!$A$2:$Q$50,2,FALSE),"") ->  | C79: =IFERROR(VLOOKUP(TEXT($A79,0),MEDIDAS!$A$2:$Q$50,3,FALSE),"") ->  | D79: =IFERROR(VLOOKUP(TEXT($A79,0),MEDIDAS!$A$2:$Q$50,4,FALSE),"") ->  | E79: =IFERROR(VLOOKUP(TEXT($A79,0),MEDIDAS!$A$2:$Q$50,5,FALSE),"") ->  | F79: =IFERROR(VLOOKUP(TEXT($A79,0),MEDIDAS!$A$2:$Q$50,6,FALSE),"") ->  | G79: =IFERROR(VLOOKUP(TEXT($A79,0),MEDIDAS!$A$2:$Q$50,7,FALSE),"") ->  | H79: =IFERROR(VLOOKUP(TEXT($A79,0),MEDIDAS!$A$2:$Q$50,8,FALSE),"") ->  | I79: =IFERROR(VLOOKUP(TEXT($A79,0),MEDIDAS!$A$2:$Q$50,9,FALSE),"") ->  | J79: =IFERROR(VALUE(VLOOKUP(TEXT($A79,0),MEDIDAS!$A$2:$Q$50,10,FALSE)),"") ->  | K79: =IFERROR(VALUE(VLOOKUP(TEXT($A79,0),MEDIDAS!$A$2:$Q$50,11,FALSE)),"") ->  | L79: =IFERROR(VALUE(VLOOKUP(TEXT($A79,0),MEDIDAS!$A$2:$Q$50,12,FALSE)),"") ->  | M79: =IFERROR(VALUE(VLOOKUP(TEXT($A79,0),MEDIDAS!$A$2:$Q$50,13,FALSE)),"") ->  | N79: =IFERROR(VALUE(VLOOKUP(TEXT($A79,0),MEDIDAS!$A$2:$Q$50,14,FALSE)),"") ->  | O79: =IFERROR(VALUE(VLOOKUP(TEXT($A79,0),MEDIDAS!$A$2:$Q$50,15,FALSE)),"") ->  | P79: =IFERROR(VALUE(VLOOKUP(TEXT($A79,0),MEDIDAS!$A$2:$Q$50,16,FALSE)),"") ->  | Q79: =IFERROR(VLOOKUP(TEXT($A79,0),MEDIDAS!$A$2:$Q$50,17,FALSE),"") -> 
A80: 72 | B80: =IFERROR(VLOOKUP(TEXT($A80,0),MEDIDAS!$A$2:$Q$50,2,FALSE),"") ->  | C80: =IFERROR(VLOOKUP(TEXT($A80,0),MEDIDAS!$A$2:$Q$50,3,FALSE),"") ->  | D80: =IFERROR(VLOOKUP(TEXT($A80,0),MEDIDAS!$A$2:$Q$50,4,FALSE),"") ->  | E80: =IFERROR(VLOOKUP(TEXT($A80,0),MEDIDAS!$A$2:$Q$50,5,FALSE),"") ->  | F80: =IFERROR(VLOOKUP(TEXT($A80,0),MEDIDAS!$A$2:$Q$50,6,FALSE),"") ->  | G80: =IFERROR(VLOOKUP(TEXT($A80,0),MEDIDAS!$A$2:$Q$50,7,FALSE),"") ->  | H80: =IFERROR(VLOOKUP(TEXT($A80,0),MEDIDAS!$A$2:$Q$50,8,FALSE),"") ->  | I80: =IFERROR(VLOOKUP(TEXT($A80,0),MEDIDAS!$A$2:$Q$50,9,FALSE),"") ->  | J80: =IFERROR(VALUE(VLOOKUP(TEXT($A80,0),MEDIDAS!$A$2:$Q$50,10,FALSE)),"") ->  | K80: =IFERROR(VALUE(VLOOKUP(TEXT($A80,0),MEDIDAS!$A$2:$Q$50,11,FALSE)),"") ->  | L80: =IFERROR(VALUE(VLOOKUP(TEXT($A80,0),MEDIDAS!$A$2:$Q$50,12,FALSE)),"") ->  | M80: =IFERROR(VALUE(VLOOKUP(TEXT($A80,0),MEDIDAS!$A$2:$Q$50,13,FALSE)),"") ->  | N80: =IFERROR(VALUE(VLOOKUP(TEXT($A80,0),MEDIDAS!$A$2:$Q$50,14,FALSE)),"") ->  | O80: =IFERROR(VALUE(VLOOKUP(TEXT($A80,0),MEDIDAS!$A$2:$Q$50,15,FALSE)),"") ->  | P80: =IFERROR(VALUE(VLOOKUP(TEXT($A80,0),MEDIDAS!$A$2:$Q$50,16,FALSE)),"") ->  | Q80: =IFERROR(VLOOKUP(TEXT($A80,0),MEDIDAS!$A$2:$Q$50,17,FALSE),"") -> 
A81: 73 | B81: =IFERROR(VLOOKUP(TEXT($A81,0),MEDIDAS!$A$2:$Q$50,2,FALSE),"") ->  | C81: =IFERROR(VLOOKUP(TEXT($A81,0),MEDIDAS!$A$2:$Q$50,3,FALSE),"") ->  | D81: =IFERROR(VLOOKUP(TEXT($A81,0),MEDIDAS!$A$2:$Q$50,4,FALSE),"") ->  | E81: =IFERROR(VLOOKUP(TEXT($A81,0),MEDIDAS!$A$2:$Q$50,5,FALSE),"") ->  | F81: =IFERROR(VLOOKUP(TEXT($A81,0),MEDIDAS!$A$2:$Q$50,6,FALSE),"") ->  | G81: =IFERROR(VLOOKUP(TEXT($A81,0),MEDIDAS!$A$2:$Q$50,7,FALSE),"") ->  | H81: =IFERROR(VLOOKUP(TEXT($A81,0),MEDIDAS!$A$2:$Q$50,8,FALSE),"") ->  | I81: =IFERROR(VLOOKUP(TEXT($A81,0),MEDIDAS!$A$2:$Q$50,9,FALSE),"") ->  | J81: =IFERROR(VALUE(VLOOKUP(TEXT($A81,0),MEDIDAS!$A$2:$Q$50,10,FALSE)),"") ->  | K81: =IFERROR(VALUE(VLOOKUP(TEXT($A81,0),MEDIDAS!$A$2:$Q$50,11,FALSE)),"") ->  | L81: =IFERROR(VALUE(VLOOKUP(TEXT($A81,0),MEDIDAS!$A$2:$Q$50,12,FALSE)),"") ->  | M81: =IFERROR(VALUE(VLOOKUP(TEXT($A81,0),MEDIDAS!$A$2:$Q$50,13,FALSE)),"") ->  | N81: =IFERROR(VALUE(VLOOKUP(TEXT($A81,0),MEDIDAS!$A$2:$Q$50,14,FALSE)),"") ->  | O81: =IFERROR(VALUE(VLOOKUP(TEXT($A81,0),MEDIDAS!$A$2:$Q$50,15,FALSE)),"") ->  | P81: =IFERROR(VALUE(VLOOKUP(TEXT($A81,0),MEDIDAS!$A$2:$Q$50,16,FALSE)),"") ->  | Q81: =IFERROR(VLOOKUP(TEXT($A81,0),MEDIDAS!$A$2:$Q$50,17,FALSE),"") -> 
A82: 74 | B82: =IFERROR(VLOOKUP(TEXT($A82,0),MEDIDAS!$A$2:$Q$50,2,FALSE),"") ->  | C82: =IFERROR(VLOOKUP(TEXT($A82,0),MEDIDAS!$A$2:$Q$50,3,FALSE),"") ->  | D82: =IFERROR(VLOOKUP(TEXT($A82,0),MEDIDAS!$A$2:$Q$50,4,FALSE),"") ->  | E82: =IFERROR(VLOOKUP(TEXT($A82,0),MEDIDAS!$A$2:$Q$50,5,FALSE),"") ->  | F82: =IFERROR(VLOOKUP(TEXT($A82,0),MEDIDAS!$A$2:$Q$50,6,FALSE),"") ->  | G82: =IFERROR(VLOOKUP(TEXT($A82,0),MEDIDAS!$A$2:$Q$50,7,FALSE),"") ->  | H82: =IFERROR(VLOOKUP(TEXT($A82,0),MEDIDAS!$A$2:$Q$50,8,FALSE),"") ->  | I82: =IFERROR(VLOOKUP(TEXT($A82,0),MEDIDAS!$A$2:$Q$50,9,FALSE),"") ->  | J82: =IFERROR(VALUE(VLOOKUP(TEXT($A82,0),MEDIDAS!$A$2:$Q$50,10,FALSE)),"") ->  | K82: =IFERROR(VALUE(VLOOKUP(TEXT($A82,0),MEDIDAS!$A$2:$Q$50,11,FALSE)),"") ->  | L82: =IFERROR(VALUE(VLOOKUP(TEXT($A82,0),MEDIDAS!$A$2:$Q$50,12,FALSE)),"") ->  | M82: =IFERROR(VALUE(VLOOKUP(TEXT($A82,0),MEDIDAS!$A$2:$Q$50,13,FALSE)),"") ->  | N82: =IFERROR(VALUE(VLOOKUP(TEXT($A82,0),MEDIDAS!$A$2:$Q$50,14,FALSE)),"") ->  | O82: =IFERROR(VALUE(VLOOKUP(TEXT($A82,0),MEDIDAS!$A$2:$Q$50,15,FALSE)),"") ->  | P82: =IFERROR(VALUE(VLOOKUP(TEXT($A82,0),MEDIDAS!$A$2:$Q$50,16,FALSE)),"") ->  | Q82: =IFERROR(VLOOKUP(TEXT($A82,0),MEDIDAS!$A$2:$Q$50,17,FALSE),"") -> 
A83: 75 | B83: =IFERROR(VLOOKUP(TEXT($A83,0),MEDIDAS!$A$2:$Q$50,2,FALSE),"") ->  | C83: =IFERROR(VLOOKUP(TEXT($A83,0),MEDIDAS!$A$2:$Q$50,3,FALSE),"") ->  | D83: =IFERROR(VLOOKUP(TEXT($A83,0),MEDIDAS!$A$2:$Q$50,4,FALSE),"") ->  | E83: =IFERROR(VLOOKUP(TEXT($A83,0),MEDIDAS!$A$2:$Q$50,5,FALSE),"") ->  | F83: =IFERROR(VLOOKUP(TEXT($A83,0),MEDIDAS!$A$2:$Q$50,6,FALSE),"") ->  | G83: =IFERROR(VLOOKUP(TEXT($A83,0),MEDIDAS!$A$2:$Q$50,7,FALSE),"") ->  | H83: =IFERROR(VLOOKUP(TEXT($A83,0),MEDIDAS!$A$2:$Q$50,8,FALSE),"") ->  | I83: =IFERROR(VLOOKUP(TEXT($A83,0),MEDIDAS!$A$2:$Q$50,9,FALSE),"") ->  | J83: =IFERROR(VALUE(VLOOKUP(TEXT($A83,0),MEDIDAS!$A$2:$Q$50,10,FALSE)),"") ->  | K83: =IFERROR(VALUE(VLOOKUP(TEXT($A83,0),MEDIDAS!$A$2:$Q$50,11,FALSE)),"") ->  | L83: =IFERROR(VALUE(VLOOKUP(TEXT($A83,0),MEDIDAS!$A$2:$Q$50,12,FALSE)),"") ->  | M83: =IFERROR(VALUE(VLOOKUP(TEXT($A83,0),MEDIDAS!$A$2:$Q$50,13,FALSE)),"") ->  | N83: =IFERROR(VALUE(VLOOKUP(TEXT($A83,0),MEDIDAS!$A$2:$Q$50,14,FALSE)),"") ->  | O83: =IFERROR(VALUE(VLOOKUP(TEXT($A83,0),MEDIDAS!$A$2:$Q$50,15,FALSE)),"") ->  | P83: =IFERROR(VALUE(VLOOKUP(TEXT($A83,0),MEDIDAS!$A$2:$Q$50,16,FALSE)),"") ->  | Q83: =IFERROR(VLOOKUP(TEXT($A83,0),MEDIDAS!$A$2:$Q$50,17,FALSE),"") -> 
A84: 76 | B84: =IFERROR(VLOOKUP(TEXT($A84,0),MEDIDAS!$A$2:$Q$50,2,FALSE),"") ->  | C84: =IFERROR(VLOOKUP(TEXT($A84,0),MEDIDAS!$A$2:$Q$50,3,FALSE),"") ->  | D84: =IFERROR(VLOOKUP(TEXT($A84,0),MEDIDAS!$A$2:$Q$50,4,FALSE),"") ->  | E84: =IFERROR(VLOOKUP(TEXT($A84,0),MEDIDAS!$A$2:$Q$50,5,FALSE),"") ->  | F84: =IFERROR(VLOOKUP(TEXT($A84,0),MEDIDAS!$A$2:$Q$50,6,FALSE),"") ->  | G84: =IFERROR(VLOOKUP(TEXT($A84,0),MEDIDAS!$A$2:$Q$50,7,FALSE),"") ->  | H84: =IFERROR(VLOOKUP(TEXT($A84,0),MEDIDAS!$A$2:$Q$50,8,FALSE),"") ->  | I84: =IFERROR(VLOOKUP(TEXT($A84,0),MEDIDAS!$A$2:$Q$50,9,FALSE),"") ->  | J84: =IFERROR(VALUE(VLOOKUP(TEXT($A84,0),MEDIDAS!$A$2:$Q$50,10,FALSE)),"") ->  | K84: =IFERROR(VALUE(VLOOKUP(TEXT($A84,0),MEDIDAS!$A$2:$Q$50,11,FALSE)),"") ->  | L84: =IFERROR(VALUE(VLOOKUP(TEXT($A84,0),MEDIDAS!$A$2:$Q$50,12,FALSE)),"") ->  | M84: =IFERROR(VALUE(VLOOKUP(TEXT($A84,0),MEDIDAS!$A$2:$Q$50,13,FALSE)),"") ->  | N84: =IFERROR(VALUE(VLOOKUP(TEXT($A84,0),MEDIDAS!$A$2:$Q$50,14,FALSE)),"") ->  | O84: =IFERROR(VALUE(VLOOKUP(TEXT($A84,0),MEDIDAS!$A$2:$Q$50,15,FALSE)),"") ->  | P84: =IFERROR(VALUE(VLOOKUP(TEXT($A84,0),MEDIDAS!$A$2:$Q$50,16,FALSE)),"") ->  | Q84: =IFERROR(VLOOKUP(TEXT($A84,0),MEDIDAS!$A$2:$Q$50,17,FALSE),"") -> 
A85: 77 | B85: =IFERROR(VLOOKUP(TEXT($A85,0),MEDIDAS!$A$2:$Q$50,2,FALSE),"") ->  | C85: =IFERROR(VLOOKUP(TEXT($A85,0),MEDIDAS!$A$2:$Q$50,3,FALSE),"") ->  | D85: =IFERROR(VLOOKUP(TEXT($A85,0),MEDIDAS!$A$2:$Q$50,4,FALSE),"") ->  | E85: =IFERROR(VLOOKUP(TEXT($A85,0),MEDIDAS!$A$2:$Q$50,5,FALSE),"") ->  | F85: =IFERROR(VLOOKUP(TEXT($A85,0),MEDIDAS!$A$2:$Q$50,6,FALSE),"") ->  | G85: =IFERROR(VLOOKUP(TEXT($A85,0),MEDIDAS!$A$2:$Q$50,7,FALSE),"") ->  | H85: =IFERROR(VLOOKUP(TEXT($A85,0),MEDIDAS!$A$2:$Q$50,8,FALSE),"") ->  | I85: =IFERROR(VLOOKUP(TEXT($A85,0),MEDIDAS!$A$2:$Q$50,9,FALSE),"") ->  | J85: =IFERROR(VALUE(VLOOKUP(TEXT($A85,0),MEDIDAS!$A$2:$Q$50,10,FALSE)),"") ->  | K85: =IFERROR(VALUE(VLOOKUP(TEXT($A85,0),MEDIDAS!$A$2:$Q$50,11,FALSE)),"") ->  | L85: =IFERROR(VALUE(VLOOKUP(TEXT($A85,0),MEDIDAS!$A$2:$Q$50,12,FALSE)),"") ->  | M85: =IFERROR(VALUE(VLOOKUP(TEXT($A85,0),MEDIDAS!$A$2:$Q$50,13,FALSE)),"") ->  | N85: =IFERROR(VALUE(VLOOKUP(TEXT($A85,0),MEDIDAS!$A$2:$Q$50,14,FALSE)),"") ->  | O85: =IFERROR(VALUE(VLOOKUP(TEXT($A85,0),MEDIDAS!$A$2:$Q$50,15,FALSE)),"") ->  | P85: =IFERROR(VALUE(VLOOKUP(TEXT($A85,0),MEDIDAS!$A$2:$Q$50,16,FALSE)),"") ->  | Q85: =IFERROR(VLOOKUP(TEXT($A85,0),MEDIDAS!$A$2:$Q$50,17,FALSE),"") -> 
A86: 78 | B86: =IFERROR(VLOOKUP(TEXT($A86,0),MEDIDAS!$A$2:$Q$50,2,FALSE),"") ->  | C86: =IFERROR(VLOOKUP(TEXT($A86,0),MEDIDAS!$A$2:$Q$50,3,FALSE),"") ->  | D86: =IFERROR(VLOOKUP(TEXT($A86,0),MEDIDAS!$A$2:$Q$50,4,FALSE),"") ->  | E86: =IFERROR(VLOOKUP(TEXT($A86,0),MEDIDAS!$A$2:$Q$50,5,FALSE),"") ->  | F86: =IFERROR(VLOOKUP(TEXT($A86,0),MEDIDAS!$A$2:$Q$50,6,FALSE),"") ->  | G86: =IFERROR(VLOOKUP(TEXT($A86,0),MEDIDAS!$A$2:$Q$50,7,FALSE),"") ->  | H86: =IFERROR(VLOOKUP(TEXT($A86,0),MEDIDAS!$A$2:$Q$50,8,FALSE),"") ->  | I86: =IFERROR(VLOOKUP(TEXT($A86,0),MEDIDAS!$A$2:$Q$50,9,FALSE),"") ->  | J86: =IFERROR(VALUE(VLOOKUP(TEXT($A86,0),MEDIDAS!$A$2:$Q$50,10,FALSE)),"") ->  | K86: =IFERROR(VALUE(VLOOKUP(TEXT($A86,0),MEDIDAS!$A$2:$Q$50,11,FALSE)),"") ->  | L86: =IFERROR(VALUE(VLOOKUP(TEXT($A86,0),MEDIDAS!$A$2:$Q$50,12,FALSE)),"") ->  | M86: =IFERROR(VALUE(VLOOKUP(TEXT($A86,0),MEDIDAS!$A$2:$Q$50,13,FALSE)),"") ->  | N86: =IFERROR(VALUE(VLOOKUP(TEXT($A86,0),MEDIDAS!$A$2:$Q$50,14,FALSE)),"") ->  | O86: =IFERROR(VALUE(VLOOKUP(TEXT($A86,0),MEDIDAS!$A$2:$Q$50,15,FALSE)),"") ->  | P86: =IFERROR(VALUE(VLOOKUP(TEXT($A86,0),MEDIDAS!$A$2:$Q$50,16,FALSE)),"") ->  | Q86: =IFERROR(VLOOKUP(TEXT($A86,0),MEDIDAS!$A$2:$Q$50,17,FALSE),"") -> 
A87: 79 | B87: =IFERROR(VLOOKUP(TEXT($A87,0),MEDIDAS!$A$2:$Q$50,2,FALSE),"") ->  | C87: =IFERROR(VLOOKUP(TEXT($A87,0),MEDIDAS!$A$2:$Q$50,3,FALSE),"") ->  | D87: =IFERROR(VLOOKUP(TEXT($A87,0),MEDIDAS!$A$2:$Q$50,4,FALSE),"") ->  | E87: =IFERROR(VLOOKUP(TEXT($A87,0),MEDIDAS!$A$2:$Q$50,5,FALSE),"") ->  | F87: =IFERROR(VLOOKUP(TEXT($A87,0),MEDIDAS!$A$2:$Q$50,6,FALSE),"") ->  | G87: =IFERROR(VLOOKUP(TEXT($A87,0),MEDIDAS!$A$2:$Q$50,7,FALSE),"") ->  | H87: =IFERROR(VLOOKUP(TEXT($A87,0),MEDIDAS!$A$2:$Q$50,8,FALSE),"") ->  | I87: =IFERROR(VLOOKUP(TEXT($A87,0),MEDIDAS!$A$2:$Q$50,9,FALSE),"") ->  | J87: =IFERROR(VALUE(VLOOKUP(TEXT($A87,0),MEDIDAS!$A$2:$Q$50,10,FALSE)),"") ->  | K87: =IFERROR(VALUE(VLOOKUP(TEXT($A87,0),MEDIDAS!$A$2:$Q$50,11,FALSE)),"") ->  | L87: =IFERROR(VALUE(VLOOKUP(TEXT($A87,0),MEDIDAS!$A$2:$Q$50,12,FALSE)),"") ->  | M87: =IFERROR(VALUE(VLOOKUP(TEXT($A87,0),MEDIDAS!$A$2:$Q$50,13,FALSE)),"") ->  | N87: =IFERROR(VALUE(VLOOKUP(TEXT($A87,0),MEDIDAS!$A$2:$Q$50,14,FALSE)),"") ->  | O87: =IFERROR(VALUE(VLOOKUP(TEXT($A87,0),MEDIDAS!$A$2:$Q$50,15,FALSE)),"") ->  | P87: =IFERROR(VALUE(VLOOKUP(TEXT($A87,0),MEDIDAS!$A$2:$Q$50,16,FALSE)),"") ->  | Q87: =IFERROR(VLOOKUP(TEXT($A87,0),MEDIDAS!$A$2:$Q$50,17,FALSE),"") -> 
A88: 80 | B88: =IFERROR(VLOOKUP(TEXT($A88,0),MEDIDAS!$A$2:$Q$50,2,FALSE),"") ->  | C88: =IFERROR(VLOOKUP(TEXT($A88,0),MEDIDAS!$A$2:$Q$50,3,FALSE),"") ->  | D88: =IFERROR(VLOOKUP(TEXT($A88,0),MEDIDAS!$A$2:$Q$50,4,FALSE),"") ->  | E88: =IFERROR(VLOOKUP(TEXT($A88,0),MEDIDAS!$A$2:$Q$50,5,FALSE),"") ->  | F88: =IFERROR(VLOOKUP(TEXT($A88,0),MEDIDAS!$A$2:$Q$50,6,FALSE),"") ->  | G88: =IFERROR(VLOOKUP(TEXT($A88,0),MEDIDAS!$A$2:$Q$50,7,FALSE),"") ->  | H88: =IFERROR(VLOOKUP(TEXT($A88,0),MEDIDAS!$A$2:$Q$50,8,FALSE),"") ->  | I88: =IFERROR(VLOOKUP(TEXT($A88,0),MEDIDAS!$A$2:$Q$50,9,FALSE),"") ->  | J88: =IFERROR(VALUE(VLOOKUP(TEXT($A88,0),MEDIDAS!$A$2:$Q$50,10,FALSE)),"") ->  | K88: =IFERROR(VALUE(VLOOKUP(TEXT($A88,0),MEDIDAS!$A$2:$Q$50,11,FALSE)),"") ->  | L88: =IFERROR(VALUE(VLOOKUP(TEXT($A88,0),MEDIDAS!$A$2:$Q$50,12,FALSE)),"") ->  | M88: =IFERROR(VALUE(VLOOKUP(TEXT($A88,0),MEDIDAS!$A$2:$Q$50,13,FALSE)),"") ->  | N88: =IFERROR(VALUE(VLOOKUP(TEXT($A88,0),MEDIDAS!$A$2:$Q$50,14,FALSE)),"") ->  | O88: =IFERROR(VALUE(VLOOKUP(TEXT($A88,0),MEDIDAS!$A$2:$Q$50,15,FALSE)),"") ->  | P88: =IFERROR(VALUE(VLOOKUP(TEXT($A88,0),MEDIDAS!$A$2:$Q$50,16,FALSE)),"") ->  | Q88: =IFERROR(VLOOKUP(TEXT($A88,0),MEDIDAS!$A$2:$Q$50,17,FALSE),"") -> 
A89: 81 | B89: =IFERROR(VLOOKUP(TEXT($A89,0),MEDIDAS!$A$2:$Q$50,2,FALSE),"") ->  | C89: =IFERROR(VLOOKUP(TEXT($A89,0),MEDIDAS!$A$2:$Q$50,3,FALSE),"") ->  | D89: =IFERROR(VLOOKUP(TEXT($A89,0),MEDIDAS!$A$2:$Q$50,4,FALSE),"") ->  | E89: =IFERROR(VLOOKUP(TEXT($A89,0),MEDIDAS!$A$2:$Q$50,5,FALSE),"") ->  | F89: =IFERROR(VLOOKUP(TEXT($A89,0),MEDIDAS!$A$2:$Q$50,6,FALSE),"") ->  | G89: =IFERROR(VLOOKUP(TEXT($A89,0),MEDIDAS!$A$2:$Q$50,7,FALSE),"") ->  | H89: =IFERROR(VLOOKUP(TEXT($A89,0),MEDIDAS!$A$2:$Q$50,8,FALSE),"") ->  | I89: =IFERROR(VLOOKUP(TEXT($A89,0),MEDIDAS!$A$2:$Q$50,9,FALSE),"") ->  | J89: =IFERROR(VALUE(VLOOKUP(TEXT($A89,0),MEDIDAS!$A$2:$Q$50,10,FALSE)),"") ->  | K89: =IFERROR(VALUE(VLOOKUP(TEXT($A89,0),MEDIDAS!$A$2:$Q$50,11,FALSE)),"") ->  | L89: =IFERROR(VALUE(VLOOKUP(TEXT($A89,0),MEDIDAS!$A$2:$Q$50,12,FALSE)),"") ->  | M89: =IFERROR(VALUE(VLOOKUP(TEXT($A89,0),MEDIDAS!$A$2:$Q$50,13,FALSE)),"") ->  | N89: =IFERROR(VALUE(VLOOKUP(TEXT($A89,0),MEDIDAS!$A$2:$Q$50,14,FALSE)),"") ->  | O89: =IFERROR(VALUE(VLOOKUP(TEXT($A89,0),MEDIDAS!$A$2:$Q$50,15,FALSE)),"") ->  | P89: =IFERROR(VALUE(VLOOKUP(TEXT($A89,0),MEDIDAS!$A$2:$Q$50,16,FALSE)),"") ->  | Q89: =IFERROR(VLOOKUP(TEXT($A89,0),MEDIDAS!$A$2:$Q$50,17,FALSE),"") -> 
A90: 82 | B90: =IFERROR(VLOOKUP(TEXT($A90,0),MEDIDAS!$A$2:$Q$50,2,FALSE),"") ->  | C90: =IFERROR(VLOOKUP(TEXT($A90,0),MEDIDAS!$A$2:$Q$50,3,FALSE),"") ->  | D90: =IFERROR(VLOOKUP(TEXT($A90,0),MEDIDAS!$A$2:$Q$50,4,FALSE),"") ->  | E90: =IFERROR(VLOOKUP(TEXT($A90,0),MEDIDAS!$A$2:$Q$50,5,FALSE),"") ->  | F90: =IFERROR(VLOOKUP(TEXT($A90,0),MEDIDAS!$A$2:$Q$50,6,FALSE),"") ->  | G90: =IFERROR(VLOOKUP(TEXT($A90,0),MEDIDAS!$A$2:$Q$50,7,FALSE),"") ->  | H90: =IFERROR(VLOOKUP(TEXT($A90,0),MEDIDAS!$A$2:$Q$50,8,FALSE),"") ->  | I90: =IFERROR(VLOOKUP(TEXT($A90,0),MEDIDAS!$A$2:$Q$50,9,FALSE),"") ->  | J90: =IFERROR(VALUE(VLOOKUP(TEXT($A90,0),MEDIDAS!$A$2:$Q$50,10,FALSE)),"") ->  | K90: =IFERROR(VALUE(VLOOKUP(TEXT($A90,0),MEDIDAS!$A$2:$Q$50,11,FALSE)),"") ->  | L90: =IFERROR(VALUE(VLOOKUP(TEXT($A90,0),MEDIDAS!$A$2:$Q$50,12,FALSE)),"") ->  | M90: =IFERROR(VALUE(VLOOKUP(TEXT($A90,0),MEDIDAS!$A$2:$Q$50,13,FALSE)),"") ->  | N90: =IFERROR(VALUE(VLOOKUP(TEXT($A90,0),MEDIDAS!$A$2:$Q$50,14,FALSE)),"") ->  | O90: =IFERROR(VALUE(VLOOKUP(TEXT($A90,0),MEDIDAS!$A$2:$Q$50,15,FALSE)),"") ->  | P90: =IFERROR(VALUE(VLOOKUP(TEXT($A90,0),MEDIDAS!$A$2:$Q$50,16,FALSE)),"") ->  | Q90: =IFERROR(VLOOKUP(TEXT($A90,0),MEDIDAS!$A$2:$Q$50,17,FALSE),"") -> 
A91: 83 | B91: =IFERROR(VLOOKUP(TEXT($A91,0),MEDIDAS!$A$2:$Q$50,2,FALSE),"") ->  | C91: =IFERROR(VLOOKUP(TEXT($A91,0),MEDIDAS!$A$2:$Q$50,3,FALSE),"") ->  | D91: =IFERROR(VLOOKUP(TEXT($A91,0),MEDIDAS!$A$2:$Q$50,4,FALSE),"") ->  | E91: =IFERROR(VLOOKUP(TEXT($A91,0),MEDIDAS!$A$2:$Q$50,5,FALSE),"") ->  | F91: =IFERROR(VLOOKUP(TEXT($A91,0),MEDIDAS!$A$2:$Q$50,6,FALSE),"") ->  | G91: =IFERROR(VLOOKUP(TEXT($A91,0),MEDIDAS!$A$2:$Q$50,7,FALSE),"") ->  | H91: =IFERROR(VLOOKUP(TEXT($A91,0),MEDIDAS!$A$2:$Q$50,8,FALSE),"") ->  | I91: =IFERROR(VLOOKUP(TEXT($A91,0),MEDIDAS!$A$2:$Q$50,9,FALSE),"") ->  | J91: =IFERROR(VALUE(VLOOKUP(TEXT($A91,0),MEDIDAS!$A$2:$Q$50,10,FALSE)),"") ->  | K91: =IFERROR(VALUE(VLOOKUP(TEXT($A91,0),MEDIDAS!$A$2:$Q$50,11,FALSE)),"") ->  | L91: =IFERROR(VALUE(VLOOKUP(TEXT($A91,0),MEDIDAS!$A$2:$Q$50,12,FALSE)),"") ->  | M91: =IFERROR(VALUE(VLOOKUP(TEXT($A91,0),MEDIDAS!$A$2:$Q$50,13,FALSE)),"") ->  | N91: =IFERROR(VALUE(VLOOKUP(TEXT($A91,0),MEDIDAS!$A$2:$Q$50,14,FALSE)),"") ->  | O91: =IFERROR(VALUE(VLOOKUP(TEXT($A91,0),MEDIDAS!$A$2:$Q$50,15,FALSE)),"") ->  | P91: =IFERROR(VALUE(VLOOKUP(TEXT($A91,0),MEDIDAS!$A$2:$Q$50,16,FALSE)),"") ->  | Q91: =IFERROR(VLOOKUP(TEXT($A91,0),MEDIDAS!$A$2:$Q$50,17,FALSE),"") -> 
A92: 84 | B92: =IFERROR(VLOOKUP(TEXT($A92,0),MEDIDAS!$A$2:$Q$50,2,FALSE),"") ->  | C92: =IFERROR(VLOOKUP(TEXT($A92,0),MEDIDAS!$A$2:$Q$50,3,FALSE),"") ->  | D92: =IFERROR(VLOOKUP(TEXT($A92,0),MEDIDAS!$A$2:$Q$50,4,FALSE),"") ->  | E92: =IFERROR(VLOOKUP(TEXT($A92,0),MEDIDAS!$A$2:$Q$50,5,FALSE),"") ->  | F92: =IFERROR(VLOOKUP(TEXT($A92,0),MEDIDAS!$A$2:$Q$50,6,FALSE),"") ->  | G92: =IFERROR(VLOOKUP(TEXT($A92,0),MEDIDAS!$A$2:$Q$50,7,FALSE),"") ->  | H92: =IFERROR(VLOOKUP(TEXT($A92,0),MEDIDAS!$A$2:$Q$50,8,FALSE),"") ->  | I92: =IFERROR(VLOOKUP(TEXT($A92,0),MEDIDAS!$A$2:$Q$50,9,FALSE),"") ->  | J92: =IFERROR(VALUE(VLOOKUP(TEXT($A92,0),MEDIDAS!$A$2:$Q$50,10,FALSE)),"") ->  | K92: =IFERROR(VALUE(VLOOKUP(TEXT($A92,0),MEDIDAS!$A$2:$Q$50,11,FALSE)),"") ->  | L92: =IFERROR(VALUE(VLOOKUP(TEXT($A92,0),MEDIDAS!$A$2:$Q$50,12,FALSE)),"") ->  | M92: =IFERROR(VALUE(VLOOKUP(TEXT($A92,0),MEDIDAS!$A$2:$Q$50,13,FALSE)),"") ->  | N92: =IFERROR(VALUE(VLOOKUP(TEXT($A92,0),MEDIDAS!$A$2:$Q$50,14,FALSE)),"") ->  | O92: =IFERROR(VALUE(VLOOKUP(TEXT($A92,0),MEDIDAS!$A$2:$Q$50,15,FALSE)),"") ->  | P92: =IFERROR(VALUE(VLOOKUP(TEXT($A92,0),MEDIDAS!$A$2:$Q$50,16,FALSE)),"") ->  | Q92: =IFERROR(VLOOKUP(TEXT($A92,0),MEDIDAS!$A$2:$Q$50,17,FALSE),"") -> 
A93: 85 | B93: =IFERROR(VLOOKUP(TEXT($A93,0),MEDIDAS!$A$2:$Q$50,2,FALSE),"") ->  | C93: =IFERROR(VLOOKUP(TEXT($A93,0),MEDIDAS!$A$2:$Q$50,3,FALSE),"") ->  | D93: =IFERROR(VLOOKUP(TEXT($A93,0),MEDIDAS!$A$2:$Q$50,4,FALSE),"") ->  | E93: =IFERROR(VLOOKUP(TEXT($A93,0),MEDIDAS!$A$2:$Q$50,5,FALSE),"") ->  | F93: =IFERROR(VLOOKUP(TEXT($A93,0),MEDIDAS!$A$2:$Q$50,6,FALSE),"") ->  | G93: =IFERROR(VLOOKUP(TEXT($A93,0),MEDIDAS!$A$2:$Q$50,7,FALSE),"") ->  | H93: =IFERROR(VLOOKUP(TEXT($A93,0),MEDIDAS!$A$2:$Q$50,8,FALSE),"") ->  | I93: =IFERROR(VLOOKUP(TEXT($A93,0),MEDIDAS!$A$2:$Q$50,9,FALSE),"") ->  | J93: =IFERROR(VALUE(VLOOKUP(TEXT($A93,0),MEDIDAS!$A$2:$Q$50,10,FALSE)),"") ->  | K93: =IFERROR(VALUE(VLOOKUP(TEXT($A93,0),MEDIDAS!$A$2:$Q$50,11,FALSE)),"") ->  | L93: =IFERROR(VALUE(VLOOKUP(TEXT($A93,0),MEDIDAS!$A$2:$Q$50,12,FALSE)),"") ->  | M93: =IFERROR(VALUE(VLOOKUP(TEXT($A93,0),MEDIDAS!$A$2:$Q$50,13,FALSE)),"") ->  | N93: =IFERROR(VALUE(VLOOKUP(TEXT($A93,0),MEDIDAS!$A$2:$Q$50,14,FALSE)),"") ->  | O93: =IFERROR(VALUE(VLOOKUP(TEXT($A93,0),MEDIDAS!$A$2:$Q$50,15,FALSE)),"") ->  | P93: =IFERROR(VALUE(VLOOKUP(TEXT($A93,0),MEDIDAS!$A$2:$Q$50,16,FALSE)),"") ->  | Q93: =IFERROR(VLOOKUP(TEXT($A93,0),MEDIDAS!$A$2:$Q$50,17,FALSE),"") -> 
A94: 86 | B94: =IFERROR(VLOOKUP(TEXT($A94,0),MEDIDAS!$A$2:$Q$50,2,FALSE),"") ->  | C94: =IFERROR(VLOOKUP(TEXT($A94,0),MEDIDAS!$A$2:$Q$50,3,FALSE),"") ->  | D94: =IFERROR(VLOOKUP(TEXT($A94,0),MEDIDAS!$A$2:$Q$50,4,FALSE),"") ->  | E94: =IFERROR(VLOOKUP(TEXT($A94,0),MEDIDAS!$A$2:$Q$50,5,FALSE),"") ->  | F94: =IFERROR(VLOOKUP(TEXT($A94,0),MEDIDAS!$A$2:$Q$50,6,FALSE),"") ->  | G94: =IFERROR(VLOOKUP(TEXT($A94,0),MEDIDAS!$A$2:$Q$50,7,FALSE),"") ->  | H94: =IFERROR(VLOOKUP(TEXT($A94,0),MEDIDAS!$A$2:$Q$50,8,FALSE),"") ->  | I94: =IFERROR(VLOOKUP(TEXT($A94,0),MEDIDAS!$A$2:$Q$50,9,FALSE),"") ->  | J94: =IFERROR(VALUE(VLOOKUP(TEXT($A94,0),MEDIDAS!$A$2:$Q$50,10,FALSE)),"") ->  | K94: =IFERROR(VALUE(VLOOKUP(TEXT($A94,0),MEDIDAS!$A$2:$Q$50,11,FALSE)),"") ->  | L94: =IFERROR(VALUE(VLOOKUP(TEXT($A94,0),MEDIDAS!$A$2:$Q$50,12,FALSE)),"") ->  | M94: =IFERROR(VALUE(VLOOKUP(TEXT($A94,0),MEDIDAS!$A$2:$Q$50,13,FALSE)),"") ->  | N94: =IFERROR(VALUE(VLOOKUP(TEXT($A94,0),MEDIDAS!$A$2:$Q$50,14,FALSE)),"") ->  | O94: =IFERROR(VALUE(VLOOKUP(TEXT($A94,0),MEDIDAS!$A$2:$Q$50,15,FALSE)),"") ->  | P94: =IFERROR(VALUE(VLOOKUP(TEXT($A94,0),MEDIDAS!$A$2:$Q$50,16,FALSE)),"") ->  | Q94: =IFERROR(VLOOKUP(TEXT($A94,0),MEDIDAS!$A$2:$Q$50,17,FALSE),"") -> 
A95: 87 | B95: =IFERROR(VLOOKUP(TEXT($A95,0),MEDIDAS!$A$2:$Q$50,2,FALSE),"") ->  | C95: =IFERROR(VLOOKUP(TEXT($A95,0),MEDIDAS!$A$2:$Q$50,3,FALSE),"") ->  | D95: =IFERROR(VLOOKUP(TEXT($A95,0),MEDIDAS!$A$2:$Q$50,4,FALSE),"") ->  | E95: =IFERROR(VLOOKUP(TEXT($A95,0),MEDIDAS!$A$2:$Q$50,5,FALSE),"") ->  | F95: =IFERROR(VLOOKUP(TEXT($A95,0),MEDIDAS!$A$2:$Q$50,6,FALSE),"") ->  | G95: =IFERROR(VLOOKUP(TEXT($A95,0),MEDIDAS!$A$2:$Q$50,7,FALSE),"") ->  | H95: =IFERROR(VLOOKUP(TEXT($A95,0),MEDIDAS!$A$2:$Q$50,8,FALSE),"") ->  | I95: =IFERROR(VLOOKUP(TEXT($A95,0),MEDIDAS!$A$2:$Q$50,9,FALSE),"") ->  | J95: =IFERROR(VALUE(VLOOKUP(TEXT($A95,0),MEDIDAS!$A$2:$Q$50,10,FALSE)),"") ->  | K95: =IFERROR(VALUE(VLOOKUP(TEXT($A95,0),MEDIDAS!$A$2:$Q$50,11,FALSE)),"") ->  | L95: =IFERROR(VALUE(VLOOKUP(TEXT($A95,0),MEDIDAS!$A$2:$Q$50,12,FALSE)),"") ->  | M95: =IFERROR(VALUE(VLOOKUP(TEXT($A95,0),MEDIDAS!$A$2:$Q$50,13,FALSE)),"") ->  | N95: =IFERROR(VALUE(VLOOKUP(TEXT($A95,0),MEDIDAS!$A$2:$Q$50,14,FALSE)),"") ->  | O95: =IFERROR(VALUE(VLOOKUP(TEXT($A95,0),MEDIDAS!$A$2:$Q$50,15,FALSE)),"") ->  | P95: =IFERROR(VALUE(VLOOKUP(TEXT($A95,0),MEDIDAS!$A$2:$Q$50,16,FALSE)),"") ->  | Q95: =IFERROR(VLOOKUP(TEXT($A95,0),MEDIDAS!$A$2:$Q$50,17,FALSE),"") -> 
A96: 88 | B96: =IFERROR(VLOOKUP(TEXT($A96,0),MEDIDAS!$A$2:$Q$50,2,FALSE),"") ->  | C96: =IFERROR(VLOOKUP(TEXT($A96,0),MEDIDAS!$A$2:$Q$50,3,FALSE),"") ->  | D96: =IFERROR(VLOOKUP(TEXT($A96,0),MEDIDAS!$A$2:$Q$50,4,FALSE),"") ->  | E96: =IFERROR(VLOOKUP(TEXT($A96,0),MEDIDAS!$A$2:$Q$50,5,FALSE),"") ->  | F96: =IFERROR(VLOOKUP(TEXT($A96,0),MEDIDAS!$A$2:$Q$50,6,FALSE),"") ->  | G96: =IFERROR(VLOOKUP(TEXT($A96,0),MEDIDAS!$A$2:$Q$50,7,FALSE),"") ->  | H96: =IFERROR(VLOOKUP(TEXT($A96,0),MEDIDAS!$A$2:$Q$50,8,FALSE),"") ->  | I96: =IFERROR(VLOOKUP(TEXT($A96,0),MEDIDAS!$A$2:$Q$50,9,FALSE),"") ->  | J96: =IFERROR(VALUE(VLOOKUP(TEXT($A96,0),MEDIDAS!$A$2:$Q$50,10,FALSE)),"") ->  | K96: =IFERROR(VALUE(VLOOKUP(TEXT($A96,0),MEDIDAS!$A$2:$Q$50,11,FALSE)),"") ->  | L96: =IFERROR(VALUE(VLOOKUP(TEXT($A96,0),MEDIDAS!$A$2:$Q$50,12,FALSE)),"") ->  | M96: =IFERROR(VALUE(VLOOKUP(TEXT($A96,0),MEDIDAS!$A$2:$Q$50,13,FALSE)),"") ->  | N96: =IFERROR(VALUE(VLOOKUP(TEXT($A96,0),MEDIDAS!$A$2:$Q$50,14,FALSE)),"") ->  | O96: =IFERROR(VALUE(VLOOKUP(TEXT($A96,0),MEDIDAS!$A$2:$Q$50,15,FALSE)),"") ->  | P96: =IFERROR(VALUE(VLOOKUP(TEXT($A96,0),MEDIDAS!$A$2:$Q$50,16,FALSE)),"") ->  | Q96: =IFERROR(VLOOKUP(TEXT($A96,0),MEDIDAS!$A$2:$Q$50,17,FALSE),"") -> 
A97: 89 | B97: =IFERROR(VLOOKUP(TEXT($A97,0),MEDIDAS!$A$2:$Q$50,2,FALSE),"") ->  | C97: =IFERROR(VLOOKUP(TEXT($A97,0),MEDIDAS!$A$2:$Q$50,3,FALSE),"") ->  | D97: =IFERROR(VLOOKUP(TEXT($A97,0),MEDIDAS!$A$2:$Q$50,4,FALSE),"") ->  | E97: =IFERROR(VLOOKUP(TEXT($A97,0),MEDIDAS!$A$2:$Q$50,5,FALSE),"") ->  | F97: =IFERROR(VLOOKUP(TEXT($A97,0),MEDIDAS!$A$2:$Q$50,6,FALSE),"") ->  | G97: =IFERROR(VLOOKUP(TEXT($A97,0),MEDIDAS!$A$2:$Q$50,7,FALSE),"") ->  | H97: =IFERROR(VLOOKUP(TEXT($A97,0),MEDIDAS!$A$2:$Q$50,8,FALSE),"") ->  | I97: =IFERROR(VLOOKUP(TEXT($A97,0),MEDIDAS!$A$2:$Q$50,9,FALSE),"") ->  | J97: =IFERROR(VALUE(VLOOKUP(TEXT($A97,0),MEDIDAS!$A$2:$Q$50,10,FALSE)),"") ->  | K97: =IFERROR(VALUE(VLOOKUP(TEXT($A97,0),MEDIDAS!$A$2:$Q$50,11,FALSE)),"") ->  | L97: =IFERROR(VALUE(VLOOKUP(TEXT($A97,0),MEDIDAS!$A$2:$Q$50,12,FALSE)),"") ->  | M97: =IFERROR(VALUE(VLOOKUP(TEXT($A97,0),MEDIDAS!$A$2:$Q$50,13,FALSE)),"") ->  | N97: =IFERROR(VALUE(VLOOKUP(TEXT($A97,0),MEDIDAS!$A$2:$Q$50,14,FALSE)),"") ->  | O97: =IFERROR(VALUE(VLOOKUP(TEXT($A97,0),MEDIDAS!$A$2:$Q$50,15,FALSE)),"") ->  | P97: =IFERROR(VALUE(VLOOKUP(TEXT($A97,0),MEDIDAS!$A$2:$Q$50,16,FALSE)),"") ->  | Q97: =IFERROR(VLOOKUP(TEXT($A97,0),MEDIDAS!$A$2:$Q$50,17,FALSE),"") -> 
A98: 90 | B98: =IFERROR(VLOOKUP(TEXT($A98,0),MEDIDAS!$A$2:$Q$50,2,FALSE),"") ->  | C98: =IFERROR(VLOOKUP(TEXT($A98,0),MEDIDAS!$A$2:$Q$50,3,FALSE),"") ->  | D98: =IFERROR(VLOOKUP(TEXT($A98,0),MEDIDAS!$A$2:$Q$50,4,FALSE),"") ->  | E98: =IFERROR(VLOOKUP(TEXT($A98,0),MEDIDAS!$A$2:$Q$50,5,FALSE),"") ->  | F98: =IFERROR(VLOOKUP(TEXT($A98,0),MEDIDAS!$A$2:$Q$50,6,FALSE),"") ->  | G98: =IFERROR(VLOOKUP(TEXT($A98,0),MEDIDAS!$A$2:$Q$50,7,FALSE),"") ->  | H98: =IFERROR(VLOOKUP(TEXT($A98,0),MEDIDAS!$A$2:$Q$50,8,FALSE),"") ->  | I98: =IFERROR(VLOOKUP(TEXT($A98,0),MEDIDAS!$A$2:$Q$50,9,FALSE),"") ->  | J98: =IFERROR(VALUE(VLOOKUP(TEXT($A98,0),MEDIDAS!$A$2:$Q$50,10,FALSE)),"") ->  | K98: =IFERROR(VALUE(VLOOKUP(TEXT($A98,0),MEDIDAS!$A$2:$Q$50,11,FALSE)),"") ->  | L98: =IFERROR(VALUE(VLOOKUP(TEXT($A98,0),MEDIDAS!$A$2:$Q$50,12,FALSE)),"") ->  | M98: =IFERROR(VALUE(VLOOKUP(TEXT($A98,0),MEDIDAS!$A$2:$Q$50,13,FALSE)),"") ->  | N98: =IFERROR(VALUE(VLOOKUP(TEXT($A98,0),MEDIDAS!$A$2:$Q$50,14,FALSE)),"") ->  | O98: =IFERROR(VALUE(VLOOKUP(TEXT($A98,0),MEDIDAS!$A$2:$Q$50,15,FALSE)),"") ->  | P98: =IFERROR(VALUE(VLOOKUP(TEXT($A98,0),MEDIDAS!$A$2:$Q$50,16,FALSE)),"") ->  | Q98: =IFERROR(VLOOKUP(TEXT($A98,0),MEDIDAS!$A$2:$Q$50,17,FALSE),"") -> 
A99: 91 | B99: =IFERROR(VLOOKUP(TEXT($A99,0),MEDIDAS!$A$2:$Q$50,2,FALSE),"") ->  | C99: =IFERROR(VLOOKUP(TEXT($A99,0),MEDIDAS!$A$2:$Q$50,3,FALSE),"") ->  | D99: =IFERROR(VLOOKUP(TEXT($A99,0),MEDIDAS!$A$2:$Q$50,4,FALSE),"") ->  | E99: =IFERROR(VLOOKUP(TEXT($A99,0),MEDIDAS!$A$2:$Q$50,5,FALSE),"") ->  | F99: =IFERROR(VLOOKUP(TEXT($A99,0),MEDIDAS!$A$2:$Q$50,6,FALSE),"") ->  | G99: =IFERROR(VLOOKUP(TEXT($A99,0),MEDIDAS!$A$2:$Q$50,7,FALSE),"") ->  | H99: =IFERROR(VLOOKUP(TEXT($A99,0),MEDIDAS!$A$2:$Q$50,8,FALSE),"") ->  | I99: =IFERROR(VLOOKUP(TEXT($A99,0),MEDIDAS!$A$2:$Q$50,9,FALSE),"") ->  | J99: =IFERROR(VALUE(VLOOKUP(TEXT($A99,0),MEDIDAS!$A$2:$Q$50,10,FALSE)),"") ->  | K99: =IFERROR(VALUE(VLOOKUP(TEXT($A99,0),MEDIDAS!$A$2:$Q$50,11,FALSE)),"") ->  | L99: =IFERROR(VALUE(VLOOKUP(TEXT($A99,0),MEDIDAS!$A$2:$Q$50,12,FALSE)),"") ->  | M99: =IFERROR(VALUE(VLOOKUP(TEXT($A99,0),MEDIDAS!$A$2:$Q$50,13,FALSE)),"") ->  | N99: =IFERROR(VALUE(VLOOKUP(TEXT($A99,0),MEDIDAS!$A$2:$Q$50,14,FALSE)),"") ->  | O99: =IFERROR(VALUE(VLOOKUP(TEXT($A99,0),MEDIDAS!$A$2:$Q$50,15,FALSE)),"") ->  | P99: =IFERROR(VALUE(VLOOKUP(TEXT($A99,0),MEDIDAS!$A$2:$Q$50,16,FALSE)),"") ->  | Q99: =IFERROR(VLOOKUP(TEXT($A99,0),MEDIDAS!$A$2:$Q$50,17,FALSE),"") -> 
A100: 92 | B100: =IFERROR(VLOOKUP(TEXT($A100,0),MEDIDAS!$A$2:$Q$50,2,FALSE),"") ->  | C100: =IFERROR(VLOOKUP(TEXT($A100,0),MEDIDAS!$A$2:$Q$50,3,FALSE),"") ->  | D100: =IFERROR(VLOOKUP(TEXT($A100,0),MEDIDAS!$A$2:$Q$50,4,FALSE),"") ->  | E100: =IFERROR(VLOOKUP(TEXT($A100,0),MEDIDAS!$A$2:$Q$50,5,FALSE),"") ->  | F100: =IFERROR(VLOOKUP(TEXT($A100,0),MEDIDAS!$A$2:$Q$50,6,FALSE),"") ->  | G100: =IFERROR(VLOOKUP(TEXT($A100,0),MEDIDAS!$A$2:$Q$50,7,FALSE),"") ->  | H100: =IFERROR(VLOOKUP(TEXT($A100,0),MEDIDAS!$A$2:$Q$50,8,FALSE),"") ->  | I100: =IFERROR(VLOOKUP(TEXT($A100,0),MEDIDAS!$A$2:$Q$50,9,FALSE),"") ->  | J100: =IFERROR(VALUE(VLOOKUP(TEXT($A100,0),MEDIDAS!$A$2:$Q$50,10,FALSE)),"") ->  | K100: =IFERROR(VALUE(VLOOKUP(TEXT($A100,0),MEDIDAS!$A$2:$Q$50,11,FALSE)),"") ->  | L100: =IFERROR(VALUE(VLOOKUP(TEXT($A100,0),MEDIDAS!$A$2:$Q$50,12,FALSE)),"") ->  | M100: =IFERROR(VALUE(VLOOKUP(TEXT($A100,0),MEDIDAS!$A$2:$Q$50,13,FALSE)),"") ->  | N100: =IFERROR(VALUE(VLOOKUP(TEXT($A100,0),MEDIDAS!$A$2:$Q$50,14,FALSE)),"") ->  | O100: =IFERROR(VALUE(VLOOKUP(TEXT($A100,0),MEDIDAS!$A$2:$Q$50,15,FALSE)),"") ->  | P100: =IFERROR(VALUE(VLOOKUP(TEXT($A100,0),MEDIDAS!$A$2:$Q$50,16,FALSE)),"") ->  | Q100: =IFERROR(VLOOKUP(TEXT($A100,0),MEDIDAS!$A$2:$Q$50,17,FALSE),"") -> 
A101: 93 | B101: =IFERROR(VLOOKUP(TEXT($A101,0),MEDIDAS!$A$2:$Q$50,2,FALSE),"") ->  | C101: =IFERROR(VLOOKUP(TEXT($A101,0),MEDIDAS!$A$2:$Q$50,3,FALSE),"") ->  | D101: =IFERROR(VLOOKUP(TEXT($A101,0),MEDIDAS!$A$2:$Q$50,4,FALSE),"") ->  | E101: =IFERROR(VLOOKUP(TEXT($A101,0),MEDIDAS!$A$2:$Q$50,5,FALSE),"") ->  | F101: =IFERROR(VLOOKUP(TEXT($A101,0),MEDIDAS!$A$2:$Q$50,6,FALSE),"") ->  | G101: =IFERROR(VLOOKUP(TEXT($A101,0),MEDIDAS!$A$2:$Q$50,7,FALSE),"") ->  | H101: =IFERROR(VLOOKUP(TEXT($A101,0),MEDIDAS!$A$2:$Q$50,8,FALSE),"") ->  | I101: =IFERROR(VLOOKUP(TEXT($A101,0),MEDIDAS!$A$2:$Q$50,9,FALSE),"") ->  | J101: =IFERROR(VALUE(VLOOKUP(TEXT($A101,0),MEDIDAS!$A$2:$Q$50,10,FALSE)),"") ->  | K101: =IFERROR(VALUE(VLOOKUP(TEXT($A101,0),MEDIDAS!$A$2:$Q$50,11,FALSE)),"") ->  | L101: =IFERROR(VALUE(VLOOKUP(TEXT($A101,0),MEDIDAS!$A$2:$Q$50,12,FALSE)),"") ->  | M101: =IFERROR(VALUE(VLOOKUP(TEXT($A101,0),MEDIDAS!$A$2:$Q$50,13,FALSE)),"") ->  | N101: =IFERROR(VALUE(VLOOKUP(TEXT($A101,0),MEDIDAS!$A$2:$Q$50,14,FALSE)),"") ->  | O101: =IFERROR(VALUE(VLOOKUP(TEXT($A101,0),MEDIDAS!$A$2:$Q$50,15,FALSE)),"") ->  | P101: =IFERROR(VALUE(VLOOKUP(TEXT($A101,0),MEDIDAS!$A$2:$Q$50,16,FALSE)),"") ->  | Q101: =IFERROR(VLOOKUP(TEXT($A101,0),MEDIDAS!$A$2:$Q$50,17,FALSE),"") -> 
A102: 94 | B102: =IFERROR(VLOOKUP(TEXT($A102,0),MEDIDAS!$A$2:$Q$50,2,FALSE),"") ->  | C102: =IFERROR(VLOOKUP(TEXT($A102,0),MEDIDAS!$A$2:$Q$50,3,FALSE),"") ->  | D102: =IFERROR(VLOOKUP(TEXT($A102,0),MEDIDAS!$A$2:$Q$50,4,FALSE),"") ->  | E102: =IFERROR(VLOOKUP(TEXT($A102,0),MEDIDAS!$A$2:$Q$50,5,FALSE),"") ->  | F102: =IFERROR(VLOOKUP(TEXT($A102,0),MEDIDAS!$A$2:$Q$50,6,FALSE),"") ->  | G102: =IFERROR(VLOOKUP(TEXT($A102,0),MEDIDAS!$A$2:$Q$50,7,FALSE),"") ->  | H102: =IFERROR(VLOOKUP(TEXT($A102,0),MEDIDAS!$A$2:$Q$50,8,FALSE),"") ->  | I102: =IFERROR(VLOOKUP(TEXT($A102,0),MEDIDAS!$A$2:$Q$50,9,FALSE),"") ->  | J102: =IFERROR(VALUE(VLOOKUP(TEXT($A102,0),MEDIDAS!$A$2:$Q$50,10,FALSE)),"") ->  | K102: =IFERROR(VALUE(VLOOKUP(TEXT($A102,0),MEDIDAS!$A$2:$Q$50,11,FALSE)),"") ->  | L102: =IFERROR(VALUE(VLOOKUP(TEXT($A102,0),MEDIDAS!$A$2:$Q$50,12,FALSE)),"") ->  | M102: =IFERROR(VALUE(VLOOKUP(TEXT($A102,0),MEDIDAS!$A$2:$Q$50,13,FALSE)),"") ->  | N102: =IFERROR(VALUE(VLOOKUP(TEXT($A102,0),MEDIDAS!$A$2:$Q$50,14,FALSE)),"") ->  | O102: =IFERROR(VALUE(VLOOKUP(TEXT($A102,0),MEDIDAS!$A$2:$Q$50,15,FALSE)),"") ->  | P102: =IFERROR(VALUE(VLOOKUP(TEXT($A102,0),MEDIDAS!$A$2:$Q$50,16,FALSE)),"") ->  | Q102: =IFERROR(VLOOKUP(TEXT($A102,0),MEDIDAS!$A$2:$Q$50,17,FALSE),"") -> 
A103: 95 | B103: =IFERROR(VLOOKUP(TEXT($A103,0),MEDIDAS!$A$2:$Q$50,2,FALSE),"") ->  | C103: =IFERROR(VLOOKUP(TEXT($A103,0),MEDIDAS!$A$2:$Q$50,3,FALSE),"") ->  | D103: =IFERROR(VLOOKUP(TEXT($A103,0),MEDIDAS!$A$2:$Q$50,4,FALSE),"") ->  | E103: =IFERROR(VLOOKUP(TEXT($A103,0),MEDIDAS!$A$2:$Q$50,5,FALSE),"") ->  | F103: =IFERROR(VLOOKUP(TEXT($A103,0),MEDIDAS!$A$2:$Q$50,6,FALSE),"") ->  | G103: =IFERROR(VLOOKUP(TEXT($A103,0),MEDIDAS!$A$2:$Q$50,7,FALSE),"") ->  | H103: =IFERROR(VLOOKUP(TEXT($A103,0),MEDIDAS!$A$2:$Q$50,8,FALSE),"") ->  | I103: =IFERROR(VLOOKUP(TEXT($A103,0),MEDIDAS!$A$2:$Q$50,9,FALSE),"") ->  | J103: =IFERROR(VALUE(VLOOKUP(TEXT($A103,0),MEDIDAS!$A$2:$Q$50,10,FALSE)),"") ->  | K103: =IFERROR(VALUE(VLOOKUP(TEXT($A103,0),MEDIDAS!$A$2:$Q$50,11,FALSE)),"") ->  | L103: =IFERROR(VALUE(VLOOKUP(TEXT($A103,0),MEDIDAS!$A$2:$Q$50,12,FALSE)),"") ->  | M103: =IFERROR(VALUE(VLOOKUP(TEXT($A103,0),MEDIDAS!$A$2:$Q$50,13,FALSE)),"") ->  | N103: =IFERROR(VALUE(VLOOKUP(TEXT($A103,0),MEDIDAS!$A$2:$Q$50,14,FALSE)),"") ->  | O103: =IFERROR(VALUE(VLOOKUP(TEXT($A103,0),MEDIDAS!$A$2:$Q$50,15,FALSE)),"") ->  | P103: =IFERROR(VALUE(VLOOKUP(TEXT($A103,0),MEDIDAS!$A$2:$Q$50,16,FALSE)),"") ->  | Q103: =IFERROR(VLOOKUP(TEXT($A103,0),MEDIDAS!$A$2:$Q$50,17,FALSE),"") -> 
A104: 96 | B104: =IFERROR(VLOOKUP(TEXT($A104,0),MEDIDAS!$A$2:$Q$50,2,FALSE),"") ->  | C104: =IFERROR(VLOOKUP(TEXT($A104,0),MEDIDAS!$A$2:$Q$50,3,FALSE),"") ->  | D104: =IFERROR(VLOOKUP(TEXT($A104,0),MEDIDAS!$A$2:$Q$50,4,FALSE),"") ->  | E104: =IFERROR(VLOOKUP(TEXT($A104,0),MEDIDAS!$A$2:$Q$50,5,FALSE),"") ->  | F104: =IFERROR(VLOOKUP(TEXT($A104,0),MEDIDAS!$A$2:$Q$50,6,FALSE),"") ->  | G104: =IFERROR(VLOOKUP(TEXT($A104,0),MEDIDAS!$A$2:$Q$50,7,FALSE),"") ->  | H104: =IFERROR(VLOOKUP(TEXT($A104,0),MEDIDAS!$A$2:$Q$50,8,FALSE),"") ->  | I104: =IFERROR(VLOOKUP(TEXT($A104,0),MEDIDAS!$A$2:$Q$50,9,FALSE),"") ->  | J104: =IFERROR(VALUE(VLOOKUP(TEXT($A104,0),MEDIDAS!$A$2:$Q$50,10,FALSE)),"") ->  | K104: =IFERROR(VALUE(VLOOKUP(TEXT($A104,0),MEDIDAS!$A$2:$Q$50,11,FALSE)),"") ->  | L104: =IFERROR(VALUE(VLOOKUP(TEXT($A104,0),MEDIDAS!$A$2:$Q$50,12,FALSE)),"") ->  | M104: =IFERROR(VALUE(VLOOKUP(TEXT($A104,0),MEDIDAS!$A$2:$Q$50,13,FALSE)),"") ->  | N104: =IFERROR(VALUE(VLOOKUP(TEXT($A104,0),MEDIDAS!$A$2:$Q$50,14,FALSE)),"") ->  | O104: =IFERROR(VALUE(VLOOKUP(TEXT($A104,0),MEDIDAS!$A$2:$Q$50,15,FALSE)),"") ->  | P104: =IFERROR(VALUE(VLOOKUP(TEXT($A104,0),MEDIDAS!$A$2:$Q$50,16,FALSE)),"") ->  | Q104: =IFERROR(VLOOKUP(TEXT($A104,0),MEDIDAS!$A$2:$Q$50,17,FALSE),"") -> 
A105: 97 | B105: =IFERROR(VLOOKUP(TEXT($A105,0),MEDIDAS!$A$2:$Q$50,2,FALSE),"") ->  | C105: =IFERROR(VLOOKUP(TEXT($A105,0),MEDIDAS!$A$2:$Q$50,3,FALSE),"") ->  | D105: =IFERROR(VLOOKUP(TEXT($A105,0),MEDIDAS!$A$2:$Q$50,4,FALSE),"") ->  | E105: =IFERROR(VLOOKUP(TEXT($A105,0),MEDIDAS!$A$2:$Q$50,5,FALSE),"") ->  | F105: =IFERROR(VLOOKUP(TEXT($A105,0),MEDIDAS!$A$2:$Q$50,6,FALSE),"") ->  | G105: =IFERROR(VLOOKUP(TEXT($A105,0),MEDIDAS!$A$2:$Q$50,7,FALSE),"") ->  | H105: =IFERROR(VLOOKUP(TEXT($A105,0),MEDIDAS!$A$2:$Q$50,8,FALSE),"") ->  | I105: =IFERROR(VLOOKUP(TEXT($A105,0),MEDIDAS!$A$2:$Q$50,9,FALSE),"") ->  | J105: =IFERROR(VALUE(VLOOKUP(TEXT($A105,0),MEDIDAS!$A$2:$Q$50,10,FALSE)),"") ->  | K105: =IFERROR(VALUE(VLOOKUP(TEXT($A105,0),MEDIDAS!$A$2:$Q$50,11,FALSE)),"") ->  | L105: =IFERROR(VALUE(VLOOKUP(TEXT($A105,0),MEDIDAS!$A$2:$Q$50,12,FALSE)),"") ->  | M105: =IFERROR(VALUE(VLOOKUP(TEXT($A105,0),MEDIDAS!$A$2:$Q$50,13,FALSE)),"") ->  | N105: =IFERROR(VALUE(VLOOKUP(TEXT($A105,0),MEDIDAS!$A$2:$Q$50,14,FALSE)),"") ->  | O105: =IFERROR(VALUE(VLOOKUP(TEXT($A105,0),MEDIDAS!$A$2:$Q$50,15,FALSE)),"") ->  | P105: =IFERROR(VALUE(VLOOKUP(TEXT($A105,0),MEDIDAS!$A$2:$Q$50,16,FALSE)),"") ->  | Q105: =IFERROR(VLOOKUP(TEXT($A105,0),MEDIDAS!$A$2:$Q$50,17,FALSE),"") -> 
A106: 98 | B106: =IFERROR(VLOOKUP(TEXT($A106,0),MEDIDAS!$A$2:$Q$50,2,FALSE),"") ->  | C106: =IFERROR(VLOOKUP(TEXT($A106,0),MEDIDAS!$A$2:$Q$50,3,FALSE),"") ->  | D106: =IFERROR(VLOOKUP(TEXT($A106,0),MEDIDAS!$A$2:$Q$50,4,FALSE),"") ->  | E106: =IFERROR(VLOOKUP(TEXT($A106,0),MEDIDAS!$A$2:$Q$50,5,FALSE),"") ->  | F106: =IFERROR(VLOOKUP(TEXT($A106,0),MEDIDAS!$A$2:$Q$50,6,FALSE),"") ->  | G106: =IFERROR(VLOOKUP(TEXT($A106,0),MEDIDAS!$A$2:$Q$50,7,FALSE),"") ->  | H106: =IFERROR(VLOOKUP(TEXT($A106,0),MEDIDAS!$A$2:$Q$50,8,FALSE),"") ->  | I106: =IFERROR(VLOOKUP(TEXT($A106,0),MEDIDAS!$A$2:$Q$50,9,FALSE),"") ->  | J106: =IFERROR(VALUE(VLOOKUP(TEXT($A106,0),MEDIDAS!$A$2:$Q$50,10,FALSE)),"") ->  | K106: =IFERROR(VALUE(VLOOKUP(TEXT($A106,0),MEDIDAS!$A$2:$Q$50,11,FALSE)),"") ->  | L106: =IFERROR(VALUE(VLOOKUP(TEXT($A106,0),MEDIDAS!$A$2:$Q$50,12,FALSE)),"") ->  | M106: =IFERROR(VALUE(VLOOKUP(TEXT($A106,0),MEDIDAS!$A$2:$Q$50,13,FALSE)),"") ->  | N106: =IFERROR(VALUE(VLOOKUP(TEXT($A106,0),MEDIDAS!$A$2:$Q$50,14,FALSE)),"") ->  | O106: =IFERROR(VALUE(VLOOKUP(TEXT($A106,0),MEDIDAS!$A$2:$Q$50,15,FALSE)),"") ->  | P106: =IFERROR(VALUE(VLOOKUP(TEXT($A106,0),MEDIDAS!$A$2:$Q$50,16,FALSE)),"") ->  | Q106: =IFERROR(VLOOKUP(TEXT($A106,0),MEDIDAS!$A$2:$Q$50,17,FALSE),"") -> 
A107: 99 | B107: =IFERROR(VLOOKUP(TEXT($A107,0),MEDIDAS!$A$2:$Q$50,2,FALSE),"") ->  | C107: =IFERROR(VLOOKUP(TEXT($A107,0),MEDIDAS!$A$2:$Q$50,3,FALSE),"") ->  | D107: =IFERROR(VLOOKUP(TEXT($A107,0),MEDIDAS!$A$2:$Q$50,4,FALSE),"") ->  | E107: =IFERROR(VLOOKUP(TEXT($A107,0),MEDIDAS!$A$2:$Q$50,5,FALSE),"") ->  | F107: =IFERROR(VLOOKUP(TEXT($A107,0),MEDIDAS!$A$2:$Q$50,6,FALSE),"") ->  | G107: =IFERROR(VLOOKUP(TEXT($A107,0),MEDIDAS!$A$2:$Q$50,7,FALSE),"") ->  | H107: =IFERROR(VLOOKUP(TEXT($A107,0),MEDIDAS!$A$2:$Q$50,8,FALSE),"") ->  | I107: =IFERROR(VLOOKUP(TEXT($A107,0),MEDIDAS!$A$2:$Q$50,9,FALSE),"") ->  | J107: =IFERROR(VALUE(VLOOKUP(TEXT($A107,0),MEDIDAS!$A$2:$Q$50,10,FALSE)),"") ->  | K107: =IFERROR(VALUE(VLOOKUP(TEXT($A107,0),MEDIDAS!$A$2:$Q$50,11,FALSE)),"") ->  | L107: =IFERROR(VALUE(VLOOKUP(TEXT($A107,0),MEDIDAS!$A$2:$Q$50,12,FALSE)),"") ->  | M107: =IFERROR(VALUE(VLOOKUP(TEXT($A107,0),MEDIDAS!$A$2:$Q$50,13,FALSE)),"") ->  | N107: =IFERROR(VALUE(VLOOKUP(TEXT($A107,0),MEDIDAS!$A$2:$Q$50,14,FALSE)),"") ->  | O107: =IFERROR(VALUE(VLOOKUP(TEXT($A107,0),MEDIDAS!$A$2:$Q$50,15,FALSE)),"") ->  | P107: =IFERROR(VALUE(VLOOKUP(TEXT($A107,0),MEDIDAS!$A$2:$Q$50,16,FALSE)),"") ->  | Q107: =IFERROR(VLOOKUP(TEXT($A107,0),MEDIDAS!$A$2:$Q$50,17,FALSE),"") -> 
A108: 100 | B108: =IFERROR(VLOOKUP(TEXT($A108,0),MEDIDAS!$A$2:$Q$50,2,FALSE),"") ->  | C108: =IFERROR(VLOOKUP(TEXT($A108,0),MEDIDAS!$A$2:$Q$50,3,FALSE),"") ->  | D108: =IFERROR(VLOOKUP(TEXT($A108,0),MEDIDAS!$A$2:$Q$50,4,FALSE),"") ->  | E108: =IFERROR(VLOOKUP(TEXT($A108,0),MEDIDAS!$A$2:$Q$50,5,FALSE),"") ->  | F108: =IFERROR(VLOOKUP(TEXT($A108,0),MEDIDAS!$A$2:$Q$50,6,FALSE),"") ->  | G108: =IFERROR(VLOOKUP(TEXT($A108,0),MEDIDAS!$A$2:$Q$50,7,FALSE),"") ->  | H108: =IFERROR(VLOOKUP(TEXT($A108,0),MEDIDAS!$A$2:$Q$50,8,FALSE),"") ->  | I108: =IFERROR(VLOOKUP(TEXT($A108,0),MEDIDAS!$A$2:$Q$50,9,FALSE),"") ->  | J108: =IFERROR(VALUE(VLOOKUP(TEXT($A108,0),MEDIDAS!$A$2:$Q$50,10,FALSE)),"") ->  | K108: =IFERROR(VALUE(VLOOKUP(TEXT($A108,0),MEDIDAS!$A$2:$Q$50,11,FALSE)),"") ->  | L108: =IFERROR(VALUE(VLOOKUP(TEXT($A108,0),MEDIDAS!$A$2:$Q$50,12,FALSE)),"") ->  | M108: =IFERROR(VALUE(VLOOKUP(TEXT($A108,0),MEDIDAS!$A$2:$Q$50,13,FALSE)),"") ->  | N108: =IFERROR(VALUE(VLOOKUP(TEXT($A108,0),MEDIDAS!$A$2:$Q$50,14,FALSE)),"") ->  | O108: =IFERROR(VALUE(VLOOKUP(TEXT($A108,0),MEDIDAS!$A$2:$Q$50,15,FALSE)),"") ->  | P108: =IFERROR(VALUE(VLOOKUP(TEXT($A108,0),MEDIDAS!$A$2:$Q$50,16,FALSE)),"") ->  | Q108: =IFERROR(VLOOKUP(TEXT($A108,0),MEDIDAS!$A$2:$Q$50,17,FALSE),"") -> 
A109: 101 | B109: =IFERROR(VLOOKUP(TEXT($A109,0),MEDIDAS!$A$2:$Q$50,2,FALSE),"") ->  | C109: =IFERROR(VLOOKUP(TEXT($A109,0),MEDIDAS!$A$2:$Q$50,3,FALSE),"") ->  | D109: =IFERROR(VLOOKUP(TEXT($A109,0),MEDIDAS!$A$2:$Q$50,4,FALSE),"") ->  | E109: =IFERROR(VLOOKUP(TEXT($A109,0),MEDIDAS!$A$2:$Q$50,5,FALSE),"") ->  | F109: =IFERROR(VLOOKUP(TEXT($A109,0),MEDIDAS!$A$2:$Q$50,6,FALSE),"") ->  | G109: =IFERROR(VLOOKUP(TEXT($A109,0),MEDIDAS!$A$2:$Q$50,7,FALSE),"") ->  | H109: =IFERROR(VLOOKUP(TEXT($A109,0),MEDIDAS!$A$2:$Q$50,8,FALSE),"") ->  | I109: =IFERROR(VLOOKUP(TEXT($A109,0),MEDIDAS!$A$2:$Q$50,9,FALSE),"") ->  | J109: =IFERROR(VALUE(VLOOKUP(TEXT($A109,0),MEDIDAS!$A$2:$Q$50,10,FALSE)),"") ->  | K109: =IFERROR(VALUE(VLOOKUP(TEXT($A109,0),MEDIDAS!$A$2:$Q$50,11,FALSE)),"") ->  | L109: =IFERROR(VALUE(VLOOKUP(TEXT($A109,0),MEDIDAS!$A$2:$Q$50,12,FALSE)),"") ->  | M109: =IFERROR(VALUE(VLOOKUP(TEXT($A109,0),MEDIDAS!$A$2:$Q$50,13,FALSE)),"") ->  | N109: =IFERROR(VALUE(VLOOKUP(TEXT($A109,0),MEDIDAS!$A$2:$Q$50,14,FALSE)),"") ->  | O109: =IFERROR(VALUE(VLOOKUP(TEXT($A109,0),MEDIDAS!$A$2:$Q$50,15,FALSE)),"") ->  | P109: =IFERROR(VALUE(VLOOKUP(TEXT($A109,0),MEDIDAS!$A$2:$Q$50,16,FALSE)),"") ->  | Q109: =IFERROR(VLOOKUP(TEXT($A109,0),MEDIDAS!$A$2:$Q$50,17,FALSE),"") -> 
A110: 102 | B110: =IFERROR(VLOOKUP(TEXT($A110,0),MEDIDAS!$A$2:$Q$50,2,FALSE),"") ->  | C110: =IFERROR(VLOOKUP(TEXT($A110,0),MEDIDAS!$A$2:$Q$50,3,FALSE),"") ->  | D110: =IFERROR(VLOOKUP(TEXT($A110,0),MEDIDAS!$A$2:$Q$50,4,FALSE),"") ->  | E110: =IFERROR(VLOOKUP(TEXT($A110,0),MEDIDAS!$A$2:$Q$50,5,FALSE),"") ->  | F110: =IFERROR(VLOOKUP(TEXT($A110,0),MEDIDAS!$A$2:$Q$50,6,FALSE),"") ->  | G110: =IFERROR(VLOOKUP(TEXT($A110,0),MEDIDAS!$A$2:$Q$50,7,FALSE),"") ->  | H110: =IFERROR(VLOOKUP(TEXT($A110,0),MEDIDAS!$A$2:$Q$50,8,FALSE),"") ->  | I110: =IFERROR(VLOOKUP(TEXT($A110,0),MEDIDAS!$A$2:$Q$50,9,FALSE),"") ->  | J110: =IFERROR(VALUE(VLOOKUP(TEXT($A110,0),MEDIDAS!$A$2:$Q$50,10,FALSE)),"") ->  | K110: =IFERROR(VALUE(VLOOKUP(TEXT($A110,0),MEDIDAS!$A$2:$Q$50,11,FALSE)),"") ->  | L110: =IFERROR(VALUE(VLOOKUP(TEXT($A110,0),MEDIDAS!$A$2:$Q$50,12,FALSE)),"") ->  | M110: =IFERROR(VALUE(VLOOKUP(TEXT($A110,0),MEDIDAS!$A$2:$Q$50,13,FALSE)),"") ->  | N110: =IFERROR(VALUE(VLOOKUP(TEXT($A110,0),MEDIDAS!$A$2:$Q$50,14,FALSE)),"") ->  | O110: =IFERROR(VALUE(VLOOKUP(TEXT($A110,0),MEDIDAS!$A$2:$Q$50,15,FALSE)),"") ->  | P110: =IFERROR(VALUE(VLOOKUP(TEXT($A110,0),MEDIDAS!$A$2:$Q$50,16,FALSE)),"") ->  | Q110: =IFERROR(VLOOKUP(TEXT($A110,0),MEDIDAS!$A$2:$Q$50,17,FALSE),"") -> 
A111: 103 | B111: =IFERROR(VLOOKUP(TEXT($A111,0),MEDIDAS!$A$2:$Q$50,2,FALSE),"") ->  | C111: =IFERROR(VLOOKUP(TEXT($A111,0),MEDIDAS!$A$2:$Q$50,3,FALSE),"") ->  | D111: =IFERROR(VLOOKUP(TEXT($A111,0),MEDIDAS!$A$2:$Q$50,4,FALSE),"") ->  | E111: =IFERROR(VLOOKUP(TEXT($A111,0),MEDIDAS!$A$2:$Q$50,5,FALSE),"") ->  | F111: =IFERROR(VLOOKUP(TEXT($A111,0),MEDIDAS!$A$2:$Q$50,6,FALSE),"") ->  | G111: =IFERROR(VLOOKUP(TEXT($A111,0),MEDIDAS!$A$2:$Q$50,7,FALSE),"") ->  | H111: =IFERROR(VLOOKUP(TEXT($A111,0),MEDIDAS!$A$2:$Q$50,8,FALSE),"") ->  | I111: =IFERROR(VLOOKUP(TEXT($A111,0),MEDIDAS!$A$2:$Q$50,9,FALSE),"") ->  | J111: =IFERROR(VALUE(VLOOKUP(TEXT($A111,0),MEDIDAS!$A$2:$Q$50,10,FALSE)),"") ->  | K111: =IFERROR(VALUE(VLOOKUP(TEXT($A111,0),MEDIDAS!$A$2:$Q$50,11,FALSE)),"") ->  | L111: =IFERROR(VALUE(VLOOKUP(TEXT($A111,0),MEDIDAS!$A$2:$Q$50,12,FALSE)),"") ->  | M111: =IFERROR(VALUE(VLOOKUP(TEXT($A111,0),MEDIDAS!$A$2:$Q$50,13,FALSE)),"") ->  | N111: =IFERROR(VALUE(VLOOKUP(TEXT($A111,0),MEDIDAS!$A$2:$Q$50,14,FALSE)),"") ->  | O111: =IFERROR(VALUE(VLOOKUP(TEXT($A111,0),MEDIDAS!$A$2:$Q$50,15,FALSE)),"") ->  | P111: =IFERROR(VALUE(VLOOKUP(TEXT($A111,0),MEDIDAS!$A$2:$Q$50,16,FALSE)),"") ->  | Q111: =IFERROR(VLOOKUP(TEXT($A111,0),MEDIDAS!$A$2:$Q$50,17,FALSE),"") -> 
A112: 104 | B112: =IFERROR(VLOOKUP(TEXT($A112,0),MEDIDAS!$A$2:$Q$50,2,FALSE),"") ->  | C112: =IFERROR(VLOOKUP(TEXT($A112,0),MEDIDAS!$A$2:$Q$50,3,FALSE),"") ->  | D112: =IFERROR(VLOOKUP(TEXT($A112,0),MEDIDAS!$A$2:$Q$50,4,FALSE),"") ->  | E112: =IFERROR(VLOOKUP(TEXT($A112,0),MEDIDAS!$A$2:$Q$50,5,FALSE),"") ->  | F112: =IFERROR(VLOOKUP(TEXT($A112,0),MEDIDAS!$A$2:$Q$50,6,FALSE),"") ->  | G112: =IFERROR(VLOOKUP(TEXT($A112,0),MEDIDAS!$A$2:$Q$50,7,FALSE),"") ->  | H112: =IFERROR(VLOOKUP(TEXT($A112,0),MEDIDAS!$A$2:$Q$50,8,FALSE),"") ->  | I112: =IFERROR(VLOOKUP(TEXT($A112,0),MEDIDAS!$A$2:$Q$50,9,FALSE),"") ->  | J112: =IFERROR(VALUE(VLOOKUP(TEXT($A112,0),MEDIDAS!$A$2:$Q$50,10,FALSE)),"") ->  | K112: =IFERROR(VALUE(VLOOKUP(TEXT($A112,0),MEDIDAS!$A$2:$Q$50,11,FALSE)),"") ->  | L112: =IFERROR(VALUE(VLOOKUP(TEXT($A112,0),MEDIDAS!$A$2:$Q$50,12,FALSE)),"") ->  | M112: =IFERROR(VALUE(VLOOKUP(TEXT($A112,0),MEDIDAS!$A$2:$Q$50,13,FALSE)),"") ->  | N112: =IFERROR(VALUE(VLOOKUP(TEXT($A112,0),MEDIDAS!$A$2:$Q$50,14,FALSE)),"") ->  | O112: =IFERROR(VALUE(VLOOKUP(TEXT($A112,0),MEDIDAS!$A$2:$Q$50,15,FALSE)),"") ->  | P112: =IFERROR(VALUE(VLOOKUP(TEXT($A112,0),MEDIDAS!$A$2:$Q$50,16,FALSE)),"") ->  | Q112: =IFERROR(VLOOKUP(TEXT($A112,0),MEDIDAS!$A$2:$Q$50,17,FALSE),"") -> 
A113: 105 | B113: =IFERROR(VLOOKUP(TEXT($A113,0),MEDIDAS!$A$2:$Q$50,2,FALSE),"") ->  | C113: =IFERROR(VLOOKUP(TEXT($A113,0),MEDIDAS!$A$2:$Q$50,3,FALSE),"") ->  | D113: =IFERROR(VLOOKUP(TEXT($A113,0),MEDIDAS!$A$2:$Q$50,4,FALSE),"") ->  | E113: =IFERROR(VLOOKUP(TEXT($A113,0),MEDIDAS!$A$2:$Q$50,5,FALSE),"") ->  | F113: =IFERROR(VLOOKUP(TEXT($A113,0),MEDIDAS!$A$2:$Q$50,6,FALSE),"") ->  | G113: =IFERROR(VLOOKUP(TEXT($A113,0),MEDIDAS!$A$2:$Q$50,7,FALSE),"") ->  | H113: =IFERROR(VLOOKUP(TEXT($A113,0),MEDIDAS!$A$2:$Q$50,8,FALSE),"") ->  | I113: =IFERROR(VLOOKUP(TEXT($A113,0),MEDIDAS!$A$2:$Q$50,9,FALSE),"") ->  | J113: =IFERROR(VALUE(VLOOKUP(TEXT($A113,0),MEDIDAS!$A$2:$Q$50,10,FALSE)),"") ->  | K113: =IFERROR(VALUE(VLOOKUP(TEXT($A113,0),MEDIDAS!$A$2:$Q$50,11,FALSE)),"") ->  | L113: =IFERROR(VALUE(VLOOKUP(TEXT($A113,0),MEDIDAS!$A$2:$Q$50,12,FALSE)),"") ->  | M113: =IFERROR(VALUE(VLOOKUP(TEXT($A113,0),MEDIDAS!$A$2:$Q$50,13,FALSE)),"") ->  | N113: =IFERROR(VALUE(VLOOKUP(TEXT($A113,0),MEDIDAS!$A$2:$Q$50,14,FALSE)),"") ->  | O113: =IFERROR(VALUE(VLOOKUP(TEXT($A113,0),MEDIDAS!$A$2:$Q$50,15,FALSE)),"") ->  | P113: =IFERROR(VALUE(VLOOKUP(TEXT($A113,0),MEDIDAS!$A$2:$Q$50,16,FALSE)),"") ->  | Q113: =IFERROR(VLOOKUP(TEXT($A113,0),MEDIDAS!$A$2:$Q$50,17,FALSE),"") -> 
A114: 106 | B114: =IFERROR(VLOOKUP(TEXT($A114,0),MEDIDAS!$A$2:$Q$50,2,FALSE),"") ->  | C114: =IFERROR(VLOOKUP(TEXT($A114,0),MEDIDAS!$A$2:$Q$50,3,FALSE),"") ->  | D114: =IFERROR(VLOOKUP(TEXT($A114,0),MEDIDAS!$A$2:$Q$50,4,FALSE),"") ->  | E114: =IFERROR(VLOOKUP(TEXT($A114,0),MEDIDAS!$A$2:$Q$50,5,FALSE),"") ->  | F114: =IFERROR(VLOOKUP(TEXT($A114,0),MEDIDAS!$A$2:$Q$50,6,FALSE),"") ->  | G114: =IFERROR(VLOOKUP(TEXT($A114,0),MEDIDAS!$A$2:$Q$50,7,FALSE),"") ->  | H114: =IFERROR(VLOOKUP(TEXT($A114,0),MEDIDAS!$A$2:$Q$50,8,FALSE),"") ->  | I114: =IFERROR(VLOOKUP(TEXT($A114,0),MEDIDAS!$A$2:$Q$50,9,FALSE),"") ->  | J114: =IFERROR(VALUE(VLOOKUP(TEXT($A114,0),MEDIDAS!$A$2:$Q$50,10,FALSE)),"") ->  | K114: =IFERROR(VALUE(VLOOKUP(TEXT($A114,0),MEDIDAS!$A$2:$Q$50,11,FALSE)),"") ->  | L114: =IFERROR(VALUE(VLOOKUP(TEXT($A114,0),MEDIDAS!$A$2:$Q$50,12,FALSE)),"") ->  | M114: =IFERROR(VALUE(VLOOKUP(TEXT($A114,0),MEDIDAS!$A$2:$Q$50,13,FALSE)),"") ->  | N114: =IFERROR(VALUE(VLOOKUP(TEXT($A114,0),MEDIDAS!$A$2:$Q$50,14,FALSE)),"") ->  | O114: =IFERROR(VALUE(VLOOKUP(TEXT($A114,0),MEDIDAS!$A$2:$Q$50,15,FALSE)),"") ->  | P114: =IFERROR(VALUE(VLOOKUP(TEXT($A114,0),MEDIDAS!$A$2:$Q$50,16,FALSE)),"") ->  | Q114: =IFERROR(VLOOKUP(TEXT($A114,0),MEDIDAS!$A$2:$Q$50,17,FALSE),"") -> 
A115: 107 | B115: =IFERROR(VLOOKUP(TEXT($A115,0),MEDIDAS!$A$2:$Q$50,2,FALSE),"") ->  | C115: =IFERROR(VLOOKUP(TEXT($A115,0),MEDIDAS!$A$2:$Q$50,3,FALSE),"") ->  | D115: =IFERROR(VLOOKUP(TEXT($A115,0),MEDIDAS!$A$2:$Q$50,4,FALSE),"") ->  | E115: =IFERROR(VLOOKUP(TEXT($A115,0),MEDIDAS!$A$2:$Q$50,5,FALSE),"") ->  | F115: =IFERROR(VLOOKUP(TEXT($A115,0),MEDIDAS!$A$2:$Q$50,6,FALSE),"") ->  | G115: =IFERROR(VLOOKUP(TEXT($A115,0),MEDIDAS!$A$2:$Q$50,7,FALSE),"") ->  | H115: =IFERROR(VLOOKUP(TEXT($A115,0),MEDIDAS!$A$2:$Q$50,8,FALSE),"") ->  | I115: =IFERROR(VLOOKUP(TEXT($A115,0),MEDIDAS!$A$2:$Q$50,9,FALSE),"") ->  | J115: =IFERROR(VALUE(VLOOKUP(TEXT($A115,0),MEDIDAS!$A$2:$Q$50,10,FALSE)),"") ->  | K115: =IFERROR(VALUE(VLOOKUP(TEXT($A115,0),MEDIDAS!$A$2:$Q$50,11,FALSE)),"") ->  | L115: =IFERROR(VALUE(VLOOKUP(TEXT($A115,0),MEDIDAS!$A$2:$Q$50,12,FALSE)),"") ->  | M115: =IFERROR(VALUE(VLOOKUP(TEXT($A115,0),MEDIDAS!$A$2:$Q$50,13,FALSE)),"") ->  | N115: =IFERROR(VALUE(VLOOKUP(TEXT($A115,0),MEDIDAS!$A$2:$Q$50,14,FALSE)),"") ->  | O115: =IFERROR(VALUE(VLOOKUP(TEXT($A115,0),MEDIDAS!$A$2:$Q$50,15,FALSE)),"") ->  | P115: =IFERROR(VALUE(VLOOKUP(TEXT($A115,0),MEDIDAS!$A$2:$Q$50,16,FALSE)),"") ->  | Q115: =IFERROR(VLOOKUP(TEXT($A115,0),MEDIDAS!$A$2:$Q$50,17,FALSE),"") -> 
A116: 108 | B116: =IFERROR(VLOOKUP(TEXT($A116,0),MEDIDAS!$A$2:$Q$50,2,FALSE),"") ->  | C116: =IFERROR(VLOOKUP(TEXT($A116,0),MEDIDAS!$A$2:$Q$50,3,FALSE),"") ->  | D116: =IFERROR(VLOOKUP(TEXT($A116,0),MEDIDAS!$A$2:$Q$50,4,FALSE),"") ->  | E116: =IFERROR(VLOOKUP(TEXT($A116,0),MEDIDAS!$A$2:$Q$50,5,FALSE),"") ->  | F116: =IFERROR(VLOOKUP(TEXT($A116,0),MEDIDAS!$A$2:$Q$50,6,FALSE),"") ->  | G116: =IFERROR(VLOOKUP(TEXT($A116,0),MEDIDAS!$A$2:$Q$50,7,FALSE),"") ->  | H116: =IFERROR(VLOOKUP(TEXT($A116,0),MEDIDAS!$A$2:$Q$50,8,FALSE),"") ->  | I116: =IFERROR(VLOOKUP(TEXT($A116,0),MEDIDAS!$A$2:$Q$50,9,FALSE),"") ->  | J116: =IFERROR(VALUE(VLOOKUP(TEXT($A116,0),MEDIDAS!$A$2:$Q$50,10,FALSE)),"") ->  | K116: =IFERROR(VALUE(VLOOKUP(TEXT($A116,0),MEDIDAS!$A$2:$Q$50,11,FALSE)),"") ->  | L116: =IFERROR(VALUE(VLOOKUP(TEXT($A116,0),MEDIDAS!$A$2:$Q$50,12,FALSE)),"") ->  | M116: =IFERROR(VALUE(VLOOKUP(TEXT($A116,0),MEDIDAS!$A$2:$Q$50,13,FALSE)),"") ->  | N116: =IFERROR(VALUE(VLOOKUP(TEXT($A116,0),MEDIDAS!$A$2:$Q$50,14,FALSE)),"") ->  | O116: =IFERROR(VALUE(VLOOKUP(TEXT($A116,0),MEDIDAS!$A$2:$Q$50,15,FALSE)),"") ->  | P116: =IFERROR(VALUE(VLOOKUP(TEXT($A116,0),MEDIDAS!$A$2:$Q$50,16,FALSE)),"") ->  | Q116: =IFERROR(VLOOKUP(TEXT($A116,0),MEDIDAS!$A$2:$Q$50,17,FALSE),"") -> 
A117: 109 | B117: =IFERROR(VLOOKUP(TEXT($A117,0),MEDIDAS!$A$2:$Q$50,2,FALSE),"") ->  | C117: =IFERROR(VLOOKUP(TEXT($A117,0),MEDIDAS!$A$2:$Q$50,3,FALSE),"") ->  | D117: =IFERROR(VLOOKUP(TEXT($A117,0),MEDIDAS!$A$2:$Q$50,4,FALSE),"") ->  | E117: =IFERROR(VLOOKUP(TEXT($A117,0),MEDIDAS!$A$2:$Q$50,5,FALSE),"") ->  | F117: =IFERROR(VLOOKUP(TEXT($A117,0),MEDIDAS!$A$2:$Q$50,6,FALSE),"") ->  | G117: =IFERROR(VLOOKUP(TEXT($A117,0),MEDIDAS!$A$2:$Q$50,7,FALSE),"") ->  | H117: =IFERROR(VLOOKUP(TEXT($A117,0),MEDIDAS!$A$2:$Q$50,8,FALSE),"") ->  | I117: =IFERROR(VLOOKUP(TEXT($A117,0),MEDIDAS!$A$2:$Q$50,9,FALSE),"") ->  | J117: =IFERROR(VALUE(VLOOKUP(TEXT($A117,0),MEDIDAS!$A$2:$Q$50,10,FALSE)),"") ->  | K117: =IFERROR(VALUE(VLOOKUP(TEXT($A117,0),MEDIDAS!$A$2:$Q$50,11,FALSE)),"") ->  | L117: =IFERROR(VALUE(VLOOKUP(TEXT($A117,0),MEDIDAS!$A$2:$Q$50,12,FALSE)),"") ->  | M117: =IFERROR(VALUE(VLOOKUP(TEXT($A117,0),MEDIDAS!$A$2:$Q$50,13,FALSE)),"") ->  | N117: =IFERROR(VALUE(VLOOKUP(TEXT($A117,0),MEDIDAS!$A$2:$Q$50,14,FALSE)),"") ->  | O117: =IFERROR(VALUE(VLOOKUP(TEXT($A117,0),MEDIDAS!$A$2:$Q$50,15,FALSE)),"") ->  | P117: =IFERROR(VALUE(VLOOKUP(TEXT($A117,0),MEDIDAS!$A$2:$Q$50,16,FALSE)),"") ->  | Q117: =IFERROR(VLOOKUP(TEXT($A117,0),MEDIDAS!$A$2:$Q$50,17,FALSE),"") -> 
A118: 110 | B118: =IFERROR(VLOOKUP(TEXT($A118,0),MEDIDAS!$A$2:$Q$50,2,FALSE),"") ->  | C118: =IFERROR(VLOOKUP(TEXT($A118,0),MEDIDAS!$A$2:$Q$50,3,FALSE),"") ->  | D118: =IFERROR(VLOOKUP(TEXT($A118,0),MEDIDAS!$A$2:$Q$50,4,FALSE),"") ->  | E118: =IFERROR(VLOOKUP(TEXT($A118,0),MEDIDAS!$A$2:$Q$50,5,FALSE),"") ->  | F118: =IFERROR(VLOOKUP(TEXT($A118,0),MEDIDAS!$A$2:$Q$50,6,FALSE),"") ->  | G118: =IFERROR(VLOOKUP(TEXT($A118,0),MEDIDAS!$A$2:$Q$50,7,FALSE),"") ->  | H118: =IFERROR(VLOOKUP(TEXT($A118,0),MEDIDAS!$A$2:$Q$50,8,FALSE),"") ->  | I118: =IFERROR(VLOOKUP(TEXT($A118,0),MEDIDAS!$A$2:$Q$50,9,FALSE),"") ->  | J118: =IFERROR(VALUE(VLOOKUP(TEXT($A118,0),MEDIDAS!$A$2:$Q$50,10,FALSE)),"") ->  | K118: =IFERROR(VALUE(VLOOKUP(TEXT($A118,0),MEDIDAS!$A$2:$Q$50,11,FALSE)),"") ->  | L118: =IFERROR(VALUE(VLOOKUP(TEXT($A118,0),MEDIDAS!$A$2:$Q$50,12,FALSE)),"") ->  | M118: =IFERROR(VALUE(VLOOKUP(TEXT($A118,0),MEDIDAS!$A$2:$Q$50,13,FALSE)),"") ->  | N118: =IFERROR(VALUE(VLOOKUP(TEXT($A118,0),MEDIDAS!$A$2:$Q$50,14,FALSE)),"") ->  | O118: =IFERROR(VALUE(VLOOKUP(TEXT($A118,0),MEDIDAS!$A$2:$Q$50,15,FALSE)),"") ->  | P118: =IFERROR(VALUE(VLOOKUP(TEXT($A118,0),MEDIDAS!$A$2:$Q$50,16,FALSE)),"") ->  | Q118: =IFERROR(VLOOKUP(TEXT($A118,0),MEDIDAS!$A$2:$Q$50,17,FALSE),"") -> 
A119: 111 | B119: =IFERROR(VLOOKUP(TEXT($A119,0),MEDIDAS!$A$2:$Q$50,2,FALSE),"") ->  | C119: =IFERROR(VLOOKUP(TEXT($A119,0),MEDIDAS!$A$2:$Q$50,3,FALSE),"") ->  | D119: =IFERROR(VLOOKUP(TEXT($A119,0),MEDIDAS!$A$2:$Q$50,4,FALSE),"") ->  | E119: =IFERROR(VLOOKUP(TEXT($A119,0),MEDIDAS!$A$2:$Q$50,5,FALSE),"") ->  | F119: =IFERROR(VLOOKUP(TEXT($A119,0),MEDIDAS!$A$2:$Q$50,6,FALSE),"") ->  | G119: =IFERROR(VLOOKUP(TEXT($A119,0),MEDIDAS!$A$2:$Q$50,7,FALSE),"") ->  | H119: =IFERROR(VLOOKUP(TEXT($A119,0),MEDIDAS!$A$2:$Q$50,8,FALSE),"") ->  | I119: =IFERROR(VLOOKUP(TEXT($A119,0),MEDIDAS!$A$2:$Q$50,9,FALSE),"") ->  | J119: =IFERROR(VALUE(VLOOKUP(TEXT($A119,0),MEDIDAS!$A$2:$Q$50,10,FALSE)),"") ->  | K119: =IFERROR(VALUE(VLOOKUP(TEXT($A119,0),MEDIDAS!$A$2:$Q$50,11,FALSE)),"") ->  | L119: =IFERROR(VALUE(VLOOKUP(TEXT($A119,0),MEDIDAS!$A$2:$Q$50,12,FALSE)),"") ->  | M119: =IFERROR(VALUE(VLOOKUP(TEXT($A119,0),MEDIDAS!$A$2:$Q$50,13,FALSE)),"") ->  | N119: =IFERROR(VALUE(VLOOKUP(TEXT($A119,0),MEDIDAS!$A$2:$Q$50,14,FALSE)),"") ->  | O119: =IFERROR(VALUE(VLOOKUP(TEXT($A119,0),MEDIDAS!$A$2:$Q$50,15,FALSE)),"") ->  | P119: =IFERROR(VALUE(VLOOKUP(TEXT($A119,0),MEDIDAS!$A$2:$Q$50,16,FALSE)),"") ->  | Q119: =IFERROR(VLOOKUP(TEXT($A119,0),MEDIDAS!$A$2:$Q$50,17,FALSE),"") -> 
A120: 112 | B120: =IFERROR(VLOOKUP(TEXT($A120,0),MEDIDAS!$A$2:$Q$50,2,FALSE),"") ->  | C120: =IFERROR(VLOOKUP(TEXT($A120,0),MEDIDAS!$A$2:$Q$50,3,FALSE),"") ->  | D120: =IFERROR(VLOOKUP(TEXT($A120,0),MEDIDAS!$A$2:$Q$50,4,FALSE),"") ->  | E120: =IFERROR(VLOOKUP(TEXT($A120,0),MEDIDAS!$A$2:$Q$50,5,FALSE),"") ->  | F120: =IFERROR(VLOOKUP(TEXT($A120,0),MEDIDAS!$A$2:$Q$50,6,FALSE),"") ->  | G120: =IFERROR(VLOOKUP(TEXT($A120,0),MEDIDAS!$A$2:$Q$50,7,FALSE),"") ->  | H120: =IFERROR(VLOOKUP(TEXT($A120,0),MEDIDAS!$A$2:$Q$50,8,FALSE),"") ->  | I120: =IFERROR(VLOOKUP(TEXT($A120,0),MEDIDAS!$A$2:$Q$50,9,FALSE),"") ->  | J120: =IFERROR(VALUE(VLOOKUP(TEXT($A120,0),MEDIDAS!$A$2:$Q$50,10,FALSE)),"") ->  | K120: =IFERROR(VALUE(VLOOKUP(TEXT($A120,0),MEDIDAS!$A$2:$Q$50,11,FALSE)),"") ->  | L120: =IFERROR(VALUE(VLOOKUP(TEXT($A120,0),MEDIDAS!$A$2:$Q$50,12,FALSE)),"") ->  | M120: =IFERROR(VALUE(VLOOKUP(TEXT($A120,0),MEDIDAS!$A$2:$Q$50,13,FALSE)),"") ->  | N120: =IFERROR(VALUE(VLOOKUP(TEXT($A120,0),MEDIDAS!$A$2:$Q$50,14,FALSE)),"") ->  | O120: =IFERROR(VALUE(VLOOKUP(TEXT($A120,0),MEDIDAS!$A$2:$Q$50,15,FALSE)),"") ->  | P120: =IFERROR(VALUE(VLOOKUP(TEXT($A120,0),MEDIDAS!$A$2:$Q$50,16,FALSE)),"") ->  | Q120: =IFERROR(VLOOKUP(TEXT($A120,0),MEDIDAS!$A$2:$Q$50,17,FALSE),"") -> 
A121: 113 | B121: =IFERROR(VLOOKUP(TEXT($A121,0),MEDIDAS!$A$2:$Q$50,2,FALSE),"") ->  | C121: =IFERROR(VLOOKUP(TEXT($A121,0),MEDIDAS!$A$2:$Q$50,3,FALSE),"") ->  | D121: =IFERROR(VLOOKUP(TEXT($A121,0),MEDIDAS!$A$2:$Q$50,4,FALSE),"") ->  | E121: =IFERROR(VLOOKUP(TEXT($A121,0),MEDIDAS!$A$2:$Q$50,5,FALSE),"") ->  | F121: =IFERROR(VLOOKUP(TEXT($A121,0),MEDIDAS!$A$2:$Q$50,6,FALSE),"") ->  | G121: =IFERROR(VLOOKUP(TEXT($A121,0),MEDIDAS!$A$2:$Q$50,7,FALSE),"") ->  | H121: =IFERROR(VLOOKUP(TEXT($A121,0),MEDIDAS!$A$2:$Q$50,8,FALSE),"") ->  | I121: =IFERROR(VLOOKUP(TEXT($A121,0),MEDIDAS!$A$2:$Q$50,9,FALSE),"") ->  | J121: =IFERROR(VALUE(VLOOKUP(TEXT($A121,0),MEDIDAS!$A$2:$Q$50,10,FALSE)),"") ->  | K121: =IFERROR(VALUE(VLOOKUP(TEXT($A121,0),MEDIDAS!$A$2:$Q$50,11,FALSE)),"") ->  | L121: =IFERROR(VALUE(VLOOKUP(TEXT($A121,0),MEDIDAS!$A$2:$Q$50,12,FALSE)),"") ->  | M121: =IFERROR(VALUE(VLOOKUP(TEXT($A121,0),MEDIDAS!$A$2:$Q$50,13,FALSE)),"") ->  | N121: =IFERROR(VALUE(VLOOKUP(TEXT($A121,0),MEDIDAS!$A$2:$Q$50,14,FALSE)),"") ->  | O121: =IFERROR(VALUE(VLOOKUP(TEXT($A121,0),MEDIDAS!$A$2:$Q$50,15,FALSE)),"") ->  | P121: =IFERROR(VALUE(VLOOKUP(TEXT($A121,0),MEDIDAS!$A$2:$Q$50,16,FALSE)),"") ->  | Q121: =IFERROR(VLOOKUP(TEXT($A121,0),MEDIDAS!$A$2:$Q$50,17,FALSE),"") -> 
A122: 114 | B122: =IFERROR(VLOOKUP(TEXT($A122,0),MEDIDAS!$A$2:$Q$50,2,FALSE),"") ->  | C122: =IFERROR(VLOOKUP(TEXT($A122,0),MEDIDAS!$A$2:$Q$50,3,FALSE),"") ->  | D122: =IFERROR(VLOOKUP(TEXT($A122,0),MEDIDAS!$A$2:$Q$50,4,FALSE),"") ->  | E122: =IFERROR(VLOOKUP(TEXT($A122,0),MEDIDAS!$A$2:$Q$50,5,FALSE),"") ->  | F122: =IFERROR(VLOOKUP(TEXT($A122,0),MEDIDAS!$A$2:$Q$50,6,FALSE),"") ->  | G122: =IFERROR(VLOOKUP(TEXT($A122,0),MEDIDAS!$A$2:$Q$50,7,FALSE),"") ->  | H122: =IFERROR(VLOOKUP(TEXT($A122,0),MEDIDAS!$A$2:$Q$50,8,FALSE),"") ->  | I122: =IFERROR(VLOOKUP(TEXT($A122,0),MEDIDAS!$A$2:$Q$50,9,FALSE),"") ->  | J122: =IFERROR(VALUE(VLOOKUP(TEXT($A122,0),MEDIDAS!$A$2:$Q$50,10,FALSE)),"") ->  | K122: =IFERROR(VALUE(VLOOKUP(TEXT($A122,0),MEDIDAS!$A$2:$Q$50,11,FALSE)),"") ->  | L122: =IFERROR(VALUE(VLOOKUP(TEXT($A122,0),MEDIDAS!$A$2:$Q$50,12,FALSE)),"") ->  | M122: =IFERROR(VALUE(VLOOKUP(TEXT($A122,0),MEDIDAS!$A$2:$Q$50,13,FALSE)),"") ->  | N122: =IFERROR(VALUE(VLOOKUP(TEXT($A122,0),MEDIDAS!$A$2:$Q$50,14,FALSE)),"") ->  | O122: =IFERROR(VALUE(VLOOKUP(TEXT($A122,0),MEDIDAS!$A$2:$Q$50,15,FALSE)),"") ->  | P122: =IFERROR(VALUE(VLOOKUP(TEXT($A122,0),MEDIDAS!$A$2:$Q$50,16,FALSE)),"") ->  | Q122: =IFERROR(VLOOKUP(TEXT($A122,0),MEDIDAS!$A$2:$Q$50,17,FALSE),"") -> 
A123: 115 | B123: =IFERROR(VLOOKUP(TEXT($A123,0),MEDIDAS!$A$2:$Q$50,2,FALSE),"") ->  | C123: =IFERROR(VLOOKUP(TEXT($A123,0),MEDIDAS!$A$2:$Q$50,3,FALSE),"") ->  | D123: =IFERROR(VLOOKUP(TEXT($A123,0),MEDIDAS!$A$2:$Q$50,4,FALSE),"") ->  | E123: =IFERROR(VLOOKUP(TEXT($A123,0),MEDIDAS!$A$2:$Q$50,5,FALSE),"") ->  | F123: =IFERROR(VLOOKUP(TEXT($A123,0),MEDIDAS!$A$2:$Q$50,6,FALSE),"") ->  | G123: =IFERROR(VLOOKUP(TEXT($A123,0),MEDIDAS!$A$2:$Q$50,7,FALSE),"") ->  | H123: =IFERROR(VLOOKUP(TEXT($A123,0),MEDIDAS!$A$2:$Q$50,8,FALSE),"") ->  | I123: =IFERROR(VLOOKUP(TEXT($A123,0),MEDIDAS!$A$2:$Q$50,9,FALSE),"") ->  | J123: =IFERROR(VALUE(VLOOKUP(TEXT($A123,0),MEDIDAS!$A$2:$Q$50,10,FALSE)),"") ->  | K123: =IFERROR(VALUE(VLOOKUP(TEXT($A123,0),MEDIDAS!$A$2:$Q$50,11,FALSE)),"") ->  | L123: =IFERROR(VALUE(VLOOKUP(TEXT($A123,0),MEDIDAS!$A$2:$Q$50,12,FALSE)),"") ->  | M123: =IFERROR(VALUE(VLOOKUP(TEXT($A123,0),MEDIDAS!$A$2:$Q$50,13,FALSE)),"") ->  | N123: =IFERROR(VALUE(VLOOKUP(TEXT($A123,0),MEDIDAS!$A$2:$Q$50,14,FALSE)),"") ->  | O123: =IFERROR(VALUE(VLOOKUP(TEXT($A123,0),MEDIDAS!$A$2:$Q$50,15,FALSE)),"") ->  | P123: =IFERROR(VALUE(VLOOKUP(TEXT($A123,0),MEDIDAS!$A$2:$Q$50,16,FALSE)),"") ->  | Q123: =IFERROR(VLOOKUP(TEXT($A123,0),MEDIDAS!$A$2:$Q$50,17,FALSE),"") -> 
A124: 116 | B124: =IFERROR(VLOOKUP(TEXT($A124,0),MEDIDAS!$A$2:$Q$50,2,FALSE),"") ->  | C124: =IFERROR(VLOOKUP(TEXT($A124,0),MEDIDAS!$A$2:$Q$50,3,FALSE),"") ->  | D124: =IFERROR(VLOOKUP(TEXT($A124,0),MEDIDAS!$A$2:$Q$50,4,FALSE),"") ->  | E124: =IFERROR(VLOOKUP(TEXT($A124,0),MEDIDAS!$A$2:$Q$50,5,FALSE),"") ->  | F124: =IFERROR(VLOOKUP(TEXT($A124,0),MEDIDAS!$A$2:$Q$50,6,FALSE),"") ->  | G124: =IFERROR(VLOOKUP(TEXT($A124,0),MEDIDAS!$A$2:$Q$50,7,FALSE),"") ->  | H124: =IFERROR(VLOOKUP(TEXT($A124,0),MEDIDAS!$A$2:$Q$50,8,FALSE),"") ->  | I124: =IFERROR(VLOOKUP(TEXT($A124,0),MEDIDAS!$A$2:$Q$50,9,FALSE),"") ->  | J124: =IFERROR(VALUE(VLOOKUP(TEXT($A124,0),MEDIDAS!$A$2:$Q$50,10,FALSE)),"") ->  | K124: =IFERROR(VALUE(VLOOKUP(TEXT($A124,0),MEDIDAS!$A$2:$Q$50,11,FALSE)),"") ->  | L124: =IFERROR(VALUE(VLOOKUP(TEXT($A124,0),MEDIDAS!$A$2:$Q$50,12,FALSE)),"") ->  | M124: =IFERROR(VALUE(VLOOKUP(TEXT($A124,0),MEDIDAS!$A$2:$Q$50,13,FALSE)),"") ->  | N124: =IFERROR(VALUE(VLOOKUP(TEXT($A124,0),MEDIDAS!$A$2:$Q$50,14,FALSE)),"") ->  | O124: =IFERROR(VALUE(VLOOKUP(TEXT($A124,0),MEDIDAS!$A$2:$Q$50,15,FALSE)),"") ->  | P124: =IFERROR(VALUE(VLOOKUP(TEXT($A124,0),MEDIDAS!$A$2:$Q$50,16,FALSE)),"") ->  | Q124: =IFERROR(VLOOKUP(TEXT($A124,0),MEDIDAS!$A$2:$Q$50,17,FALSE),"") -> 
A125: 117 | B125: =IFERROR(VLOOKUP(TEXT($A125,0),MEDIDAS!$A$2:$Q$50,2,FALSE),"") ->  | C125: =IFERROR(VLOOKUP(TEXT($A125,0),MEDIDAS!$A$2:$Q$50,3,FALSE),"") ->  | D125: =IFERROR(VLOOKUP(TEXT($A125,0),MEDIDAS!$A$2:$Q$50,4,FALSE),"") ->  | E125: =IFERROR(VLOOKUP(TEXT($A125,0),MEDIDAS!$A$2:$Q$50,5,FALSE),"") ->  | F125: =IFERROR(VLOOKUP(TEXT($A125,0),MEDIDAS!$A$2:$Q$50,6,FALSE),"") ->  | G125: =IFERROR(VLOOKUP(TEXT($A125,0),MEDIDAS!$A$2:$Q$50,7,FALSE),"") ->  | H125: =IFERROR(VLOOKUP(TEXT($A125,0),MEDIDAS!$A$2:$Q$50,8,FALSE),"") ->  | I125: =IFERROR(VLOOKUP(TEXT($A125,0),MEDIDAS!$A$2:$Q$50,9,FALSE),"") ->  | J125: =IFERROR(VALUE(VLOOKUP(TEXT($A125,0),MEDIDAS!$A$2:$Q$50,10,FALSE)),"") ->  | K125: =IFERROR(VALUE(VLOOKUP(TEXT($A125,0),MEDIDAS!$A$2:$Q$50,11,FALSE)),"") ->  | L125: =IFERROR(VALUE(VLOOKUP(TEXT($A125,0),MEDIDAS!$A$2:$Q$50,12,FALSE)),"") ->  | M125: =IFERROR(VALUE(VLOOKUP(TEXT($A125,0),MEDIDAS!$A$2:$Q$50,13,FALSE)),"") ->  | N125: =IFERROR(VALUE(VLOOKUP(TEXT($A125,0),MEDIDAS!$A$2:$Q$50,14,FALSE)),"") ->  | O125: =IFERROR(VALUE(VLOOKUP(TEXT($A125,0),MEDIDAS!$A$2:$Q$50,15,FALSE)),"") ->  | P125: =IFERROR(VALUE(VLOOKUP(TEXT($A125,0),MEDIDAS!$A$2:$Q$50,16,FALSE)),"") ->  | Q125: =IFERROR(VLOOKUP(TEXT($A125,0),MEDIDAS!$A$2:$Q$50,17,FALSE),"") -> 
A126: 118 | B126: =IFERROR(VLOOKUP(TEXT($A126,0),MEDIDAS!$A$2:$Q$50,2,FALSE),"") ->  | C126: =IFERROR(VLOOKUP(TEXT($A126,0),MEDIDAS!$A$2:$Q$50,3,FALSE),"") ->  | D126: =IFERROR(VLOOKUP(TEXT($A126,0),MEDIDAS!$A$2:$Q$50,4,FALSE),"") ->  | E126: =IFERROR(VLOOKUP(TEXT($A126,0),MEDIDAS!$A$2:$Q$50,5,FALSE),"") ->  | F126: =IFERROR(VLOOKUP(TEXT($A126,0),MEDIDAS!$A$2:$Q$50,6,FALSE),"") ->  | G126: =IFERROR(VLOOKUP(TEXT($A126,0),MEDIDAS!$A$2:$Q$50,7,FALSE),"") ->  | H126: =IFERROR(VLOOKUP(TEXT($A126,0),MEDIDAS!$A$2:$Q$50,8,FALSE),"") ->  | I126: =IFERROR(VLOOKUP(TEXT($A126,0),MEDIDAS!$A$2:$Q$50,9,FALSE),"") ->  | J126: =IFERROR(VALUE(VLOOKUP(TEXT($A126,0),MEDIDAS!$A$2:$Q$50,10,FALSE)),"") ->  | K126: =IFERROR(VALUE(VLOOKUP(TEXT($A126,0),MEDIDAS!$A$2:$Q$50,11,FALSE)),"") ->  | L126: =IFERROR(VALUE(VLOOKUP(TEXT($A126,0),MEDIDAS!$A$2:$Q$50,12,FALSE)),"") ->  | M126: =IFERROR(VALUE(VLOOKUP(TEXT($A126,0),MEDIDAS!$A$2:$Q$50,13,FALSE)),"") ->  | N126: =IFERROR(VALUE(VLOOKUP(TEXT($A126,0),MEDIDAS!$A$2:$Q$50,14,FALSE)),"") ->  | O126: =IFERROR(VALUE(VLOOKUP(TEXT($A126,0),MEDIDAS!$A$2:$Q$50,15,FALSE)),"") ->  | P126: =IFERROR(VALUE(VLOOKUP(TEXT($A126,0),MEDIDAS!$A$2:$Q$50,16,FALSE)),"") ->  | Q126: =IFERROR(VLOOKUP(TEXT($A126,0),MEDIDAS!$A$2:$Q$50,17,FALSE),"") -> 
A127: 119 | B127: =IFERROR(VLOOKUP(TEXT($A127,0),MEDIDAS!$A$2:$Q$50,2,FALSE),"") ->  | C127: =IFERROR(VLOOKUP(TEXT($A127,0),MEDIDAS!$A$2:$Q$50,3,FALSE),"") ->  | D127: =IFERROR(VLOOKUP(TEXT($A127,0),MEDIDAS!$A$2:$Q$50,4,FALSE),"") ->  | E127: =IFERROR(VLOOKUP(TEXT($A127,0),MEDIDAS!$A$2:$Q$50,5,FALSE),"") ->  | F127: =IFERROR(VLOOKUP(TEXT($A127,0),MEDIDAS!$A$2:$Q$50,6,FALSE),"") ->  | G127: =IFERROR(VLOOKUP(TEXT($A127,0),MEDIDAS!$A$2:$Q$50,7,FALSE),"") ->  | H127: =IFERROR(VLOOKUP(TEXT($A127,0),MEDIDAS!$A$2:$Q$50,8,FALSE),"") ->  | I127: =IFERROR(VLOOKUP(TEXT($A127,0),MEDIDAS!$A$2:$Q$50,9,FALSE),"") ->  | J127: =IFERROR(VALUE(VLOOKUP(TEXT($A127,0),MEDIDAS!$A$2:$Q$50,10,FALSE)),"") ->  | K127: =IFERROR(VALUE(VLOOKUP(TEXT($A127,0),MEDIDAS!$A$2:$Q$50,11,FALSE)),"") ->  | L127: =IFERROR(VALUE(VLOOKUP(TEXT($A127,0),MEDIDAS!$A$2:$Q$50,12,FALSE)),"") ->  | M127: =IFERROR(VALUE(VLOOKUP(TEXT($A127,0),MEDIDAS!$A$2:$Q$50,13,FALSE)),"") ->  | N127: =IFERROR(VALUE(VLOOKUP(TEXT($A127,0),MEDIDAS!$A$2:$Q$50,14,FALSE)),"") ->  | O127: =IFERROR(VALUE(VLOOKUP(TEXT($A127,0),MEDIDAS!$A$2:$Q$50,15,FALSE)),"") ->  | P127: =IFERROR(VALUE(VLOOKUP(TEXT($A127,0),MEDIDAS!$A$2:$Q$50,16,FALSE)),"") ->  | Q127: =IFERROR(VLOOKUP(TEXT($A127,0),MEDIDAS!$A$2:$Q$50,17,FALSE),"") -> 
A128: 120 | B128: =IFERROR(VLOOKUP(TEXT($A128,0),MEDIDAS!$A$2:$Q$50,2,FALSE),"") ->  | C128: =IFERROR(VLOOKUP(TEXT($A128,0),MEDIDAS!$A$2:$Q$50,3,FALSE),"") ->  | D128: =IFERROR(VLOOKUP(TEXT($A128,0),MEDIDAS!$A$2:$Q$50,4,FALSE),"") ->  | E128: =IFERROR(VLOOKUP(TEXT($A128,0),MEDIDAS!$A$2:$Q$50,5,FALSE),"") ->  | F128: =IFERROR(VLOOKUP(TEXT($A128,0),MEDIDAS!$A$2:$Q$50,6,FALSE),"") ->  | G128: =IFERROR(VLOOKUP(TEXT($A128,0),MEDIDAS!$A$2:$Q$50,7,FALSE),"") ->  | H128: =IFERROR(VLOOKUP(TEXT($A128,0),MEDIDAS!$A$2:$Q$50,8,FALSE),"") ->  | I128: =IFERROR(VLOOKUP(TEXT($A128,0),MEDIDAS!$A$2:$Q$50,9,FALSE),"") ->  | J128: =IFERROR(VALUE(VLOOKUP(TEXT($A128,0),MEDIDAS!$A$2:$Q$50,10,FALSE)),"") ->  | K128: =IFERROR(VALUE(VLOOKUP(TEXT($A128,0),MEDIDAS!$A$2:$Q$50,11,FALSE)),"") ->  | L128: =IFERROR(VALUE(VLOOKUP(TEXT($A128,0),MEDIDAS!$A$2:$Q$50,12,FALSE)),"") ->  | M128: =IFERROR(VALUE(VLOOKUP(TEXT($A128,0),MEDIDAS!$A$2:$Q$50,13,FALSE)),"") ->  | N128: =IFERROR(VALUE(VLOOKUP(TEXT($A128,0),MEDIDAS!$A$2:$Q$50,14,FALSE)),"") ->  | O128: =IFERROR(VALUE(VLOOKUP(TEXT($A128,0),MEDIDAS!$A$2:$Q$50,15,FALSE)),"") ->  | P128: =IFERROR(VALUE(VLOOKUP(TEXT($A128,0),MEDIDAS!$A$2:$Q$50,16,FALSE)),"") ->  | Q128: =IFERROR(VLOOKUP(TEXT($A128,0),MEDIDAS!$A$2:$Q$50,17,FALSE),"") -> 
A129: 121 | B129: =IFERROR(VLOOKUP(TEXT($A129,0),MEDIDAS!$A$2:$Q$50,2,FALSE),"") ->  | C129: =IFERROR(VLOOKUP(TEXT($A129,0),MEDIDAS!$A$2:$Q$50,3,FALSE),"") ->  | D129: =IFERROR(VLOOKUP(TEXT($A129,0),MEDIDAS!$A$2:$Q$50,4,FALSE),"") ->  | E129: =IFERROR(VLOOKUP(TEXT($A129,0),MEDIDAS!$A$2:$Q$50,5,FALSE),"") ->  | F129: =IFERROR(VLOOKUP(TEXT($A129,0),MEDIDAS!$A$2:$Q$50,6,FALSE),"") ->  | G129: =IFERROR(VLOOKUP(TEXT($A129,0),MEDIDAS!$A$2:$Q$50,7,FALSE),"") ->  | H129: =IFERROR(VLOOKUP(TEXT($A129,0),MEDIDAS!$A$2:$Q$50,8,FALSE),"") ->  | I129: =IFERROR(VLOOKUP(TEXT($A129,0),MEDIDAS!$A$2:$Q$50,9,FALSE),"") ->  | J129: =IFERROR(VALUE(VLOOKUP(TEXT($A129,0),MEDIDAS!$A$2:$Q$50,10,FALSE)),"") ->  | K129: =IFERROR(VALUE(VLOOKUP(TEXT($A129,0),MEDIDAS!$A$2:$Q$50,11,FALSE)),"") ->  | L129: =IFERROR(VALUE(VLOOKUP(TEXT($A129,0),MEDIDAS!$A$2:$Q$50,12,FALSE)),"") ->  | M129: =IFERROR(VALUE(VLOOKUP(TEXT($A129,0),MEDIDAS!$A$2:$Q$50,13,FALSE)),"") ->  | N129: =IFERROR(VALUE(VLOOKUP(TEXT($A129,0),MEDIDAS!$A$2:$Q$50,14,FALSE)),"") ->  | O129: =IFERROR(VALUE(VLOOKUP(TEXT($A129,0),MEDIDAS!$A$2:$Q$50,15,FALSE)),"") ->  | P129: =IFERROR(VALUE(VLOOKUP(TEXT($A129,0),MEDIDAS!$A$2:$Q$50,16,FALSE)),"") ->  | Q129: =IFERROR(VLOOKUP(TEXT($A129,0),MEDIDAS!$A$2:$Q$50,17,FALSE),"") -> 
A130: 122 | B130: =IFERROR(VLOOKUP(TEXT($A130,0),MEDIDAS!$A$2:$Q$50,2,FALSE),"") ->  | C130: =IFERROR(VLOOKUP(TEXT($A130,0),MEDIDAS!$A$2:$Q$50,3,FALSE),"") ->  | D130: =IFERROR(VLOOKUP(TEXT($A130,0),MEDIDAS!$A$2:$Q$50,4,FALSE),"") ->  | E130: =IFERROR(VLOOKUP(TEXT($A130,0),MEDIDAS!$A$2:$Q$50,5,FALSE),"") ->  | F130: =IFERROR(VLOOKUP(TEXT($A130,0),MEDIDAS!$A$2:$Q$50,6,FALSE),"") ->  | G130: =IFERROR(VLOOKUP(TEXT($A130,0),MEDIDAS!$A$2:$Q$50,7,FALSE),"") ->  | H130: =IFERROR(VLOOKUP(TEXT($A130,0),MEDIDAS!$A$2:$Q$50,8,FALSE),"") ->  | I130: =IFERROR(VLOOKUP(TEXT($A130,0),MEDIDAS!$A$2:$Q$50,9,FALSE),"") ->  | J130: =IFERROR(VALUE(VLOOKUP(TEXT($A130,0),MEDIDAS!$A$2:$Q$50,10,FALSE)),"") ->  | K130: =IFERROR(VALUE(VLOOKUP(TEXT($A130,0),MEDIDAS!$A$2:$Q$50,11,FALSE)),"") ->  | L130: =IFERROR(VALUE(VLOOKUP(TEXT($A130,0),MEDIDAS!$A$2:$Q$50,12,FALSE)),"") ->  | M130: =IFERROR(VALUE(VLOOKUP(TEXT($A130,0),MEDIDAS!$A$2:$Q$50,13,FALSE)),"") ->  | N130: =IFERROR(VALUE(VLOOKUP(TEXT($A130,0),MEDIDAS!$A$2:$Q$50,14,FALSE)),"") ->  | O130: =IFERROR(VALUE(VLOOKUP(TEXT($A130,0),MEDIDAS!$A$2:$Q$50,15,FALSE)),"") ->  | P130: =IFERROR(VALUE(VLOOKUP(TEXT($A130,0),MEDIDAS!$A$2:$Q$50,16,FALSE)),"") ->  | Q130: =IFERROR(VLOOKUP(TEXT($A130,0),MEDIDAS!$A$2:$Q$50,17,FALSE),"") -> 
A131: 123 | B131: =IFERROR(VLOOKUP(TEXT($A131,0),MEDIDAS!$A$2:$Q$50,2,FALSE),"") ->  | C131: =IFERROR(VLOOKUP(TEXT($A131,0),MEDIDAS!$A$2:$Q$50,3,FALSE),"") ->  | D131: =IFERROR(VLOOKUP(TEXT($A131,0),MEDIDAS!$A$2:$Q$50,4,FALSE),"") ->  | E131: =IFERROR(VLOOKUP(TEXT($A131,0),MEDIDAS!$A$2:$Q$50,5,FALSE),"") ->  | F131: =IFERROR(VLOOKUP(TEXT($A131,0),MEDIDAS!$A$2:$Q$50,6,FALSE),"") ->  | G131: =IFERROR(VLOOKUP(TEXT($A131,0),MEDIDAS!$A$2:$Q$50,7,FALSE),"") ->  | H131: =IFERROR(VLOOKUP(TEXT($A131,0),MEDIDAS!$A$2:$Q$50,8,FALSE),"") ->  | I131: =IFERROR(VLOOKUP(TEXT($A131,0),MEDIDAS!$A$2:$Q$50,9,FALSE),"") ->  | J131: =IFERROR(VALUE(VLOOKUP(TEXT($A131,0),MEDIDAS!$A$2:$Q$50,10,FALSE)),"") ->  | K131: =IFERROR(VALUE(VLOOKUP(TEXT($A131,0),MEDIDAS!$A$2:$Q$50,11,FALSE)),"") ->  | L131: =IFERROR(VALUE(VLOOKUP(TEXT($A131,0),MEDIDAS!$A$2:$Q$50,12,FALSE)),"") ->  | M131: =IFERROR(VALUE(VLOOKUP(TEXT($A131,0),MEDIDAS!$A$2:$Q$50,13,FALSE)),"") ->  | N131: =IFERROR(VALUE(VLOOKUP(TEXT($A131,0),MEDIDAS!$A$2:$Q$50,14,FALSE)),"") ->  | O131: =IFERROR(VALUE(VLOOKUP(TEXT($A131,0),MEDIDAS!$A$2:$Q$50,15,FALSE)),"") ->  | P131: =IFERROR(VALUE(VLOOKUP(TEXT($A131,0),MEDIDAS!$A$2:$Q$50,16,FALSE)),"") ->  | Q131: =IFERROR(VLOOKUP(TEXT($A131,0),MEDIDAS!$A$2:$Q$50,17,FALSE),"") -> 
A132: 124 | B132: =IFERROR(VLOOKUP(TEXT($A132,0),MEDIDAS!$A$2:$Q$50,2,FALSE),"") ->  | C132: =IFERROR(VLOOKUP(TEXT($A132,0),MEDIDAS!$A$2:$Q$50,3,FALSE),"") ->  | D132: =IFERROR(VLOOKUP(TEXT($A132,0),MEDIDAS!$A$2:$Q$50,4,FALSE),"") ->  | E132: =IFERROR(VLOOKUP(TEXT($A132,0),MEDIDAS!$A$2:$Q$50,5,FALSE),"") ->  | F132: =IFERROR(VLOOKUP(TEXT($A132,0),MEDIDAS!$A$2:$Q$50,6,FALSE),"") ->  | G132: =IFERROR(VLOOKUP(TEXT($A132,0),MEDIDAS!$A$2:$Q$50,7,FALSE),"") ->  | H132: =IFERROR(VLOOKUP(TEXT($A132,0),MEDIDAS!$A$2:$Q$50,8,FALSE),"") ->  | I132: =IFERROR(VLOOKUP(TEXT($A132,0),MEDIDAS!$A$2:$Q$50,9,FALSE),"") ->  | J132: =IFERROR(VALUE(VLOOKUP(TEXT($A132,0),MEDIDAS!$A$2:$Q$50,10,FALSE)),"") ->  | K132: =IFERROR(VALUE(VLOOKUP(TEXT($A132,0),MEDIDAS!$A$2:$Q$50,11,FALSE)),"") ->  | L132: =IFERROR(VALUE(VLOOKUP(TEXT($A132,0),MEDIDAS!$A$2:$Q$50,12,FALSE)),"") ->  | M132: =IFERROR(VALUE(VLOOKUP(TEXT($A132,0),MEDIDAS!$A$2:$Q$50,13,FALSE)),"") ->  | N132: =IFERROR(VALUE(VLOOKUP(TEXT($A132,0),MEDIDAS!$A$2:$Q$50,14,FALSE)),"") ->  | O132: =IFERROR(VALUE(VLOOKUP(TEXT($A132,0),MEDIDAS!$A$2:$Q$50,15,FALSE)),"") ->  | P132: =IFERROR(VALUE(VLOOKUP(TEXT($A132,0),MEDIDAS!$A$2:$Q$50,16,FALSE)),"") ->  | Q132: =IFERROR(VLOOKUP(TEXT($A132,0),MEDIDAS!$A$2:$Q$50,17,FALSE),"") -> 
A133: 125 | B133: =IFERROR(VLOOKUP(TEXT($A133,0),MEDIDAS!$A$2:$Q$50,2,FALSE),"") ->  | C133: =IFERROR(VLOOKUP(TEXT($A133,0),MEDIDAS!$A$2:$Q$50,3,FALSE),"") ->  | D133: =IFERROR(VLOOKUP(TEXT($A133,0),MEDIDAS!$A$2:$Q$50,4,FALSE),"") ->  | E133: =IFERROR(VLOOKUP(TEXT($A133,0),MEDIDAS!$A$2:$Q$50,5,FALSE),"") ->  | F133: =IFERROR(VLOOKUP(TEXT($A133,0),MEDIDAS!$A$2:$Q$50,6,FALSE),"") ->  | G133: =IFERROR(VLOOKUP(TEXT($A133,0),MEDIDAS!$A$2:$Q$50,7,FALSE),"") ->  | H133: =IFERROR(VLOOKUP(TEXT($A133,0),MEDIDAS!$A$2:$Q$50,8,FALSE),"") ->  | I133: =IFERROR(VLOOKUP(TEXT($A133,0),MEDIDAS!$A$2:$Q$50,9,FALSE),"") ->  | J133: =IFERROR(VALUE(VLOOKUP(TEXT($A133,0),MEDIDAS!$A$2:$Q$50,10,FALSE)),"") ->  | K133: =IFERROR(VALUE(VLOOKUP(TEXT($A133,0),MEDIDAS!$A$2:$Q$50,11,FALSE)),"") ->  | L133: =IFERROR(VALUE(VLOOKUP(TEXT($A133,0),MEDIDAS!$A$2:$Q$50,12,FALSE)),"") ->  | M133: =IFERROR(VALUE(VLOOKUP(TEXT($A133,0),MEDIDAS!$A$2:$Q$50,13,FALSE)),"") ->  | N133: =IFERROR(VALUE(VLOOKUP(TEXT($A133,0),MEDIDAS!$A$2:$Q$50,14,FALSE)),"") ->  | O133: =IFERROR(VALUE(VLOOKUP(TEXT($A133,0),MEDIDAS!$A$2:$Q$50,15,FALSE)),"") ->  | P133: =IFERROR(VALUE(VLOOKUP(TEXT($A133,0),MEDIDAS!$A$2:$Q$50,16,FALSE)),"") ->  | Q133: =IFERROR(VLOOKUP(TEXT($A133,0),MEDIDAS!$A$2:$Q$50,17,FALSE),"") -> 
A134: 126 | B134: =IFERROR(VLOOKUP(TEXT($A134,0),MEDIDAS!$A$2:$Q$50,2,FALSE),"") ->  | C134: =IFERROR(VLOOKUP(TEXT($A134,0),MEDIDAS!$A$2:$Q$50,3,FALSE),"") ->  | D134: =IFERROR(VLOOKUP(TEXT($A134,0),MEDIDAS!$A$2:$Q$50,4,FALSE),"") ->  | E134: =IFERROR(VLOOKUP(TEXT($A134,0),MEDIDAS!$A$2:$Q$50,5,FALSE),"") ->  | F134: =IFERROR(VLOOKUP(TEXT($A134,0),MEDIDAS!$A$2:$Q$50,6,FALSE),"") ->  | G134: =IFERROR(VLOOKUP(TEXT($A134,0),MEDIDAS!$A$2:$Q$50,7,FALSE),"") ->  | H134: =IFERROR(VLOOKUP(TEXT($A134,0),MEDIDAS!$A$2:$Q$50,8,FALSE),"") ->  | I134: =IFERROR(VLOOKUP(TEXT($A134,0),MEDIDAS!$A$2:$Q$50,9,FALSE),"") ->  | J134: =IFERROR(VALUE(VLOOKUP(TEXT($A134,0),MEDIDAS!$A$2:$Q$50,10,FALSE)),"") ->  | K134: =IFERROR(VALUE(VLOOKUP(TEXT($A134,0),MEDIDAS!$A$2:$Q$50,11,FALSE)),"") ->  | L134: =IFERROR(VALUE(VLOOKUP(TEXT($A134,0),MEDIDAS!$A$2:$Q$50,12,FALSE)),"") ->  | M134: =IFERROR(VALUE(VLOOKUP(TEXT($A134,0),MEDIDAS!$A$2:$Q$50,13,FALSE)),"") ->  | N134: =IFERROR(VALUE(VLOOKUP(TEXT($A134,0),MEDIDAS!$A$2:$Q$50,14,FALSE)),"") ->  | O134: =IFERROR(VALUE(VLOOKUP(TEXT($A134,0),MEDIDAS!$A$2:$Q$50,15,FALSE)),"") ->  | P134: =IFERROR(VALUE(VLOOKUP(TEXT($A134,0),MEDIDAS!$A$2:$Q$50,16,FALSE)),"") ->  | Q134: =IFERROR(VLOOKUP(TEXT($A134,0),MEDIDAS!$A$2:$Q$50,17,FALSE),"") -> 
A135: 127 | B135: =IFERROR(VLOOKUP(TEXT($A135,0),MEDIDAS!$A$2:$Q$50,2,FALSE),"") ->  | C135: =IFERROR(VLOOKUP(TEXT($A135,0),MEDIDAS!$A$2:$Q$50,3,FALSE),"") ->  | D135: =IFERROR(VLOOKUP(TEXT($A135,0),MEDIDAS!$A$2:$Q$50,4,FALSE),"") ->  | E135: =IFERROR(VLOOKUP(TEXT($A135,0),MEDIDAS!$A$2:$Q$50,5,FALSE),"") ->  | F135: =IFERROR(VLOOKUP(TEXT($A135,0),MEDIDAS!$A$2:$Q$50,6,FALSE),"") ->  | G135: =IFERROR(VLOOKUP(TEXT($A135,0),MEDIDAS!$A$2:$Q$50,7,FALSE),"") ->  | H135: =IFERROR(VLOOKUP(TEXT($A135,0),MEDIDAS!$A$2:$Q$50,8,FALSE),"") ->  | I135: =IFERROR(VLOOKUP(TEXT($A135,0),MEDIDAS!$A$2:$Q$50,9,FALSE),"") ->  | J135: =IFERROR(VALUE(VLOOKUP(TEXT($A135,0),MEDIDAS!$A$2:$Q$50,10,FALSE)),"") ->  | K135: =IFERROR(VALUE(VLOOKUP(TEXT($A135,0),MEDIDAS!$A$2:$Q$50,11,FALSE)),"") ->  | L135: =IFERROR(VALUE(VLOOKUP(TEXT($A135,0),MEDIDAS!$A$2:$Q$50,12,FALSE)),"") ->  | M135: =IFERROR(VALUE(VLOOKUP(TEXT($A135,0),MEDIDAS!$A$2:$Q$50,13,FALSE)),"") ->  | N135: =IFERROR(VALUE(VLOOKUP(TEXT($A135,0),MEDIDAS!$A$2:$Q$50,14,FALSE)),"") ->  | O135: =IFERROR(VALUE(VLOOKUP(TEXT($A135,0),MEDIDAS!$A$2:$Q$50,15,FALSE)),"") ->  | P135: =IFERROR(VALUE(VLOOKUP(TEXT($A135,0),MEDIDAS!$A$2:$Q$50,16,FALSE)),"") ->  | Q135: =IFERROR(VLOOKUP(TEXT($A135,0),MEDIDAS!$A$2:$Q$50,17,FALSE),"") -> 
A136: 128 | B136: =IFERROR(VLOOKUP(TEXT($A136,0),MEDIDAS!$A$2:$Q$50,2,FALSE),"") ->  | C136: =IFERROR(VLOOKUP(TEXT($A136,0),MEDIDAS!$A$2:$Q$50,3,FALSE),"") ->  | D136: =IFERROR(VLOOKUP(TEXT($A136,0),MEDIDAS!$A$2:$Q$50,4,FALSE),"") ->  | E136: =IFERROR(VLOOKUP(TEXT($A136,0),MEDIDAS!$A$2:$Q$50,5,FALSE),"") ->  | F136: =IFERROR(VLOOKUP(TEXT($A136,0),MEDIDAS!$A$2:$Q$50,6,FALSE),"") ->  | G136: =IFERROR(VLOOKUP(TEXT($A136,0),MEDIDAS!$A$2:$Q$50,7,FALSE),"") ->  | H136: =IFERROR(VLOOKUP(TEXT($A136,0),MEDIDAS!$A$2:$Q$50,8,FALSE),"") ->  | I136: =IFERROR(VLOOKUP(TEXT($A136,0),MEDIDAS!$A$2:$Q$50,9,FALSE),"") ->  | J136: =IFERROR(VALUE(VLOOKUP(TEXT($A136,0),MEDIDAS!$A$2:$Q$50,10,FALSE)),"") ->  | K136: =IFERROR(VALUE(VLOOKUP(TEXT($A136,0),MEDIDAS!$A$2:$Q$50,11,FALSE)),"") ->  | L136: =IFERROR(VALUE(VLOOKUP(TEXT($A136,0),MEDIDAS!$A$2:$Q$50,12,FALSE)),"") ->  | M136: =IFERROR(VALUE(VLOOKUP(TEXT($A136,0),MEDIDAS!$A$2:$Q$50,13,FALSE)),"") ->  | N136: =IFERROR(VALUE(VLOOKUP(TEXT($A136,0),MEDIDAS!$A$2:$Q$50,14,FALSE)),"") ->  | O136: =IFERROR(VALUE(VLOOKUP(TEXT($A136,0),MEDIDAS!$A$2:$Q$50,15,FALSE)),"") ->  | P136: =IFERROR(VALUE(VLOOKUP(TEXT($A136,0),MEDIDAS!$A$2:$Q$50,16,FALSE)),"") ->  | Q136: =IFERROR(VLOOKUP(TEXT($A136,0),MEDIDAS!$A$2:$Q$50,17,FALSE),"") -> 
A137: 129 | B137: =IFERROR(VLOOKUP(TEXT($A137,0),MEDIDAS!$A$2:$Q$50,2,FALSE),"") ->  | C137: =IFERROR(VLOOKUP(TEXT($A137,0),MEDIDAS!$A$2:$Q$50,3,FALSE),"") ->  | D137: =IFERROR(VLOOKUP(TEXT($A137,0),MEDIDAS!$A$2:$Q$50,4,FALSE),"") ->  | E137: =IFERROR(VLOOKUP(TEXT($A137,0),MEDIDAS!$A$2:$Q$50,5,FALSE),"") ->  | F137: =IFERROR(VLOOKUP(TEXT($A137,0),MEDIDAS!$A$2:$Q$50,6,FALSE),"") ->  | G137: =IFERROR(VLOOKUP(TEXT($A137,0),MEDIDAS!$A$2:$Q$50,7,FALSE),"") ->  | H137: =IFERROR(VLOOKUP(TEXT($A137,0),MEDIDAS!$A$2:$Q$50,8,FALSE),"") ->  | I137: =IFERROR(VLOOKUP(TEXT($A137,0),MEDIDAS!$A$2:$Q$50,9,FALSE),"") ->  | J137: =IFERROR(VALUE(VLOOKUP(TEXT($A137,0),MEDIDAS!$A$2:$Q$50,10,FALSE)),"") ->  | K137: =IFERROR(VALUE(VLOOKUP(TEXT($A137,0),MEDIDAS!$A$2:$Q$50,11,FALSE)),"") ->  | L137: =IFERROR(VALUE(VLOOKUP(TEXT($A137,0),MEDIDAS!$A$2:$Q$50,12,FALSE)),"") ->  | M137: =IFERROR(VALUE(VLOOKUP(TEXT($A137,0),MEDIDAS!$A$2:$Q$50,13,FALSE)),"") ->  | N137: =IFERROR(VALUE(VLOOKUP(TEXT($A137,0),MEDIDAS!$A$2:$Q$50,14,FALSE)),"") ->  | O137: =IFERROR(VALUE(VLOOKUP(TEXT($A137,0),MEDIDAS!$A$2:$Q$50,15,FALSE)),"") ->  | P137: =IFERROR(VALUE(VLOOKUP(TEXT($A137,0),MEDIDAS!$A$2:$Q$50,16,FALSE)),"") ->  | Q137: =IFERROR(VLOOKUP(TEXT($A137,0),MEDIDAS!$A$2:$Q$50,17,FALSE),"") -> 
A138: 130 | B138: =IFERROR(VLOOKUP(TEXT($A138,0),MEDIDAS!$A$2:$Q$50,2,FALSE),"") ->  | C138: =IFERROR(VLOOKUP(TEXT($A138,0),MEDIDAS!$A$2:$Q$50,3,FALSE),"") ->  | D138: =IFERROR(VLOOKUP(TEXT($A138,0),MEDIDAS!$A$2:$Q$50,4,FALSE),"") ->  | E138: =IFERROR(VLOOKUP(TEXT($A138,0),MEDIDAS!$A$2:$Q$50,5,FALSE),"") ->  | F138: =IFERROR(VLOOKUP(TEXT($A138,0),MEDIDAS!$A$2:$Q$50,6,FALSE),"") ->  | G138: =IFERROR(VLOOKUP(TEXT($A138,0),MEDIDAS!$A$2:$Q$50,7,FALSE),"") ->  | H138: =IFERROR(VLOOKUP(TEXT($A138,0),MEDIDAS!$A$2:$Q$50,8,FALSE),"") ->  | I138: =IFERROR(VLOOKUP(TEXT($A138,0),MEDIDAS!$A$2:$Q$50,9,FALSE),"") ->  | J138: =IFERROR(VALUE(VLOOKUP(TEXT($A138,0),MEDIDAS!$A$2:$Q$50,10,FALSE)),"") ->  | K138: =IFERROR(VALUE(VLOOKUP(TEXT($A138,0),MEDIDAS!$A$2:$Q$50,11,FALSE)),"") ->  | L138: =IFERROR(VALUE(VLOOKUP(TEXT($A138,0),MEDIDAS!$A$2:$Q$50,12,FALSE)),"") ->  | M138: =IFERROR(VALUE(VLOOKUP(TEXT($A138,0),MEDIDAS!$A$2:$Q$50,13,FALSE)),"") ->  | N138: =IFERROR(VALUE(VLOOKUP(TEXT($A138,0),MEDIDAS!$A$2:$Q$50,14,FALSE)),"") ->  | O138: =IFERROR(VALUE(VLOOKUP(TEXT($A138,0),MEDIDAS!$A$2:$Q$50,15,FALSE)),"") ->  | P138: =IFERROR(VALUE(VLOOKUP(TEXT($A138,0),MEDIDAS!$A$2:$Q$50,16,FALSE)),"") ->  | Q138: =IFERROR(VLOOKUP(TEXT($A138,0),MEDIDAS!$A$2:$Q$50,17,FALSE),"") -> 
A139: 131 | B139: =IFERROR(VLOOKUP(TEXT($A139,0),MEDIDAS!$A$2:$Q$50,2,FALSE),"") ->  | C139: =IFERROR(VLOOKUP(TEXT($A139,0),MEDIDAS!$A$2:$Q$50,3,FALSE),"") ->  | D139: =IFERROR(VLOOKUP(TEXT($A139,0),MEDIDAS!$A$2:$Q$50,4,FALSE),"") ->  | E139: =IFERROR(VLOOKUP(TEXT($A139,0),MEDIDAS!$A$2:$Q$50,5,FALSE),"") ->  | F139: =IFERROR(VLOOKUP(TEXT($A139,0),MEDIDAS!$A$2:$Q$50,6,FALSE),"") ->  | G139: =IFERROR(VLOOKUP(TEXT($A139,0),MEDIDAS!$A$2:$Q$50,7,FALSE),"") ->  | H139: =IFERROR(VLOOKUP(TEXT($A139,0),MEDIDAS!$A$2:$Q$50,8,FALSE),"") ->  | I139: =IFERROR(VLOOKUP(TEXT($A139,0),MEDIDAS!$A$2:$Q$50,9,FALSE),"") ->  | J139: =IFERROR(VALUE(VLOOKUP(TEXT($A139,0),MEDIDAS!$A$2:$Q$50,10,FALSE)),"") ->  | K139: =IFERROR(VALUE(VLOOKUP(TEXT($A139,0),MEDIDAS!$A$2:$Q$50,11,FALSE)),"") ->  | L139: =IFERROR(VALUE(VLOOKUP(TEXT($A139,0),MEDIDAS!$A$2:$Q$50,12,FALSE)),"") ->  | M139: =IFERROR(VALUE(VLOOKUP(TEXT($A139,0),MEDIDAS!$A$2:$Q$50,13,FALSE)),"") ->  | N139: =IFERROR(VALUE(VLOOKUP(TEXT($A139,0),MEDIDAS!$A$2:$Q$50,14,FALSE)),"") ->  | O139: =IFERROR(VALUE(VLOOKUP(TEXT($A139,0),MEDIDAS!$A$2:$Q$50,15,FALSE)),"") ->  | P139: =IFERROR(VALUE(VLOOKUP(TEXT($A139,0),MEDIDAS!$A$2:$Q$50,16,FALSE)),"") ->  | Q139: =IFERROR(VLOOKUP(TEXT($A139,0),MEDIDAS!$A$2:$Q$50,17,FALSE),"") -> 
A140: 132 | B140: =IFERROR(VLOOKUP(TEXT($A140,0),MEDIDAS!$A$2:$Q$50,2,FALSE),"") ->  | C140: =IFERROR(VLOOKUP(TEXT($A140,0),MEDIDAS!$A$2:$Q$50,3,FALSE),"") ->  | D140: =IFERROR(VLOOKUP(TEXT($A140,0),MEDIDAS!$A$2:$Q$50,4,FALSE),"") ->  | E140: =IFERROR(VLOOKUP(TEXT($A140,0),MEDIDAS!$A$2:$Q$50,5,FALSE),"") ->  | F140: =IFERROR(VLOOKUP(TEXT($A140,0),MEDIDAS!$A$2:$Q$50,6,FALSE),"") ->  | G140: =IFERROR(VLOOKUP(TEXT($A140,0),MEDIDAS!$A$2:$Q$50,7,FALSE),"") ->  | H140: =IFERROR(VLOOKUP(TEXT($A140,0),MEDIDAS!$A$2:$Q$50,8,FALSE),"") ->  | I140: =IFERROR(VLOOKUP(TEXT($A140,0),MEDIDAS!$A$2:$Q$50,9,FALSE),"") ->  | J140: =IFERROR(VALUE(VLOOKUP(TEXT($A140,0),MEDIDAS!$A$2:$Q$50,10,FALSE)),"") ->  | K140: =IFERROR(VALUE(VLOOKUP(TEXT($A140,0),MEDIDAS!$A$2:$Q$50,11,FALSE)),"") ->  | L140: =IFERROR(VALUE(VLOOKUP(TEXT($A140,0),MEDIDAS!$A$2:$Q$50,12,FALSE)),"") ->  | M140: =IFERROR(VALUE(VLOOKUP(TEXT($A140,0),MEDIDAS!$A$2:$Q$50,13,FALSE)),"") ->  | N140: =IFERROR(VALUE(VLOOKUP(TEXT($A140,0),MEDIDAS!$A$2:$Q$50,14,FALSE)),"") ->  | O140: =IFERROR(VALUE(VLOOKUP(TEXT($A140,0),MEDIDAS!$A$2:$Q$50,15,FALSE)),"") ->  | P140: =IFERROR(VALUE(VLOOKUP(TEXT($A140,0),MEDIDAS!$A$2:$Q$50,16,FALSE)),"") ->  | Q140: =IFERROR(VLOOKUP(TEXT($A140,0),MEDIDAS!$A$2:$Q$50,17,FALSE),"") -> 
A141: 133 | B141: =IFERROR(VLOOKUP(TEXT($A141,0),MEDIDAS!$A$2:$Q$50,2,FALSE),"") ->  | C141: =IFERROR(VLOOKUP(TEXT($A141,0),MEDIDAS!$A$2:$Q$50,3,FALSE),"") ->  | D141: =IFERROR(VLOOKUP(TEXT($A141,0),MEDIDAS!$A$2:$Q$50,4,FALSE),"") ->  | E141: =IFERROR(VLOOKUP(TEXT($A141,0),MEDIDAS!$A$2:$Q$50,5,FALSE),"") ->  | F141: =IFERROR(VLOOKUP(TEXT($A141,0),MEDIDAS!$A$2:$Q$50,6,FALSE),"") ->  | G141: =IFERROR(VLOOKUP(TEXT($A141,0),MEDIDAS!$A$2:$Q$50,7,FALSE),"") ->  | H141: =IFERROR(VLOOKUP(TEXT($A141,0),MEDIDAS!$A$2:$Q$50,8,FALSE),"") ->  | I141: =IFERROR(VLOOKUP(TEXT($A141,0),MEDIDAS!$A$2:$Q$50,9,FALSE),"") ->  | J141: =IFERROR(VALUE(VLOOKUP(TEXT($A141,0),MEDIDAS!$A$2:$Q$50,10,FALSE)),"") ->  | K141: =IFERROR(VALUE(VLOOKUP(TEXT($A141,0),MEDIDAS!$A$2:$Q$50,11,FALSE)),"") ->  | L141: =IFERROR(VALUE(VLOOKUP(TEXT($A141,0),MEDIDAS!$A$2:$Q$50,12,FALSE)),"") ->  | M141: =IFERROR(VALUE(VLOOKUP(TEXT($A141,0),MEDIDAS!$A$2:$Q$50,13,FALSE)),"") ->  | N141: =IFERROR(VALUE(VLOOKUP(TEXT($A141,0),MEDIDAS!$A$2:$Q$50,14,FALSE)),"") ->  | O141: =IFERROR(VALUE(VLOOKUP(TEXT($A141,0),MEDIDAS!$A$2:$Q$50,15,FALSE)),"") ->  | P141: =IFERROR(VALUE(VLOOKUP(TEXT($A141,0),MEDIDAS!$A$2:$Q$50,16,FALSE)),"") ->  | Q141: =IFERROR(VLOOKUP(TEXT($A141,0),MEDIDAS!$A$2:$Q$50,17,FALSE),"") -> 
A142: 134 | B142: =IFERROR(VLOOKUP(TEXT($A142,0),MEDIDAS!$A$2:$Q$50,2,FALSE),"") ->  | C142: =IFERROR(VLOOKUP(TEXT($A142,0),MEDIDAS!$A$2:$Q$50,3,FALSE),"") ->  | D142: =IFERROR(VLOOKUP(TEXT($A142,0),MEDIDAS!$A$2:$Q$50,4,FALSE),"") ->  | E142: =IFERROR(VLOOKUP(TEXT($A142,0),MEDIDAS!$A$2:$Q$50,5,FALSE),"") ->  | F142: =IFERROR(VLOOKUP(TEXT($A142,0),MEDIDAS!$A$2:$Q$50,6,FALSE),"") ->  | G142: =IFERROR(VLOOKUP(TEXT($A142,0),MEDIDAS!$A$2:$Q$50,7,FALSE),"") ->  | H142: =IFERROR(VLOOKUP(TEXT($A142,0),MEDIDAS!$A$2:$Q$50,8,FALSE),"") ->  | I142: =IFERROR(VLOOKUP(TEXT($A142,0),MEDIDAS!$A$2:$Q$50,9,FALSE),"") ->  | J142: =IFERROR(VALUE(VLOOKUP(TEXT($A142,0),MEDIDAS!$A$2:$Q$50,10,FALSE)),"") ->  | K142: =IFERROR(VALUE(VLOOKUP(TEXT($A142,0),MEDIDAS!$A$2:$Q$50,11,FALSE)),"") ->  | L142: =IFERROR(VALUE(VLOOKUP(TEXT($A142,0),MEDIDAS!$A$2:$Q$50,12,FALSE)),"") ->  | M142: =IFERROR(VALUE(VLOOKUP(TEXT($A142,0),MEDIDAS!$A$2:$Q$50,13,FALSE)),"") ->  | N142: =IFERROR(VALUE(VLOOKUP(TEXT($A142,0),MEDIDAS!$A$2:$Q$50,14,FALSE)),"") ->  | O142: =IFERROR(VALUE(VLOOKUP(TEXT($A142,0),MEDIDAS!$A$2:$Q$50,15,FALSE)),"") ->  | P142: =IFERROR(VALUE(VLOOKUP(TEXT($A142,0),MEDIDAS!$A$2:$Q$50,16,FALSE)),"") ->  | Q142: =IFERROR(VLOOKUP(TEXT($A142,0),MEDIDAS!$A$2:$Q$50,17,FALSE),"") -> 
A143: 135 | B143: =IFERROR(VLOOKUP(TEXT($A143,0),MEDIDAS!$A$2:$Q$50,2,FALSE),"") ->  | C143: =IFERROR(VLOOKUP(TEXT($A143,0),MEDIDAS!$A$2:$Q$50,3,FALSE),"") ->  | D143: =IFERROR(VLOOKUP(TEXT($A143,0),MEDIDAS!$A$2:$Q$50,4,FALSE),"") ->  | E143: =IFERROR(VLOOKUP(TEXT($A143,0),MEDIDAS!$A$2:$Q$50,5,FALSE),"") ->  | F143: =IFERROR(VLOOKUP(TEXT($A143,0),MEDIDAS!$A$2:$Q$50,6,FALSE),"") ->  | G143: =IFERROR(VLOOKUP(TEXT($A143,0),MEDIDAS!$A$2:$Q$50,7,FALSE),"") ->  | H143: =IFERROR(VLOOKUP(TEXT($A143,0),MEDIDAS!$A$2:$Q$50,8,FALSE),"") ->  | I143: =IFERROR(VLOOKUP(TEXT($A143,0),MEDIDAS!$A$2:$Q$50,9,FALSE),"") ->  | J143: =IFERROR(VALUE(VLOOKUP(TEXT($A143,0),MEDIDAS!$A$2:$Q$50,10,FALSE)),"") ->  | K143: =IFERROR(VALUE(VLOOKUP(TEXT($A143,0),MEDIDAS!$A$2:$Q$50,11,FALSE)),"") ->  | L143: =IFERROR(VALUE(VLOOKUP(TEXT($A143,0),MEDIDAS!$A$2:$Q$50,12,FALSE)),"") ->  | M143: =IFERROR(VALUE(VLOOKUP(TEXT($A143,0),MEDIDAS!$A$2:$Q$50,13,FALSE)),"") ->  | N143: =IFERROR(VALUE(VLOOKUP(TEXT($A143,0),MEDIDAS!$A$2:$Q$50,14,FALSE)),"") ->  | O143: =IFERROR(VALUE(VLOOKUP(TEXT($A143,0),MEDIDAS!$A$2:$Q$50,15,FALSE)),"") ->  | P143: =IFERROR(VALUE(VLOOKUP(TEXT($A143,0),MEDIDAS!$A$2:$Q$50,16,FALSE)),"") ->  | Q143: =IFERROR(VLOOKUP(TEXT($A143,0),MEDIDAS!$A$2:$Q$50,17,FALSE),"") -> 
A144: 136 | B144: =IFERROR(VLOOKUP(TEXT($A144,0),MEDIDAS!$A$2:$Q$50,2,FALSE),"") ->  | C144: =IFERROR(VLOOKUP(TEXT($A144,0),MEDIDAS!$A$2:$Q$50,3,FALSE),"") ->  | D144: =IFERROR(VLOOKUP(TEXT($A144,0),MEDIDAS!$A$2:$Q$50,4,FALSE),"") ->  | E144: =IFERROR(VLOOKUP(TEXT($A144,0),MEDIDAS!$A$2:$Q$50,5,FALSE),"") ->  | F144: =IFERROR(VLOOKUP(TEXT($A144,0),MEDIDAS!$A$2:$Q$50,6,FALSE),"") ->  | G144: =IFERROR(VLOOKUP(TEXT($A144,0),MEDIDAS!$A$2:$Q$50,7,FALSE),"") ->  | H144: =IFERROR(VLOOKUP(TEXT($A144,0),MEDIDAS!$A$2:$Q$50,8,FALSE),"") ->  | I144: =IFERROR(VLOOKUP(TEXT($A144,0),MEDIDAS!$A$2:$Q$50,9,FALSE),"") ->  | J144: =IFERROR(VALUE(VLOOKUP(TEXT($A144,0),MEDIDAS!$A$2:$Q$50,10,FALSE)),"") ->  | K144: =IFERROR(VALUE(VLOOKUP(TEXT($A144,0),MEDIDAS!$A$2:$Q$50,11,FALSE)),"") ->  | L144: =IFERROR(VALUE(VLOOKUP(TEXT($A144,0),MEDIDAS!$A$2:$Q$50,12,FALSE)),"") ->  | M144: =IFERROR(VALUE(VLOOKUP(TEXT($A144,0),MEDIDAS!$A$2:$Q$50,13,FALSE)),"") ->  | N144: =IFERROR(VALUE(VLOOKUP(TEXT($A144,0),MEDIDAS!$A$2:$Q$50,14,FALSE)),"") ->  | O144: =IFERROR(VALUE(VLOOKUP(TEXT($A144,0),MEDIDAS!$A$2:$Q$50,15,FALSE)),"") ->  | P144: =IFERROR(VALUE(VLOOKUP(TEXT($A144,0),MEDIDAS!$A$2:$Q$50,16,FALSE)),"") ->  | Q144: =IFERROR(VLOOKUP(TEXT($A144,0),MEDIDAS!$A$2:$Q$50,17,FALSE),"") -> 
A145: 137 | B145: =IFERROR(VLOOKUP(TEXT($A145,0),MEDIDAS!$A$2:$Q$50,2,FALSE),"") ->  | C145: =IFERROR(VLOOKUP(TEXT($A145,0),MEDIDAS!$A$2:$Q$50,3,FALSE),"") ->  | D145: =IFERROR(VLOOKUP(TEXT($A145,0),MEDIDAS!$A$2:$Q$50,4,FALSE),"") ->  | E145: =IFERROR(VLOOKUP(TEXT($A145,0),MEDIDAS!$A$2:$Q$50,5,FALSE),"") ->  | F145: =IFERROR(VLOOKUP(TEXT($A145,0),MEDIDAS!$A$2:$Q$50,6,FALSE),"") ->  | G145: =IFERROR(VLOOKUP(TEXT($A145,0),MEDIDAS!$A$2:$Q$50,7,FALSE),"") ->  | H145: =IFERROR(VLOOKUP(TEXT($A145,0),MEDIDAS!$A$2:$Q$50,8,FALSE),"") ->  | I145: =IFERROR(VLOOKUP(TEXT($A145,0),MEDIDAS!$A$2:$Q$50,9,FALSE),"") ->  | J145: =IFERROR(VALUE(VLOOKUP(TEXT($A145,0),MEDIDAS!$A$2:$Q$50,10,FALSE)),"") ->  | K145: =IFERROR(VALUE(VLOOKUP(TEXT($A145,0),MEDIDAS!$A$2:$Q$50,11,FALSE)),"") ->  | L145: =IFERROR(VALUE(VLOOKUP(TEXT($A145,0),MEDIDAS!$A$2:$Q$50,12,FALSE)),"") ->  | M145: =IFERROR(VALUE(VLOOKUP(TEXT($A145,0),MEDIDAS!$A$2:$Q$50,13,FALSE)),"") ->  | N145: =IFERROR(VALUE(VLOOKUP(TEXT($A145,0),MEDIDAS!$A$2:$Q$50,14,FALSE)),"") ->  | O145: =IFERROR(VALUE(VLOOKUP(TEXT($A145,0),MEDIDAS!$A$2:$Q$50,15,FALSE)),"") ->  | P145: =IFERROR(VALUE(VLOOKUP(TEXT($A145,0),MEDIDAS!$A$2:$Q$50,16,FALSE)),"") ->  | Q145: =IFERROR(VLOOKUP(TEXT($A145,0),MEDIDAS!$A$2:$Q$50,17,FALSE),"") -> 
A146: 138 | B146: =IFERROR(VLOOKUP(TEXT($A146,0),MEDIDAS!$A$2:$Q$50,2,FALSE),"") ->  | C146: =IFERROR(VLOOKUP(TEXT($A146,0),MEDIDAS!$A$2:$Q$50,3,FALSE),"") ->  | D146: =IFERROR(VLOOKUP(TEXT($A146,0),MEDIDAS!$A$2:$Q$50,4,FALSE),"") ->  | E146: =IFERROR(VLOOKUP(TEXT($A146,0),MEDIDAS!$A$2:$Q$50,5,FALSE),"") ->  | F146: =IFERROR(VLOOKUP(TEXT($A146,0),MEDIDAS!$A$2:$Q$50,6,FALSE),"") ->  | G146: =IFERROR(VLOOKUP(TEXT($A146,0),MEDIDAS!$A$2:$Q$50,7,FALSE),"") ->  | H146: =IFERROR(VLOOKUP(TEXT($A146,0),MEDIDAS!$A$2:$Q$50,8,FALSE),"") ->  | I146: =IFERROR(VLOOKUP(TEXT($A146,0),MEDIDAS!$A$2:$Q$50,9,FALSE),"") ->  | J146: =IFERROR(VALUE(VLOOKUP(TEXT($A146,0),MEDIDAS!$A$2:$Q$50,10,FALSE)),"") ->  | K146: =IFERROR(VALUE(VLOOKUP(TEXT($A146,0),MEDIDAS!$A$2:$Q$50,11,FALSE)),"") ->  | L146: =IFERROR(VALUE(VLOOKUP(TEXT($A146,0),MEDIDAS!$A$2:$Q$50,12,FALSE)),"") ->  | M146: =IFERROR(VALUE(VLOOKUP(TEXT($A146,0),MEDIDAS!$A$2:$Q$50,13,FALSE)),"") ->  | N146: =IFERROR(VALUE(VLOOKUP(TEXT($A146,0),MEDIDAS!$A$2:$Q$50,14,FALSE)),"") ->  | O146: =IFERROR(VALUE(VLOOKUP(TEXT($A146,0),MEDIDAS!$A$2:$Q$50,15,FALSE)),"") ->  | P146: =IFERROR(VALUE(VLOOKUP(TEXT($A146,0),MEDIDAS!$A$2:$Q$50,16,FALSE)),"") ->  | Q146: =IFERROR(VLOOKUP(TEXT($A146,0),MEDIDAS!$A$2:$Q$50,17,FALSE),"") -> 
A147: 139 | B147: =IFERROR(VLOOKUP(TEXT($A147,0),MEDIDAS!$A$2:$Q$50,2,FALSE),"") ->  | C147: =IFERROR(VLOOKUP(TEXT($A147,0),MEDIDAS!$A$2:$Q$50,3,FALSE),"") ->  | D147: =IFERROR(VLOOKUP(TEXT($A147,0),MEDIDAS!$A$2:$Q$50,4,FALSE),"") ->  | E147: =IFERROR(VLOOKUP(TEXT($A147,0),MEDIDAS!$A$2:$Q$50,5,FALSE),"") ->  | F147: =IFERROR(VLOOKUP(TEXT($A147,0),MEDIDAS!$A$2:$Q$50,6,FALSE),"") ->  | G147: =IFERROR(VLOOKUP(TEXT($A147,0),MEDIDAS!$A$2:$Q$50,7,FALSE),"") ->  | H147: =IFERROR(VLOOKUP(TEXT($A147,0),MEDIDAS!$A$2:$Q$50,8,FALSE),"") ->  | I147: =IFERROR(VLOOKUP(TEXT($A147,0),MEDIDAS!$A$2:$Q$50,9,FALSE),"") ->  | J147: =IFERROR(VALUE(VLOOKUP(TEXT($A147,0),MEDIDAS!$A$2:$Q$50,10,FALSE)),"") ->  | K147: =IFERROR(VALUE(VLOOKUP(TEXT($A147,0),MEDIDAS!$A$2:$Q$50,11,FALSE)),"") ->  | L147: =IFERROR(VALUE(VLOOKUP(TEXT($A147,0),MEDIDAS!$A$2:$Q$50,12,FALSE)),"") ->  | M147: =IFERROR(VALUE(VLOOKUP(TEXT($A147,0),MEDIDAS!$A$2:$Q$50,13,FALSE)),"") ->  | N147: =IFERROR(VALUE(VLOOKUP(TEXT($A147,0),MEDIDAS!$A$2:$Q$50,14,FALSE)),"") ->  | O147: =IFERROR(VALUE(VLOOKUP(TEXT($A147,0),MEDIDAS!$A$2:$Q$50,15,FALSE)),"") ->  | P147: =IFERROR(VALUE(VLOOKUP(TEXT($A147,0),MEDIDAS!$A$2:$Q$50,16,FALSE)),"") ->  | Q147: =IFERROR(VLOOKUP(TEXT($A147,0),MEDIDAS!$A$2:$Q$50,17,FALSE),"") -> 
A148: 140 | B148: =IFERROR(VLOOKUP(TEXT($A148,0),MEDIDAS!$A$2:$Q$50,2,FALSE),"") ->  | C148: =IFERROR(VLOOKUP(TEXT($A148,0),MEDIDAS!$A$2:$Q$50,3,FALSE),"") ->  | D148: =IFERROR(VLOOKUP(TEXT($A148,0),MEDIDAS!$A$2:$Q$50,4,FALSE),"") ->  | E148: =IFERROR(VLOOKUP(TEXT($A148,0),MEDIDAS!$A$2:$Q$50,5,FALSE),"") ->  | F148: =IFERROR(VLOOKUP(TEXT($A148,0),MEDIDAS!$A$2:$Q$50,6,FALSE),"") ->  | G148: =IFERROR(VLOOKUP(TEXT($A148,0),MEDIDAS!$A$2:$Q$50,7,FALSE),"") ->  | H148: =IFERROR(VLOOKUP(TEXT($A148,0),MEDIDAS!$A$2:$Q$50,8,FALSE),"") ->  | I148: =IFERROR(VLOOKUP(TEXT($A148,0),MEDIDAS!$A$2:$Q$50,9,FALSE),"") ->  | J148: =IFERROR(VALUE(VLOOKUP(TEXT($A148,0),MEDIDAS!$A$2:$Q$50,10,FALSE)),"") ->  | K148: =IFERROR(VALUE(VLOOKUP(TEXT($A148,0),MEDIDAS!$A$2:$Q$50,11,FALSE)),"") ->  | L148: =IFERROR(VALUE(VLOOKUP(TEXT($A148,0),MEDIDAS!$A$2:$Q$50,12,FALSE)),"") ->  | M148: =IFERROR(VALUE(VLOOKUP(TEXT($A148,0),MEDIDAS!$A$2:$Q$50,13,FALSE)),"") ->  | N148: =IFERROR(VALUE(VLOOKUP(TEXT($A148,0),MEDIDAS!$A$2:$Q$50,14,FALSE)),"") ->  | O148: =IFERROR(VALUE(VLOOKUP(TEXT($A148,0),MEDIDAS!$A$2:$Q$50,15,FALSE)),"") ->  | P148: =IFERROR(VALUE(VLOOKUP(TEXT($A148,0),MEDIDAS!$A$2:$Q$50,16,FALSE)),"") ->  | Q148: =IFERROR(VLOOKUP(TEXT($A148,0),MEDIDAS!$A$2:$Q$50,17,FALSE),"") -> 
A149: 141 | B149: =IFERROR(VLOOKUP(TEXT($A149,0),MEDIDAS!$A$2:$Q$50,2,FALSE),"") ->  | C149: =IFERROR(VLOOKUP(TEXT($A149,0),MEDIDAS!$A$2:$Q$50,3,FALSE),"") ->  | D149: =IFERROR(VLOOKUP(TEXT($A149,0),MEDIDAS!$A$2:$Q$50,4,FALSE),"") ->  | E149: =IFERROR(VLOOKUP(TEXT($A149,0),MEDIDAS!$A$2:$Q$50,5,FALSE),"") ->  | F149: =IFERROR(VLOOKUP(TEXT($A149,0),MEDIDAS!$A$2:$Q$50,6,FALSE),"") ->  | G149: =IFERROR(VLOOKUP(TEXT($A149,0),MEDIDAS!$A$2:$Q$50,7,FALSE),"") ->  | H149: =IFERROR(VLOOKUP(TEXT($A149,0),MEDIDAS!$A$2:$Q$50,8,FALSE),"") ->  | I149: =IFERROR(VLOOKUP(TEXT($A149,0),MEDIDAS!$A$2:$Q$50,9,FALSE),"") ->  | J149: =IFERROR(VALUE(VLOOKUP(TEXT($A149,0),MEDIDAS!$A$2:$Q$50,10,FALSE)),"") ->  | K149: =IFERROR(VALUE(VLOOKUP(TEXT($A149,0),MEDIDAS!$A$2:$Q$50,11,FALSE)),"") ->  | L149: =IFERROR(VALUE(VLOOKUP(TEXT($A149,0),MEDIDAS!$A$2:$Q$50,12,FALSE)),"") ->  | M149: =IFERROR(VALUE(VLOOKUP(TEXT($A149,0),MEDIDAS!$A$2:$Q$50,13,FALSE)),"") ->  | N149: =IFERROR(VALUE(VLOOKUP(TEXT($A149,0),MEDIDAS!$A$2:$Q$50,14,FALSE)),"") ->  | O149: =IFERROR(VALUE(VLOOKUP(TEXT($A149,0),MEDIDAS!$A$2:$Q$50,15,FALSE)),"") ->  | P149: =IFERROR(VALUE(VLOOKUP(TEXT($A149,0),MEDIDAS!$A$2:$Q$50,16,FALSE)),"") ->  | Q149: =IFERROR(VLOOKUP(TEXT($A149,0),MEDIDAS!$A$2:$Q$50,17,FALSE),"") -> 
A150: 142 | B150: =IFERROR(VLOOKUP(TEXT($A150,0),MEDIDAS!$A$2:$Q$50,2,FALSE),"") ->  | C150: =IFERROR(VLOOKUP(TEXT($A150,0),MEDIDAS!$A$2:$Q$50,3,FALSE),"") ->  | D150: =IFERROR(VLOOKUP(TEXT($A150,0),MEDIDAS!$A$2:$Q$50,4,FALSE),"") ->  | E150: =IFERROR(VLOOKUP(TEXT($A150,0),MEDIDAS!$A$2:$Q$50,5,FALSE),"") ->  | F150: =IFERROR(VLOOKUP(TEXT($A150,0),MEDIDAS!$A$2:$Q$50,6,FALSE),"") ->  | G150: =IFERROR(VLOOKUP(TEXT($A150,0),MEDIDAS!$A$2:$Q$50,7,FALSE),"") ->  | H150: =IFERROR(VLOOKUP(TEXT($A150,0),MEDIDAS!$A$2:$Q$50,8,FALSE),"") ->  | I150: =IFERROR(VLOOKUP(TEXT($A150,0),MEDIDAS!$A$2:$Q$50,9,FALSE),"") ->  | J150: =IFERROR(VALUE(VLOOKUP(TEXT($A150,0),MEDIDAS!$A$2:$Q$50,10,FALSE)),"") ->  | K150: =IFERROR(VALUE(VLOOKUP(TEXT($A150,0),MEDIDAS!$A$2:$Q$50,11,FALSE)),"") ->  | L150: =IFERROR(VALUE(VLOOKUP(TEXT($A150,0),MEDIDAS!$A$2:$Q$50,12,FALSE)),"") ->  | M150: =IFERROR(VALUE(VLOOKUP(TEXT($A150,0),MEDIDAS!$A$2:$Q$50,13,FALSE)),"") ->  | N150: =IFERROR(VALUE(VLOOKUP(TEXT($A150,0),MEDIDAS!$A$2:$Q$50,14,FALSE)),"") ->  | O150: =IFERROR(VALUE(VLOOKUP(TEXT($A150,0),MEDIDAS!$A$2:$Q$50,15,FALSE)),"") ->  | P150: =IFERROR(VALUE(VLOOKUP(TEXT($A150,0),MEDIDAS!$A$2:$Q$50,16,FALSE)),"") ->  | Q150: =IFERROR(VLOOKUP(TEXT($A150,0),MEDIDAS!$A$2:$Q$50,17,FALSE),"") -> 
A151: 143 | B151: =IFERROR(VLOOKUP(TEXT($A151,0),MEDIDAS!$A$2:$Q$50,2,FALSE),"") ->  | C151: =IFERROR(VLOOKUP(TEXT($A151,0),MEDIDAS!$A$2:$Q$50,3,FALSE),"") ->  | D151: =IFERROR(VLOOKUP(TEXT($A151,0),MEDIDAS!$A$2:$Q$50,4,FALSE),"") ->  | E151: =IFERROR(VLOOKUP(TEXT($A151,0),MEDIDAS!$A$2:$Q$50,5,FALSE),"") ->  | F151: =IFERROR(VLOOKUP(TEXT($A151,0),MEDIDAS!$A$2:$Q$50,6,FALSE),"") ->  | G151: =IFERROR(VLOOKUP(TEXT($A151,0),MEDIDAS!$A$2:$Q$50,7,FALSE),"") ->  | H151: =IFERROR(VLOOKUP(TEXT($A151,0),MEDIDAS!$A$2:$Q$50,8,FALSE),"") ->  | I151: =IFERROR(VLOOKUP(TEXT($A151,0),MEDIDAS!$A$2:$Q$50,9,FALSE),"") ->  | J151: =IFERROR(VALUE(VLOOKUP(TEXT($A151,0),MEDIDAS!$A$2:$Q$50,10,FALSE)),"") ->  | K151: =IFERROR(VALUE(VLOOKUP(TEXT($A151,0),MEDIDAS!$A$2:$Q$50,11,FALSE)),"") ->  | L151: =IFERROR(VALUE(VLOOKUP(TEXT($A151,0),MEDIDAS!$A$2:$Q$50,12,FALSE)),"") ->  | M151: =IFERROR(VALUE(VLOOKUP(TEXT($A151,0),MEDIDAS!$A$2:$Q$50,13,FALSE)),"") ->  | N151: =IFERROR(VALUE(VLOOKUP(TEXT($A151,0),MEDIDAS!$A$2:$Q$50,14,FALSE)),"") ->  | O151: =IFERROR(VALUE(VLOOKUP(TEXT($A151,0),MEDIDAS!$A$2:$Q$50,15,FALSE)),"") ->  | P151: =IFERROR(VALUE(VLOOKUP(TEXT($A151,0),MEDIDAS!$A$2:$Q$50,16,FALSE)),"") ->  | Q151: =IFERROR(VLOOKUP(TEXT($A151,0),MEDIDAS!$A$2:$Q$50,17,FALSE),"") -> 
A152: 144 | B152: =IFERROR(VLOOKUP(TEXT($A152,0),MEDIDAS!$A$2:$Q$50,2,FALSE),"") ->  | C152: =IFERROR(VLOOKUP(TEXT($A152,0),MEDIDAS!$A$2:$Q$50,3,FALSE),"") ->  | D152: =IFERROR(VLOOKUP(TEXT($A152,0),MEDIDAS!$A$2:$Q$50,4,FALSE),"") ->  | E152: =IFERROR(VLOOKUP(TEXT($A152,0),MEDIDAS!$A$2:$Q$50,5,FALSE),"") ->  | F152: =IFERROR(VLOOKUP(TEXT($A152,0),MEDIDAS!$A$2:$Q$50,6,FALSE),"") ->  | G152: =IFERROR(VLOOKUP(TEXT($A152,0),MEDIDAS!$A$2:$Q$50,7,FALSE),"") ->  | H152: =IFERROR(VLOOKUP(TEXT($A152,0),MEDIDAS!$A$2:$Q$50,8,FALSE),"") ->  | I152: =IFERROR(VLOOKUP(TEXT($A152,0),MEDIDAS!$A$2:$Q$50,9,FALSE),"") ->  | J152: =IFERROR(VALUE(VLOOKUP(TEXT($A152,0),MEDIDAS!$A$2:$Q$50,10,FALSE)),"") ->  | K152: =IFERROR(VALUE(VLOOKUP(TEXT($A152,0),MEDIDAS!$A$2:$Q$50,11,FALSE)),"") ->  | L152: =IFERROR(VALUE(VLOOKUP(TEXT($A152,0),MEDIDAS!$A$2:$Q$50,12,FALSE)),"") ->  | M152: =IFERROR(VALUE(VLOOKUP(TEXT($A152,0),MEDIDAS!$A$2:$Q$50,13,FALSE)),"") ->  | N152: =IFERROR(VALUE(VLOOKUP(TEXT($A152,0),MEDIDAS!$A$2:$Q$50,14,FALSE)),"") ->  | O152: =IFERROR(VALUE(VLOOKUP(TEXT($A152,0),MEDIDAS!$A$2:$Q$50,15,FALSE)),"") ->  | P152: =IFERROR(VALUE(VLOOKUP(TEXT($A152,0),MEDIDAS!$A$2:$Q$50,16,FALSE)),"") ->  | Q152: =IFERROR(VLOOKUP(TEXT($A152,0),MEDIDAS!$A$2:$Q$50,17,FALSE),"") -> 
A153: 145 | B153: =IFERROR(VLOOKUP(TEXT($A153,0),MEDIDAS!$A$2:$Q$50,2,FALSE),"") ->  | C153: =IFERROR(VLOOKUP(TEXT($A153,0),MEDIDAS!$A$2:$Q$50,3,FALSE),"") ->  | D153: =IFERROR(VLOOKUP(TEXT($A153,0),MEDIDAS!$A$2:$Q$50,4,FALSE),"") ->  | E153: =IFERROR(VLOOKUP(TEXT($A153,0),MEDIDAS!$A$2:$Q$50,5,FALSE),"") ->  | F153: =IFERROR(VLOOKUP(TEXT($A153,0),MEDIDAS!$A$2:$Q$50,6,FALSE),"") ->  | G153: =IFERROR(VLOOKUP(TEXT($A153,0),MEDIDAS!$A$2:$Q$50,7,FALSE),"") ->  | H153: =IFERROR(VLOOKUP(TEXT($A153,0),MEDIDAS!$A$2:$Q$50,8,FALSE),"") ->  | I153: =IFERROR(VLOOKUP(TEXT($A153,0),MEDIDAS!$A$2:$Q$50,9,FALSE),"") ->  | J153: =IFERROR(VALUE(VLOOKUP(TEXT($A153,0),MEDIDAS!$A$2:$Q$50,10,FALSE)),"") ->  | K153: =IFERROR(VALUE(VLOOKUP(TEXT($A153,0),MEDIDAS!$A$2:$Q$50,11,FALSE)),"") ->  | L153: =IFERROR(VALUE(VLOOKUP(TEXT($A153,0),MEDIDAS!$A$2:$Q$50,12,FALSE)),"") ->  | M153: =IFERROR(VALUE(VLOOKUP(TEXT($A153,0),MEDIDAS!$A$2:$Q$50,13,FALSE)),"") ->  | N153: =IFERROR(VALUE(VLOOKUP(TEXT($A153,0),MEDIDAS!$A$2:$Q$50,14,FALSE)),"") ->  | O153: =IFERROR(VALUE(VLOOKUP(TEXT($A153,0),MEDIDAS!$A$2:$Q$50,15,FALSE)),"") ->  | P153: =IFERROR(VALUE(VLOOKUP(TEXT($A153,0),MEDIDAS!$A$2:$Q$50,16,FALSE)),"") ->  | Q153: =IFERROR(VLOOKUP(TEXT($A153,0),MEDIDAS!$A$2:$Q$50,17,FALSE),"") -> 
A154: 146 | B154: =IFERROR(VLOOKUP(TEXT($A154,0),MEDIDAS!$A$2:$Q$50,2,FALSE),"") ->  | C154: =IFERROR(VLOOKUP(TEXT($A154,0),MEDIDAS!$A$2:$Q$50,3,FALSE),"") ->  | D154: =IFERROR(VLOOKUP(TEXT($A154,0),MEDIDAS!$A$2:$Q$50,4,FALSE),"") ->  | E154: =IFERROR(VLOOKUP(TEXT($A154,0),MEDIDAS!$A$2:$Q$50,5,FALSE),"") ->  | F154: =IFERROR(VLOOKUP(TEXT($A154,0),MEDIDAS!$A$2:$Q$50,6,FALSE),"") ->  | G154: =IFERROR(VLOOKUP(TEXT($A154,0),MEDIDAS!$A$2:$Q$50,7,FALSE),"") ->  | H154: =IFERROR(VLOOKUP(TEXT($A154,0),MEDIDAS!$A$2:$Q$50,8,FALSE),"") ->  | I154: =IFERROR(VLOOKUP(TEXT($A154,0),MEDIDAS!$A$2:$Q$50,9,FALSE),"") ->  | J154: =IFERROR(VALUE(VLOOKUP(TEXT($A154,0),MEDIDAS!$A$2:$Q$50,10,FALSE)),"") ->  | K154: =IFERROR(VALUE(VLOOKUP(TEXT($A154,0),MEDIDAS!$A$2:$Q$50,11,FALSE)),"") ->  | L154: =IFERROR(VALUE(VLOOKUP(TEXT($A154,0),MEDIDAS!$A$2:$Q$50,12,FALSE)),"") ->  | M154: =IFERROR(VALUE(VLOOKUP(TEXT($A154,0),MEDIDAS!$A$2:$Q$50,13,FALSE)),"") ->  | N154: =IFERROR(VALUE(VLOOKUP(TEXT($A154,0),MEDIDAS!$A$2:$Q$50,14,FALSE)),"") ->  | O154: =IFERROR(VALUE(VLOOKUP(TEXT($A154,0),MEDIDAS!$A$2:$Q$50,15,FALSE)),"") ->  | P154: =IFERROR(VALUE(VLOOKUP(TEXT($A154,0),MEDIDAS!$A$2:$Q$50,16,FALSE)),"") ->  | Q154: =IFERROR(VLOOKUP(TEXT($A154,0),MEDIDAS!$A$2:$Q$50,17,FALSE),"") -> 
A155: 147 | B155: =IFERROR(VLOOKUP(TEXT($A155,0),MEDIDAS!$A$2:$Q$50,2,FALSE),"") ->  | C155: =IFERROR(VLOOKUP(TEXT($A155,0),MEDIDAS!$A$2:$Q$50,3,FALSE),"") ->  | D155: =IFERROR(VLOOKUP(TEXT($A155,0),MEDIDAS!$A$2:$Q$50,4,FALSE),"") ->  | E155: =IFERROR(VLOOKUP(TEXT($A155,0),MEDIDAS!$A$2:$Q$50,5,FALSE),"") ->  | F155: =IFERROR(VLOOKUP(TEXT($A155,0),MEDIDAS!$A$2:$Q$50,6,FALSE),"") ->  | G155: =IFERROR(VLOOKUP(TEXT($A155,0),MEDIDAS!$A$2:$Q$50,7,FALSE),"") ->  | H155: =IFERROR(VLOOKUP(TEXT($A155,0),MEDIDAS!$A$2:$Q$50,8,FALSE),"") ->  | I155: =IFERROR(VLOOKUP(TEXT($A155,0),MEDIDAS!$A$2:$Q$50,9,FALSE),"") ->  | J155: =IFERROR(VALUE(VLOOKUP(TEXT($A155,0),MEDIDAS!$A$2:$Q$50,10,FALSE)),"") ->  | K155: =IFERROR(VALUE(VLOOKUP(TEXT($A155,0),MEDIDAS!$A$2:$Q$50,11,FALSE)),"") ->  | L155: =IFERROR(VALUE(VLOOKUP(TEXT($A155,0),MEDIDAS!$A$2:$Q$50,12,FALSE)),"") ->  | M155: =IFERROR(VALUE(VLOOKUP(TEXT($A155,0),MEDIDAS!$A$2:$Q$50,13,FALSE)),"") ->  | N155: =IFERROR(VALUE(VLOOKUP(TEXT($A155,0),MEDIDAS!$A$2:$Q$50,14,FALSE)),"") ->  | O155: =IFERROR(VALUE(VLOOKUP(TEXT($A155,0),MEDIDAS!$A$2:$Q$50,15,FALSE)),"") ->  | P155: =IFERROR(VALUE(VLOOKUP(TEXT($A155,0),MEDIDAS!$A$2:$Q$50,16,FALSE)),"") ->  | Q155: =IFERROR(VLOOKUP(TEXT($A155,0),MEDIDAS!$A$2:$Q$50,17,FALSE),"") -> 
A156: 148 | B156: =IFERROR(VLOOKUP(TEXT($A156,0),MEDIDAS!$A$2:$Q$50,2,FALSE),"") ->  | C156: =IFERROR(VLOOKUP(TEXT($A156,0),MEDIDAS!$A$2:$Q$50,3,FALSE),"") ->  | D156: =IFERROR(VLOOKUP(TEXT($A156,0),MEDIDAS!$A$2:$Q$50,4,FALSE),"") ->  | E156: =IFERROR(VLOOKUP(TEXT($A156,0),MEDIDAS!$A$2:$Q$50,5,FALSE),"") ->  | F156: =IFERROR(VLOOKUP(TEXT($A156,0),MEDIDAS!$A$2:$Q$50,6,FALSE),"") ->  | G156: =IFERROR(VLOOKUP(TEXT($A156,0),MEDIDAS!$A$2:$Q$50,7,FALSE),"") ->  | H156: =IFERROR(VLOOKUP(TEXT($A156,0),MEDIDAS!$A$2:$Q$50,8,FALSE),"") ->  | I156: =IFERROR(VLOOKUP(TEXT($A156,0),MEDIDAS!$A$2:$Q$50,9,FALSE),"") ->  | J156: =IFERROR(VALUE(VLOOKUP(TEXT($A156,0),MEDIDAS!$A$2:$Q$50,10,FALSE)),"") ->  | K156: =IFERROR(VALUE(VLOOKUP(TEXT($A156,0),MEDIDAS!$A$2:$Q$50,11,FALSE)),"") ->  | L156: =IFERROR(VALUE(VLOOKUP(TEXT($A156,0),MEDIDAS!$A$2:$Q$50,12,FALSE)),"") ->  | M156: =IFERROR(VALUE(VLOOKUP(TEXT($A156,0),MEDIDAS!$A$2:$Q$50,13,FALSE)),"") ->  | N156: =IFERROR(VALUE(VLOOKUP(TEXT($A156,0),MEDIDAS!$A$2:$Q$50,14,FALSE)),"") ->  | O156: =IFERROR(VALUE(VLOOKUP(TEXT($A156,0),MEDIDAS!$A$2:$Q$50,15,FALSE)),"") ->  | P156: =IFERROR(VALUE(VLOOKUP(TEXT($A156,0),MEDIDAS!$A$2:$Q$50,16,FALSE)),"") ->  | Q156: =IFERROR(VLOOKUP(TEXT($A156,0),MEDIDAS!$A$2:$Q$50,17,FALSE),"") -> 
A157: 149 | B157: =IFERROR(VLOOKUP(TEXT($A157,0),MEDIDAS!$A$2:$Q$50,2,FALSE),"") ->  | C157: =IFERROR(VLOOKUP(TEXT($A157,0),MEDIDAS!$A$2:$Q$50,3,FALSE),"") ->  | D157: =IFERROR(VLOOKUP(TEXT($A157,0),MEDIDAS!$A$2:$Q$50,4,FALSE),"") ->  | E157: =IFERROR(VLOOKUP(TEXT($A157,0),MEDIDAS!$A$2:$Q$50,5,FALSE),"") ->  | F157: =IFERROR(VLOOKUP(TEXT($A157,0),MEDIDAS!$A$2:$Q$50,6,FALSE),"") ->  | G157: =IFERROR(VLOOKUP(TEXT($A157,0),MEDIDAS!$A$2:$Q$50,7,FALSE),"") ->  | H157: =IFERROR(VLOOKUP(TEXT($A157,0),MEDIDAS!$A$2:$Q$50,8,FALSE),"") ->  | I157: =IFERROR(VLOOKUP(TEXT($A157,0),MEDIDAS!$A$2:$Q$50,9,FALSE),"") ->  | J157: =IFERROR(VALUE(VLOOKUP(TEXT($A157,0),MEDIDAS!$A$2:$Q$50,10,FALSE)),"") ->  | K157: =IFERROR(VALUE(VLOOKUP(TEXT($A157,0),MEDIDAS!$A$2:$Q$50,11,FALSE)),"") ->  | L157: =IFERROR(VALUE(VLOOKUP(TEXT($A157,0),MEDIDAS!$A$2:$Q$50,12,FALSE)),"") ->  | M157: =IFERROR(VALUE(VLOOKUP(TEXT($A157,0),MEDIDAS!$A$2:$Q$50,13,FALSE)),"") ->  | N157: =IFERROR(VALUE(VLOOKUP(TEXT($A157,0),MEDIDAS!$A$2:$Q$50,14,FALSE)),"") ->  | O157: =IFERROR(VALUE(VLOOKUP(TEXT($A157,0),MEDIDAS!$A$2:$Q$50,15,FALSE)),"") ->  | P157: =IFERROR(VALUE(VLOOKUP(TEXT($A157,0),MEDIDAS!$A$2:$Q$50,16,FALSE)),"") ->  | Q157: =IFERROR(VLOOKUP(TEXT($A157,0),MEDIDAS!$A$2:$Q$50,17,FALSE),"") -> 
A158: 150 | B158: =IFERROR(VLOOKUP(TEXT($A158,0),MEDIDAS!$A$2:$Q$50,2,FALSE),"") ->  | C158: =IFERROR(VLOOKUP(TEXT($A158,0),MEDIDAS!$A$2:$Q$50,3,FALSE),"") ->  | D158: =IFERROR(VLOOKUP(TEXT($A158,0),MEDIDAS!$A$2:$Q$50,4,FALSE),"") ->  | E158: =IFERROR(VLOOKUP(TEXT($A158,0),MEDIDAS!$A$2:$Q$50,5,FALSE),"") ->  | F158: =IFERROR(VLOOKUP(TEXT($A158,0),MEDIDAS!$A$2:$Q$50,6,FALSE),"") ->  | G158: =IFERROR(VLOOKUP(TEXT($A158,0),MEDIDAS!$A$2:$Q$50,7,FALSE),"") ->  | H158: =IFERROR(VLOOKUP(TEXT($A158,0),MEDIDAS!$A$2:$Q$50,8,FALSE),"") ->  | I158: =IFERROR(VLOOKUP(TEXT($A158,0),MEDIDAS!$A$2:$Q$50,9,FALSE),"") ->  | J158: =IFERROR(VALUE(VLOOKUP(TEXT($A158,0),MEDIDAS!$A$2:$Q$50,10,FALSE)),"") ->  | K158: =IFERROR(VALUE(VLOOKUP(TEXT($A158,0),MEDIDAS!$A$2:$Q$50,11,FALSE)),"") ->  | L158: =IFERROR(VALUE(VLOOKUP(TEXT($A158,0),MEDIDAS!$A$2:$Q$50,12,FALSE)),"") ->  | M158: =IFERROR(VALUE(VLOOKUP(TEXT($A158,0),MEDIDAS!$A$2:$Q$50,13,FALSE)),"") ->  | N158: =IFERROR(VALUE(VLOOKUP(TEXT($A158,0),MEDIDAS!$A$2:$Q$50,14,FALSE)),"") ->  | O158: =IFERROR(VALUE(VLOOKUP(TEXT($A158,0),MEDIDAS!$A$2:$Q$50,15,FALSE)),"") ->  | P158: =IFERROR(VALUE(VLOOKUP(TEXT($A158,0),MEDIDAS!$A$2:$Q$50,16,FALSE)),"") ->  | Q158: =IFERROR(VLOOKUP(TEXT($A158,0),MEDIDAS!$A$2:$Q$50,17,FALSE),"") -> 
A159: 151 | B159: =IFERROR(VLOOKUP(TEXT($A159,0),MEDIDAS!$A$2:$Q$50,2,FALSE),"") ->  | C159: =IFERROR(VLOOKUP(TEXT($A159,0),MEDIDAS!$A$2:$Q$50,3,FALSE),"") ->  | D159: =IFERROR(VLOOKUP(TEXT($A159,0),MEDIDAS!$A$2:$Q$50,4,FALSE),"") ->  | E159: =IFERROR(VLOOKUP(TEXT($A159,0),MEDIDAS!$A$2:$Q$50,5,FALSE),"") ->  | F159: =IFERROR(VLOOKUP(TEXT($A159,0),MEDIDAS!$A$2:$Q$50,6,FALSE),"") ->  | G159: =IFERROR(VLOOKUP(TEXT($A159,0),MEDIDAS!$A$2:$Q$50,7,FALSE),"") ->  | H159: =IFERROR(VLOOKUP(TEXT($A159,0),MEDIDAS!$A$2:$Q$50,8,FALSE),"") ->  | I159: =IFERROR(VLOOKUP(TEXT($A159,0),MEDIDAS!$A$2:$Q$50,9,FALSE),"") ->  | J159: =IFERROR(VALUE(VLOOKUP(TEXT($A159,0),MEDIDAS!$A$2:$Q$50,10,FALSE)),"") ->  | K159: =IFERROR(VALUE(VLOOKUP(TEXT($A159,0),MEDIDAS!$A$2:$Q$50,11,FALSE)),"") ->  | L159: =IFERROR(VALUE(VLOOKUP(TEXT($A159,0),MEDIDAS!$A$2:$Q$50,12,FALSE)),"") ->  | M159: =IFERROR(VALUE(VLOOKUP(TEXT($A159,0),MEDIDAS!$A$2:$Q$50,13,FALSE)),"") ->  | N159: =IFERROR(VALUE(VLOOKUP(TEXT($A159,0),MEDIDAS!$A$2:$Q$50,14,FALSE)),"") ->  | O159: =IFERROR(VALUE(VLOOKUP(TEXT($A159,0),MEDIDAS!$A$2:$Q$50,15,FALSE)),"") ->  | P159: =IFERROR(VALUE(VLOOKUP(TEXT($A159,0),MEDIDAS!$A$2:$Q$50,16,FALSE)),"") ->  | Q159: =IFERROR(VLOOKUP(TEXT($A159,0),MEDIDAS!$A$2:$Q$50,17,FALSE),"") -> 
A160: 152 | B160: =IFERROR(VLOOKUP(TEXT($A160,0),MEDIDAS!$A$2:$Q$50,2,FALSE),"") ->  | C160: =IFERROR(VLOOKUP(TEXT($A160,0),MEDIDAS!$A$2:$Q$50,3,FALSE),"") ->  | D160: =IFERROR(VLOOKUP(TEXT($A160,0),MEDIDAS!$A$2:$Q$50,4,FALSE),"") ->  | E160: =IFERROR(VLOOKUP(TEXT($A160,0),MEDIDAS!$A$2:$Q$50,5,FALSE),"") ->  | F160: =IFERROR(VLOOKUP(TEXT($A160,0),MEDIDAS!$A$2:$Q$50,6,FALSE),"") ->  | G160: =IFERROR(VLOOKUP(TEXT($A160,0),MEDIDAS!$A$2:$Q$50,7,FALSE),"") ->  | H160: =IFERROR(VLOOKUP(TEXT($A160,0),MEDIDAS!$A$2:$Q$50,8,FALSE),"") ->  | I160: =IFERROR(VLOOKUP(TEXT($A160,0),MEDIDAS!$A$2:$Q$50,9,FALSE),"") ->  | J160: =IFERROR(VALUE(VLOOKUP(TEXT($A160,0),MEDIDAS!$A$2:$Q$50,10,FALSE)),"") ->  | K160: =IFERROR(VALUE(VLOOKUP(TEXT($A160,0),MEDIDAS!$A$2:$Q$50,11,FALSE)),"") ->  | L160: =IFERROR(VALUE(VLOOKUP(TEXT($A160,0),MEDIDAS!$A$2:$Q$50,12,FALSE)),"") ->  | M160: =IFERROR(VALUE(VLOOKUP(TEXT($A160,0),MEDIDAS!$A$2:$Q$50,13,FALSE)),"") ->  | N160: =IFERROR(VALUE(VLOOKUP(TEXT($A160,0),MEDIDAS!$A$2:$Q$50,14,FALSE)),"") ->  | O160: =IFERROR(VALUE(VLOOKUP(TEXT($A160,0),MEDIDAS!$A$2:$Q$50,15,FALSE)),"") ->  | P160: =IFERROR(VALUE(VLOOKUP(TEXT($A160,0),MEDIDAS!$A$2:$Q$50,16,FALSE)),"") ->  | Q160: =IFERROR(VLOOKUP(TEXT($A160,0),MEDIDAS!$A$2:$Q$50,17,FALSE),"") -> 
A161: 153 | B161: =IFERROR(VLOOKUP(TEXT($A161,0),MEDIDAS!$A$2:$Q$50,2,FALSE),"") ->  | C161: =IFERROR(VLOOKUP(TEXT($A161,0),MEDIDAS!$A$2:$Q$50,3,FALSE),"") ->  | D161: =IFERROR(VLOOKUP(TEXT($A161,0),MEDIDAS!$A$2:$Q$50,4,FALSE),"") ->  | E161: =IFERROR(VLOOKUP(TEXT($A161,0),MEDIDAS!$A$2:$Q$50,5,FALSE),"") ->  | F161: =IFERROR(VLOOKUP(TEXT($A161,0),MEDIDAS!$A$2:$Q$50,6,FALSE),"") ->  | G161: =IFERROR(VLOOKUP(TEXT($A161,0),MEDIDAS!$A$2:$Q$50,7,FALSE),"") ->  | H161: =IFERROR(VLOOKUP(TEXT($A161,0),MEDIDAS!$A$2:$Q$50,8,FALSE),"") ->  | I161: =IFERROR(VLOOKUP(TEXT($A161,0),MEDIDAS!$A$2:$Q$50,9,FALSE),"") ->  | J161: =IFERROR(VALUE(VLOOKUP(TEXT($A161,0),MEDIDAS!$A$2:$Q$50,10,FALSE)),"") ->  | K161: =IFERROR(VALUE(VLOOKUP(TEXT($A161,0),MEDIDAS!$A$2:$Q$50,11,FALSE)),"") ->  | L161: =IFERROR(VALUE(VLOOKUP(TEXT($A161,0),MEDIDAS!$A$2:$Q$50,12,FALSE)),"") ->  | M161: =IFERROR(VALUE(VLOOKUP(TEXT($A161,0),MEDIDAS!$A$2:$Q$50,13,FALSE)),"") ->  | N161: =IFERROR(VALUE(VLOOKUP(TEXT($A161,0),MEDIDAS!$A$2:$Q$50,14,FALSE)),"") ->  | O161: =IFERROR(VALUE(VLOOKUP(TEXT($A161,0),MEDIDAS!$A$2:$Q$50,15,FALSE)),"") ->  | P161: =IFERROR(VALUE(VLOOKUP(TEXT($A161,0),MEDIDAS!$A$2:$Q$50,16,FALSE)),"") ->  | Q161: =IFERROR(VLOOKUP(TEXT($A161,0),MEDIDAS!$A$2:$Q$50,17,FALSE),"") -> 
A162: 154 | B162: =IFERROR(VLOOKUP(TEXT($A162,0),MEDIDAS!$A$2:$Q$50,2,FALSE),"") ->  | C162: =IFERROR(VLOOKUP(TEXT($A162,0),MEDIDAS!$A$2:$Q$50,3,FALSE),"") ->  | D162: =IFERROR(VLOOKUP(TEXT($A162,0),MEDIDAS!$A$2:$Q$50,4,FALSE),"") ->  | E162: =IFERROR(VLOOKUP(TEXT($A162,0),MEDIDAS!$A$2:$Q$50,5,FALSE),"") ->  | F162: =IFERROR(VLOOKUP(TEXT($A162,0),MEDIDAS!$A$2:$Q$50,6,FALSE),"") ->  | G162: =IFERROR(VLOOKUP(TEXT($A162,0),MEDIDAS!$A$2:$Q$50,7,FALSE),"") ->  | H162: =IFERROR(VLOOKUP(TEXT($A162,0),MEDIDAS!$A$2:$Q$50,8,FALSE),"") ->  | I162: =IFERROR(VLOOKUP(TEXT($A162,0),MEDIDAS!$A$2:$Q$50,9,FALSE),"") ->  | J162: =IFERROR(VALUE(VLOOKUP(TEXT($A162,0),MEDIDAS!$A$2:$Q$50,10,FALSE)),"") ->  | K162: =IFERROR(VALUE(VLOOKUP(TEXT($A162,0),MEDIDAS!$A$2:$Q$50,11,FALSE)),"") ->  | L162: =IFERROR(VALUE(VLOOKUP(TEXT($A162,0),MEDIDAS!$A$2:$Q$50,12,FALSE)),"") ->  | M162: =IFERROR(VALUE(VLOOKUP(TEXT($A162,0),MEDIDAS!$A$2:$Q$50,13,FALSE)),"") ->  | N162: =IFERROR(VALUE(VLOOKUP(TEXT($A162,0),MEDIDAS!$A$2:$Q$50,14,FALSE)),"") ->  | O162: =IFERROR(VALUE(VLOOKUP(TEXT($A162,0),MEDIDAS!$A$2:$Q$50,15,FALSE)),"") ->  | P162: =IFERROR(VALUE(VLOOKUP(TEXT($A162,0),MEDIDAS!$A$2:$Q$50,16,FALSE)),"") ->  | Q162: =IFERROR(VLOOKUP(TEXT($A162,0),MEDIDAS!$A$2:$Q$50,17,FALSE),"") -> 
A163: 155 | B163: =IFERROR(VLOOKUP(TEXT($A163,0),MEDIDAS!$A$2:$Q$50,2,FALSE),"") ->  | C163: =IFERROR(VLOOKUP(TEXT($A163,0),MEDIDAS!$A$2:$Q$50,3,FALSE),"") ->  | D163: =IFERROR(VLOOKUP(TEXT($A163,0),MEDIDAS!$A$2:$Q$50,4,FALSE),"") ->  | E163: =IFERROR(VLOOKUP(TEXT($A163,0),MEDIDAS!$A$2:$Q$50,5,FALSE),"") ->  | F163: =IFERROR(VLOOKUP(TEXT($A163,0),MEDIDAS!$A$2:$Q$50,6,FALSE),"") ->  | G163: =IFERROR(VLOOKUP(TEXT($A163,0),MEDIDAS!$A$2:$Q$50,7,FALSE),"") ->  | H163: =IFERROR(VLOOKUP(TEXT($A163,0),MEDIDAS!$A$2:$Q$50,8,FALSE),"") ->  | I163: =IFERROR(VLOOKUP(TEXT($A163,0),MEDIDAS!$A$2:$Q$50,9,FALSE),"") ->  | J163: =IFERROR(VALUE(VLOOKUP(TEXT($A163,0),MEDIDAS!$A$2:$Q$50,10,FALSE)),"") ->  | K163: =IFERROR(VALUE(VLOOKUP(TEXT($A163,0),MEDIDAS!$A$2:$Q$50,11,FALSE)),"") ->  | L163: =IFERROR(VALUE(VLOOKUP(TEXT($A163,0),MEDIDAS!$A$2:$Q$50,12,FALSE)),"") ->  | M163: =IFERROR(VALUE(VLOOKUP(TEXT($A163,0),MEDIDAS!$A$2:$Q$50,13,FALSE)),"") ->  | N163: =IFERROR(VALUE(VLOOKUP(TEXT($A163,0),MEDIDAS!$A$2:$Q$50,14,FALSE)),"") ->  | O163: =IFERROR(VALUE(VLOOKUP(TEXT($A163,0),MEDIDAS!$A$2:$Q$50,15,FALSE)),"") ->  | P163: =IFERROR(VALUE(VLOOKUP(TEXT($A163,0),MEDIDAS!$A$2:$Q$50,16,FALSE)),"") ->  | Q163: =IFERROR(VLOOKUP(TEXT($A163,0),MEDIDAS!$A$2:$Q$50,17,FALSE),"") -> 
A164: 156 | B164: =IFERROR(VLOOKUP(TEXT($A164,0),MEDIDAS!$A$2:$Q$50,2,FALSE),"") ->  | C164: =IFERROR(VLOOKUP(TEXT($A164,0),MEDIDAS!$A$2:$Q$50,3,FALSE),"") ->  | D164: =IFERROR(VLOOKUP(TEXT($A164,0),MEDIDAS!$A$2:$Q$50,4,FALSE),"") ->  | E164: =IFERROR(VLOOKUP(TEXT($A164,0),MEDIDAS!$A$2:$Q$50,5,FALSE),"") ->  | F164: =IFERROR(VLOOKUP(TEXT($A164,0),MEDIDAS!$A$2:$Q$50,6,FALSE),"") ->  | G164: =IFERROR(VLOOKUP(TEXT($A164,0),MEDIDAS!$A$2:$Q$50,7,FALSE),"") ->  | H164: =IFERROR(VLOOKUP(TEXT($A164,0),MEDIDAS!$A$2:$Q$50,8,FALSE),"") ->  | I164: =IFERROR(VLOOKUP(TEXT($A164,0),MEDIDAS!$A$2:$Q$50,9,FALSE),"") ->  | J164: =IFERROR(VALUE(VLOOKUP(TEXT($A164,0),MEDIDAS!$A$2:$Q$50,10,FALSE)),"") ->  | K164: =IFERROR(VALUE(VLOOKUP(TEXT($A164,0),MEDIDAS!$A$2:$Q$50,11,FALSE)),"") ->  | L164: =IFERROR(VALUE(VLOOKUP(TEXT($A164,0),MEDIDAS!$A$2:$Q$50,12,FALSE)),"") ->  | M164: =IFERROR(VALUE(VLOOKUP(TEXT($A164,0),MEDIDAS!$A$2:$Q$50,13,FALSE)),"") ->  | N164: =IFERROR(VALUE(VLOOKUP(TEXT($A164,0),MEDIDAS!$A$2:$Q$50,14,FALSE)),"") ->  | O164: =IFERROR(VALUE(VLOOKUP(TEXT($A164,0),MEDIDAS!$A$2:$Q$50,15,FALSE)),"") ->  | P164: =IFERROR(VALUE(VLOOKUP(TEXT($A164,0),MEDIDAS!$A$2:$Q$50,16,FALSE)),"") ->  | Q164: =IFERROR(VLOOKUP(TEXT($A164,0),MEDIDAS!$A$2:$Q$50,17,FALSE),"") -> 
A165: 157 | B165: =IFERROR(VLOOKUP(TEXT($A165,0),MEDIDAS!$A$2:$Q$50,2,FALSE),"") ->  | C165: =IFERROR(VLOOKUP(TEXT($A165,0),MEDIDAS!$A$2:$Q$50,3,FALSE),"") ->  | D165: =IFERROR(VLOOKUP(TEXT($A165,0),MEDIDAS!$A$2:$Q$50,4,FALSE),"") ->  | E165: =IFERROR(VLOOKUP(TEXT($A165,0),MEDIDAS!$A$2:$Q$50,5,FALSE),"") ->  | F165: =IFERROR(VLOOKUP(TEXT($A165,0),MEDIDAS!$A$2:$Q$50,6,FALSE),"") ->  | G165: =IFERROR(VLOOKUP(TEXT($A165,0),MEDIDAS!$A$2:$Q$50,7,FALSE),"") ->  | H165: =IFERROR(VLOOKUP(TEXT($A165,0),MEDIDAS!$A$2:$Q$50,8,FALSE),"") ->  | I165: =IFERROR(VLOOKUP(TEXT($A165,0),MEDIDAS!$A$2:$Q$50,9,FALSE),"") ->  | J165: =IFERROR(VALUE(VLOOKUP(TEXT($A165,0),MEDIDAS!$A$2:$Q$50,10,FALSE)),"") ->  | K165: =IFERROR(VALUE(VLOOKUP(TEXT($A165,0),MEDIDAS!$A$2:$Q$50,11,FALSE)),"") ->  | L165: =IFERROR(VALUE(VLOOKUP(TEXT($A165,0),MEDIDAS!$A$2:$Q$50,12,FALSE)),"") ->  | M165: =IFERROR(VALUE(VLOOKUP(TEXT($A165,0),MEDIDAS!$A$2:$Q$50,13,FALSE)),"") ->  | N165: =IFERROR(VALUE(VLOOKUP(TEXT($A165,0),MEDIDAS!$A$2:$Q$50,14,FALSE)),"") ->  | O165: =IFERROR(VALUE(VLOOKUP(TEXT($A165,0),MEDIDAS!$A$2:$Q$50,15,FALSE)),"") ->  | P165: =IFERROR(VALUE(VLOOKUP(TEXT($A165,0),MEDIDAS!$A$2:$Q$50,16,FALSE)),"") ->  | Q165: =IFERROR(VLOOKUP(TEXT($A165,0),MEDIDAS!$A$2:$Q$50,17,FALSE),"") -> 
A166: 158 | B166: =IFERROR(VLOOKUP(TEXT($A166,0),MEDIDAS!$A$2:$Q$50,2,FALSE),"") ->  | C166: =IFERROR(VLOOKUP(TEXT($A166,0),MEDIDAS!$A$2:$Q$50,3,FALSE),"") ->  | D166: =IFERROR(VLOOKUP(TEXT($A166,0),MEDIDAS!$A$2:$Q$50,4,FALSE),"") ->  | E166: =IFERROR(VLOOKUP(TEXT($A166,0),MEDIDAS!$A$2:$Q$50,5,FALSE),"") ->  | F166: =IFERROR(VLOOKUP(TEXT($A166,0),MEDIDAS!$A$2:$Q$50,6,FALSE),"") ->  | G166: =IFERROR(VLOOKUP(TEXT($A166,0),MEDIDAS!$A$2:$Q$50,7,FALSE),"") ->  | H166: =IFERROR(VLOOKUP(TEXT($A166,0),MEDIDAS!$A$2:$Q$50,8,FALSE),"") ->  | I166: =IFERROR(VLOOKUP(TEXT($A166,0),MEDIDAS!$A$2:$Q$50,9,FALSE),"") ->  | J166: =IFERROR(VALUE(VLOOKUP(TEXT($A166,0),MEDIDAS!$A$2:$Q$50,10,FALSE)),"") ->  | K166: =IFERROR(VALUE(VLOOKUP(TEXT($A166,0),MEDIDAS!$A$2:$Q$50,11,FALSE)),"") ->  | L166: =IFERROR(VALUE(VLOOKUP(TEXT($A166,0),MEDIDAS!$A$2:$Q$50,12,FALSE)),"") ->  | M166: =IFERROR(VALUE(VLOOKUP(TEXT($A166,0),MEDIDAS!$A$2:$Q$50,13,FALSE)),"") ->  | N166: =IFERROR(VALUE(VLOOKUP(TEXT($A166,0),MEDIDAS!$A$2:$Q$50,14,FALSE)),"") ->  | O166: =IFERROR(VALUE(VLOOKUP(TEXT($A166,0),MEDIDAS!$A$2:$Q$50,15,FALSE)),"") ->  | P166: =IFERROR(VALUE(VLOOKUP(TEXT($A166,0),MEDIDAS!$A$2:$Q$50,16,FALSE)),"") ->  | Q166: =IFERROR(VLOOKUP(TEXT($A166,0),MEDIDAS!$A$2:$Q$50,17,FALSE),"") -> 
A167: 159 | B167: =IFERROR(VLOOKUP(TEXT($A167,0),MEDIDAS!$A$2:$Q$50,2,FALSE),"") ->  | C167: =IFERROR(VLOOKUP(TEXT($A167,0),MEDIDAS!$A$2:$Q$50,3,FALSE),"") ->  | D167: =IFERROR(VLOOKUP(TEXT($A167,0),MEDIDAS!$A$2:$Q$50,4,FALSE),"") ->  | E167: =IFERROR(VLOOKUP(TEXT($A167,0),MEDIDAS!$A$2:$Q$50,5,FALSE),"") ->  | F167: =IFERROR(VLOOKUP(TEXT($A167,0),MEDIDAS!$A$2:$Q$50,6,FALSE),"") ->  | G167: =IFERROR(VLOOKUP(TEXT($A167,0),MEDIDAS!$A$2:$Q$50,7,FALSE),"") ->  | H167: =IFERROR(VLOOKUP(TEXT($A167,0),MEDIDAS!$A$2:$Q$50,8,FALSE),"") ->  | I167: =IFERROR(VLOOKUP(TEXT($A167,0),MEDIDAS!$A$2:$Q$50,9,FALSE),"") ->  | J167: =IFERROR(VALUE(VLOOKUP(TEXT($A167,0),MEDIDAS!$A$2:$Q$50,10,FALSE)),"") ->  | K167: =IFERROR(VALUE(VLOOKUP(TEXT($A167,0),MEDIDAS!$A$2:$Q$50,11,FALSE)),"") ->  | L167: =IFERROR(VALUE(VLOOKUP(TEXT($A167,0),MEDIDAS!$A$2:$Q$50,12,FALSE)),"") ->  | M167: =IFERROR(VALUE(VLOOKUP(TEXT($A167,0),MEDIDAS!$A$2:$Q$50,13,FALSE)),"") ->  | N167: =IFERROR(VALUE(VLOOKUP(TEXT($A167,0),MEDIDAS!$A$2:$Q$50,14,FALSE)),"") ->  | O167: =IFERROR(VALUE(VLOOKUP(TEXT($A167,0),MEDIDAS!$A$2:$Q$50,15,FALSE)),"") ->  | P167: =IFERROR(VALUE(VLOOKUP(TEXT($A167,0),MEDIDAS!$A$2:$Q$50,16,FALSE)),"") ->  | Q167: =IFERROR(VLOOKUP(TEXT($A167,0),MEDIDAS!$A$2:$Q$50,17,FALSE),"") -> 
A168: 160 | B168: =IFERROR(VLOOKUP(TEXT($A168,0),MEDIDAS!$A$2:$Q$50,2,FALSE),"") ->  | C168: =IFERROR(VLOOKUP(TEXT($A168,0),MEDIDAS!$A$2:$Q$50,3,FALSE),"") ->  | D168: =IFERROR(VLOOKUP(TEXT($A168,0),MEDIDAS!$A$2:$Q$50,4,FALSE),"") ->  | E168: =IFERROR(VLOOKUP(TEXT($A168,0),MEDIDAS!$A$2:$Q$50,5,FALSE),"") ->  | F168: =IFERROR(VLOOKUP(TEXT($A168,0),MEDIDAS!$A$2:$Q$50,6,FALSE),"") ->  | G168: =IFERROR(VLOOKUP(TEXT($A168,0),MEDIDAS!$A$2:$Q$50,7,FALSE),"") ->  | H168: =IFERROR(VLOOKUP(TEXT($A168,0),MEDIDAS!$A$2:$Q$50,8,FALSE),"") ->  | I168: =IFERROR(VLOOKUP(TEXT($A168,0),MEDIDAS!$A$2:$Q$50,9,FALSE),"") ->  | J168: =IFERROR(VALUE(VLOOKUP(TEXT($A168,0),MEDIDAS!$A$2:$Q$50,10,FALSE)),"") ->  | K168: =IFERROR(VALUE(VLOOKUP(TEXT($A168,0),MEDIDAS!$A$2:$Q$50,11,FALSE)),"") ->  | L168: =IFERROR(VALUE(VLOOKUP(TEXT($A168,0),MEDIDAS!$A$2:$Q$50,12,FALSE)),"") ->  | M168: =IFERROR(VALUE(VLOOKUP(TEXT($A168,0),MEDIDAS!$A$2:$Q$50,13,FALSE)),"") ->  | N168: =IFERROR(VALUE(VLOOKUP(TEXT($A168,0),MEDIDAS!$A$2:$Q$50,14,FALSE)),"") ->  | O168: =IFERROR(VALUE(VLOOKUP(TEXT($A168,0),MEDIDAS!$A$2:$Q$50,15,FALSE)),"") ->  | P168: =IFERROR(VALUE(VLOOKUP(TEXT($A168,0),MEDIDAS!$A$2:$Q$50,16,FALSE)),"") ->  | Q168: =IFERROR(VLOOKUP(TEXT($A168,0),MEDIDAS!$A$2:$Q$50,17,FALSE),"") -> 
A169: 161 | B169: =IFERROR(VLOOKUP(TEXT($A169,0),MEDIDAS!$A$2:$Q$50,2,FALSE),"") ->  | C169: =IFERROR(VLOOKUP(TEXT($A169,0),MEDIDAS!$A$2:$Q$50,3,FALSE),"") ->  | D169: =IFERROR(VLOOKUP(TEXT($A169,0),MEDIDAS!$A$2:$Q$50,4,FALSE),"") ->  | E169: =IFERROR(VLOOKUP(TEXT($A169,0),MEDIDAS!$A$2:$Q$50,5,FALSE),"") ->  | F169: =IFERROR(VLOOKUP(TEXT($A169,0),MEDIDAS!$A$2:$Q$50,6,FALSE),"") ->  | G169: =IFERROR(VLOOKUP(TEXT($A169,0),MEDIDAS!$A$2:$Q$50,7,FALSE),"") ->  | H169: =IFERROR(VLOOKUP(TEXT($A169,0),MEDIDAS!$A$2:$Q$50,8,FALSE),"") ->  | I169: =IFERROR(VLOOKUP(TEXT($A169,0),MEDIDAS!$A$2:$Q$50,9,FALSE),"") ->  | J169: =IFERROR(VALUE(VLOOKUP(TEXT($A169,0),MEDIDAS!$A$2:$Q$50,10,FALSE)),"") ->  | K169: =IFERROR(VALUE(VLOOKUP(TEXT($A169,0),MEDIDAS!$A$2:$Q$50,11,FALSE)),"") ->  | L169: =IFERROR(VALUE(VLOOKUP(TEXT($A169,0),MEDIDAS!$A$2:$Q$50,12,FALSE)),"") ->  | M169: =IFERROR(VALUE(VLOOKUP(TEXT($A169,0),MEDIDAS!$A$2:$Q$50,13,FALSE)),"") ->  | N169: =IFERROR(VALUE(VLOOKUP(TEXT($A169,0),MEDIDAS!$A$2:$Q$50,14,FALSE)),"") ->  | O169: =IFERROR(VALUE(VLOOKUP(TEXT($A169,0),MEDIDAS!$A$2:$Q$50,15,FALSE)),"") ->  | P169: =IFERROR(VALUE(VLOOKUP(TEXT($A169,0),MEDIDAS!$A$2:$Q$50,16,FALSE)),"") ->  | Q169: =IFERROR(VLOOKUP(TEXT($A169,0),MEDIDAS!$A$2:$Q$50,17,FALSE),"") -> 
A170: 162 | B170: =IFERROR(VLOOKUP(TEXT($A170,0),MEDIDAS!$A$2:$Q$50,2,FALSE),"") ->  | C170: =IFERROR(VLOOKUP(TEXT($A170,0),MEDIDAS!$A$2:$Q$50,3,FALSE),"") ->  | D170: =IFERROR(VLOOKUP(TEXT($A170,0),MEDIDAS!$A$2:$Q$50,4,FALSE),"") ->  | E170: =IFERROR(VLOOKUP(TEXT($A170,0),MEDIDAS!$A$2:$Q$50,5,FALSE),"") ->  | F170: =IFERROR(VLOOKUP(TEXT($A170,0),MEDIDAS!$A$2:$Q$50,6,FALSE),"") ->  | G170: =IFERROR(VLOOKUP(TEXT($A170,0),MEDIDAS!$A$2:$Q$50,7,FALSE),"") ->  | H170: =IFERROR(VLOOKUP(TEXT($A170,0),MEDIDAS!$A$2:$Q$50,8,FALSE),"") ->  | I170: =IFERROR(VLOOKUP(TEXT($A170,0),MEDIDAS!$A$2:$Q$50,9,FALSE),"") ->  | J170: =IFERROR(VALUE(VLOOKUP(TEXT($A170,0),MEDIDAS!$A$2:$Q$50,10,FALSE)),"") ->  | K170: =IFERROR(VALUE(VLOOKUP(TEXT($A170,0),MEDIDAS!$A$2:$Q$50,11,FALSE)),"") ->  | L170: =IFERROR(VALUE(VLOOKUP(TEXT($A170,0),MEDIDAS!$A$2:$Q$50,12,FALSE)),"") ->  | M170: =IFERROR(VALUE(VLOOKUP(TEXT($A170,0),MEDIDAS!$A$2:$Q$50,13,FALSE)),"") ->  | N170: =IFERROR(VALUE(VLOOKUP(TEXT($A170,0),MEDIDAS!$A$2:$Q$50,14,FALSE)),"") ->  | O170: =IFERROR(VALUE(VLOOKUP(TEXT($A170,0),MEDIDAS!$A$2:$Q$50,15,FALSE)),"") ->  | P170: =IFERROR(VALUE(VLOOKUP(TEXT($A170,0),MEDIDAS!$A$2:$Q$50,16,FALSE)),"") ->  | Q170: =IFERROR(VLOOKUP(TEXT($A170,0),MEDIDAS!$A$2:$Q$50,17,FALSE),"") -> 
A171: 163 | B171: =IFERROR(VLOOKUP(TEXT($A171,0),MEDIDAS!$A$2:$Q$50,2,FALSE),"") ->  | C171: =IFERROR(VLOOKUP(TEXT($A171,0),MEDIDAS!$A$2:$Q$50,3,FALSE),"") ->  | D171: =IFERROR(VLOOKUP(TEXT($A171,0),MEDIDAS!$A$2:$Q$50,4,FALSE),"") ->  | E171: =IFERROR(VLOOKUP(TEXT($A171,0),MEDIDAS!$A$2:$Q$50,5,FALSE),"") ->  | F171: =IFERROR(VLOOKUP(TEXT($A171,0),MEDIDAS!$A$2:$Q$50,6,FALSE),"") ->  | G171: =IFERROR(VLOOKUP(TEXT($A171,0),MEDIDAS!$A$2:$Q$50,7,FALSE),"") ->  | H171: =IFERROR(VLOOKUP(TEXT($A171,0),MEDIDAS!$A$2:$Q$50,8,FALSE),"") ->  | I171: =IFERROR(VLOOKUP(TEXT($A171,0),MEDIDAS!$A$2:$Q$50,9,FALSE),"") ->  | J171: =IFERROR(VALUE(VLOOKUP(TEXT($A171,0),MEDIDAS!$A$2:$Q$50,10,FALSE)),"") ->  | K171: =IFERROR(VALUE(VLOOKUP(TEXT($A171,0),MEDIDAS!$A$2:$Q$50,11,FALSE)),"") ->  | L171: =IFERROR(VALUE(VLOOKUP(TEXT($A171,0),MEDIDAS!$A$2:$Q$50,12,FALSE)),"") ->  | M171: =IFERROR(VALUE(VLOOKUP(TEXT($A171,0),MEDIDAS!$A$2:$Q$50,13,FALSE)),"") ->  | N171: =IFERROR(VALUE(VLOOKUP(TEXT($A171,0),MEDIDAS!$A$2:$Q$50,14,FALSE)),"") ->  | O171: =IFERROR(VALUE(VLOOKUP(TEXT($A171,0),MEDIDAS!$A$2:$Q$50,15,FALSE)),"") ->  | P171: =IFERROR(VALUE(VLOOKUP(TEXT($A171,0),MEDIDAS!$A$2:$Q$50,16,FALSE)),"") ->  | Q171: =IFERROR(VLOOKUP(TEXT($A171,0),MEDIDAS!$A$2:$Q$50,17,FALSE),"") -> 
A172: 164 | B172: =IFERROR(VLOOKUP(TEXT($A172,0),MEDIDAS!$A$2:$Q$50,2,FALSE),"") ->  | C172: =IFERROR(VLOOKUP(TEXT($A172,0),MEDIDAS!$A$2:$Q$50,3,FALSE),"") ->  | D172: =IFERROR(VLOOKUP(TEXT($A172,0),MEDIDAS!$A$2:$Q$50,4,FALSE),"") ->  | E172: =IFERROR(VLOOKUP(TEXT($A172,0),MEDIDAS!$A$2:$Q$50,5,FALSE),"") ->  | F172: =IFERROR(VLOOKUP(TEXT($A172,0),MEDIDAS!$A$2:$Q$50,6,FALSE),"") ->  | G172: =IFERROR(VLOOKUP(TEXT($A172,0),MEDIDAS!$A$2:$Q$50,7,FALSE),"") ->  | H172: =IFERROR(VLOOKUP(TEXT($A172,0),MEDIDAS!$A$2:$Q$50,8,FALSE),"") ->  | I172: =IFERROR(VLOOKUP(TEXT($A172,0),MEDIDAS!$A$2:$Q$50,9,FALSE),"") ->  | J172: =IFERROR(VALUE(VLOOKUP(TEXT($A172,0),MEDIDAS!$A$2:$Q$50,10,FALSE)),"") ->  | K172: =IFERROR(VALUE(VLOOKUP(TEXT($A172,0),MEDIDAS!$A$2:$Q$50,11,FALSE)),"") ->  | L172: =IFERROR(VALUE(VLOOKUP(TEXT($A172,0),MEDIDAS!$A$2:$Q$50,12,FALSE)),"") ->  | M172: =IFERROR(VALUE(VLOOKUP(TEXT($A172,0),MEDIDAS!$A$2:$Q$50,13,FALSE)),"") ->  | N172: =IFERROR(VALUE(VLOOKUP(TEXT($A172,0),MEDIDAS!$A$2:$Q$50,14,FALSE)),"") ->  | O172: =IFERROR(VALUE(VLOOKUP(TEXT($A172,0),MEDIDAS!$A$2:$Q$50,15,FALSE)),"") ->  | P172: =IFERROR(VALUE(VLOOKUP(TEXT($A172,0),MEDIDAS!$A$2:$Q$50,16,FALSE)),"") ->  | Q172: =IFERROR(VLOOKUP(TEXT($A172,0),MEDIDAS!$A$2:$Q$50,17,FALSE),"") -> 
A173: 165 | B173: =IFERROR(VLOOKUP(TEXT($A173,0),MEDIDAS!$A$2:$Q$50,2,FALSE),"") ->  | C173: =IFERROR(VLOOKUP(TEXT($A173,0),MEDIDAS!$A$2:$Q$50,3,FALSE),"") ->  | D173: =IFERROR(VLOOKUP(TEXT($A173,0),MEDIDAS!$A$2:$Q$50,4,FALSE),"") ->  | E173: =IFERROR(VLOOKUP(TEXT($A173,0),MEDIDAS!$A$2:$Q$50,5,FALSE),"") ->  | F173: =IFERROR(VLOOKUP(TEXT($A173,0),MEDIDAS!$A$2:$Q$50,6,FALSE),"") ->  | G173: =IFERROR(VLOOKUP(TEXT($A173,0),MEDIDAS!$A$2:$Q$50,7,FALSE),"") ->  | H173: =IFERROR(VLOOKUP(TEXT($A173,0),MEDIDAS!$A$2:$Q$50,8,FALSE),"") ->  | I173: =IFERROR(VLOOKUP(TEXT($A173,0),MEDIDAS!$A$2:$Q$50,9,FALSE),"") ->  | J173: =IFERROR(VALUE(VLOOKUP(TEXT($A173,0),MEDIDAS!$A$2:$Q$50,10,FALSE)),"") ->  | K173: =IFERROR(VALUE(VLOOKUP(TEXT($A173,0),MEDIDAS!$A$2:$Q$50,11,FALSE)),"") ->  | L173: =IFERROR(VALUE(VLOOKUP(TEXT($A173,0),MEDIDAS!$A$2:$Q$50,12,FALSE)),"") ->  | M173: =IFERROR(VALUE(VLOOKUP(TEXT($A173,0),MEDIDAS!$A$2:$Q$50,13,FALSE)),"") ->  | N173: =IFERROR(VALUE(VLOOKUP(TEXT($A173,0),MEDIDAS!$A$2:$Q$50,14,FALSE)),"") ->  | O173: =IFERROR(VALUE(VLOOKUP(TEXT($A173,0),MEDIDAS!$A$2:$Q$50,15,FALSE)),"") ->  | P173: =IFERROR(VALUE(VLOOKUP(TEXT($A173,0),MEDIDAS!$A$2:$Q$50,16,FALSE)),"") ->  | Q173: =IFERROR(VLOOKUP(TEXT($A173,0),MEDIDAS!$A$2:$Q$50,17,FALSE),"") -> 
A174: 166 | B174: =IFERROR(VLOOKUP(TEXT($A174,0),MEDIDAS!$A$2:$Q$50,2,FALSE),"") ->  | C174: =IFERROR(VLOOKUP(TEXT($A174,0),MEDIDAS!$A$2:$Q$50,3,FALSE),"") ->  | D174: =IFERROR(VLOOKUP(TEXT($A174,0),MEDIDAS!$A$2:$Q$50,4,FALSE),"") ->  | E174: =IFERROR(VLOOKUP(TEXT($A174,0),MEDIDAS!$A$2:$Q$50,5,FALSE),"") ->  | F174: =IFERROR(VLOOKUP(TEXT($A174,0),MEDIDAS!$A$2:$Q$50,6,FALSE),"") ->  | G174: =IFERROR(VLOOKUP(TEXT($A174,0),MEDIDAS!$A$2:$Q$50,7,FALSE),"") ->  | H174: =IFERROR(VLOOKUP(TEXT($A174,0),MEDIDAS!$A$2:$Q$50,8,FALSE),"") ->  | I174: =IFERROR(VLOOKUP(TEXT($A174,0),MEDIDAS!$A$2:$Q$50,9,FALSE),"") ->  | J174: =IFERROR(VALUE(VLOOKUP(TEXT($A174,0),MEDIDAS!$A$2:$Q$50,10,FALSE)),"") ->  | K174: =IFERROR(VALUE(VLOOKUP(TEXT($A174,0),MEDIDAS!$A$2:$Q$50,11,FALSE)),"") ->  | L174: =IFERROR(VALUE(VLOOKUP(TEXT($A174,0),MEDIDAS!$A$2:$Q$50,12,FALSE)),"") ->  | M174: =IFERROR(VALUE(VLOOKUP(TEXT($A174,0),MEDIDAS!$A$2:$Q$50,13,FALSE)),"") ->  | N174: =IFERROR(VALUE(VLOOKUP(TEXT($A174,0),MEDIDAS!$A$2:$Q$50,14,FALSE)),"") ->  | O174: =IFERROR(VALUE(VLOOKUP(TEXT($A174,0),MEDIDAS!$A$2:$Q$50,15,FALSE)),"") ->  | P174: =IFERROR(VALUE(VLOOKUP(TEXT($A174,0),MEDIDAS!$A$2:$Q$50,16,FALSE)),"") ->  | Q174: =IFERROR(VLOOKUP(TEXT($A174,0),MEDIDAS!$A$2:$Q$50,17,FALSE),"") -> 
A175: 167 | B175: =IFERROR(VLOOKUP(TEXT($A175,0),MEDIDAS!$A$2:$Q$50,2,FALSE),"") ->  | C175: =IFERROR(VLOOKUP(TEXT($A175,0),MEDIDAS!$A$2:$Q$50,3,FALSE),"") ->  | D175: =IFERROR(VLOOKUP(TEXT($A175,0),MEDIDAS!$A$2:$Q$50,4,FALSE),"") ->  | E175: =IFERROR(VLOOKUP(TEXT($A175,0),MEDIDAS!$A$2:$Q$50,5,FALSE),"") ->  | F175: =IFERROR(VLOOKUP(TEXT($A175,0),MEDIDAS!$A$2:$Q$50,6,FALSE),"") ->  | G175: =IFERROR(VLOOKUP(TEXT($A175,0),MEDIDAS!$A$2:$Q$50,7,FALSE),"") ->  | H175: =IFERROR(VLOOKUP(TEXT($A175,0),MEDIDAS!$A$2:$Q$50,8,FALSE),"") ->  | I175: =IFERROR(VLOOKUP(TEXT($A175,0),MEDIDAS!$A$2:$Q$50,9,FALSE),"") ->  | J175: =IFERROR(VALUE(VLOOKUP(TEXT($A175,0),MEDIDAS!$A$2:$Q$50,10,FALSE)),"") ->  | K175: =IFERROR(VALUE(VLOOKUP(TEXT($A175,0),MEDIDAS!$A$2:$Q$50,11,FALSE)),"") ->  | L175: =IFERROR(VALUE(VLOOKUP(TEXT($A175,0),MEDIDAS!$A$2:$Q$50,12,FALSE)),"") ->  | M175: =IFERROR(VALUE(VLOOKUP(TEXT($A175,0),MEDIDAS!$A$2:$Q$50,13,FALSE)),"") ->  | N175: =IFERROR(VALUE(VLOOKUP(TEXT($A175,0),MEDIDAS!$A$2:$Q$50,14,FALSE)),"") ->  | O175: =IFERROR(VALUE(VLOOKUP(TEXT($A175,0),MEDIDAS!$A$2:$Q$50,15,FALSE)),"") ->  | P175: =IFERROR(VALUE(VLOOKUP(TEXT($A175,0),MEDIDAS!$A$2:$Q$50,16,FALSE)),"") ->  | Q175: =IFERROR(VLOOKUP(TEXT($A175,0),MEDIDAS!$A$2:$Q$50,17,FALSE),"") -> 
A176: 168 | B176: =IFERROR(VLOOKUP(TEXT($A176,0),MEDIDAS!$A$2:$Q$50,2,FALSE),"") ->  | C176: =IFERROR(VLOOKUP(TEXT($A176,0),MEDIDAS!$A$2:$Q$50,3,FALSE),"") ->  | D176: =IFERROR(VLOOKUP(TEXT($A176,0),MEDIDAS!$A$2:$Q$50,4,FALSE),"") ->  | E176: =IFERROR(VLOOKUP(TEXT($A176,0),MEDIDAS!$A$2:$Q$50,5,FALSE),"") ->  | F176: =IFERROR(VLOOKUP(TEXT($A176,0),MEDIDAS!$A$2:$Q$50,6,FALSE),"") ->  | G176: =IFERROR(VLOOKUP(TEXT($A176,0),MEDIDAS!$A$2:$Q$50,7,FALSE),"") ->  | H176: =IFERROR(VLOOKUP(TEXT($A176,0),MEDIDAS!$A$2:$Q$50,8,FALSE),"") ->  | I176: =IFERROR(VLOOKUP(TEXT($A176,0),MEDIDAS!$A$2:$Q$50,9,FALSE),"") ->  | J176: =IFERROR(VALUE(VLOOKUP(TEXT($A176,0),MEDIDAS!$A$2:$Q$50,10,FALSE)),"") ->  | K176: =IFERROR(VALUE(VLOOKUP(TEXT($A176,0),MEDIDAS!$A$2:$Q$50,11,FALSE)),"") ->  | L176: =IFERROR(VALUE(VLOOKUP(TEXT($A176,0),MEDIDAS!$A$2:$Q$50,12,FALSE)),"") ->  | M176: =IFERROR(VALUE(VLOOKUP(TEXT($A176,0),MEDIDAS!$A$2:$Q$50,13,FALSE)),"") ->  | N176: =IFERROR(VALUE(VLOOKUP(TEXT($A176,0),MEDIDAS!$A$2:$Q$50,14,FALSE)),"") ->  | O176: =IFERROR(VALUE(VLOOKUP(TEXT($A176,0),MEDIDAS!$A$2:$Q$50,15,FALSE)),"") ->  | P176: =IFERROR(VALUE(VLOOKUP(TEXT($A176,0),MEDIDAS!$A$2:$Q$50,16,FALSE)),"") ->  | Q176: =IFERROR(VLOOKUP(TEXT($A176,0),MEDIDAS!$A$2:$Q$50,17,FALSE),"") -> 
A177: 169 | B177: =IFERROR(VLOOKUP(TEXT($A177,0),MEDIDAS!$A$2:$Q$50,2,FALSE),"") ->  | C177: =IFERROR(VLOOKUP(TEXT($A177,0),MEDIDAS!$A$2:$Q$50,3,FALSE),"") ->  | D177: =IFERROR(VLOOKUP(TEXT($A177,0),MEDIDAS!$A$2:$Q$50,4,FALSE),"") ->  | E177: =IFERROR(VLOOKUP(TEXT($A177,0),MEDIDAS!$A$2:$Q$50,5,FALSE),"") ->  | F177: =IFERROR(VLOOKUP(TEXT($A177,0),MEDIDAS!$A$2:$Q$50,6,FALSE),"") ->  | G177: =IFERROR(VLOOKUP(TEXT($A177,0),MEDIDAS!$A$2:$Q$50,7,FALSE),"") ->  | H177: =IFERROR(VLOOKUP(TEXT($A177,0),MEDIDAS!$A$2:$Q$50,8,FALSE),"") ->  | I177: =IFERROR(VLOOKUP(TEXT($A177,0),MEDIDAS!$A$2:$Q$50,9,FALSE),"") ->  | J177: =IFERROR(VALUE(VLOOKUP(TEXT($A177,0),MEDIDAS!$A$2:$Q$50,10,FALSE)),"") ->  | K177: =IFERROR(VALUE(VLOOKUP(TEXT($A177,0),MEDIDAS!$A$2:$Q$50,11,FALSE)),"") ->  | L177: =IFERROR(VALUE(VLOOKUP(TEXT($A177,0),MEDIDAS!$A$2:$Q$50,12,FALSE)),"") ->  | M177: =IFERROR(VALUE(VLOOKUP(TEXT($A177,0),MEDIDAS!$A$2:$Q$50,13,FALSE)),"") ->  | N177: =IFERROR(VALUE(VLOOKUP(TEXT($A177,0),MEDIDAS!$A$2:$Q$50,14,FALSE)),"") ->  | O177: =IFERROR(VALUE(VLOOKUP(TEXT($A177,0),MEDIDAS!$A$2:$Q$50,15,FALSE)),"") ->  | P177: =IFERROR(VALUE(VLOOKUP(TEXT($A177,0),MEDIDAS!$A$2:$Q$50,16,FALSE)),"") ->  | Q177: =IFERROR(VLOOKUP(TEXT($A177,0),MEDIDAS!$A$2:$Q$50,17,FALSE),"") -> 
A178: 170 | B178: =IFERROR(VLOOKUP(TEXT($A178,0),MEDIDAS!$A$2:$Q$50,2,FALSE),"") ->  | C178: =IFERROR(VLOOKUP(TEXT($A178,0),MEDIDAS!$A$2:$Q$50,3,FALSE),"") ->  | D178: =IFERROR(VLOOKUP(TEXT($A178,0),MEDIDAS!$A$2:$Q$50,4,FALSE),"") ->  | E178: =IFERROR(VLOOKUP(TEXT($A178,0),MEDIDAS!$A$2:$Q$50,5,FALSE),"") ->  | F178: =IFERROR(VLOOKUP(TEXT($A178,0),MEDIDAS!$A$2:$Q$50,6,FALSE),"") ->  | G178: =IFERROR(VLOOKUP(TEXT($A178,0),MEDIDAS!$A$2:$Q$50,7,FALSE),"") ->  | H178: =IFERROR(VLOOKUP(TEXT($A178,0),MEDIDAS!$A$2:$Q$50,8,FALSE),"") ->  | I178: =IFERROR(VLOOKUP(TEXT($A178,0),MEDIDAS!$A$2:$Q$50,9,FALSE),"") ->  | J178: =IFERROR(VALUE(VLOOKUP(TEXT($A178,0),MEDIDAS!$A$2:$Q$50,10,FALSE)),"") ->  | K178: =IFERROR(VALUE(VLOOKUP(TEXT($A178,0),MEDIDAS!$A$2:$Q$50,11,FALSE)),"") ->  | L178: =IFERROR(VALUE(VLOOKUP(TEXT($A178,0),MEDIDAS!$A$2:$Q$50,12,FALSE)),"") ->  | M178: =IFERROR(VALUE(VLOOKUP(TEXT($A178,0),MEDIDAS!$A$2:$Q$50,13,FALSE)),"") ->  | N178: =IFERROR(VALUE(VLOOKUP(TEXT($A178,0),MEDIDAS!$A$2:$Q$50,14,FALSE)),"") ->  | O178: =IFERROR(VALUE(VLOOKUP(TEXT($A178,0),MEDIDAS!$A$2:$Q$50,15,FALSE)),"") ->  | P178: =IFERROR(VALUE(VLOOKUP(TEXT($A178,0),MEDIDAS!$A$2:$Q$50,16,FALSE)),"") ->  | Q178: =IFERROR(VLOOKUP(TEXT($A178,0),MEDIDAS!$A$2:$Q$50,17,FALSE),"") -> 
A179: 171 | B179: =IFERROR(VLOOKUP(TEXT($A179,0),MEDIDAS!$A$2:$Q$50,2,FALSE),"") ->  | C179: =IFERROR(VLOOKUP(TEXT($A179,0),MEDIDAS!$A$2:$Q$50,3,FALSE),"") ->  | D179: =IFERROR(VLOOKUP(TEXT($A179,0),MEDIDAS!$A$2:$Q$50,4,FALSE),"") ->  | E179: =IFERROR(VLOOKUP(TEXT($A179,0),MEDIDAS!$A$2:$Q$50,5,FALSE),"") ->  | F179: =IFERROR(VLOOKUP(TEXT($A179,0),MEDIDAS!$A$2:$Q$50,6,FALSE),"") ->  | G179: =IFERROR(VLOOKUP(TEXT($A179,0),MEDIDAS!$A$2:$Q$50,7,FALSE),"") ->  | H179: =IFERROR(VLOOKUP(TEXT($A179,0),MEDIDAS!$A$2:$Q$50,8,FALSE),"") ->  | I179: =IFERROR(VLOOKUP(TEXT($A179,0),MEDIDAS!$A$2:$Q$50,9,FALSE),"") ->  | J179: =IFERROR(VALUE(VLOOKUP(TEXT($A179,0),MEDIDAS!$A$2:$Q$50,10,FALSE)),"") ->  | K179: =IFERROR(VALUE(VLOOKUP(TEXT($A179,0),MEDIDAS!$A$2:$Q$50,11,FALSE)),"") ->  | L179: =IFERROR(VALUE(VLOOKUP(TEXT($A179,0),MEDIDAS!$A$2:$Q$50,12,FALSE)),"") ->  | M179: =IFERROR(VALUE(VLOOKUP(TEXT($A179,0),MEDIDAS!$A$2:$Q$50,13,FALSE)),"") ->  | N179: =IFERROR(VALUE(VLOOKUP(TEXT($A179,0),MEDIDAS!$A$2:$Q$50,14,FALSE)),"") ->  | O179: =IFERROR(VALUE(VLOOKUP(TEXT($A179,0),MEDIDAS!$A$2:$Q$50,15,FALSE)),"") ->  | P179: =IFERROR(VALUE(VLOOKUP(TEXT($A179,0),MEDIDAS!$A$2:$Q$50,16,FALSE)),"") ->  | Q179: =IFERROR(VLOOKUP(TEXT($A179,0),MEDIDAS!$A$2:$Q$50,17,FALSE),"") -> 
A180: 172 | B180: =IFERROR(VLOOKUP(TEXT($A180,0),MEDIDAS!$A$2:$Q$50,2,FALSE),"") ->  | C180: =IFERROR(VLOOKUP(TEXT($A180,0),MEDIDAS!$A$2:$Q$50,3,FALSE),"") ->  | D180: =IFERROR(VLOOKUP(TEXT($A180,0),MEDIDAS!$A$2:$Q$50,4,FALSE),"") ->  | E180: =IFERROR(VLOOKUP(TEXT($A180,0),MEDIDAS!$A$2:$Q$50,5,FALSE),"") ->  | F180: =IFERROR(VLOOKUP(TEXT($A180,0),MEDIDAS!$A$2:$Q$50,6,FALSE),"") ->  | G180: =IFERROR(VLOOKUP(TEXT($A180,0),MEDIDAS!$A$2:$Q$50,7,FALSE),"") ->  | H180: =IFERROR(VLOOKUP(TEXT($A180,0),MEDIDAS!$A$2:$Q$50,8,FALSE),"") ->  | I180: =IFERROR(VLOOKUP(TEXT($A180,0),MEDIDAS!$A$2:$Q$50,9,FALSE),"") ->  | J180: =IFERROR(VALUE(VLOOKUP(TEXT($A180,0),MEDIDAS!$A$2:$Q$50,10,FALSE)),"") ->  | K180: =IFERROR(VALUE(VLOOKUP(TEXT($A180,0),MEDIDAS!$A$2:$Q$50,11,FALSE)),"") ->  | L180: =IFERROR(VALUE(VLOOKUP(TEXT($A180,0),MEDIDAS!$A$2:$Q$50,12,FALSE)),"") ->  | M180: =IFERROR(VALUE(VLOOKUP(TEXT($A180,0),MEDIDAS!$A$2:$Q$50,13,FALSE)),"") ->  | N180: =IFERROR(VALUE(VLOOKUP(TEXT($A180,0),MEDIDAS!$A$2:$Q$50,14,FALSE)),"") ->  | O180: =IFERROR(VALUE(VLOOKUP(TEXT($A180,0),MEDIDAS!$A$2:$Q$50,15,FALSE)),"") ->  | P180: =IFERROR(VALUE(VLOOKUP(TEXT($A180,0),MEDIDAS!$A$2:$Q$50,16,FALSE)),"") ->  | Q180: =IFERROR(VLOOKUP(TEXT($A180,0),MEDIDAS!$A$2:$Q$50,17,FALSE),"") -> 
A181: 173 | B181: =IFERROR(VLOOKUP(TEXT($A181,0),MEDIDAS!$A$2:$Q$50,2,FALSE),"") ->  | C181: =IFERROR(VLOOKUP(TEXT($A181,0),MEDIDAS!$A$2:$Q$50,3,FALSE),"") ->  | D181: =IFERROR(VLOOKUP(TEXT($A181,0),MEDIDAS!$A$2:$Q$50,4,FALSE),"") ->  | E181: =IFERROR(VLOOKUP(TEXT($A181,0),MEDIDAS!$A$2:$Q$50,5,FALSE),"") ->  | F181: =IFERROR(VLOOKUP(TEXT($A181,0),MEDIDAS!$A$2:$Q$50,6,FALSE),"") ->  | G181: =IFERROR(VLOOKUP(TEXT($A181,0),MEDIDAS!$A$2:$Q$50,7,FALSE),"") ->  | H181: =IFERROR(VLOOKUP(TEXT($A181,0),MEDIDAS!$A$2:$Q$50,8,FALSE),"") ->  | I181: =IFERROR(VLOOKUP(TEXT($A181,0),MEDIDAS!$A$2:$Q$50,9,FALSE),"") ->  | J181: =IFERROR(VALUE(VLOOKUP(TEXT($A181,0),MEDIDAS!$A$2:$Q$50,10,FALSE)),"") ->  | K181: =IFERROR(VALUE(VLOOKUP(TEXT($A181,0),MEDIDAS!$A$2:$Q$50,11,FALSE)),"") ->  | L181: =IFERROR(VALUE(VLOOKUP(TEXT($A181,0),MEDIDAS!$A$2:$Q$50,12,FALSE)),"") ->  | M181: =IFERROR(VALUE(VLOOKUP(TEXT($A181,0),MEDIDAS!$A$2:$Q$50,13,FALSE)),"") ->  | N181: =IFERROR(VALUE(VLOOKUP(TEXT($A181,0),MEDIDAS!$A$2:$Q$50,14,FALSE)),"") ->  | O181: =IFERROR(VALUE(VLOOKUP(TEXT($A181,0),MEDIDAS!$A$2:$Q$50,15,FALSE)),"") ->  | P181: =IFERROR(VALUE(VLOOKUP(TEXT($A181,0),MEDIDAS!$A$2:$Q$50,16,FALSE)),"") ->  | Q181: =IFERROR(VLOOKUP(TEXT($A181,0),MEDIDAS!$A$2:$Q$50,17,FALSE),"") -> 
A182: 174 | B182: =IFERROR(VLOOKUP(TEXT($A182,0),MEDIDAS!$A$2:$Q$50,2,FALSE),"") ->  | C182: =IFERROR(VLOOKUP(TEXT($A182,0),MEDIDAS!$A$2:$Q$50,3,FALSE),"") ->  | D182: =IFERROR(VLOOKUP(TEXT($A182,0),MEDIDAS!$A$2:$Q$50,4,FALSE),"") ->  | E182: =IFERROR(VLOOKUP(TEXT($A182,0),MEDIDAS!$A$2:$Q$50,5,FALSE),"") ->  | F182: =IFERROR(VLOOKUP(TEXT($A182,0),MEDIDAS!$A$2:$Q$50,6,FALSE),"") ->  | G182: =IFERROR(VLOOKUP(TEXT($A182,0),MEDIDAS!$A$2:$Q$50,7,FALSE),"") ->  | H182: =IFERROR(VLOOKUP(TEXT($A182,0),MEDIDAS!$A$2:$Q$50,8,FALSE),"") ->  | I182: =IFERROR(VLOOKUP(TEXT($A182,0),MEDIDAS!$A$2:$Q$50,9,FALSE),"") ->  | J182: =IFERROR(VALUE(VLOOKUP(TEXT($A182,0),MEDIDAS!$A$2:$Q$50,10,FALSE)),"") ->  | K182: =IFERROR(VALUE(VLOOKUP(TEXT($A182,0),MEDIDAS!$A$2:$Q$50,11,FALSE)),"") ->  | L182: =IFERROR(VALUE(VLOOKUP(TEXT($A182,0),MEDIDAS!$A$2:$Q$50,12,FALSE)),"") ->  | M182: =IFERROR(VALUE(VLOOKUP(TEXT($A182,0),MEDIDAS!$A$2:$Q$50,13,FALSE)),"") ->  | N182: =IFERROR(VALUE(VLOOKUP(TEXT($A182,0),MEDIDAS!$A$2:$Q$50,14,FALSE)),"") ->  | O182: =IFERROR(VALUE(VLOOKUP(TEXT($A182,0),MEDIDAS!$A$2:$Q$50,15,FALSE)),"") ->  | P182: =IFERROR(VALUE(VLOOKUP(TEXT($A182,0),MEDIDAS!$A$2:$Q$50,16,FALSE)),"") ->  | Q182: =IFERROR(VLOOKUP(TEXT($A182,0),MEDIDAS!$A$2:$Q$50,17,FALSE),"") -> 
A183: 175 | B183: =IFERROR(VLOOKUP(TEXT($A183,0),MEDIDAS!$A$2:$Q$50,2,FALSE),"") ->  | C183: =IFERROR(VLOOKUP(TEXT($A183,0),MEDIDAS!$A$2:$Q$50,3,FALSE),"") ->  | D183: =IFERROR(VLOOKUP(TEXT($A183,0),MEDIDAS!$A$2:$Q$50,4,FALSE),"") ->  | E183: =IFERROR(VLOOKUP(TEXT($A183,0),MEDIDAS!$A$2:$Q$50,5,FALSE),"") ->  | F183: =IFERROR(VLOOKUP(TEXT($A183,0),MEDIDAS!$A$2:$Q$50,6,FALSE),"") ->  | G183: =IFERROR(VLOOKUP(TEXT($A183,0),MEDIDAS!$A$2:$Q$50,7,FALSE),"") ->  | H183: =IFERROR(VLOOKUP(TEXT($A183,0),MEDIDAS!$A$2:$Q$50,8,FALSE),"") ->  | I183: =IFERROR(VLOOKUP(TEXT($A183,0),MEDIDAS!$A$2:$Q$50,9,FALSE),"") ->  | J183: =IFERROR(VALUE(VLOOKUP(TEXT($A183,0),MEDIDAS!$A$2:$Q$50,10,FALSE)),"") ->  | K183: =IFERROR(VALUE(VLOOKUP(TEXT($A183,0),MEDIDAS!$A$2:$Q$50,11,FALSE)),"") ->  | L183: =IFERROR(VALUE(VLOOKUP(TEXT($A183,0),MEDIDAS!$A$2:$Q$50,12,FALSE)),"") ->  | M183: =IFERROR(VALUE(VLOOKUP(TEXT($A183,0),MEDIDAS!$A$2:$Q$50,13,FALSE)),"") ->  | N183: =IFERROR(VALUE(VLOOKUP(TEXT($A183,0),MEDIDAS!$A$2:$Q$50,14,FALSE)),"") ->  | O183: =IFERROR(VALUE(VLOOKUP(TEXT($A183,0),MEDIDAS!$A$2:$Q$50,15,FALSE)),"") ->  | P183: =IFERROR(VALUE(VLOOKUP(TEXT($A183,0),MEDIDAS!$A$2:$Q$50,16,FALSE)),"") ->  | Q183: =IFERROR(VLOOKUP(TEXT($A183,0),MEDIDAS!$A$2:$Q$50,17,FALSE),"") -> 
A184: 176 | B184: =IFERROR(VLOOKUP(TEXT($A184,0),MEDIDAS!$A$2:$Q$50,2,FALSE),"") ->  | C184: =IFERROR(VLOOKUP(TEXT($A184,0),MEDIDAS!$A$2:$Q$50,3,FALSE),"") ->  | D184: =IFERROR(VLOOKUP(TEXT($A184,0),MEDIDAS!$A$2:$Q$50,4,FALSE),"") ->  | E184: =IFERROR(VLOOKUP(TEXT($A184,0),MEDIDAS!$A$2:$Q$50,5,FALSE),"") ->  | F184: =IFERROR(VLOOKUP(TEXT($A184,0),MEDIDAS!$A$2:$Q$50,6,FALSE),"") ->  | G184: =IFERROR(VLOOKUP(TEXT($A184,0),MEDIDAS!$A$2:$Q$50,7,FALSE),"") ->  | H184: =IFERROR(VLOOKUP(TEXT($A184,0),MEDIDAS!$A$2:$Q$50,8,FALSE),"") ->  | I184: =IFERROR(VLOOKUP(TEXT($A184,0),MEDIDAS!$A$2:$Q$50,9,FALSE),"") ->  | J184: =IFERROR(VALUE(VLOOKUP(TEXT($A184,0),MEDIDAS!$A$2:$Q$50,10,FALSE)),"") ->  | K184: =IFERROR(VALUE(VLOOKUP(TEXT($A184,0),MEDIDAS!$A$2:$Q$50,11,FALSE)),"") ->  | L184: =IFERROR(VALUE(VLOOKUP(TEXT($A184,0),MEDIDAS!$A$2:$Q$50,12,FALSE)),"") ->  | M184: =IFERROR(VALUE(VLOOKUP(TEXT($A184,0),MEDIDAS!$A$2:$Q$50,13,FALSE)),"") ->  | N184: =IFERROR(VALUE(VLOOKUP(TEXT($A184,0),MEDIDAS!$A$2:$Q$50,14,FALSE)),"") ->  | O184: =IFERROR(VALUE(VLOOKUP(TEXT($A184,0),MEDIDAS!$A$2:$Q$50,15,FALSE)),"") ->  | P184: =IFERROR(VALUE(VLOOKUP(TEXT($A184,0),MEDIDAS!$A$2:$Q$50,16,FALSE)),"") ->  | Q184: =IFERROR(VLOOKUP(TEXT($A184,0),MEDIDAS!$A$2:$Q$50,17,FALSE),"") -> 
A185: 177 | B185: =IFERROR(VLOOKUP(TEXT($A185,0),MEDIDAS!$A$2:$Q$50,2,FALSE),"") ->  | C185: =IFERROR(VLOOKUP(TEXT($A185,0),MEDIDAS!$A$2:$Q$50,3,FALSE),"") ->  | D185: =IFERROR(VLOOKUP(TEXT($A185,0),MEDIDAS!$A$2:$Q$50,4,FALSE),"") ->  | E185: =IFERROR(VLOOKUP(TEXT($A185,0),MEDIDAS!$A$2:$Q$50,5,FALSE),"") ->  | F185: =IFERROR(VLOOKUP(TEXT($A185,0),MEDIDAS!$A$2:$Q$50,6,FALSE),"") ->  | G185: =IFERROR(VLOOKUP(TEXT($A185,0),MEDIDAS!$A$2:$Q$50,7,FALSE),"") ->  | H185: =IFERROR(VLOOKUP(TEXT($A185,0),MEDIDAS!$A$2:$Q$50,8,FALSE),"") ->  | I185: =IFERROR(VLOOKUP(TEXT($A185,0),MEDIDAS!$A$2:$Q$50,9,FALSE),"") ->  | J185: =IFERROR(VALUE(VLOOKUP(TEXT($A185,0),MEDIDAS!$A$2:$Q$50,10,FALSE)),"") ->  | K185: =IFERROR(VALUE(VLOOKUP(TEXT($A185,0),MEDIDAS!$A$2:$Q$50,11,FALSE)),"") ->  | L185: =IFERROR(VALUE(VLOOKUP(TEXT($A185,0),MEDIDAS!$A$2:$Q$50,12,FALSE)),"") ->  | M185: =IFERROR(VALUE(VLOOKUP(TEXT($A185,0),MEDIDAS!$A$2:$Q$50,13,FALSE)),"") ->  | N185: =IFERROR(VALUE(VLOOKUP(TEXT($A185,0),MEDIDAS!$A$2:$Q$50,14,FALSE)),"") ->  | O185: =IFERROR(VALUE(VLOOKUP(TEXT($A185,0),MEDIDAS!$A$2:$Q$50,15,FALSE)),"") ->  | P185: =IFERROR(VALUE(VLOOKUP(TEXT($A185,0),MEDIDAS!$A$2:$Q$50,16,FALSE)),"") ->  | Q185: =IFERROR(VLOOKUP(TEXT($A185,0),MEDIDAS!$A$2:$Q$50,17,FALSE),"") -> 
A186: 178 | B186: =IFERROR(VLOOKUP(TEXT($A186,0),MEDIDAS!$A$2:$Q$50,2,FALSE),"") ->  | C186: =IFERROR(VLOOKUP(TEXT($A186,0),MEDIDAS!$A$2:$Q$50,3,FALSE),"") ->  | D186: =IFERROR(VLOOKUP(TEXT($A186,0),MEDIDAS!$A$2:$Q$50,4,FALSE),"") ->  | E186: =IFERROR(VLOOKUP(TEXT($A186,0),MEDIDAS!$A$2:$Q$50,5,FALSE),"") ->  | F186: =IFERROR(VLOOKUP(TEXT($A186,0),MEDIDAS!$A$2:$Q$50,6,FALSE),"") ->  | G186: =IFERROR(VLOOKUP(TEXT($A186,0),MEDIDAS!$A$2:$Q$50,7,FALSE),"") ->  | H186: =IFERROR(VLOOKUP(TEXT($A186,0),MEDIDAS!$A$2:$Q$50,8,FALSE),"") ->  | I186: =IFERROR(VLOOKUP(TEXT($A186,0),MEDIDAS!$A$2:$Q$50,9,FALSE),"") ->  | J186: =IFERROR(VALUE(VLOOKUP(TEXT($A186,0),MEDIDAS!$A$2:$Q$50,10,FALSE)),"") ->  | K186: =IFERROR(VALUE(VLOOKUP(TEXT($A186,0),MEDIDAS!$A$2:$Q$50,11,FALSE)),"") ->  | L186: =IFERROR(VALUE(VLOOKUP(TEXT($A186,0),MEDIDAS!$A$2:$Q$50,12,FALSE)),"") ->  | M186: =IFERROR(VALUE(VLOOKUP(TEXT($A186,0),MEDIDAS!$A$2:$Q$50,13,FALSE)),"") ->  | N186: =IFERROR(VALUE(VLOOKUP(TEXT($A186,0),MEDIDAS!$A$2:$Q$50,14,FALSE)),"") ->  | O186: =IFERROR(VALUE(VLOOKUP(TEXT($A186,0),MEDIDAS!$A$2:$Q$50,15,FALSE)),"") ->  | P186: =IFERROR(VALUE(VLOOKUP(TEXT($A186,0),MEDIDAS!$A$2:$Q$50,16,FALSE)),"") ->  | Q186: =IFERROR(VLOOKUP(TEXT($A186,0),MEDIDAS!$A$2:$Q$50,17,FALSE),"") -> 
A187: 179 | B187: =IFERROR(VLOOKUP(TEXT($A187,0),MEDIDAS!$A$2:$Q$50,2,FALSE),"") ->  | C187: =IFERROR(VLOOKUP(TEXT($A187,0),MEDIDAS!$A$2:$Q$50,3,FALSE),"") ->  | D187: =IFERROR(VLOOKUP(TEXT($A187,0),MEDIDAS!$A$2:$Q$50,4,FALSE),"") ->  | E187: =IFERROR(VLOOKUP(TEXT($A187,0),MEDIDAS!$A$2:$Q$50,5,FALSE),"") ->  | F187: =IFERROR(VLOOKUP(TEXT($A187,0),MEDIDAS!$A$2:$Q$50,6,FALSE),"") ->  | G187: =IFERROR(VLOOKUP(TEXT($A187,0),MEDIDAS!$A$2:$Q$50,7,FALSE),"") ->  | H187: =IFERROR(VLOOKUP(TEXT($A187,0),MEDIDAS!$A$2:$Q$50,8,FALSE),"") ->  | I187: =IFERROR(VLOOKUP(TEXT($A187,0),MEDIDAS!$A$2:$Q$50,9,FALSE),"") ->  | J187: =IFERROR(VALUE(VLOOKUP(TEXT($A187,0),MEDIDAS!$A$2:$Q$50,10,FALSE)),"") ->  | K187: =IFERROR(VALUE(VLOOKUP(TEXT($A187,0),MEDIDAS!$A$2:$Q$50,11,FALSE)),"") ->  | L187: =IFERROR(VALUE(VLOOKUP(TEXT($A187,0),MEDIDAS!$A$2:$Q$50,12,FALSE)),"") ->  | M187: =IFERROR(VALUE(VLOOKUP(TEXT($A187,0),MEDIDAS!$A$2:$Q$50,13,FALSE)),"") ->  | N187: =IFERROR(VALUE(VLOOKUP(TEXT($A187,0),MEDIDAS!$A$2:$Q$50,14,FALSE)),"") ->  | O187: =IFERROR(VALUE(VLOOKUP(TEXT($A187,0),MEDIDAS!$A$2:$Q$50,15,FALSE)),"") ->  | P187: =IFERROR(VALUE(VLOOKUP(TEXT($A187,0),MEDIDAS!$A$2:$Q$50,16,FALSE)),"") ->  | Q187: =IFERROR(VLOOKUP(TEXT($A187,0),MEDIDAS!$A$2:$Q$50,17,FALSE),"") -> 
A188: 180 | B188: =IFERROR(VLOOKUP(TEXT($A188,0),MEDIDAS!$A$2:$Q$50,2,FALSE),"") ->  | C188: =IFERROR(VLOOKUP(TEXT($A188,0),MEDIDAS!$A$2:$Q$50,3,FALSE),"") ->  | D188: =IFERROR(VLOOKUP(TEXT($A188,0),MEDIDAS!$A$2:$Q$50,4,FALSE),"") ->  | E188: =IFERROR(VLOOKUP(TEXT($A188,0),MEDIDAS!$A$2:$Q$50,5,FALSE),"") ->  | F188: =IFERROR(VLOOKUP(TEXT($A188,0),MEDIDAS!$A$2:$Q$50,6,FALSE),"") ->  | G188: =IFERROR(VLOOKUP(TEXT($A188,0),MEDIDAS!$A$2:$Q$50,7,FALSE),"") ->  | H188: =IFERROR(VLOOKUP(TEXT($A188,0),MEDIDAS!$A$2:$Q$50,8,FALSE),"") ->  | I188: =IFERROR(VLOOKUP(TEXT($A188,0),MEDIDAS!$A$2:$Q$50,9,FALSE),"") ->  | J188: =IFERROR(VALUE(VLOOKUP(TEXT($A188,0),MEDIDAS!$A$2:$Q$50,10,FALSE)),"") ->  | K188: =IFERROR(VALUE(VLOOKUP(TEXT($A188,0),MEDIDAS!$A$2:$Q$50,11,FALSE)),"") ->  | L188: =IFERROR(VALUE(VLOOKUP(TEXT($A188,0),MEDIDAS!$A$2:$Q$50,12,FALSE)),"") ->  | M188: =IFERROR(VALUE(VLOOKUP(TEXT($A188,0),MEDIDAS!$A$2:$Q$50,13,FALSE)),"") ->  | N188: =IFERROR(VALUE(VLOOKUP(TEXT($A188,0),MEDIDAS!$A$2:$Q$50,14,FALSE)),"") ->  | O188: =IFERROR(VALUE(VLOOKUP(TEXT($A188,0),MEDIDAS!$A$2:$Q$50,15,FALSE)),"") ->  | P188: =IFERROR(VALUE(VLOOKUP(TEXT($A188,0),MEDIDAS!$A$2:$Q$50,16,FALSE)),"") ->  | Q188: =IFERROR(VLOOKUP(TEXT($A188,0),MEDIDAS!$A$2:$Q$50,17,FALSE),"") -> 
A189: 181 | B189: =IFERROR(VLOOKUP(TEXT($A189,0),MEDIDAS!$A$2:$Q$50,2,FALSE),"") ->  | C189: =IFERROR(VLOOKUP(TEXT($A189,0),MEDIDAS!$A$2:$Q$50,3,FALSE),"") ->  | D189: =IFERROR(VLOOKUP(TEXT($A189,0),MEDIDAS!$A$2:$Q$50,4,FALSE),"") ->  | E189: =IFERROR(VLOOKUP(TEXT($A189,0),MEDIDAS!$A$2:$Q$50,5,FALSE),"") ->  | F189: =IFERROR(VLOOKUP(TEXT($A189,0),MEDIDAS!$A$2:$Q$50,6,FALSE),"") ->  | G189: =IFERROR(VLOOKUP(TEXT($A189,0),MEDIDAS!$A$2:$Q$50,7,FALSE),"") ->  | H189: =IFERROR(VLOOKUP(TEXT($A189,0),MEDIDAS!$A$2:$Q$50,8,FALSE),"") ->  | I189: =IFERROR(VLOOKUP(TEXT($A189,0),MEDIDAS!$A$2:$Q$50,9,FALSE),"") ->  | J189: =IFERROR(VALUE(VLOOKUP(TEXT($A189,0),MEDIDAS!$A$2:$Q$50,10,FALSE)),"") ->  | K189: =IFERROR(VALUE(VLOOKUP(TEXT($A189,0),MEDIDAS!$A$2:$Q$50,11,FALSE)),"") ->  | L189: =IFERROR(VALUE(VLOOKUP(TEXT($A189,0),MEDIDAS!$A$2:$Q$50,12,FALSE)),"") ->  | M189: =IFERROR(VALUE(VLOOKUP(TEXT($A189,0),MEDIDAS!$A$2:$Q$50,13,FALSE)),"") ->  | N189: =IFERROR(VALUE(VLOOKUP(TEXT($A189,0),MEDIDAS!$A$2:$Q$50,14,FALSE)),"") ->  | O189: =IFERROR(VALUE(VLOOKUP(TEXT($A189,0),MEDIDAS!$A$2:$Q$50,15,FALSE)),"") ->  | P189: =IFERROR(VALUE(VLOOKUP(TEXT($A189,0),MEDIDAS!$A$2:$Q$50,16,FALSE)),"") ->  | Q189: =IFERROR(VLOOKUP(TEXT($A189,0),MEDIDAS!$A$2:$Q$50,17,FALSE),"") -> 
A190: 182 | B190: =IFERROR(VLOOKUP(TEXT($A190,0),MEDIDAS!$A$2:$Q$50,2,FALSE),"") ->  | C190: =IFERROR(VLOOKUP(TEXT($A190,0),MEDIDAS!$A$2:$Q$50,3,FALSE),"") ->  | D190: =IFERROR(VLOOKUP(TEXT($A190,0),MEDIDAS!$A$2:$Q$50,4,FALSE),"") ->  | E190: =IFERROR(VLOOKUP(TEXT($A190,0),MEDIDAS!$A$2:$Q$50,5,FALSE),"") ->  | F190: =IFERROR(VLOOKUP(TEXT($A190,0),MEDIDAS!$A$2:$Q$50,6,FALSE),"") ->  | G190: =IFERROR(VLOOKUP(TEXT($A190,0),MEDIDAS!$A$2:$Q$50,7,FALSE),"") ->  | H190: =IFERROR(VLOOKUP(TEXT($A190,0),MEDIDAS!$A$2:$Q$50,8,FALSE),"") ->  | I190: =IFERROR(VLOOKUP(TEXT($A190,0),MEDIDAS!$A$2:$Q$50,9,FALSE),"") ->  | J190: =IFERROR(VALUE(VLOOKUP(TEXT($A190,0),MEDIDAS!$A$2:$Q$50,10,FALSE)),"") ->  | K190: =IFERROR(VALUE(VLOOKUP(TEXT($A190,0),MEDIDAS!$A$2:$Q$50,11,FALSE)),"") ->  | L190: =IFERROR(VALUE(VLOOKUP(TEXT($A190,0),MEDIDAS!$A$2:$Q$50,12,FALSE)),"") ->  | M190: =IFERROR(VALUE(VLOOKUP(TEXT($A190,0),MEDIDAS!$A$2:$Q$50,13,FALSE)),"") ->  | N190: =IFERROR(VALUE(VLOOKUP(TEXT($A190,0),MEDIDAS!$A$2:$Q$50,14,FALSE)),"") ->  | O190: =IFERROR(VALUE(VLOOKUP(TEXT($A190,0),MEDIDAS!$A$2:$Q$50,15,FALSE)),"") ->  | P190: =IFERROR(VALUE(VLOOKUP(TEXT($A190,0),MEDIDAS!$A$2:$Q$50,16,FALSE)),"") ->  | Q190: =IFERROR(VLOOKUP(TEXT($A190,0),MEDIDAS!$A$2:$Q$50,17,FALSE),"") -> 
A191: 183 | B191: =IFERROR(VLOOKUP(TEXT($A191,0),MEDIDAS!$A$2:$Q$50,2,FALSE),"") ->  | C191: =IFERROR(VLOOKUP(TEXT($A191,0),MEDIDAS!$A$2:$Q$50,3,FALSE),"") ->  | D191: =IFERROR(VLOOKUP(TEXT($A191,0),MEDIDAS!$A$2:$Q$50,4,FALSE),"") ->  | E191: =IFERROR(VLOOKUP(TEXT($A191,0),MEDIDAS!$A$2:$Q$50,5,FALSE),"") ->  | F191: =IFERROR(VLOOKUP(TEXT($A191,0),MEDIDAS!$A$2:$Q$50,6,FALSE),"") ->  | G191: =IFERROR(VLOOKUP(TEXT($A191,0),MEDIDAS!$A$2:$Q$50,7,FALSE),"") ->  | H191: =IFERROR(VLOOKUP(TEXT($A191,0),MEDIDAS!$A$2:$Q$50,8,FALSE),"") ->  | I191: =IFERROR(VLOOKUP(TEXT($A191,0),MEDIDAS!$A$2:$Q$50,9,FALSE),"") ->  | J191: =IFERROR(VALUE(VLOOKUP(TEXT($A191,0),MEDIDAS!$A$2:$Q$50,10,FALSE)),"") ->  | K191: =IFERROR(VALUE(VLOOKUP(TEXT($A191,0),MEDIDAS!$A$2:$Q$50,11,FALSE)),"") ->  | L191: =IFERROR(VALUE(VLOOKUP(TEXT($A191,0),MEDIDAS!$A$2:$Q$50,12,FALSE)),"") ->  | M191: =IFERROR(VALUE(VLOOKUP(TEXT($A191,0),MEDIDAS!$A$2:$Q$50,13,FALSE)),"") ->  | N191: =IFERROR(VALUE(VLOOKUP(TEXT($A191,0),MEDIDAS!$A$2:$Q$50,14,FALSE)),"") ->  | O191: =IFERROR(VALUE(VLOOKUP(TEXT($A191,0),MEDIDAS!$A$2:$Q$50,15,FALSE)),"") ->  | P191: =IFERROR(VALUE(VLOOKUP(TEXT($A191,0),MEDIDAS!$A$2:$Q$50,16,FALSE)),"") ->  | Q191: =IFERROR(VLOOKUP(TEXT($A191,0),MEDIDAS!$A$2:$Q$50,17,FALSE),"") -> 
A192: 184 | B192: =IFERROR(VLOOKUP(TEXT($A192,0),MEDIDAS!$A$2:$Q$50,2,FALSE),"") ->  | C192: =IFERROR(VLOOKUP(TEXT($A192,0),MEDIDAS!$A$2:$Q$50,3,FALSE),"") ->  | D192: =IFERROR(VLOOKUP(TEXT($A192,0),MEDIDAS!$A$2:$Q$50,4,FALSE),"") ->  | E192: =IFERROR(VLOOKUP(TEXT($A192,0),MEDIDAS!$A$2:$Q$50,5,FALSE),"") ->  | F192: =IFERROR(VLOOKUP(TEXT($A192,0),MEDIDAS!$A$2:$Q$50,6,FALSE),"") ->  | G192: =IFERROR(VLOOKUP(TEXT($A192,0),MEDIDAS!$A$2:$Q$50,7,FALSE),"") ->  | H192: =IFERROR(VLOOKUP(TEXT($A192,0),MEDIDAS!$A$2:$Q$50,8,FALSE),"") ->  | I192: =IFERROR(VLOOKUP(TEXT($A192,0),MEDIDAS!$A$2:$Q$50,9,FALSE),"") ->  | J192: =IFERROR(VALUE(VLOOKUP(TEXT($A192,0),MEDIDAS!$A$2:$Q$50,10,FALSE)),"") ->  | K192: =IFERROR(VALUE(VLOOKUP(TEXT($A192,0),MEDIDAS!$A$2:$Q$50,11,FALSE)),"") ->  | L192: =IFERROR(VALUE(VLOOKUP(TEXT($A192,0),MEDIDAS!$A$2:$Q$50,12,FALSE)),"") ->  | M192: =IFERROR(VALUE(VLOOKUP(TEXT($A192,0),MEDIDAS!$A$2:$Q$50,13,FALSE)),"") ->  | N192: =IFERROR(VALUE(VLOOKUP(TEXT($A192,0),MEDIDAS!$A$2:$Q$50,14,FALSE)),"") ->  | O192: =IFERROR(VALUE(VLOOKUP(TEXT($A192,0),MEDIDAS!$A$2:$Q$50,15,FALSE)),"") ->  | P192: =IFERROR(VALUE(VLOOKUP(TEXT($A192,0),MEDIDAS!$A$2:$Q$50,16,FALSE)),"") ->  | Q192: =IFERROR(VLOOKUP(TEXT($A192,0),MEDIDAS!$A$2:$Q$50,17,FALSE),"") -> 
A193: 185 | B193: =IFERROR(VLOOKUP(TEXT($A193,0),MEDIDAS!$A$2:$Q$50,2,FALSE),"") ->  | C193: =IFERROR(VLOOKUP(TEXT($A193,0),MEDIDAS!$A$2:$Q$50,3,FALSE),"") ->  | D193: =IFERROR(VLOOKUP(TEXT($A193,0),MEDIDAS!$A$2:$Q$50,4,FALSE),"") ->  | E193: =IFERROR(VLOOKUP(TEXT($A193,0),MEDIDAS!$A$2:$Q$50,5,FALSE),"") ->  | F193: =IFERROR(VLOOKUP(TEXT($A193,0),MEDIDAS!$A$2:$Q$50,6,FALSE),"") ->  | G193: =IFERROR(VLOOKUP(TEXT($A193,0),MEDIDAS!$A$2:$Q$50,7,FALSE),"") ->  | H193: =IFERROR(VLOOKUP(TEXT($A193,0),MEDIDAS!$A$2:$Q$50,8,FALSE),"") ->  | I193: =IFERROR(VLOOKUP(TEXT($A193,0),MEDIDAS!$A$2:$Q$50,9,FALSE),"") ->  | J193: =IFERROR(VALUE(VLOOKUP(TEXT($A193,0),MEDIDAS!$A$2:$Q$50,10,FALSE)),"") ->  | K193: =IFERROR(VALUE(VLOOKUP(TEXT($A193,0),MEDIDAS!$A$2:$Q$50,11,FALSE)),"") ->  | L193: =IFERROR(VALUE(VLOOKUP(TEXT($A193,0),MEDIDAS!$A$2:$Q$50,12,FALSE)),"") ->  | M193: =IFERROR(VALUE(VLOOKUP(TEXT($A193,0),MEDIDAS!$A$2:$Q$50,13,FALSE)),"") ->  | N193: =IFERROR(VALUE(VLOOKUP(TEXT($A193,0),MEDIDAS!$A$2:$Q$50,14,FALSE)),"") ->  | O193: =IFERROR(VALUE(VLOOKUP(TEXT($A193,0),MEDIDAS!$A$2:$Q$50,15,FALSE)),"") ->  | P193: =IFERROR(VALUE(VLOOKUP(TEXT($A193,0),MEDIDAS!$A$2:$Q$50,16,FALSE)),"") ->  | Q193: =IFERROR(VLOOKUP(TEXT($A193,0),MEDIDAS!$A$2:$Q$50,17,FALSE),"") -> 
A194: 186 | B194: =IFERROR(VLOOKUP(TEXT($A194,0),MEDIDAS!$A$2:$Q$50,2,FALSE),"") ->  | C194: =IFERROR(VLOOKUP(TEXT($A194,0),MEDIDAS!$A$2:$Q$50,3,FALSE),"") ->  | D194: =IFERROR(VLOOKUP(TEXT($A194,0),MEDIDAS!$A$2:$Q$50,4,FALSE),"") ->  | E194: =IFERROR(VLOOKUP(TEXT($A194,0),MEDIDAS!$A$2:$Q$50,5,FALSE),"") ->  | F194: =IFERROR(VLOOKUP(TEXT($A194,0),MEDIDAS!$A$2:$Q$50,6,FALSE),"") ->  | G194: =IFERROR(VLOOKUP(TEXT($A194,0),MEDIDAS!$A$2:$Q$50,7,FALSE),"") ->  | H194: =IFERROR(VLOOKUP(TEXT($A194,0),MEDIDAS!$A$2:$Q$50,8,FALSE),"") ->  | I194: =IFERROR(VLOOKUP(TEXT($A194,0),MEDIDAS!$A$2:$Q$50,9,FALSE),"") ->  | J194: =IFERROR(VALUE(VLOOKUP(TEXT($A194,0),MEDIDAS!$A$2:$Q$50,10,FALSE)),"") ->  | K194: =IFERROR(VALUE(VLOOKUP(TEXT($A194,0),MEDIDAS!$A$2:$Q$50,11,FALSE)),"") ->  | L194: =IFERROR(VALUE(VLOOKUP(TEXT($A194,0),MEDIDAS!$A$2:$Q$50,12,FALSE)),"") ->  | M194: =IFERROR(VALUE(VLOOKUP(TEXT($A194,0),MEDIDAS!$A$2:$Q$50,13,FALSE)),"") ->  | N194: =IFERROR(VALUE(VLOOKUP(TEXT($A194,0),MEDIDAS!$A$2:$Q$50,14,FALSE)),"") ->  | O194: =IFERROR(VALUE(VLOOKUP(TEXT($A194,0),MEDIDAS!$A$2:$Q$50,15,FALSE)),"") ->  | P194: =IFERROR(VALUE(VLOOKUP(TEXT($A194,0),MEDIDAS!$A$2:$Q$50,16,FALSE)),"") ->  | Q194: =IFERROR(VLOOKUP(TEXT($A194,0),MEDIDAS!$A$2:$Q$50,17,FALSE),"") -> 
A195: 187 | B195: =IFERROR(VLOOKUP(TEXT($A195,0),MEDIDAS!$A$2:$Q$50,2,FALSE),"") ->  | C195: =IFERROR(VLOOKUP(TEXT($A195,0),MEDIDAS!$A$2:$Q$50,3,FALSE),"") ->  | D195: =IFERROR(VLOOKUP(TEXT($A195,0),MEDIDAS!$A$2:$Q$50,4,FALSE),"") ->  | E195: =IFERROR(VLOOKUP(TEXT($A195,0),MEDIDAS!$A$2:$Q$50,5,FALSE),"") ->  | F195: =IFERROR(VLOOKUP(TEXT($A195,0),MEDIDAS!$A$2:$Q$50,6,FALSE),"") ->  | G195: =IFERROR(VLOOKUP(TEXT($A195,0),MEDIDAS!$A$2:$Q$50,7,FALSE),"") ->  | H195: =IFERROR(VLOOKUP(TEXT($A195,0),MEDIDAS!$A$2:$Q$50,8,FALSE),"") ->  | I195: =IFERROR(VLOOKUP(TEXT($A195,0),MEDIDAS!$A$2:$Q$50,9,FALSE),"") ->  | J195: =IFERROR(VALUE(VLOOKUP(TEXT($A195,0),MEDIDAS!$A$2:$Q$50,10,FALSE)),"") ->  | K195: =IFERROR(VALUE(VLOOKUP(TEXT($A195,0),MEDIDAS!$A$2:$Q$50,11,FALSE)),"") ->  | L195: =IFERROR(VALUE(VLOOKUP(TEXT($A195,0),MEDIDAS!$A$2:$Q$50,12,FALSE)),"") ->  | M195: =IFERROR(VALUE(VLOOKUP(TEXT($A195,0),MEDIDAS!$A$2:$Q$50,13,FALSE)),"") ->  | N195: =IFERROR(VALUE(VLOOKUP(TEXT($A195,0),MEDIDAS!$A$2:$Q$50,14,FALSE)),"") ->  | O195: =IFERROR(VALUE(VLOOKUP(TEXT($A195,0),MEDIDAS!$A$2:$Q$50,15,FALSE)),"") ->  | P195: =IFERROR(VALUE(VLOOKUP(TEXT($A195,0),MEDIDAS!$A$2:$Q$50,16,FALSE)),"") ->  | Q195: =IFERROR(VLOOKUP(TEXT($A195,0),MEDIDAS!$A$2:$Q$50,17,FALSE),"") -> 
A196: 188 | B196: =IFERROR(VLOOKUP(TEXT($A196,0),MEDIDAS!$A$2:$Q$50,2,FALSE),"") ->  | C196: =IFERROR(VLOOKUP(TEXT($A196,0),MEDIDAS!$A$2:$Q$50,3,FALSE),"") ->  | D196: =IFERROR(VLOOKUP(TEXT($A196,0),MEDIDAS!$A$2:$Q$50,4,FALSE),"") ->  | E196: =IFERROR(VLOOKUP(TEXT($A196,0),MEDIDAS!$A$2:$Q$50,5,FALSE),"") ->  | F196: =IFERROR(VLOOKUP(TEXT($A196,0),MEDIDAS!$A$2:$Q$50,6,FALSE),"") ->  | G196: =IFERROR(VLOOKUP(TEXT($A196,0),MEDIDAS!$A$2:$Q$50,7,FALSE),"") ->  | H196: =IFERROR(VLOOKUP(TEXT($A196,0),MEDIDAS!$A$2:$Q$50,8,FALSE),"") ->  | I196: =IFERROR(VLOOKUP(TEXT($A196,0),MEDIDAS!$A$2:$Q$50,9,FALSE),"") ->  | J196: =IFERROR(VALUE(VLOOKUP(TEXT($A196,0),MEDIDAS!$A$2:$Q$50,10,FALSE)),"") ->  | K196: =IFERROR(VALUE(VLOOKUP(TEXT($A196,0),MEDIDAS!$A$2:$Q$50,11,FALSE)),"") ->  | L196: =IFERROR(VALUE(VLOOKUP(TEXT($A196,0),MEDIDAS!$A$2:$Q$50,12,FALSE)),"") ->  | M196: =IFERROR(VALUE(VLOOKUP(TEXT($A196,0),MEDIDAS!$A$2:$Q$50,13,FALSE)),"") ->  | N196: =IFERROR(VALUE(VLOOKUP(TEXT($A196,0),MEDIDAS!$A$2:$Q$50,14,FALSE)),"") ->  | O196: =IFERROR(VALUE(VLOOKUP(TEXT($A196,0),MEDIDAS!$A$2:$Q$50,15,FALSE)),"") ->  | P196: =IFERROR(VALUE(VLOOKUP(TEXT($A196,0),MEDIDAS!$A$2:$Q$50,16,FALSE)),"") ->  | Q196: =IFERROR(VLOOKUP(TEXT($A196,0),MEDIDAS!$A$2:$Q$50,17,FALSE),"") -> 
A197: 189 | B197: =IFERROR(VLOOKUP(TEXT($A197,0),MEDIDAS!$A$2:$Q$50,2,FALSE),"") ->  | C197: =IFERROR(VLOOKUP(TEXT($A197,0),MEDIDAS!$A$2:$Q$50,3,FALSE),"") ->  | D197: =IFERROR(VLOOKUP(TEXT($A197,0),MEDIDAS!$A$2:$Q$50,4,FALSE),"") ->  | E197: =IFERROR(VLOOKUP(TEXT($A197,0),MEDIDAS!$A$2:$Q$50,5,FALSE),"") ->  | F197: =IFERROR(VLOOKUP(TEXT($A197,0),MEDIDAS!$A$2:$Q$50,6,FALSE),"") ->  | G197: =IFERROR(VLOOKUP(TEXT($A197,0),MEDIDAS!$A$2:$Q$50,7,FALSE),"") ->  | H197: =IFERROR(VLOOKUP(TEXT($A197,0),MEDIDAS!$A$2:$Q$50,8,FALSE),"") ->  | I197: =IFERROR(VLOOKUP(TEXT($A197,0),MEDIDAS!$A$2:$Q$50,9,FALSE),"") ->  | J197: =IFERROR(VALUE(VLOOKUP(TEXT($A197,0),MEDIDAS!$A$2:$Q$50,10,FALSE)),"") ->  | K197: =IFERROR(VALUE(VLOOKUP(TEXT($A197,0),MEDIDAS!$A$2:$Q$50,11,FALSE)),"") ->  | L197: =IFERROR(VALUE(VLOOKUP(TEXT($A197,0),MEDIDAS!$A$2:$Q$50,12,FALSE)),"") ->  | M197: =IFERROR(VALUE(VLOOKUP(TEXT($A197,0),MEDIDAS!$A$2:$Q$50,13,FALSE)),"") ->  | N197: =IFERROR(VALUE(VLOOKUP(TEXT($A197,0),MEDIDAS!$A$2:$Q$50,14,FALSE)),"") ->  | O197: =IFERROR(VALUE(VLOOKUP(TEXT($A197,0),MEDIDAS!$A$2:$Q$50,15,FALSE)),"") ->  | P197: =IFERROR(VALUE(VLOOKUP(TEXT($A197,0),MEDIDAS!$A$2:$Q$50,16,FALSE)),"") ->  | Q197: =IFERROR(VLOOKUP(TEXT($A197,0),MEDIDAS!$A$2:$Q$50,17,FALSE),"") -> 
A198: 190 | B198: =IFERROR(VLOOKUP(TEXT($A198,0),MEDIDAS!$A$2:$Q$50,2,FALSE),"") ->  | C198: =IFERROR(VLOOKUP(TEXT($A198,0),MEDIDAS!$A$2:$Q$50,3,FALSE),"") ->  | D198: =IFERROR(VLOOKUP(TEXT($A198,0),MEDIDAS!$A$2:$Q$50,4,FALSE),"") ->  | E198: =IFERROR(VLOOKUP(TEXT($A198,0),MEDIDAS!$A$2:$Q$50,5,FALSE),"") ->  | F198: =IFERROR(VLOOKUP(TEXT($A198,0),MEDIDAS!$A$2:$Q$50,6,FALSE),"") ->  | G198: =IFERROR(VLOOKUP(TEXT($A198,0),MEDIDAS!$A$2:$Q$50,7,FALSE),"") ->  | H198: =IFERROR(VLOOKUP(TEXT($A198,0),MEDIDAS!$A$2:$Q$50,8,FALSE),"") ->  | I198: =IFERROR(VLOOKUP(TEXT($A198,0),MEDIDAS!$A$2:$Q$50,9,FALSE),"") ->  | J198: =IFERROR(VALUE(VLOOKUP(TEXT($A198,0),MEDIDAS!$A$2:$Q$50,10,FALSE)),"") ->  | K198: =IFERROR(VALUE(VLOOKUP(TEXT($A198,0),MEDIDAS!$A$2:$Q$50,11,FALSE)),"") ->  | L198: =IFERROR(VALUE(VLOOKUP(TEXT($A198,0),MEDIDAS!$A$2:$Q$50,12,FALSE)),"") ->  | M198: =IFERROR(VALUE(VLOOKUP(TEXT($A198,0),MEDIDAS!$A$2:$Q$50,13,FALSE)),"") ->  | N198: =IFERROR(VALUE(VLOOKUP(TEXT($A198,0),MEDIDAS!$A$2:$Q$50,14,FALSE)),"") ->  | O198: =IFERROR(VALUE(VLOOKUP(TEXT($A198,0),MEDIDAS!$A$2:$Q$50,15,FALSE)),"") ->  | P198: =IFERROR(VALUE(VLOOKUP(TEXT($A198,0),MEDIDAS!$A$2:$Q$50,16,FALSE)),"") ->  | Q198: =IFERROR(VLOOKUP(TEXT($A198,0),MEDIDAS!$A$2:$Q$50,17,FALSE),"") -> 
A199: 191 | B199: =IFERROR(VLOOKUP(TEXT($A199,0),MEDIDAS!$A$2:$Q$50,2,FALSE),"") ->  | C199: =IFERROR(VLOOKUP(TEXT($A199,0),MEDIDAS!$A$2:$Q$50,3,FALSE),"") ->  | D199: =IFERROR(VLOOKUP(TEXT($A199,0),MEDIDAS!$A$2:$Q$50,4,FALSE),"") ->  | E199: =IFERROR(VLOOKUP(TEXT($A199,0),MEDIDAS!$A$2:$Q$50,5,FALSE),"") ->  | F199: =IFERROR(VLOOKUP(TEXT($A199,0),MEDIDAS!$A$2:$Q$50,6,FALSE),"") ->  | G199: =IFERROR(VLOOKUP(TEXT($A199,0),MEDIDAS!$A$2:$Q$50,7,FALSE),"") ->  | H199: =IFERROR(VLOOKUP(TEXT($A199,0),MEDIDAS!$A$2:$Q$50,8,FALSE),"") ->  | I199: =IFERROR(VLOOKUP(TEXT($A199,0),MEDIDAS!$A$2:$Q$50,9,FALSE),"") ->  | J199: =IFERROR(VALUE(VLOOKUP(TEXT($A199,0),MEDIDAS!$A$2:$Q$50,10,FALSE)),"") ->  | K199: =IFERROR(VALUE(VLOOKUP(TEXT($A199,0),MEDIDAS!$A$2:$Q$50,11,FALSE)),"") ->  | L199: =IFERROR(VALUE(VLOOKUP(TEXT($A199,0),MEDIDAS!$A$2:$Q$50,12,FALSE)),"") ->  | M199: =IFERROR(VALUE(VLOOKUP(TEXT($A199,0),MEDIDAS!$A$2:$Q$50,13,FALSE)),"") ->  | N199: =IFERROR(VALUE(VLOOKUP(TEXT($A199,0),MEDIDAS!$A$2:$Q$50,14,FALSE)),"") ->  | O199: =IFERROR(VALUE(VLOOKUP(TEXT($A199,0),MEDIDAS!$A$2:$Q$50,15,FALSE)),"") ->  | P199: =IFERROR(VALUE(VLOOKUP(TEXT($A199,0),MEDIDAS!$A$2:$Q$50,16,FALSE)),"") ->  | Q199: =IFERROR(VLOOKUP(TEXT($A199,0),MEDIDAS!$A$2:$Q$50,17,FALSE),"") -> 
A200: 192 | B200: =IFERROR(VLOOKUP(TEXT($A200,0),MEDIDAS!$A$2:$Q$50,2,FALSE),"") ->  | C200: =IFERROR(VLOOKUP(TEXT($A200,0),MEDIDAS!$A$2:$Q$50,3,FALSE),"") ->  | D200: =IFERROR(VLOOKUP(TEXT($A200,0),MEDIDAS!$A$2:$Q$50,4,FALSE),"") ->  | E200: =IFERROR(VLOOKUP(TEXT($A200,0),MEDIDAS!$A$2:$Q$50,5,FALSE),"") ->  | F200: =IFERROR(VLOOKUP(TEXT($A200,0),MEDIDAS!$A$2:$Q$50,6,FALSE),"") ->  | G200: =IFERROR(VLOOKUP(TEXT($A200,0),MEDIDAS!$A$2:$Q$50,7,FALSE),"") ->  | H200: =IFERROR(VLOOKUP(TEXT($A200,0),MEDIDAS!$A$2:$Q$50,8,FALSE),"") ->  | I200: =IFERROR(VLOOKUP(TEXT($A200,0),MEDIDAS!$A$2:$Q$50,9,FALSE),"") ->  | J200: =IFERROR(VALUE(VLOOKUP(TEXT($A200,0),MEDIDAS!$A$2:$Q$50,10,FALSE)),"") ->  | K200: =IFERROR(VALUE(VLOOKUP(TEXT($A200,0),MEDIDAS!$A$2:$Q$50,11,FALSE)),"") ->  | L200: =IFERROR(VALUE(VLOOKUP(TEXT($A200,0),MEDIDAS!$A$2:$Q$50,12,FALSE)),"") ->  | M200: =IFERROR(VALUE(VLOOKUP(TEXT($A200,0),MEDIDAS!$A$2:$Q$50,13,FALSE)),"") ->  | N200: =IFERROR(VALUE(VLOOKUP(TEXT($A200,0),MEDIDAS!$A$2:$Q$50,14,FALSE)),"") ->  | O200: =IFERROR(VALUE(VLOOKUP(TEXT($A200,0),MEDIDAS!$A$2:$Q$50,15,FALSE)),"") ->  | P200: =IFERROR(VALUE(VLOOKUP(TEXT($A200,0),MEDIDAS!$A$2:$Q$50,16,FALSE)),"") ->  | Q200: =IFERROR(VLOOKUP(TEXT($A200,0),MEDIDAS!$A$2:$Q$50,17,FALSE),"") -> 
A201: 193 | B201: =IFERROR(VLOOKUP(TEXT($A201,0),MEDIDAS!$A$2:$Q$50,2,FALSE),"") ->  | C201: =IFERROR(VLOOKUP(TEXT($A201,0),MEDIDAS!$A$2:$Q$50,3,FALSE),"") ->  | D201: =IFERROR(VLOOKUP(TEXT($A201,0),MEDIDAS!$A$2:$Q$50,4,FALSE),"") ->  | E201: =IFERROR(VLOOKUP(TEXT($A201,0),MEDIDAS!$A$2:$Q$50,5,FALSE),"") ->  | F201: =IFERROR(VLOOKUP(TEXT($A201,0),MEDIDAS!$A$2:$Q$50,6,FALSE),"") ->  | G201: =IFERROR(VLOOKUP(TEXT($A201,0),MEDIDAS!$A$2:$Q$50,7,FALSE),"") ->  | H201: =IFERROR(VLOOKUP(TEXT($A201,0),MEDIDAS!$A$2:$Q$50,8,FALSE),"") ->  | I201: =IFERROR(VLOOKUP(TEXT($A201,0),MEDIDAS!$A$2:$Q$50,9,FALSE),"") ->  | J201: =IFERROR(VALUE(VLOOKUP(TEXT($A201,0),MEDIDAS!$A$2:$Q$50,10,FALSE)),"") ->  | K201: =IFERROR(VALUE(VLOOKUP(TEXT($A201,0),MEDIDAS!$A$2:$Q$50,11,FALSE)),"") ->  | L201: =IFERROR(VALUE(VLOOKUP(TEXT($A201,0),MEDIDAS!$A$2:$Q$50,12,FALSE)),"") ->  | M201: =IFERROR(VALUE(VLOOKUP(TEXT($A201,0),MEDIDAS!$A$2:$Q$50,13,FALSE)),"") ->  | N201: =IFERROR(VALUE(VLOOKUP(TEXT($A201,0),MEDIDAS!$A$2:$Q$50,14,FALSE)),"") ->  | O201: =IFERROR(VALUE(VLOOKUP(TEXT($A201,0),MEDIDAS!$A$2:$Q$50,15,FALSE)),"") ->  | P201: =IFERROR(VALUE(VLOOKUP(TEXT($A201,0),MEDIDAS!$A$2:$Q$50,16,FALSE)),"") ->  | Q201: =IFERROR(VLOOKUP(TEXT($A201,0),MEDIDAS!$A$2:$Q$50,17,FALSE),"") -> 
A202: 194 | B202: =IFERROR(VLOOKUP(TEXT($A202,0),MEDIDAS!$A$2:$Q$50,2,FALSE),"") ->  | C202: =IFERROR(VLOOKUP(TEXT($A202,0),MEDIDAS!$A$2:$Q$50,3,FALSE),"") ->  | D202: =IFERROR(VLOOKUP(TEXT($A202,0),MEDIDAS!$A$2:$Q$50,4,FALSE),"") ->  | E202: =IFERROR(VLOOKUP(TEXT($A202,0),MEDIDAS!$A$2:$Q$50,5,FALSE),"") ->  | F202: =IFERROR(VLOOKUP(TEXT($A202,0),MEDIDAS!$A$2:$Q$50,6,FALSE),"") ->  | G202: =IFERROR(VLOOKUP(TEXT($A202,0),MEDIDAS!$A$2:$Q$50,7,FALSE),"") ->  | H202: =IFERROR(VLOOKUP(TEXT($A202,0),MEDIDAS!$A$2:$Q$50,8,FALSE),"") ->  | I202: =IFERROR(VLOOKUP(TEXT($A202,0),MEDIDAS!$A$2:$Q$50,9,FALSE),"") ->  | J202: =IFERROR(VALUE(VLOOKUP(TEXT($A202,0),MEDIDAS!$A$2:$Q$50,10,FALSE)),"") ->  | K202: =IFERROR(VALUE(VLOOKUP(TEXT($A202,0),MEDIDAS!$A$2:$Q$50,11,FALSE)),"") ->  | L202: =IFERROR(VALUE(VLOOKUP(TEXT($A202,0),MEDIDAS!$A$2:$Q$50,12,FALSE)),"") ->  | M202: =IFERROR(VALUE(VLOOKUP(TEXT($A202,0),MEDIDAS!$A$2:$Q$50,13,FALSE)),"") ->  | N202: =IFERROR(VALUE(VLOOKUP(TEXT($A202,0),MEDIDAS!$A$2:$Q$50,14,FALSE)),"") ->  | O202: =IFERROR(VALUE(VLOOKUP(TEXT($A202,0),MEDIDAS!$A$2:$Q$50,15,FALSE)),"") ->  | P202: =IFERROR(VALUE(VLOOKUP(TEXT($A202,0),MEDIDAS!$A$2:$Q$50,16,FALSE)),"") ->  | Q202: =IFERROR(VLOOKUP(TEXT($A202,0),MEDIDAS!$A$2:$Q$50,17,FALSE),"") -> 
A203: 195 | B203: =IFERROR(VLOOKUP(TEXT($A203,0),MEDIDAS!$A$2:$Q$50,2,FALSE),"") ->  | C203: =IFERROR(VLOOKUP(TEXT($A203,0),MEDIDAS!$A$2:$Q$50,3,FALSE),"") ->  | D203: =IFERROR(VLOOKUP(TEXT($A203,0),MEDIDAS!$A$2:$Q$50,4,FALSE),"") ->  | E203: =IFERROR(VLOOKUP(TEXT($A203,0),MEDIDAS!$A$2:$Q$50,5,FALSE),"") ->  | F203: =IFERROR(VLOOKUP(TEXT($A203,0),MEDIDAS!$A$2:$Q$50,6,FALSE),"") ->  | G203: =IFERROR(VLOOKUP(TEXT($A203,0),MEDIDAS!$A$2:$Q$50,7,FALSE),"") ->  | H203: =IFERROR(VLOOKUP(TEXT($A203,0),MEDIDAS!$A$2:$Q$50,8,FALSE),"") ->  | I203: =IFERROR(VLOOKUP(TEXT($A203,0),MEDIDAS!$A$2:$Q$50,9,FALSE),"") ->  | J203: =IFERROR(VALUE(VLOOKUP(TEXT($A203,0),MEDIDAS!$A$2:$Q$50,10,FALSE)),"") ->  | K203: =IFERROR(VALUE(VLOOKUP(TEXT($A203,0),MEDIDAS!$A$2:$Q$50,11,FALSE)),"") ->  | L203: =IFERROR(VALUE(VLOOKUP(TEXT($A203,0),MEDIDAS!$A$2:$Q$50,12,FALSE)),"") ->  | M203: =IFERROR(VALUE(VLOOKUP(TEXT($A203,0),MEDIDAS!$A$2:$Q$50,13,FALSE)),"") ->  | N203: =IFERROR(VALUE(VLOOKUP(TEXT($A203,0),MEDIDAS!$A$2:$Q$50,14,FALSE)),"") ->  | O203: =IFERROR(VALUE(VLOOKUP(TEXT($A203,0),MEDIDAS!$A$2:$Q$50,15,FALSE)),"") ->  | P203: =IFERROR(VALUE(VLOOKUP(TEXT($A203,0),MEDIDAS!$A$2:$Q$50,16,FALSE)),"") ->  | Q203: =IFERROR(VLOOKUP(TEXT($A203,0),MEDIDAS!$A$2:$Q$50,17,FALSE),"") -> 
... 54 more rows

Sheet Cuadro1A
B4: =HYPERLINK(Seguimiento!$A$1,"Menú Principal") -> Menú Principal | H4: Versión 2023-3-1.0
A5: CUADRO No. 1A - RESUMEN POR CATEGORÍAS DE LAS MEDIDAS PARA PROGRAMA DE SANEAMIENTO FISCAL Y FINANCIERO ESE
A6: PERIODO DE CORTE | C6: =Seguimiento!$C$7 & " - " & Seguimiento!$C$8 -> 3 - 2023 | D6: ESE | E6: =Seguimiento!$C$6 -> E.S.E. HOSPITAL SAN JUAN DE DIOS DE FLORIDABLANCA
A8: CÓDIGO | B8: CONCEPTO | C8: EJECUCIÓN ACUMULADA AL CIERRE DEL AÑO ANTERIOR (%) | D8: EJECUCIÓN ACUMULADA AL TRIMESTRE DE CORTE | E8: EJECUCIÓN ACUMULADA ESPERADA AL FINAL DE LA VIGENCIA (%) | F8: COMENTARIOS (ESE) | G8: % DE EJECUCIÓN FRENTE A LO PROGRAMADO (SDS) | H8: CONCLUSIONES SEGUIMIENTO
A9: M.1 | B9: Fortalecimiento de los ingresos de las ESE | C9: =IFERROR(VALUE(VLOOKUP($A9,MEDIDAS_RESUMEN!$A$2:$F$50,3,FALSE)),"") -> 0.73 | D9: =IFERROR(VALUE(VLOOKUP($A9,MEDIDAS_RESUMEN!$A$2:$F$50,4,FALSE)),"") -> 0.8 | E9: =IFERROR(VALUE(VLOOKUP($A9,MEDIDAS_RESUMEN!$A$2:$F$50,5,FALSE)),"") -> 0.96 | F9: =IFERROR(VLOOKUP($A9,MEDIDAS_RESUMEN!$A$2:$F$50,6,FALSE),"") -> Se logra un cumplimiento del 80% por encima de lo esperado. medidas que ha permitido el cumplimiento del escenario financiero programado para la vigencia 2023
A10: M.2 | B10: Racionalización del gasto | C10: =IFERROR(VALUE(VLOOKUP($A10,MEDIDAS_RESUMEN!$A$2:$F$50,3,FALSE)),"") -> 1 | D10: =IFERROR(VALUE(VLOOKUP($A10,MEDIDAS_RESUMEN!$A$2:$F$50,4,FALSE)),"") -> 0.7 | E10: =IFERROR(VALUE(VLOOKUP($A10,MEDIDAS_RESUMEN!$A$2:$F$50,5,FALSE)),"") -> 1 | F10: =IFERROR(VLOOKUP($A10,MEDIDAS_RESUMEN!$A$2:$F$50,6,FALSE),"") -> Se observa un nivel de ejecución por debajo de lo esperado. lo que permite concluir que las medidas implementasdas han permitido la racionalización del gasto- con un cumplimiento del 70% frente a lo proyectado
A11: M.3 | B11: Reestructuración de la deuda | C11: =IFERROR(VALUE(VLOOKUP($A11,MEDIDAS_RESUMEN!$A$2:$F$50,3,FALSE)),"") ->  | D11: =IFERROR(VALUE(VLOOKUP($A11,MEDIDAS_RESUMEN!$A$2:$F$50,4,FALSE)),"") ->  | E11: =IFERROR(VALUE(VLOOKUP($A11,MEDIDAS_RESUMEN!$A$2:$F$50,5,FALSE)),"") ->  | F11: =IFERROR(VLOOKUP($A11,MEDIDAS_RESUMEN!$A$2:$F$50,6,FALSE),"") -> 
A12: M.4 | B12: Reorganización administrativa | C12: =IFERROR(VALUE(VLOOKUP($A12,MEDIDAS_RESUMEN!$A$2:$F$50,3,FALSE)),"") -> 0.87 | D12: =IFERROR(VALUE(VLOOKUP($A12,MEDIDAS_RESUMEN!$A$2:$F$50,4,FALSE)),"") -> 0.84 | E12: =IFERROR(VALUE(VLOOKUP($A12,MEDIDAS_RESUMEN!$A$2:$F$50,5,FALSE)),"") -> 0.92 | F12: =IFERROR(VLOOKUP($A12,MEDIDAS_RESUMEN!$A$2:$F$50,6,FALSE),"") -> Cumplimiento de lo esperado a tercer trimestre de 2023- esfuerzo centralizado en la estandarizacion de procesos- socializacion de los mismos y ejecucion del plan de formacion y capacitacion del personal de la ESE
A13: M.5 | B13: Saneamiento de pasivos | C13: =IFERROR(VALUE(VLOOKUP($A13,MEDIDAS_RESUMEN!$A$2:$F$50,3,FALSE)),"") -> 0.33 | D13: =IFERROR(VALUE(VLOOKUP($A13,MEDIDAS_RESUMEN!$A$2:$F$50,4,FALSE)),"") -> 0.34 | E13: =IFERROR(VALUE(VLOOKUP($A13,MEDIDAS_RESUMEN!$A$2:$F$50,5,FALSE)),"") -> 0.61 | F13: =IFERROR(VLOOKUP($A13,MEDIDAS_RESUMEN!$A$2:$F$50,6,FALSE),"") -> La ESE no ha cerrado la vigencia 2023 por lo tanto no tiene la proyección de los excedentes a generar para apalancar el pago de pasivos del programa
A14: M.6 | B14: Otros | C14: =IFERROR(VALUE(VLOOKUP($A14,MEDIDAS_RESUMEN!$A$2:$F$50,3,FALSE)),"") ->  | D14: =IFERROR(VALUE(VLOOKUP($A14,MEDIDAS_RESUMEN!$A$2:$F$50,4,FALSE)),"") ->  | E14: =IFERROR(VALUE(VLOOKUP($A14,MEDIDAS_RESUMEN!$A$2:$F$50,5,FALSE)),"") ->  | F14: =IFERROR(VLOOKUP($A14,MEDIDAS_RESUMEN!$A$2:$F$50,6,FALSE),"") -> 

Sheet Cuadro2
B4: =HYPERLINK(Seguimiento!$A$1,"Menú Principal") -> Menú Principal | I4: =Cuadro1!N4 -> Versión 2023-3-1.0
A5: CUADRO 2 - ANÁLISIS DEL FLUJO FINANCIERO
A6: PERIODO DE CORTE | C6: =Seguimiento!$C$7 & " - " & Seguimiento!$C$8 -> 3 - 2023 | D6: ESE | E6: =Seguimiento!$C$6 -> E.S.E. HOSPITAL SAN JUAN DE DIOS DE FLORIDABLANCA
A8: CÓDIGO | B8: CONCEPTO | C8: PRESUPUESTO VIGENCIA PSFF | D8: TOTAL ACUMULADO (flujo financiero) | E8: PESO % | F8: % CUMPLIMIENTO | G8: ANÁLISIS RESPECTO AL CUMPLIMIENTO DEL PSFF - ESE | H8: EJECUCIÓN P/TAL (SIHO-CUIPO) | I8: CONCLUSIONES SEGUIMIENTO (analice los resultados obtenidos frente a los programados en el PSFF)
A9: F.I1 | B9: Ingresos | C9: =SUM(C10:C12) -> 31266897973 | D9: =SUM(D10:D12) -> 23577576923 | E9: =SUM(E10:E12) -> 1 | F9: =IF(IFERROR(D9/C9,0)>=1,1,IFERROR(D9/C9,0)) -> 0.7540747068 | G9: =IFERROR(VLOOKUP(A9,FLUJO_FINANCIERO!$A$2:$G$50,7,FALSE),"") -> NA | H9: =SUM(H10:H12) -> 0
A10: F.I10 | B10: Disponibilidad inicial | C10: =IFERROR(VALUE(VLOOKUP(A10,FLUJO_FINANCIERO!$A$2:$G$50,3,FALSE)),0) -> 3669240276 | D10: =IFERROR(VALUE(VLOOKUP(A10,FLUJO_FINANCIERO!$A$2:$G$50,4,FALSE)),0) -> 2123776826 | E10: =IFERROR(D10/$D$9,0) -> 0.09007612754 | F10: =IF(IFERROR(D10/C10,0)>=1,1,IFERROR(D10/C10,0)) -> 0.5788056018 | G10: =IFERROR(VLOOKUP(A10,FLUJO_FINANCIERO!$A$2:$G$50,7,FALSE),"") -> NA
A11: F.I11 | B11: Ingresos corrientes | C11: =IFERROR(VALUE(VLOOKUP(A11,FLUJO_FINANCIERO!$A$2:$G$50,3,FALSE)),0) -> 26017157697 | D11: =IFERROR(VALUE(VLOOKUP(A11,FLUJO_FINANCIERO!$A$2:$G$50,4,FALSE)),0) -> 20828450223 | E11: =IFERROR(D11/$D$9,0) -> 0.8834007961 | F11: 0.8005659367 | G11: =IFERROR(VLOOKUP(A11,FLUJO_FINANCIERO!$A$2:$G$50,7,FALSE),"") -> NA
A12: F.I12 | B12: Recursos de capital | C12: =IFERROR(VALUE(VLOOKUP(A12,FLUJO_FINANCIERO!$A$2:$G$50,3,FALSE)),0) -> 1580500000 | D12: =IFERROR(VALUE(VLOOKUP(A12,FLUJO_FINANCIERO!$A$2:$G$50,4,FALSE)),0) -> 625349874 | E12: =IFERROR(D12/$D$9,0) -> 0.0265230764 | F12: 0.3956658488 | G12: =IFERROR(VLOOKUP(A12,FLUJO_FINANCIERO!$A$2:$G$50,7,FALSE),"") -> NA
A13: F.G2 | B13: Gastos | C13: =SUM(C14:C17) -> 28786470866 | D13: =IFERROR(VALUE(VLOOKUP(A13,FLUJO_FINANCIERO!$A$2:$G$50,4,FALSE)),0) -> 18068630087 | E13: =SUM(E14:E17) -> 1 | F13: 0.6276778481 | G13: =IFERROR(VLOOKUP(A13,FLUJO_FINANCIERO!$A$2:$G$50,7,FALSE),"") -> NA | H13: =SUM(H14:H17) -> 0
A14: F.G21 | B14: Funcionamiento | C14: =IFERROR(VALUE(VLOOKUP(A14,FLUJO_FINANCIERO!$A$2:$G$50,3,FALSE)),0) -> 11833020145 | D14: =IFERROR(VALUE(VLOOKUP(A14,FLUJO_FINANCIERO!$A$2:$G$50,4,FALSE)),0) -> 4978699795 | E14: =IFERROR(D14/$D$13,0) -> 0.2755438443 | F14: 0.4207463297 | G14: =IFERROR(VLOOKUP(A14,FLUJO_FINANCIERO!$A$2:$G$50,7,FALSE),"") -> NA
A15: F.G22 | B15: Servicio de la deuda pública | C15: =IFERROR(VALUE(VLOOKUP(A15,FLUJO_FINANCIERO!$A$2:$G$50,3,FALSE)),0) -> 0 | D15: =IFERROR(VALUE(VLOOKUP(A15,FLUJO_FINANCIERO!$A$2:$G$50,4,FALSE)),0) -> 0 | E15: =IFERROR(D15/$D$13,0) -> 0 | F15: 0 | G15: =IFERROR(VLOOKUP(A15,FLUJO_FINANCIERO!$A$2:$G$50,7,FALSE),"") -> 
A16: F.G23 | B16: Inversion | C16: =IFERROR(VALUE(VLOOKUP(A16,FLUJO_FINANCIERO!$A$2:$G$50,3,FALSE)),0) -> 0 | D16: =D13-D14-D15-D17 -> 160191136 | E16: =IFERROR(D16/$D$13,0) -> 0.008865704551 | F16: 0 | G16: =IFERROR(VLOOKUP(A16,FLUJO_FINANCIERO!$A$2:$G$50,7,FALSE),"") -> 
A17: F.G24 | B17: Gastos de operación comercial | C17: =IFERROR(VALUE(VLOOKUP(A17,FLUJO_FINANCIERO!$A$2:$G$50,3,FALSE)),0) -> 16953450721 | D17: =IFERROR(VALUE(VLOOKUP(A17,FLUJO_FINANCIERO!$A$2:$G$50,4,FALSE)),0) -> 12929739156 | E17: =IFERROR(D17/$D$13,0) -> 0.7155904512 | F17: 0.762661205 | G17: =IFERROR(VLOOKUP(A17,FLUJO_FINANCIERO!$A$2:$G$50,7,FALSE),"") -> NA
A18: F.P | B18: Equilibrio presupuestal | C18: =C9-C13 -> 2480427107 | D18: =D9-D13 -> 5508946836 | F18: 1 | G18: =IFERROR(VLOOKUP(A18,FLUJO_FINANCIERO!$A$2:$G$50,7,FALSE),"") -> NA | H18: =H9-H13 -> 0
A21: CÓDIGO | B21: CONCEPTO | C21: PRESUPUESTO VIGENCIA PSFF | D21: TOTAL ACUMULADO DEL TRIMESTRE REPORTADO | E21: PESO % | F21: % CUMPLIMIENTO | G21: ANALISIS RESPECTO AL CUMPLIMIENTO DEL PSFF - ESE | H21: EJECUCIÓN P/TAL (SIHO-CUIPO) | I21: CONCLUSIONES SEGUIMIENTO (analice los resultados obtenidos frente a los programados en el PSFF)
A22: R.1 | B22: Recursos de la ESE | C22: =Cuadro3!C9 -> 3669240276 | D22: =Cuadro3!D9 -> 0 | E22: =IFERROR(D22/$D$30,0) -> 0 | F22: =IF(IFERROR(D22/C22,0)>=1,1,IFERROR(D22/C22,"")) -> 0 | G22: =Cuadro3!G9 -> NA
A23: R.2 | B23: Saldos cuentas maestras (Art. 2 Ley 1608/13) | C23: =Cuadro3!C10 ->  | D23: =Cuadro3!D10 ->  | E23: =IFERROR(D23/$D$30,0) -> 0 | F23: =IF(IFERROR(D23/C23,0)>=1,1,IFERROR(D23/C23,"")) ->  | G23: =Cuadro3!G10 -> 
A24: R.3 | B24: Excedentes rentas cedidas 2012 y 2013 (Art. 4 Ley 1608/13) | C24: =Cuadro3!C11 ->  | D24: =Cuadro3!D11 ->  | E24: 0 | G24: =Cuadro3!G11 -> 
A25: R.4 | B25: Recursos FONSAET (Art. 7 Ley 1608/13) | C25: =Cuadro3!C12 -> 2423720000 | D25: =Cuadro3!D12 -> 2423720000 | E25: 0.3829640321 | F25: 1 | G25: =Cuadro3!G12 -> NA
A26: R.5 | B26: Recursos destinados por el departamento para PSFF | C26: =Cuadro3!C13 -> 3905125000 | D26: =Cuadro3!D13 -> 3905125000 | E26: 0.6170359679 | F26: 1 | G26: =Cuadro3!G13 -> NA
A27: R.6 | B27: Recursos destinados por el distrito para PSFF | C27: =Cuadro3!C14 ->  | D27: =Cuadro3!D14 ->  | E27: 0 | G27: =Cuadro3!G14 -> 
A28: R.7 | B28: Recursos destinados por el municipio para PSFF | C28: =Cuadro3!C15 ->  | D28: =Cuadro3!D15 ->  | E28: 0 | G28: =Cuadro3!G15 -> 
A29: R.8 | B29: Recursos de la nación para PSFF | C29: =Cuadro3!C16 ->  | D29: =Cuadro3!D16 ->  | E29: 0 | G29: =Cuadro3!G16 -> 
A30: TOTAL FUENTES PSFF | C30: =SUM(C22:C29) -> 9998085276 | D30: =SUM(D22:D29) -> 6328845000 | E30: =IF(IFERROR(D30/C30,0)>=1,1,IFERROR(D30/C30,"")) -> 0.6330057031 | F30: 0.6330057031 | H30: =SUM(H22:H29) -> 0
A33: CÓDIGO | B33: GASTOS / COSTOS | C33: PRESUPUESTO VIGENCIA PSFF | D33: TOTAL ACUMULADO DEL TRIMESTRE REPORTADO | E33: PESO % | F33: % CUMPLIMIENTO | G33: ANALISIS RESPECTO AL CUMPLIMIENTO DEL PSFF - ESE | H33: EJECUCIÓN P/TAL (SIHO-CUIPO) | I33: CONCLUSIONES SEGUIMIENTO (analice los resultados obtenidos frente a los programados en el PSFF)
A34: M | B34: M. COSTO MEDIDAS PSFF | F34: =IF(IFERROR(D34/C34,0)>=1,1,IFERROR(D34/C34,"")) -> 
A35: PP.2 | B35: Pago de pasivos | C35: =SUM(C36:C41) -> 19177189653 | D35: =SUM(D36:D41) -> 6464721034 | F35: 0.337104714 | G35: =Cuadro4!G9 -> NA | H35: =SUM(H36:H41) -> 0
A36: PP.3 | B36: Acreencias laborales + servicios personales indirectos | C36: =Cuadro4!C10 -> 12744718698 | D36: =Cuadro4!D10 -> 5413077525 | E36: =IFERROR(D36/$D$35,0) -> 0.8373257711 | F36: 0.424731032 | G36: =Cuadro4!G10 -> NA
A37: PP.4 | B37: Entidades públicas y de seguridad social | C37: =Cuadro4!C11 -> 2435985677 | D37: =Cuadro4!D11 -> 262931938 | E37: =IFERROR(D37/$D$35,0) -> 0.04067181501 | F37: 0.1079365698 | G37: =Cuadro4!G11 -> NA
A38: PP.5 | B38: Proveedores bienes y servicios (no incluye servicios personales indirectos) | C38: =Cuadro4!C12 -> 1299860195 | D38: =Cuadro4!D12 -> 512022507 | E38: 0.07920256795 | F38: 0.3939058285 | G38: =Cuadro4!G12 -> NA
A39: PP.6 | B39: Obligaciones financieras | C39: =Cuadro4!C13 -> 0 | D39: =Cuadro4!D13 -> 0 | E39: 0 | G39: =Cuadro4!G13 -> 
A40: PP.7 | B40: Demás acreedores externos | C40: =Cuadro4!C14 -> 0 | D40: =Cuadro4!D14 -> 0 | E40: 0 | G40: =Cuadro4!G14 -> 
A41: PP.8 | B41: Otros pasivos | C41: =SUM(C42:C43) -> 2696625083 | D41: =SUM(D42:D43) -> 276689064 | E41: 0.04279984589 | F41: 0.1026056851 | G41: =Cuadro4!G15 -> NA | H41: =SUM(H42:H43) -> 0
A42: PP.9 | B42: Provisiones para contingencias | C42: =Cuadro4!C16 -> 2487828461 | D42: =Cuadro4!D16 -> 72662901 | E42: 0.01123991285 | F42: 0.02920735981 | G42: =Cuadro4!G16 -> NA
A43: PP.91 | B43: Otros | C43: =Cuadro4!C17 -> 208796622 | D43: =Cuadro4!D17 -> 204026163 | E43: 0.03155993305 | F43: 0.9771526045 | G43: =Cuadro4!G17 -> NA

Sheet Cuadro3
B4: =HYPERLINK(Seguimiento!$A$1,"Menú Principal") -> Menú Principal | H4: =Cuadro1!N4 -> Versión 2023-3-1.0
A5: CUADRO 3 - ANÁLISIS DEL RECAUDO DE LAS FUENTES DE FINANCIACIÓN PARA EL PSFF
A6: PERIODO DE CORTE | C6: =Seguimiento!$C$7 & " - " & Seguimiento!$C$8 -> 3 - 2023 | D6: ESE | E6: =Seguimiento!$C$6 -> E.S.E. HOSPITAL SAN JUAN DE DIOS DE FLORIDABLANCA
A8: CÓDIGO | B8: CONCEPTO | C8: FUENTES PROGRAMADAS A LA FECHA DE INICIO DEL PSFF | D8: RECAUDO ACUMULADO AL CIERRE DEL TRIMESTRE QUE INFORMA | E8: % CUMPLIMIENTO | F8: SALDO PENDIENTE POR RECAUDAR AL CIERRE DEL TRIMESTRE | G8: ANÁLISIS RESPECTO AL CUMPLIMIENTO DEL PSFF - ESE | H8: CONCLUSIONES SEGUIMIENTO (analice los resultados obtenidos frente a los programados en el PSFF)
A9: R.1 | B9: Recursos de la ESE | C9: =IFERROR(VALUE(VLOOKUP($A9,FUENTES_FINANCIACION!$A$2:$G$50,3,FALSE)),"") -> 3669240276 | D9: =IFERROR(VALUE(VLOOKUP($A9,FUENTES_FINANCIACION!$A$2:$G$50,4,FALSE)),"") -> 0 | E9: =IF(IFERROR(D9/C9,0)>=1,1,IFERROR(D9/C9,"")) -> 0 | F9: =IFERROR(VALUE(VLOOKUP($A9,FUENTES_FINANCIACION!$A$2:$G$50,6,FALSE)),"") -> 3669240276 | G9: =IFERROR(VLOOKUP($A9,FUENTES_FINANCIACION!$A$2:$G$50,7,FALSE),"") -> NA
A10: R.2 | B10: Saldos cuentas maestras (Art. 2 Ley 1608/13) | C10: =IFERROR(VALUE(VLOOKUP($A10,FUENTES_FINANCIACION!$A$2:$G$50,3,FALSE)),"") ->  | D10: =IFERROR(VALUE(VLOOKUP($A10,FUENTES_FINANCIACION!$A$2:$G$50,4,FALSE)),"") ->  | E10: =IF(IFERROR(D10/C10,0)>=1,1,IFERROR(D10/C10,"")) ->  | F10: =IFERROR(VALUE(VLOOKUP($A10,FUENTES_FINANCIACION!$A$2:$G$50,6,FALSE)),"") ->  | G10: =IFERROR(VLOOKUP($A10,FUENTES_FINANCIACION!$A$2:$G$50,7,FALSE),"") -> 
A11: R.3 | B11: Excedentes rentas cedidas 2012 y 2013 (Art. 4 Ley 1608/13) | C11: =IFERROR(VALUE(VLOOKUP($A11,FUENTES_FINANCIACION!$A$2:$G$50,3,FALSE)),"") ->  | D11: =IFERROR(VALUE(VLOOKUP($A11,FUENTES_FINANCIACION!$A$2:$G$50,4,FALSE)),"") ->  | F11: =IFERROR(VALUE(VLOOKUP($A11,FUENTES_FINANCIACION!$A$2:$G$50,6,FALSE)),"") ->  | G11: =IFERROR(VLOOKUP($A11,FUENTES_FINANCIACION!$A$2:$G$50,7,FALSE),"") -> 
A12: R.4 | B12: Recursos FONSAET (Art. 7 Ley 1608/13) | C12: =IFERROR(VALUE(VLOOKUP($A12,FUENTES_FINANCIACION!$A$2:$G$50,3,FALSE)),"") -> 2423720000 | D12: =IFERROR(VALUE(VLOOKUP($A12,FUENTES_FINANCIACION!$A$2:$G$50,4,FALSE)),"") -> 2423720000 | E12: 1 | F12: =IFERROR(VALUE(VLOOKUP($A12,FUENTES_FINANCIACION!$A$2:$G$50,6,FALSE)),"") -> 0 | G12: =IFERROR(VLOOKUP($A12,FUENTES_FINANCIACION!$A$2:$G$50,7,FALSE),"") -> NA
A13: R.5 | B13: Recursos destinados por el departamento para PSFF | C13: =IFERROR(VALUE(VLOOKUP($A13,FUENTES_FINANCIACION!$A$2:$G$50,3,FALSE)),"") -> 3905125000 | D13: =IFERROR(VALUE(VLOOKUP($A13,FUENTES_FINANCIACION!$A$2:$G$50,4,FALSE)),"") -> 3905125000 | E13: 1 | F13: =IFERROR(VALUE(VLOOKUP($A13,FUENTES_FINANCIACION!$A$2:$G$50,6,FALSE)),"") -> 0 | G13: =IFERROR(VLOOKUP($A13,FUENTES_FINANCIACION!$A$2:$G$50,7,FALSE),"") -> NA
A14: R.6 | B14: Recursos destinados por el distrito para PSFF | C14: =IFERROR(VALUE(VLOOKUP($A14,FUENTES_FINANCIACION!$A$2:$G$50,3,FALSE)),"") ->  | D14: =IFERROR(VALUE(VLOOKUP($A14,FUENTES_FINANCIACION!$A$2:$G$50,4,FALSE)),"") ->  | F14: =IFERROR(VALUE(VLOOKUP($A14,FUENTES_FINANCIACION!$A$2:$G$50,6,FALSE)),"") ->  | G14: =IFERROR(VLOOKUP($A14,FUENTES_FINANCIACION!$A$2:$G$50,7,FALSE),"") -> 
